Workbook

Sheet Lists (hidden)
T1: Lists
V4: States | AG4: Yes/No | AZ4: Schedule Items
BX5: Zoom
V6: Alabama | W6: Alabama | X6: Alabama | Y6: Alabama | Z6: Alabama | AA6: Alabama | AB6: Alabama | AC6: Alabama | AD6: Alabama | AE6: Alabama | AG6: Yes | AZ6: Seller Accepted Offer | BX6: 110%
V7: Alaska | W7: Alaska | X7: Alaska | Y7: Alaska | Z7: Alaska | AA7: Alaska | AB7: Alaska | AC7: Alaska | AD7: Alaska | AE7: Alaska | AG7: No | AZ7: Property Inspections | BX7: 109%
V8: Arizona | W8: Arizona | X8: Arizona | Y8: Arizona | Z8: Arizona | AA8: Arizona | AB8: Arizona | AC8: Arizona | AD8: Arizona | AE8: Arizona | AG8: PMT Type | AZ8: Contractor Preparation / Bidding | BX8: 108%
V9: Arkansas | W9: Arkansas | X9: Arkansas | Y9: Arkansas | Z9: Arkansas | AA9: Arkansas | AB9: Arkansas | AC9: Arkansas | AD9: Arkansas | AE9: Arkansas | AZ9: Material Procurement | BX9: 107%
V10: California | W10: California | X10: California | Y10: California | Z10: California | AA10: California | AB10: California | AC10: California | AD10: California | AE10: California | AG10: Check | AZ10: Architectural/Structural Design | BX10: 106%
V11: Colorado | W11: Colorado | X11: Colorado | Y11: Colorado | Z11: Colorado | AA11: Colorado | AB11: Colorado | AC11: Colorado | AD11: Colorado | AE11: Colorado | AG11: Credit Card | AZ11: Utility Locates | BX11: 105%
V12: Connecticut | W12: Connecticut | X12: Connecticut | Y12: Connecticut | Z12: Connecticut | AA12: Connecticut | AB12: Connecticut | AC12: Connecticut | AD12: Connecticut | AE12: Connecticut | AG12: Debit Card | AZ12: Dumpster Delivery | BX12: 104%
V13: Delaware | W13: Delaware | X13: Delaware | Y13: Delaware | Z13: Delaware | AA13: Delaware | AB13: Delaware | AC13: Delaware | AD13: Delaware | AE13: Delaware | AG13: Cash | AZ13: Property Purchase Closing Date | BX13: 103%
V14: Florida | W14: Florida | X14: Florida | Y14: Florida | Z14: Florida | AA14: Florida | AB14: Florida | AC14: Florida | AD14: Florida | AE14: Florida | AG14: Bank Transfer | AZ14: Demolition | BX14: 102%
V15: Georgia | W15: Georgia | X15: Georgia | Y15: Georgia | Z15: Georgia | AA15: Georgia | AB15: Georgia | AC15: Georgia | AD15: Georgia | AE15: Georgia | AG15: Paypal | AZ15: Structural Repairs | BX15: 101%
V16: Hawaii | W16: Hawaii | X16: Hawaii | Y16: Hawaii | Z16: Hawaii | AA16: Hawaii | AB16: Hawaii | AC16: Hawaii | AD16: Hawaii | AE16: Hawaii | AG16: Other | AZ16: Driveway Repairs/Replacement | BX16: 100%
V17: Idaho | W17: Idaho | X17: Idaho | Y17: Idaho | Z17: Idaho | AA17: Idaho | AB17: Idaho | AC17: Idaho | AD17: Idaho | AE17: Idaho | AG17: LMES | AZ17: Siding | BX17: 99%
V18: Illinois | W18: Illinois | X18: Illinois | Y18: Illinois | Z18: Illinois | AA18: Illinois | AB18: Illinois | AC18: Illinois | AD18: Illinois | AE18: Illinois | AZ18: Deck Repair/Construction | BX18: 98%
V19: Indiana | W19: Indiana | X19: Indiana | Y19: Indiana | Z19: Indiana | AA19: Indiana | AB19: Indiana | AC19: Indiana | AD19: Indiana | AE19: Indiana | AG19: Labor/Equipment | AZ19: Roof repair | BX19: 97%
V20: Iowa | W20: Iowa | X20: Iowa | Y20: Iowa | Z20: Iowa | AA20: Iowa | AB20: Iowa | AC20: Iowa | AD20: Iowa | AE20: Iowa | AG20: Material | AZ20: Roof Replacement | BX20: 96%
V21: Kansas | W21: Kansas | X21: Kansas | Y21: Kansas | Z21: Kansas | AA21: Kansas | AB21: Kansas | AC21: Kansas | AD21: Kansas | AE21: Kansas | AG21: Subcontractor | AZ21: Replace windows | BX21: 95%
V22: Kentucky | W22: Kentucky | X22: Kentucky | Y22: Kentucky | Z22: Kentucky | AA22: Kentucky | AB22: Kentucky | AC22: Kentucky | AD22: Kentucky | AE22: Kentucky | AG22: Expense Reimbursement # | AZ22: Replace garage doors | BX22: 94%
V23: Louisiana | W23: Louisiana | X23: Louisiana | Y23: Louisiana | Z23: Louisiana | AA23: Louisiana | AB23: Louisiana | AC23: Louisiana | AD23: Louisiana | AE23: Louisiana | AZ23: Exterior Painting | BX23: 93%
V24: Maine | W24: Maine | X24: Maine | Y24: Maine | Z24: Maine | AA24: Maine | AB24: Maine | AC24: Maine | AD24: Maine | AE24: Maine | AG24: 01 | AZ24: Landscaping | BX24: 92%
V25: Maryland | W25: Maryland | X25: Maryland | Y25: Maryland | Z25: Maryland | AA25: Maryland | AB25: Maryland | AC25: Maryland | AD25: Maryland | AE25: Maryland | AG25: 02 | AZ25: Plumbing Rough In | BX25: 91%
V26: Massachusetts | W26: Massachusetts | X26: Massachusetts | Y26: Massachusetts | Z26: Massachusetts | AA26: Massachusetts | AB26: Massachusetts | AC26: Massachusetts | AD26: Massachusetts | AE26: Massachusetts | AG26: 03 | AZ26: Mechanical Rough In | BX26: 90%
V27: Michigan | W27: Michigan | X27: Michigan | Y27: Michigan | Z27: Michigan | AA27: Michigan | AB27: Michigan | AC27: Michigan | AD27: Michigan | AE27: Michigan | AG27: 04 | AZ27: Install new furnace | BX27: 89%
V28: Minnesota | W28: Minnesota | X28: Minnesota | Y28: Minnesota | Z28: Minnesota | AA28: Minnesota | AB28: Minnesota | AC28: Minnesota | AD28: Minnesota | AE28: Minnesota | AG28: 05 | AZ28: Install new A/C | BX28: 88%
V29: Mississippi | W29: Mississippi | X29: Mississippi | Y29: Mississippi | Z29: Mississippi | AA29: Mississippi | AB29: Mississippi | AC29: Mississippi | AD29: Mississippi | AE29: Mississippi | AG29: 06 | AZ29: Electrical Rough In | BX29: 87%
V30: Missouri | W30: Missouri | X30: Missouri | Y30: Missouri | Z30: Missouri | AA30: Missouri | AB30: Missouri | AC30: Missouri | AD30: Missouri | AE30: Missouri | AG30: 07 | AZ30: Electrical Panel | BX30: 86%
V31: Montana | W31: Montana | X31: Montana | Y31: Montana | Z31: Montana | AA31: Montana | AB31: Montana | AC31: Montana | AD31: Montana | AE31: Montana | AG31: 08 | AZ31: Framing/Drywall | BX31: 85%
V32: Nebraska | W32: Nebraska | X32: Nebraska | Y32: Nebraska | Z32: Nebraska | AA32: Nebraska | AB32: Nebraska | AC32: Nebraska | AD32: Nebraska | AE32: Nebraska | AG32: 09 | AZ32: Doors and Trim | BX32: 84%
V33: Nevada | W33: Nevada | X33: Nevada | Y33: Nevada | Z33: Nevada | AA33: Nevada | AB33: Nevada | AC33: Nevada | AD33: Nevada | AE33: Nevada | AG33: 10 | AZ33: Interior Painting | BX33: 83%
V34: New Hampshire | W34: New Hampshire | X34: New Hampshire | Y34: New Hampshire | Z34: New Hampshire | AA34: New Hampshire | AB34: New Hampshire | AC34: New Hampshire | AD34: New Hampshire | AE34: New Hampshire | AG34: 11 | AZ34: Light Fixtures | BX34: 82%
V35: New Jersey | W35: New Jersey | X35: New Jersey | Y35: New Jersey | Z35: New Jersey | AA35: New Jersey | AB35: New Jersey | AC35: New Jersey | AD35: New Jersey | AE35: New Jersey | AG35: 12 | AZ35: Kitchen Cabinets | BX35: 81%
V36: New Mexico | W36: New Mexico | X36: New Mexico | Y36: New Mexico | Z36: New Mexico | AA36: New Mexico | AB36: New Mexico | AC36: New Mexico | AD36: New Mexico | AE36: New Mexico | AG36: 13 | AZ36: Countertops | BX36: 80%
V37: New York | W37: New York | X37: New York | Y37: New York | Z37: New York | AA37: New York | AB37: New York | AC37: New York | AD37: New York | AE37: New York | AG37: 14 | AZ37: Bathroom Finishes | BX37: 79%
V38: North Carolina | W38: North Carolina | X38: North Carolina | Y38: North Carolina | Z38: North Carolina | AA38: North Carolina | AB38: North Carolina | AC38: North Carolina | AD38: North Carolina | AE38: North Carolina | AG38: 15 | AZ38: Bathroom Fixtures | BX38: 78%
V39: North Dakota | W39: North Dakota | X39: North Dakota | Y39: North Dakota | Z39: North Dakota | AA39: North Dakota | AB39: North Dakota | AC39: North Dakota | AD39: North Dakota | AE39: North Dakota | AG39: 16 | AZ39: Hardwood Flooring | BX39: 77%
V40: Ohio | W40: Ohio | X40: Ohio | Y40: Ohio | Z40: Ohio | AA40: Ohio | AB40: Ohio | AC40: Ohio | AD40: Ohio | AE40: Ohio | AG40: 17 | AZ40: Carpet Flooring | BX40: 76%
V41: Oklahoma | W41: Oklahoma | X41: Oklahoma | Y41: Oklahoma | Z41: Oklahoma | AA41: Oklahoma | AB41: Oklahoma | AC41: Oklahoma | AD41: Oklahoma | AE41: Oklahoma | AG41: 18 | AZ41: MEP Finish Work (cover plates, grilles/registers) | BX41: 75%
V42: Oregon | W42: Oregon | X42: Oregon | Y42: Oregon | Z42: Oregon | AA42: Oregon | AB42: Oregon | AC42: Oregon | AD42: Oregon | AE42: Oregon | AG42: 19 | AZ42: Appliances | BX42: 74%
V43: Pennsylvania | W43: Pennsylvania | X43: Pennsylvania | Y43: Pennsylvania | Z43: Pennsylvania | AA43: Pennsylvania | AB43: Pennsylvania | AC43: Pennsylvania | AD43: Pennsylvania | AE43: Pennsylvania | AG43: 20 | AZ43: Punchlist /Pre-Inspection | BX43: 73%
V44: Rhode Island | W44: Rhode Island | X44: Rhode Island | Y44: Rhode Island | Z44: Rhode Island | AA44: Rhode Island | AB44: Rhode Island | AC44: Rhode Island | AD44: Rhode Island | AE44: Rhode Island | AG44: 21 | AZ44: Furnishings/Stagings | BX44: 72%
V45: South Carolina | W45: South Carolina | X45: South Carolina | Y45: South Carolina | Z45: South Carolina | AA45: South Carolina | AB45: South Carolina | AC45: South Carolina | AD45: South Carolina | AE45: South Carolina | AG45: 22 | AZ45: Listing Day | BX45: 71%
V46: South Dakota | W46: South Dakota | X46: South Dakota | Y46: South Dakota | Z46: South Dakota | AA46: South Dakota | AB46: South Dakota | AC46: South Dakota | AD46: South Dakota | AE46: South Dakota | AG46: 23 | AZ46: Open House | BX46: 70%
V47: Tennessee | W47: Tennessee | X47: Tennessee | Y47: Tennessee | Z47: Tennessee | AA47: Tennessee | AB47: Tennessee | AC47: Tennessee | AD47: Tennessee | AE47: Tennessee | AG47: 24 | AZ47: Days-On-Market | BX47: 69%
V48: Texas | W48: Texas | X48: Texas | Y48: Texas | Z48: Texas | AA48: Texas | AB48: Texas | AC48: Texas | AD48: Texas | AE48: Texas | AG48: 25 | AZ48: Accepted Offer | BX48: 68%
V49: Utah | W49: Utah | X49: Utah | Y49: Utah | Z49: Utah | AA49: Utah | AB49: Utah | AC49: Utah | AD49: Utah | AE49: Utah | AG49: Area | AZ49: Buyer Inspections | BX49: 67%
V50: Vermont | W50: Vermont | X50: Vermont | Y50: Vermont | Z50: Vermont | AA50: Vermont | AB50: Vermont | AC50: Vermont | AD50: Vermont | AE50: Vermont | AZ50: Inspection Repairs | BX50: 66%
V51: Virginia | W51: Virginia | X51: Virginia | Y51: Virginia | Z51: Virginia | AA51: Virginia | AB51: Virginia | AC51: Virginia | AD51: Virginia | AE51: Virginia | AG51: Exterior Repairs | AZ51: Closing Period | BX51: 65%
V52: Washington | W52: Washington | X52: Washington | Y52: Washington | Z52: Washington | AA52: Washington | AB52: Washington | AC52: Washington | AD52: Washington | AE52: Washington | AG52: Kitchen | AZ52: Property Sale Closing Date
V53: West Virginia | W53: West Virginia | X53: West Virginia | Y53: West Virginia | Z53: West Virginia | AA53: West Virginia | AB53: West Virginia | AC53: West Virginia | AD53: West Virginia | AE53: West Virginia | AG53: Bathroom
V54: Wisconsin | W54: Wisconsin | X54: Wisconsin | Y54: Wisconsin | Z54: Wisconsin | AA54: Wisconsin | AB54: Wisconsin | AC54: Wisconsin | AD54: Wisconsin | AE54: Wisconsin | AG54: Flooring
V55: Wyoming | W55: Wyoming | X55: Wyoming | Y55: Wyoming | Z55: Wyoming | AA55: Wyoming | AB55: Wyoming | AC55: Wyoming | AD55: Wyoming | AE55: Wyoming | AG55: MEP Systems
V56: Vendors
V57: General Contractor | AK57: Chart of Accounts
V58: Handy Man | AK58: Bank Account
V59: Labor Ready | AK59: Credit Card
V60: Home Improvement Store | AK60: Loan
V61: Material Supplier | AK61: Petty Cash
V62: Equipment Rental | AK62: Expense Reimbursement
V63: Appliances Supplier | AK63: Other
V64: Dumpster Rental
V65: Demolition Contractor | AK65: ls
V66: Structural Repairs Contractor | AK66: ea
V67: Earthwork Contractor | AK67: lf
V68: Concrete Contractor | AK68: sf
V69: Masonry Contractor | AK69: sy
V70: Siding Contractor | AK70: cy
V71: Finish Carpentry Contractor | AK71: sq
V72: Roofing Contractor | AK72: hrs
V73: Window Contractor | AK73: week
V74: Garage Door Contractor | AK74: month
V75: Landscaping Contractor | AK75: sheet
V76: Drywall Contractor | AK76: gallon
V77: Cabinetry and Woodwork Contractor
V78: Countertops Contractor
V79: Flooring Contractor
V80: Hardwood Floor Contractor
V81: Tiling Contractor
V82: Painting Contractor
V83: Plumbing Contractor
V84: HVAC Contractor
V85: Electrical Contractor
V86: Furnishings Vendor
V87: Final Cleaning Services
V88: Pool Contractor
V89: Staging Contractor
V90: Real Estate Agent
V91: Law Services
V92: Accounting Services
V93: Title Services

Sheet EULA
C2: Wholesaling Spreadsheet - Pro Version | I2: # of Licenses: | K2: +1 User License
I3: Licensed to: | K3: =username() -> Costpoint Solutions
D5: END-USER LICENSE AGREEMENT
D9: IMPORTANT—READ CAREFULLY: This End-User License Agreement (“EULA”) is a legal agreement between you and wholesalingspreadsheet.com that covers all products made by wholesalingspreadsheet.com. By downloading, accessing or otherwise using any spreadsheets you agree to be bound by the terms of this EULA.
D10: Spreadsheet License
D11: Each spreadsheet is protected by copyright laws and international copyright treaties, as well as other intellectual property laws and treaties.
D12: 1. GRANT OF LICENSE. This EULA grants you the right to use this spreadsheet for personal or business use only and it may not be distributed outside of your organization. You may not sell, resell, license, rent, lease, lend, or otherwise transfer for value. You may not remove or alter any logo, trademark, copyright, hyperlinks, disclaimers, terms of use, or other proprietary notices within the spreadsheet.
D13: 2. TERMINATION. Without prejudice to any other rights, wholesalingspreadsheet.com may terminate this EULA if you fail to comply with the terms and conditions of this EULA. In such event, you must destroy all copies of any spreadsheet.
D14: 3. DISCLAIMER. Real property businesses and earnings derived therefrom, have unknown risks involved, and are not suitable for everyone. Making decisions based on any information presented in our products or on our website, should be done only with the knowledge that you could experience significant losses, or make no money at all. Only risk capital should be used.
D15: All products and services of our company are for educational and informational purposes only and are provided "As-Is" without warranty of any kind. wholesalingspreadsheet.com hereby disclaim all warranties and conditions with regard to the products, including all implied warranties and conditions of merchantability, fitness for a particular purpose, title and non-infringement. In no event shall wholesalingspreadsheet.com be liable for any special, indirect or consequential damages or any damages whatsoever resulting from loss of use, data or profits, whether in action of the contract, negligence or other tortious action, arising out of or in connection with the products. Use caution and seek the advice of qualified professionals. Check with your accountant, lawyer or professional advisor, before acting on this or any information.
D16: Users of our products, services and website are advised to do their own due diligence when it comes to making business decisions and all information, programs, products and services that have been provided should be independently verified by your own qualified professionals. Our information, products and services should be carefully considered and evaluated before reaching a business decision, or whether to rely on them.
D17: You agree that our company is not responsible for the success or failure of your business decisions relating to any information presented by our company, or our company products and/or services.
D18: 4. MISCELLANEOUS. Some states do not allow the limitation or exclusion of liability for incidental or consequential damages, so the above limitation may not apply to you.
D19: © 2015 by wholesalingspreadsheet.com. All rights reserved

Sheet MACROS
AA5: Welcome!
AI38: © 2015 by wholesalingspreadsheet.com. All rights reserved

Sheet ADMIN (hidden)
W3: TOOL OR REPORT | AT3: PASSWORD PROTECTED? | BA3: PASSWORD
W5: INFO SHEET
W6: DEAL ANALYSIS TOOLS
W7: REPAIR ESTIMATOR
F8: This Sheet's Password | W8: REHAB ANALYZER
F9: password | W9: WHOLESALE CALCULATOR
W10: RENTAL CALCULATOR
W11: DEAL ANALYSIS REPORTS
W12: INSPECTION CHECKLIST
W13: REPAIR COST ESTIMATE REPORT
W14: MAXIMUM PURCHASE PRICE REPORT
W15: INVESTMENT REPORT
W16: HOMEOWNER OFFER REPORT
W17: WHOLESALE MARKETING SHEET
W18: WHOLESALE MARKETING PACKET
W19: RENTAL CASH FLOW REPORT
W20: DEAL CHEAT SHEET
W21: FINANCING CHEAT SHEET
W22: PROJECT MANAGEMENT TOOLS
W23: PROJECT SCHEDULER
W24: TASK MANAGER
W25: CONTACT MANAGER
W26: PROJECT MANAGEMENT REPORTS
W27: CONTRACTOR PREQUALIFICATION FORM
W28: SCOPE OF WORK REPORT
W29: REHAB CHECKLIST
W30: SHOPPING LIST REPORT
W31: PUNCHLIST
W32: LIEN WAIVER REPORT
W33: FOR SALE FLYER
W34: VENDOR CONTACT LIST
W35: VENDOR TAX & INSURANCE
W36: ACCOUNTING TOOLS
W37: VENDOR SETUP
W38: ACCOUNT SETUP
W39: REPAIRS BUDGETER
W40: PROJECT BUDGETER
W41: EXPENSE TRACKER
W42: REPAIR FORECASTER
W43: PROJECT FORECASTER
W44: VENDOR IMPORTING/EXPORTING
W45: ACCOUNT IMPORTING/EXPORTING
W46: EXPENSE IMPORTING/EXPORTING
W47: ACCOUNTING REPORTS
W48: REPAIR BUDGET REPORT
W49: REPAIR BUDGET VS ESTIMATE
W50: PROJECT BUDGET REPORT
W51: PROJECT BUDGET VS ESTIMATE
W52: EXPENSE REPORT SUMMARY
W53: EXPENSE REPORT BY SCOPE
W54: EXPENSE REPORT BY VENDOR
W55: EXPENSE REPORT BY ACCOUNT
W56: PROJECTIONS REPORT
W57: FINAL PROFIT REPORT
W58: VENDOR COMPENSATION REPORT
W59: VENDOR 1099 REPORT

Sheet HOME
AA3: Welcome
BE32: Adjust the Zoom
BE33: 100%
AI36: © 2015 by wholesalingspreadsheet.com. All rights reserved

Sheet REHAB
AA3: REHAB
AI36: © 2015 by wholesalingspreadsheet.com. All rights reserved

Sheet REHAB INFO SHEET
AF2: =IF(1>0,1,0) -> 1 | AH2: Required Field | AP2: =IF(1>0,1,0) -> 1 | AR2: Suggested, but Not Required | BD2: =IF(1>0,1,0) -> 1 | BF2: Field Completed | DD2: Loan 1 | ET2: Loan 2
V3: Property Information: | CY3: Lists: | DD3: Amount of Loan Required: | DS3: Financing Calculation
CY5: Property Type: | DD5: Purchase Only | DL5: =MAXIMUM_PURCHASE_PRICE*DZ5 -> 0 | DS5: Algo | DZ5: =IF(BI40="Financed",1,0) -> 0 | EG5: Specific Loan Amount Algo
V6: =IF(Project_Name>0,1,0) -> 1 | X6: Project Name: | AM6: Bat House | CY6: Single Family Home | DD6: Repairs Only | DL6: =(TOTAL_REPAIR_ESTIMATE+REPAIR_CONTINGENCY)*DZ5 -> 0 | DS6: If financed =1 | EG6: If false | EL6: If false | ET6: Amount of Loan Required: | FI6: Financing Calculation
CY7: Duplex | DD7: All Costs | DL7: =(TOTAL_BUYING_COSTS+TOTAL_HOLDING_COSTS+TOTAL_REPAIR_ESTIMATE+REPAIR_CONTINGENCY+MAXIMUM_PURCHASE_PRICE-BF58-AZ61-BF95-AZ98)*DZ5 -> 0 | EG7: =IF(DZ5=0,"All Cash",((((((IF(AE49="","Select Loan Type or Input Amount...",IF(AE49="Purchase Price Only",DL5,IF(AE49="Repair Cost Only",DL6,IF(AE49="All Costs",DL7,IF(AE49="Specific Loan Amount",DL8)))))))))))) -> All Cash | EL7: =IF(EG7=FALSE,AE49) -> FALSE | ET7: Purchase Only | FB7: =MAXIMUM_PURCHASE_PRICE*FP7 -> 0 | FI7: Algo | FP7: =IF(BI40="Financed",1,0) -> 0 | FW7: Specific Loan Amount Algo
V8: =IF(AM8>0,1,0) -> 1 | X8: Property Type: | AM8: Single Family Home | CY8: Condo | DD8: Specific Loan Amount | DL8: =IFERROR(EG9,0) -> 0 | DS8: Down payment Required: | ET8: Repairs Only | FB8: =(TOTAL_REPAIR_ESTIMATE+REPAIR_CONTINGENCY)*FP7 -> 0 | FI8: If financed =1 | FW8: If false | GB8: If false
CY9: Apartment | DD9: ARV | DL9: =ARV -> $175,000 | DS9: Algo | DZ9: =IF(AE54="yes",1,0) -> 0 | EG9: =EL7/1 -> 0 | EL9: =IFERROR(EG9,"Fix Financing Amount") -> 0 | ET9: All Costs | FB9: =(TOTAL_BUYING_COSTS+TOTAL_HOLDING_COSTS+TOTAL_REPAIR_ESTIMATE+REPAIR_CONTINGENCY+MAXIMUM_PURCHASE_PRICE-BF58-AZ61-BF95-AZ98)*FP7 -> 0 | FW9: =IF(FP7=0,"All Cash",((((((IF(AE86="","Select Loan Type or Input Amount...",IF(AE86="Purchase Price Only",FB7,IF(AE86="Repair Cost Only",FB8,IF(AE86="All Costs",FB9,IF(AE86="Specific Loan Amount",FB10)))))))))))) -> All Cash | GB9: =IF(FW9=FALSE,AE86) -> FALSE
V10: =IF(Street_Address>0,1,0) -> 1 | X10: Street Address: | AM10: 2325 NW 49th St | DD10: Down payment Amount: | DS10: If yes=1 | ET10: Specific Loan Amount | FB10: =IFERROR(FW11,0) -> 0 | FI10: Down payment Required:
CY11: Status: | DD11: Purchase Only | DL11: =(DL5*$AT$54)*$DZ$9 -> 0 | DS11: RESULTS | EJ11: Term | EL11: =IF(BS44=0,30,BS44) -> 30 | ET11: ARV | FB11: =ARV -> $175,000 | FI11: Algo | FP11: =IF(AE91="yes",1,0) -> 0 | FW11: =GB9/1 -> 0 | GB11: =IFERROR(FW11,"Fix Financing Amount") -> 0
V12: =IF(City_State_Zip>0,1,0) -> 1 | X12: City/State/Zip Code: | AM12: Kansas City, MO 64151 | CY12: REO | DD12: Repairs Only | DL12: =(DL6*$AT$54)*$DZ$9 -> 0 | ET12: Down payment Amount: | FI12: If yes=1
CY13: HUD | DD13: All Costs | DL13: =(DL7*$AT$54)*$DZ$9 -> 0 | DT13: Loan Amount | EE13: =IFERROR(DT14/1,0) -> 0 | EG13: Loan Amount after Downpayment | ET13: Purchase Only | FB13: =(FB7*AT91)*FQ11 -> 0 | FI13: RESULTS
V14: =IF(Subdivision>0,1,0) -> 1 | X14: Subdivision: | AM14: Misty Woods | CY14: Homepath | DD14: Specific Loan Amount | DL14: =(DL8*$AT$54)*$DZ$9 -> 0 | DT14: =IF(DZ5=0,"All Cash",((((((IF(AE49="","Select Loan Type or Input Amount...",IF(AE49="Purchase Price Only",DL5,IF(AE49="Repair Cost Only",DL6,IF(AE49="All Costs",DL7,IF(AE49="ARV",DL9,IF(EG7=FALSE,EL9))))))))))))) -> All Cash | EE14: =IF(EE13=0,0,DT14) -> 0 | EG14: =IFERROR(Loan_Amount-Down_Payment,0) -> $0 | FZ14: Term | GB14: =IF(BS81=0,30,BS81) -> 30
CY15: FSBO | DD15: ARV | DL15: =(DL9*$AT$54)*$DZ$9 -> 0 | EG15: =IF(Down_Payment="Select Loan Type","Select Loan Type",EG14) -> Select Loan Type
V16: =IF(School_District>0,1,0) -> 1 | X16: School District: | AM16: Park Hill School District | CY16: Short Sale | DD16: Loan Principal After Down payment | DT16: Down Payment Amount | ET16: Repairs Only | FB16: =(FB8*AT91)*FQ11 -> 0 | FJ16: Loan Amount | FU16: =IFERROR(FJ17/1,0) -> 0 | FW16: Loan Amount after Downpayment
DD17: Purchase Only | DL17: =DL5-DL11 -> 0 | DT17: =IFERROR(Loan_Amount*AT54,"Select Loan Type") -> Select Loan Type | EG17: Cash Outlay Output | ET17: All Costs | FB17: =(FB9*AT91)*FQ11 -> 0 | FJ17: =IF(FP7=0,"All Cash",((((((IF(AE86="","Select Loan Type or Input Amount...",IF(AE86="Purchase Price Only",FB7,IF(AE86="Repair Cost Only",FB8,IF(AE86="All Costs",FB9,IF(AE86="ARV",ARV,IF(FW9=FALSE,GB11))))))))))))) -> All Cash | FU17: =IF(FU16=0,0,FJ17) -> 0 | FW17: =IFERROR(FJ17-FJ20,0) -> $0
V18: =IF(AM18>0,1,0) -> 1 | X18: Status: (REO, HUD, FSBO, etc.): | AM18: REO | CY18: Offer Type: | DD18: Repairs Only | DL18: =DL6-DL12 -> 0 | EG18: =IF(BI40="All Cash",DK32,IF(BI40="",DK32,IF(BI40=0,DK32,IF(AE49="",DK32,IF(AE49="Purchase Price Only",DL34,IF(AE49="Repair Cost Only",DL35,IF(AE49="All Costs",DL36,IF(AE49="Specific Loan Amount",DL37)))))))) -> $134,750 | ET18: Specific Loan Amount | FB18: =(FB10*AT91)*FQ11 -> 0 | FW18: =IF(FJ20="Select Loan Type","Select Loan Type",FW17) -> Select Loan Type
CY19: All Cash | DD19: All Costs | DL19: =DL7-DL13 -> 0 | DT19: Monthly Payment Result | ET19: ARV | FB19: =(FB11*AT91)*FP11 -> 0 | FJ19: Down Payment Amount
V20: =IF(COUNT(AM20,BH20)=2,1,0) -> 0 | X20: MLS ID #: | BB20: REO ID #: | BZ20: Next: Repair Estimator | CY20: Financed | DD20: Specific Loan Amount | DL20: =DL8-DL14 -> 0 | DT20: =IFERROR(((Loan_Amount-Down_Payment)*Interest_Rate)/12,0) -> $0 | EG20: Points Result | ET20: Loan Principal After Down payment | FJ20: =IFERROR(FJ17*AT91,"Select Loan Type") -> Select Loan Type | FW20: Cash Outlay Output
DD21: ARV | DL21: =DL9-DL15 -> $175,000 | EG21: =IF(DZ5=0,"",((((((IF(AE49="","",IF(AE49="Purchase Price Only",EC36,IF(AE49="Repair Cost Only",EC37,IF(AE49="All Costs",EC38,IF(AE49="Specific Loan Amount",EC39)))))))))))) ->  | ET21: Purchase Only | FB21: =FB7-FB13 -> 0 | FW21: =IF(BI40="All Cash",FA38,IF(BI40="",FA38,IF(BI40=0,FA38,IF(AE86="",DK32,IF(AE86="Purchase Price Only",FB40,IF(AE86="Repair Cost Only",FB41,IF(AE86="All Costs",FB42,IF(AE86="Specific Loan Amount",FB43)))))))) -> $134,750
V22: =IF(COUNT(Beds,Baths,Square_Feet)=3,1,0) -> 1 | X22: # of Beds*: | AM22: 4 | AU22: # of Baths*: | BA22: 3.0 | BI22: Square Feet*: | BP22: 2,000 sf | CY22: Loan Required: | DD22: Monthly Payment (Interest Only) | DS22: Cash Outlay Result | ET22: Repairs Only | FB22: =FB8-FB16 -> 0 | FJ22: Monthly Payment Result
CY23: Purchase Price Only | DD23: Purchase Only | DL23: =(DL17*Interest_Rate)/12 -> 0 | DS23: =EG18 -> $134,750 | EG23: Loan Amount | ET23: All Costs | FB23: =FB9-FB17 -> 0 | FJ23: =IFERROR(((FJ17-FJ20)*AE94)/12,0) -> $0 | FW23: Points Result
V24: =IF(ARV>0,1,0) -> 1 | X24: After Repair Value | AM24: $175,000 | BA24: =IF(Asking_Price>0,1,0) -> 1 | BC24: Asking Price | BJ24: $100,000
CY26: Repair Cost Only | DD26: Repairs Only | DL26: =(DL18*Interest_Rate)/12 -> 0 | DS26: If cash = 1, CZ28, if Financed = 1 | EG26: =IF(DZ5=0,"All Cash",((((((IF(AE49="","Select Loan Type or Input Amount...",IF(AE49="Purchase Price Only",DL5,IF(AE49="Repair Cost Only",DL6,IF(AE49="All Costs",DL7,IF(EG7=FALSE,DL8)))))))))))) -> All Cash | ET26: Specific Loan Amount | FB26: =FB10-FB18 -> 0 | FW26: =IF(FP7=0,"",((((((IF(AE98="","",IF(AE98="Purchase Price Only",FS41,IF(AE98="Repair Cost Only",FS42,IF(AE98="All Costs",FS43,IF(AE98="Specific Loan Amount",FS44)))))))))))) -> 
V27: Project Information: | CY27: All Costs | DD27: All Costs | DL27: =(DL19*Interest_Rate)/12 -> 0 | ET27: ARV | FB27: =FB11-FB19 -> $175,000 | FI27: Cash Outlay Result
BY28: =IF(BD28="% of ARV","input % of ARV for fixed costs","") ->  | CY28: ARV | EG28: Amortized Monthly Payment Result | ET28: Monthly Payment (Interest Only) | FI28: =FW21 -> $134,750 | FW28: Loan Amount
CY29: Specific Loan Amount | DD29: Specific Loan Amount | DL29: =(DL20*Interest_Rate)/12 -> 0 | EG29: =IFERROR(IF(Interest_Rate=0,0,-PMT(Interest_Rate/12,EL11*12,EG15)),0) -> $0 | ET29: Purchase Only | FB29: =(FB21*AE94)/12 -> 0 | FI29: If cash = 1, CZ28, if Financed = 1 | FW29: =IF(FP7=0,"All Cash",((((((IF(AE98="","Select Loan Type or Input Amount...",IF(AE98="Purchase Price Only",FB7,IF(AE98="Repair Cost Only",FB8,IF(AE98="All Costs",FB9,IF(FW9=FALSE,FB10)))))))))))) -> All Cash
V30: Project Schedule (Months) | AN30: Holding Costs: | DD30: ARV | DL30: =(DL21*Interest_Rate)/12 -> $1,167
EG31: Monthly Result | ET31: Repairs Only | FB31: =(FB22*AE94)/12 -> 0 | FW31: Amortized Monthly Payment Result
V32: =IF(Rehab_Schedule>0,1,0) -> 1 | X32: Rehab Schedule*: | AF32: 3.0 | AN32: =IF(Taxes>0,1,0) -> 1 | AP32: Taxes (yr) | AW32: $2,000 /yr | BF32: =IF(Utilities>0,1,0) -> 1 | BH32: Utilities (mo) | BO32: $250 /mo | CY32: Down payment Yes or Nos? | DK32: =TOTAL_BUYING_COSTS+TOTAL_HOLDING_COSTS+TOTAL_REPAIR_ESTIMATE+REPAIR_CONTINGENCY+MAXIMUM_PURCHASE_PRICE -> $134,750 | DQ32: Cash Outlay "All Cash" Scenario | EG32: =IFERROR(IF(BD44="Amortized",EG37/Schedule,DT20),0) -> $0 | ET32: All Costs | FB32: =(FB23*AE94)/12 -> 0 | FW32: =IFERROR(IF(AE94=0,0,-PMT(AE94/12,GB14*12,FW18)),0) -> $0
CY33: Yes | DD33: Cash Outlay w/ Financing | ET33: Specific Loan Amount | FB33: =(FB26*AE94)/12 -> 0
V34: =IF(Listing_Schedule>0,1,0) -> 1 | X34: Time to Sell/Close*: | AF34: 3.0 | AN34: =IF(Insurance>0,1,0) -> 1 | AP34: Insurance (mo) | AW34: $150 /mo | BF34: =IF(HOA_Dues>0,1,0) -> 0 | BH34: HOA Dues (yr) | BO34: $0 /yr | CY34: No | DD34: Purchase Only | DL34: =$DK$32-DL17 -> $134,750 | EK34: =DZ5 -> 0 | ET34: ARV | FB34: =(FB27*Interest_Rate)/12 -> $1,167 | FW34: Monthly Result
DD35: Repairs Only | DL35: =$DK$32-DL18 -> $134,750 | FW35: =IFERROR(IF(BD81="Amortized",FW40/Schedule,FJ23),0) -> $0
V36: Total Schedule*: | AF36: =AF32+AF34 -> 6.0 | AN36: =IF(Maintenance>0,1,0) -> 1 | AP36: Maintenance (mo) | AW36: $50 /mo | BF36: =IF(BO36>0,1,0) -> 0 | BH36: Other (mo) | BO36: $0 /mo | CY36: Rolled | DD36: All Costs | DL36: =$DK$32-DL19 -> $134,750 | DZ36: =DK32-BK122 -> $134,750 | EG36: Total Interest Portion
CY37: Upfront | DD37: Specific Loan Amount | DL37: =$DK$32-DL20 -> $134,750 | EG37: =IFERROR(IF(Interest_Rate=0,0,(-CUMIPMT(Interest_Rate/12,EL11*12,EG15,1,Schedule,1))),0) -> $0
DD38: ARV | DL38: =$DK$32-DL21 -> $(40,250) | FA38: =TOTAL_BUYING_COSTS+TOTAL_HOLDING_COSTS+TOTAL_REPAIR_ESTIMATE+REPAIR_CONTINGENCY+MAXIMUM_PURCHASE_PRICE -> $134,750 | FH38: Cash Outlay "All Cash" Scenario
AK39: Financing Information: | CY39: Monthly | ET39: Cash Outlay w/ Financing | FW39: Total Interest Portion
BI40: All Cash | CY40: Rolled | DD40: Cash Outlay w/ Financing + Financing Cash Outlay | EG40: Total Principal Portion | ET40: Purchase Only | FB40: =FA38-FB21 -> $134,750 | FW40: =IFERROR(IF(AE94=0,0,(-CUMIPMT(AE94/12,GB14*12,FW18,1,Schedule,1))),0) -> $0
DD41: Purchase Only | DL41: =DL34+W122 -> $134,750 | EG41: =IF(BD44="Amortized",EG44-EG37,0) -> $0 | ET41: Repairs Only | FB41: =FA38-FB22 -> $134,750
DD42: Repairs Only | DL42: =DL35+W122 -> $134,750 | ET42: All Costs | FB42: =FA38-FB23 -> $134,750
AQ43: 1st Loan: | CY43: 1 | DD43: All Costs | DL43: =DL36+W122 -> $134,750 | EG43: Total Amortized Payment | ET43: Specific Loan Amount | FB43: =FA38-FB26 -> $134,750 | FW43: Total Principal Portion
BD44: Interest Only | BS44: 30 | DD44: Specific Loan Amount | DL44: =DL37+W122 -> $134,750 | EG44: =EG29*Schedule -> $0.00 | ET44: ARV | FB44: =FA38-FB27 -> $(40,250) | FW44: =IF(BD81="Amortized",EG44-EG37,0) -> $0
CY45: Interest Only
BD46: *the default setting is interest only | BS46: Years | CY46: Amortized | FW46: Total Amortized Payment
V47: Financing Variables | AZ47: Financing Results | FW47: =FW32*Schedule -> $0.00
V49: =IF(AE49>0,1,0) -> 1 | X49: Financing Amount: | AE49: All Costs | AZ49: Base Loan Amount | CY49: Detailed
AZ50: =Loan_Amount -> All Cash | CY50: % of ARV | DC50: If 1st Loan, & 2nd Profit Split | DP50: If 2nd Loan, & 2nd Profit Split
AE52: =IF(DZ5=0,"",((((((IF(AE49="","Select Loan Type or Input Amount...",IF(AE49="Purchase Price Only","Loan for Purchase Value Only",IF(AE49="Repair Cost Only","Loan for Repair Costs Only",IF(AE49="All Costs","Loan for All Project Costs",IF(AE49="ARV","After Repair Value",IF(EG7=FALSE,"Specific Loan Amount",""))))))))))))) ->  | DC52: =IF(Loan_Amount>0,"1",0) -> 1 | DG52: =IF(COUNTA(AE63,AT63)=2,1,0) -> 0 | DK52: =IF(DC52+DG52=2,(1-AT63),0) -> 0% | DP52: =IF(FJ17>0,"1",0) -> 1 | DT52: =IF(COUNTA(AE100,AT100)=2,1,0) -> 0 | DX52: =IF(DP52+DT52=2,(1-AT100),0) -> 0%
AZ53: =IF(DZ5=0,"",((((((IF(AE49="","",IF(AE49="Purchase Price Only","Value Pending Maximum Purchase Price Analysis",IF(AE49="Repair Cost Only","Value Pending Repair Cost Estimate",IF(AE49="All Costs","Value Pending Repair Estimate & Maximum Purchase Price Analysis",IF(AE49="ARV","Value Based Upon ARV Amount",IF(EG7=FALSE,"",""))))))))))))) ->  | EH53: Lender Profit | EL53: Share
V54: =IF(AE54>0,1,0) -> 1 | X54: Down Payment? (skin in game): | AE54: No | AK54: =IF(OR(AE54="NO",AE54>0),1,0) -> 1 | AM54: Down Payment % | AZ54: Down Payment Amount | BL54: Loan Balance (after DP)
AZ55: =IFERROR(Down_Payment*1,0) -> $0 | BL55: =IFERROR(EG15*1,0) -> $0 | DE55: =DC52+DG52 -> 1 | DS55: =DP52+DT52 -> 1 | EH55: =EJ80 -> 0.00% | EL55: =IFERROR(EH55/EH63,0) -> 0% | EP55: =EL55*REHABBER_PROFIT_WHOLESALE -> 0
V57: =IF(AE57>0,1,0) -> 1 | X57: Interest Rate %: | AE57: 8.00% | AK57: =IF(AT57>0,1,0) -> 1 | AM57: Payments Made Monthly or Rolled?: | AT57: Rolled | AZ57: Monthly Interest | BF57: Total Interest | BL57: Interest Added to Loan Balance | EH57: =EJ83 -> 0.00% | EL57: =IFERROR(EH57/EH63,0) -> 0% | EP57: =EL57*REHABBER_PROFIT_WHOLESALE -> 0
AZ58: =IFERROR(EG32,0) -> $0 | BF58: =IFERROR(AZ58*Schedule,"") -> $0 | BL58: =IF(AT57=CY40,BF58,0) -> $0 | DC58: Is there only 1 profit split
DC59: =IF(AND(DC52+DG52=2,DP52+DT52<>2),"YES",0) -> 0 | DG59: =IF(DC59="YES",1,2) -> 2 | DO59: =DE55+DS55 -> 2 | EH59: =DK52 -> 0.00% | EL59: =IFERROR(EH59/EH63,0) -> 0% | EP59: =EL59*REHABBER_PROFIT_WHOLESALE -> 0
V60: =IF(AE60>0,1,0) -> 1 | X60: Lender Points %: | AE60: 2.00% | AK60: =IF(AT60>0,1,0) -> 1 | AM60: Points Paid Upfront or Rolled?: | AT60: Upfront | AZ60: Points Amount | BL60: Points Added to Loan Balance
AZ61: =IFERROR(AE60*BL55,0) -> $0 | BL61: =IF(AT60=CY36,AZ61,0) -> $0 | EH61: =DX52 -> 0.00% | EL61: =IFERROR(EH61/EH63,0) -> 0% | EP61: =EL61*REHABBER_PROFIT_WHOLESALE -> 0
V63: =IF(AE63>0,1,0) -> 1 | X63: Profit Split?: | AE63: No | AK63: =IF(OR(AE63="NO",AE63>0),1,0) -> 1 | AM63: Your Profit Split %: | AZ63: Your Profit Share | BL63: Lender Profit Share | EH63: =SUM(EH55:EK62) -> 0.00% | EL63: =SUM(EL55:EO62) -> 0.00% | EP63: =SUM(EP55:ES62) -> 0
AZ64: =DO83 -> $0 | BL64: =DO87 -> $0
V67: Loan 1 Financing Results | DW67: =SUM(EP55:ES62) -> 0
W69: Cash Required Upfront | AK69: Points & Interest | AX69: Profit Share | BK69: Total Financing Costs
W70: =IFERROR(AZ55+(BF58-BL58)+(AZ61-BL61),0) -> $0 | AK70: =IFERROR(AZ61+BF58,0) -> $0 | AX70: =BL64 -> $0 | BK70: =AK70+AX70 -> $0
V72: =Down Payment + Monthly Interest + Points Upfront | AK72: =Points + Interest | AX72: =Lender Profit Share | BJ72: =Total Points + Interest + Profit Share
V73: Loan 1 Breakdown
W75: Original Loan Balance | AK75: Loan Down Payment | AX75: Points/Interest Added to Loan | BK75: Final Loan Amount
W76: =IFERROR(AZ50*1,0) -> $0 | AK76: =IFERROR(-AZ55,0) -> $0 | AX76: =BL58+BL61 -> $0 | BK76: =IFERROR(W76+AK76+AX76,0) -> $0
V78: =Down Payment + Monthly Interest + Points Upfront | AK78: =Points + Interest Added to Loan Balance | AX78: =Lender Profit Share | BJ78: =Total Points + Interest + Profit Share
AQ80: 2nd Loan: | DS80: =SUM(EP60:ES80) -> 0 | DT80: Your Profit if 1 Loan
BD81: Interest Only | BS81: 30
BD83: *the default setting is interest only | BS83: Years | DC83: Your Profit 1 | DG83: =AT63 -> 0.00% | DK83: =IFERROR(DG83/$DG$91,0) -> 0.00% | DO83: =DK83*REHABBER_PROFIT_WHOLESALE -> 0
V84: Financing Variables | AZ84: Financing Results | DX84: Your Profit if 2 Loans
DC85: Your Profit 2 | DG85: =AT100 -> 0.00% | DK85: =IFERROR(DG85/$DG$91,0) -> 0.00% | DO85: =DK85*REHABBER_PROFIT_WHOLESALE -> 0
V86: =IF(AE86>0,1,0) -> 0 | X86: Financing Amount: | AZ86: Base Loan Amount | DT86: =DO83+DO85 -> 0 | DX86: =(DO83+DO85)/DG59 -> 0
AZ87: =FJ17 -> All Cash | DC87: Lender 3 | DG87: =DK52 -> 0.00% | DK87: =IFERROR(DG87/$DG$91,0) -> 0.00% | DO87: =DK87*REHABBER_PROFIT_WHOLESALE -> 0
AE89: =IF(DZ5=0,"",((((((IF(AE86="","Select Loan Type or Input Amount...",IF(AE86="Purchase Price Only","Loan for Purchase Value Only",IF(AE86="Repair Cost Only","Loan for Repair Costs Only",IF(AE86="All Costs","Loan for All Project Costs",IF(AE86="ARV","After Repair Value",IF(EG46=FALSE,"Specific Loan Amount",""))))))))))))) ->  | DC89: Lender 4 | DG89: =DX52 -> 0.00% | DK89: =IFERROR(DG89/$DG$91,0) -> 0.00% | DO89: =DK89*REHABBER_PROFIT_WHOLESALE -> 0
AZ90: =IF(DZ5=0,"",((((((IF(AE86="","",IF(AE86="Purchase Price Only","Value Pending Maximum Purchase Price Analysis",IF(AE86="Repair Cost Only","Value Pending Repair Cost Estimate",IF(AE86="All Costs","Value Pending Repair Estimate & Maximum Purchase Price Analysis",IF(EG38=FALSE,"","")))))))))))) -> 
V91: =IF(AE91>0,1,0) -> 0 | X91: Down Payment? (skin in game): | AK91: =IF(AT91>0,1,0) -> 0 | AM91: Down Payment % | AZ91: Down Payment Amount | BL91: Loan Balance (after DP) | DG91: =SUM(DG83:DJ90) -> 0.00% | DK91: =SUM(DK83:DN90) -> 0.00% | DO91: =SUM(DO83:DR90) -> 0
AZ92: =IFERROR(FJ20*1,0) -> $0 | BL92: =IFERROR(FW18*1,0) -> $0
V94: =IF(AE94>0,1,0) -> 0 | X94: Interest Rate %: | AK94: =IF(AT94>0,1,0) -> 0 | AM94: Payments Made Monthly or Rolled?: | AZ94: Monthly Interest | BF94: Total Interest | BL94: Interest Added to Loan Balance
AZ95: =IFERROR(FW35,0) -> $0 | BF95: =IFERROR(AZ95*Schedule,"") -> $0 | BL95: =IF(AT94=CY36,BF95,0) -> $0
V97: =IF(AE97>0,1,0) -> 0 | X97: Lender Points %: | AK97: =IF(AT97>0,1,0) -> 0 | AM97: Points Paid Upfront or Rolled?: | AZ97: Points Amount | BL97: Points Added to Loan Balance
AZ98: =IFERROR(AE97*BL92,0) -> $0 | BL98: =IF(AT97=CY40,AZ98,0) -> $0
V100: =IF(AE100>0,1,0) -> 0 | X100: Profit Split?: | AK100: =IF(OR(AE100="NO",AE100>0),1,0) -> 0 | AM100: Your Profit Split %: | AZ100: Your Profit Share | BL100: Lender Profit Share
AZ101: =DO85 -> $0 | BL101: =DO89 -> $0
V104: Loan 2 Financing Costs
W106: Cash Required Upfront | AK106: Points & Interest | AX106: Profit Share | BK106: Total Financing Costs
W107: =IFERROR(AZ92+(BF95-BL95)+(AZ98-BL98),0) -> $0 | AK107: =IFERROR(AZ98+BF95,0) -> $0 | AX107: =BL101 -> $0 | BK107: =AK107+AX107 -> $0
V109: =Down Payment + Monthly Interest + Points Upfront | AK109: =Points + Interest | AX109: =Lender Profit Share | BJ109: =Total Points + Interest + Profit Share
V110: Loan 2 Breakdown
W112: Original Loan Balance | AK112: Loan Down Payment | AX112: Points/Interest Added to Loan | BK112: Final Loan Amount
W113: =IFERROR(AZ87*1,0) -> $0 | AK113: =IFERROR(-AZ92,0) -> $0 | AX113: =BL95+BL98 -> $0 | BK113: =W113+AK113+AX113 -> $0
V115: =Down Payment + Monthly Interest + Points Upfront | AK115: =Points + Interest Added to Loan Balance | AX115: =Lender Profit Share | BJ115: =Total Points + Interest + Profit Share
V117: Total Financing Results:
W121: Cash Required Upfront | AK121: Interest Costs Per Month | AX121: Total Financing Costs | BK121: Final Loan Amount
W122: =W70+W107 -> $0 | AK122: =AZ58+AZ95 -> $0 | AX122: =BK70+BK107 -> $0 | BK122: =BK76+BK113 -> $0
V125: =Down Payment + Monthly Interest + Points Upfront | AK125: =Total Points + Interest + Profit Share | AX125: =Total Points + Interest + Profit Share | BJ125: =Total Points + Interest + Profit Share
V127: Comparables Sales Information:
V130: =IF(AD135>0,1,0) -> 0 | W130: 1 | Y130: Street Address: | AY130: Subdivision:
Y132: # of Beds: | AK132: # of Baths: | AU132: Sq Ft: | BG132: Sales Price:
V134: =IF(AD139>0,1,0) -> 0 | W134: 2 | Y134: Street Address: | AY134: Subdivision:
Y136: # of Beds: | AK136: # of Baths: | AU136: Sq Ft: | BG136: Sales Price:
V138: =IF(AD143>0,1,0) -> 0 | W138: 3 | Y138: Street Address: | AY138: Subdivision:
Y140: # of Beds: | AK140: # of Baths: | AU140: Sq Ft: | BG140: Sales Price:
V143: Company Information:
V146: =IF(Company_Name>0,1,0) -> 1 | X146: Company Name: | AJ146: WholesalingSpreadsheet.com
V148: =IF(Company_Street_Address>0,1,0) -> 1 | X148: Street Address: | AJ148: P.O Box 165324
V150: =IF(Company_City_State_Zip>0,1,0) -> 1 | X150: City/State/Zip: | AJ150: North Kansas City, MO 64116
V152: =IF(Company_Email>0,1,0) -> 1 | X152: Email: | AJ152: dave@costpointsolutions.com
V154: =IF(Company_Phone>0,1,0) -> 1 | X154: Phone: | AJ154: 8163880197 | AZ154: Fax:
BZ155: Next: Repair Estimator
V156: =IF(Company_Website>0,1,0) -> 1 | X156: Website: | AJ156: www.wholesalingspreadsheet.com
AN158: © 2015 by wholesalingspreadsheet.com. All rights reserved

Sheet REHAB ESTIMATOR
A2: HIDE/UNHIDE
N3: ESTIMATE BREAKDOWN BY SCOPE OF WORK
N5: =B16 -> GENERAL CONDITIONS | U5: =AQ38 -> $2,290 | Y5: =B216 -> EXT. DOORS & WINDOWS | AF5: =AQ238 -> $2,750 | AJ5: =B416 -> HARDWOOD FLOORING | AQ5: =AQ438 -> $1,400
N6: =B41 -> DEMOLITION | U6: =AQ63 -> $1,200 | Y6: =B241 -> GARAGE DOORS | AF6: =AQ263 -> $1,200 | AJ6: =B441 -> TILING | AP6: =AQ463 -> 3535 | AQ6: =AQ463 -> $3,535
B7: TOTAL REHAB ESTIMATE | N7: =B66 -> STRUCTURAL CONCRETE | U7: =AQ88 -> $0 | Y7: =B266 -> LANDSCAPING | AF7: =AQ288 -> $865 | AJ7: =B466 -> PAINTING | AP7: =AQ488 -> 4275 | AQ7: =AQ488 -> $4,275
B8: =TOTAL_REMODEL_ESTIMATE -> $48,626 | N8: =B91 -> CONCRETE & FLATWORK | U8: =AQ113 -> $0 | Y8: =B291 -> MISC. EXT. IMPROVEMENTS | AF8: =AQ313 -> $505 | AJ8: =B491 -> APPLIANCES | AP8: =AQ513 -> 2675 | AQ8: =AQ513 -> $2,675
N9: =B116 -> MASONRY | U9: =AQ138 -> $0 | Y9: =B316 -> FRAMING & DRYWALL | AF9: =AQ338 -> $750 | AJ9: =B516 -> PLUMBING | AP9: =AQ538 -> 3635 | AQ9: =AQ538 -> $3,635
N10: =B141 -> SIDING | U10: =AQ163 -> $0 | Y10: =B341 -> CABINETS & COUNTERTOPS | AF10: =AQ363 -> $6,205 | AJ10: =B541 -> HVAC | AP10: =AQ563 -> 350 | AQ10: =AQ563 -> $350
B11: LAB/EQ | F11: MAT'L | J11: SUB | N11: =B166 -> DECKING AND PATIOS | U11: =AQ188 -> $3,000 | Y11: =B366 -> DOORS & TRIM | AF11: =AQ388 -> $3,140 | AJ11: =B566 -> ELECTRICAL | AP11: =AQ588 -> 3231 | AQ11: =AQ588 -> $3,231
B12: =Labor_Estimate -> $17,610 | F12: =Material_Estimate -> $28,891 | J12: =Sub_Estimate -> $2,125 | N12: =B191 -> ROOFING | U12: =AQ213 -> $4,500 | Y12: =B391 -> CARPET & RESILIENT | AF12: =AQ413 -> $2,730 | AJ12: =B591 -> MISCELLANEOUS | AP12: =AQ613 -> 390 | AQ12: =AQ613 -> $390
B13: DESCRIPTION OF WORK | T13: QTY | W13: UNIT | Y13: UNIT PRICES | AH13: =AH38+AH63+AH88+AH113+AH138+AH163+AH188+AH213+AH238+AH263+AH288+AH313+AH338+AH363+AH388+AH413+AH438+AH463+AH488+AH513+AH538+AH563+AH588+AH613 -> $17,610 | AK13: =AK38+AK63+AK88+AK113+AK138+AK163+AK188+AK213+AK238+AK263+AK288+AK313+AK338+AK363+AK388+AK413+AK438+AK463+AK488+AK513+AK538+AK563+AK588+AK613 -> $28,891 | AN13: =AN38+AN63+AN88+AN113+AN138+AN163+AN188+AN213+AN238+AN263+AN288+AN313+AN338+AN363+AN388+AN413+AN438+AN463+AN488+AN513+AN538+AN563+AN588+AN613 -> $2,125 | AQ13: =Labor_Estimate+Material_Estimate+Sub_Estimate -> $48,626 | AV13: WORK BREAKDOWN BY SCOPE OF WORK | AW13: CUSTOM SORT 1 | AX13: CUSTOM SORT 2 | BC13: =BC38+BC63+BC88+BC113+BC138+BC163+BC188+BC213+BC238+BC263+BC288+BC313+BC338+BC363+BC388+BC413+BC438+BC463+BC488+BC513+BC538+BC563+BC588+BC613 -> $48,626
Y14: LABOR/EQUIP | AB14: MAT | AE14: SUB | AH14: LABOR/EQUIP | AK14: MAT | AN14: SUB | AQ14: TOTAL | AY14: LABOR | AZ14: MAT | BA14: SUB | BB14: TOTAL | BC14: =AQ14 -> TOTAL
B16: GENERAL CONDITIONS | AV16: =$B$16 -> GENERAL CONDITIONS | AY16: =SUM(AY17:AY36) -> 240 | AZ16: =SUM(AZ17:AZ36) -> 2050 | BA16: =SUM(BA17:BA36) -> 0 | BB16: =SUM(BB17:BB36) -> 2290 | BC16: =AQ16 -> 0
B17: Dumpster rental-40 yard | T17: 2 | W17: ea | AB17: 400.00 | AH17: =T17*Y17 -> $0 | AK17: =T17*AB17 -> $800 | AN17: =T17*AE17 -> $0 | AQ17: =SUM(AH17:AO17) -> $800 | AV17: GENERAL CONDITIONS | AY17: =AH17 -> 0 | AZ17: =AK17 -> 800 | BA17: =AN17 -> 0 | BB17: =SUM(AY17:BA17) -> 800 | BC17: 800
B18: Construction Permits < $10k | W18: job | X18: job | AB18: 125.00 | AD18: 125.00 | AH18: =T18*Y18 -> $0 | AK18: $0 | AN18: $0 | AQ18: =SUM(AH18:AP18) -> $0 | AV18: GENERAL CONDITIONS | AY18: 0 | AZ18: 0 | BA18: 0 | BB18: 0 | BC18: 0
B19: Construction Permits, 10k to $25k | W19: job | X19: job | AB19: 500.00 | AH19: $0 | AK19: $0 | AN19: $0 | AQ19: $0 | AV19: GENERAL CONDITIONS | AY19: 0 | AZ19: 0 | BA19: 0 | BB19: 0 | BC19: 0
B20: Construction Permits, 25k to 50k | T20: 1 | W20: job | X20: job | AB20: 1000.00 | AH20: $0 | AK20: $1,000 | AN20: $0 | AQ20: $1,000 | AV20: GENERAL CONDITIONS | AY20: 0 | AZ20: 1000 | BA20: 0 | BB20: 1000 | BC20: 1000
B21: Storage Container | W21: job | X21: job | AB21: 200.00 | AD21: 200.00 | AH21: $0 | AK21: $0 | AN21: $0 | AQ21: $0 | AV21: GENERAL CONDITIONS | AY21: 0 | AZ21: 0 | BA21: 0 | BB21: 0 | BC21: 0
B22: Chemical Toilet | W22: mo | X22: mo | AB22: 85.00 | AD22: 85.00 | AH22: $0 | AK22: $0 | AN22: $0 | AQ22: $0 | AV22: GENERAL CONDITIONS | AY22: 0 | AZ22: 0 | BA22: 0 | BB22: 0 | BC22: 0
B23: Misc. Tools & Materials | T23: 1 | W23: ls | X23: mo | AB23: 250.00 | AD23: 250.00 | AH23: $0 | AK23: $250 | AN23: $0 | AQ23: $250 | AV23: GENERAL CONDITIONS | AY23: 0 | AZ23: 250 | BA23: 0 | BB23: 250 | BC23: 250
B24: Rekey/lock box | W24: ea | X24: mo | Y24: 45.00 | AB24: 50.00 | AD24: 50.00 | AH24: $0 | AK24: $0 | AN24: $0 | AQ24: $0 | AV24: GENERAL CONDITIONS | AY24: 0 | AZ24: 0 | BA24: 0 | BB24: 0 | BC24: 0
B25: Turn on utilities | W25: ls | X25: mo | AB25: 125.00 | AD25: 125.00 | AH25: $0 | AK25: $0 | AN25: $0 | AQ25: $0 | AV25: GENERAL CONDITIONS | AY25: 0 | AZ25: 0 | BA25: 0 | BB25: 0 | BC25: 0
B26: Truck expense/car payment | W26: month | X26: mo | AB26: 250.00 | AD26: 250.00 | AH26: $0 | AK26: $0 | AN26: $0 | AQ26: $0 | AV26: GENERAL CONDITIONS | AY26: 0 | AZ26: 0 | BA26: 0 | BB26: 0 | BC26: 0
B27: Fuel/gas expense | W27: wk | X27: mo | AB27: 50.00 | AD27: 50.00 | AH27: $0 | AK27: $0 | AN27: $0 | AQ27: $0 | AV27: GENERAL CONDITIONS | AY27: 0 | AZ27: 0 | BA27: 0 | BB27: 0 | BC27: 0
B28: Project management | W28: wk | X28: mo | Y28: 1000.00 | AH28: $0 | AK28: $0 | AN28: $0 | AQ28: $0 | AV28: GENERAL CONDITIONS | AY28: 0 | AZ28: 0 | BA28: 0 | BB28: 0 | BC28: 0
B29: Architectural Fees | W29: hrs | X29: mo | AE29: 100.00 | AH29: $0 | AK29: $0 | AN29: $0 | AQ29: $0 | AV29: GENERAL CONDITIONS | AY29: 0 | AZ29: 0 | BA29: 0 | BB29: 0 | BC29: 0
B30: Engineering Fees | W30: hrs | X30: mo | AE30: 125.00 | AH30: $0 | AK30: $0 | AN30: $0 | AQ30: $0 | AV30: GENERAL CONDITIONS | AY30: 0 | AZ30: 0 | BA30: 0 | BB30: 0 | BC30: 0
B31: Professional Photography | W31: ls | X31: mo | AE31: 250.00 | AH31: $0 | AK31: $0 | AN31: $0 | AQ31: $0 | AV31: GENERAL CONDITIONS | AY31: 0 | AZ31: 0 | BA31: 0 | BB31: 0 | BC31: 0
B32: Material Deliveries | W32: ea | X32: mo | AB32: 65.00 | AH32: $0 | AK32: $0 | AN32: $0 | AQ32: $0 | AV32: GENERAL CONDITIONS | AY32: 0 | AZ32: 0 | BA32: 0 | BB32: 0 | BC32: 0
B33: Final cleaning | T33: 16 | W33: hrs | Y33: 15.00 | AH33: $240 | AK33: $0 | AN33: $0 | AQ33: $240 | AV33: GENERAL CONDITIONS | AY33: 240 | AZ33: 0 | BA33: 0 | BB33: 240 | BC33: 240
AH34: $0 | AK34: $0 | AN34: $0 | AQ34: $0 | AV34: GENERAL CONDITIONS | AY34: 0 | AZ34: 0 | BA34: 0 | BB34: 0 | BC34: 0
AH35: $0 | AK35: $0 | AN35: $0 | AQ35: $0 | AV35: GENERAL CONDITIONS | AY35: 0 | AZ35: 0 | BA35: 0 | BB35: 0 | BC35: 0
AH36: $0 | AK36: $0 | AN36: $0 | AQ36: $0 | AV36: GENERAL CONDITIONS | AY36: 0 | AZ36: 0 | BA36: 0 | BB36: 0 | BC36: 0
AV37: GENERAL CONDITIONS | AY37: =AY16 -> $240 | AZ37: =AZ16 -> $2,050 | BA37: =BA16 -> $0 | BB37: =BB16 -> $2,290
AG38: =CONCATENATE(B16," ","TOTAL") -> GENERAL CONDITIONS TOTAL | AH38: =SUBTOTAL(9,AH17:AH37) -> $240 | AK38: =SUBTOTAL(9,AK17:AK37) -> $2,050 | AN38: =SUBTOTAL(9,AN17:AN37) -> $0 | AQ38: =SUBTOTAL(9,AQ16:AQ37) -> $2,290 | AT38: =SUM(AT14:AT34) -> $0 | AV38: GENERAL CONDITIONS | AY38: =AY16 -> 240 | AZ38: =AZ16 -> 2050 | BA38: =BA16 -> 0 | BB38: =BB16 -> 2290 | BC38: =SUM(BC16:BC37) -> 2290
AV39: GENERAL CONDITIONS | AY39: =AY16 -> $240 | AZ39: =AZ16 -> $2,050 | BA39: =BA16 -> $0 | BB39: =BB16 -> $2,290
AY40: =AY38 -> 240 | AZ40: =AZ38 -> 2050 | BA40: =BA38 -> 0 | BB40: =BB38 -> 2290 | BC40: =BC38 -> 2290
B41: DEMOLITION | AV41: =$B$41 -> DEMOLITION | AY41: =SUM(AY42:AY61) -> 1200 | AZ41: =SUM(AZ42:AZ61) -> 0 | BA41: =SUM(BA42:BA61) -> 0 | BB41: =SUM(BB42:BB61) -> 1200 | BC41: =AQ41 -> 0
B42: Demolition | W42: ls | X42: hrs | AH42: =T42*Y42 -> $0 | AK42: =T42*AB42 -> $0 | AN42: =T42*AE42 -> $0 | AQ42: =SUM(AH42:AP42) -> $0 | AT42: =SUM(AH42:AP42) -> $0 | AV42: DEMOLITION | AY42: =AH42 -> 0 | AZ42: =AK42 -> 0 | BA42: =AN42 -> 0 | BB42: =SUM(AY42:BA42) -> 0 | BC42: 0
B43: Demo bid/allowance | W43: ls | X43: ls | AH43: =T43*Y43 -> $0 | AK43: $0 | AN43: $0 | AQ43: $0 | AT43: $0 | AV43: DEMOLITION | AY43: 0 | AZ43: 0 | BA43: 0 | BB43: 0 | BC43: 0
B44: Demolition work per hour | T44: 80 | W44: hrs | Y44: 15.00 | AH44: $1,200 | AK44: $0 | AN44: $0 | AQ44: $1,200 | AT44: $1,200 | AV44: DEMOLITION | AY44: 1200 | AZ44: 0 | BA44: 0 | BB44: 1200 | BC44: 1200
B45: Room demolition, typical room | W45: sf | Y45: 0.50 | AH45: $0 | AK45: $0 | AN45: $0 | AQ45: $0 | AT45: $0 | AV45: DEMOLITION | AY45: 0 | AZ45: 0 | BA45: 0 | BB45: 0 | BC45: 0
B46: Room demolition, bathroom | W46: sf | Y46: 1.75 | AH46: $0 | AK46: $0 | AN46: $0 | AQ46: $0 | AT46: $0 | AV46: DEMOLITION | AY46: 0 | AZ46: 0 | BA46: 0 | BB46: 0 | BC46: 0
B47: Room demolition, kitchen | W47: sf | Y47: 1.25 | AH47: $0 | AK47: $0 | AN47: $0 | AQ47: $0 | AT47: $0 | AV47: DEMOLITION | AY47: 0 | AZ47: 0 | BA47: 0 | BB47: 0 | BC47: 0
B48: Building demolition, 1-story wood-framed | W48: sf | Y48: 3.00 | AH48: $0 | AK48: $0 | AN48: $0 | AQ48: $0 | AT48: $0 | AV48: DEMOLITION | AY48: 0 | AZ48: 0 | BA48: 0 | BB48: 0 | BC48: 0
B49: Building demolition, 2-story wood framed | W49: sf | Y49: 3.20 | AH49: $0 | AK49: $0 | AN49: $0 | AQ49: $0 | AT49: $0 | AV49: DEMOLITION | AY49: 0 | AZ49: 0 | BA49: 0 | BB49: 0 | BC49: 0
B50: Building demolition, masonry | W50: sf | Y50: 4.15 | AH50: $0 | AK50: $0 | AN50: $0 | AQ50: $0 | AT50: $0 | AV50: DEMOLITION | AY50: 0 | AZ50: 0 | BA50: 0 | BB50: 0 | BC50: 0
B51: Building demolition, steel/concrete | W51: sf | Y51: 5.50 | AH51: $0 | AK51: $0 | AN51: $0 | AQ51: $0 | AT51: $0 | AV51: DEMOLITION | AY51: 0 | AZ51: 0 | BA51: 0 | BB51: 0 | BC51: 0
B52: Concrete slab demolition, 4"-6" | Y52: 2.00 | AH52: $0 | AK52: $0 | AN52: $0 | AQ52: $0 | AT52: $0 | AV52: DEMOLITION | AY52: 0 | AZ52: 0 | BA52: 0 | BB52: 0 | BC52: 0
AH53: $0 | AK53: $0 | AN53: $0 | AQ53: $0 | AT53: $0 | AV53: DEMOLITION | AY53: 0 | AZ53: 0 | BA53: 0 | BB53: 0 | BC53: 0
AH54: $0 | AK54: $0 | AN54: $0 | AQ54: $0 | AT54: $0 | AV54: DEMOLITION | AY54: 0 | AZ54: 0 | BA54: 0 | BB54: 0 | BC54: 0
B55: Abatement | W55: ls | AH55: $0 | AK55: $0 | AN55: $0 | AQ55: $0 | AT55: $0 | AV55: DEMOLITION | AY55: 0 | AZ55: 0 | BA55: 0 | BB55: 0 | BC55: 0
B56: Asbestos bid/allowance | W56: ls | X56: ls | AH56: $0 | AK56: $0 | AN56: $0 | AQ56: $0 | AT56: $0 | AV56: DEMOLITION | AY56: 0 | AZ56: 0 | BA56: 0 | BB56: 0 | BC56: 0
B57: Asbestos testing | W57: ea | AE57: 225.00 | AH57: $0 | AK57: $0 | AN57: $0 | AQ57: $0 | AT57: $0 | AV57: DEMOLITION | AY57: 0 | AZ57: 0 | BA57: 0 | BB57: 0 | BC57: 0
B58: Asbestos abatement, minimum charge | W58: ea | AE58: 2500.00 | AH58: $0 | AK58: $0 | AN58: $0 | AQ58: $0 | AT58: $0 | AV58: DEMOLITION | AY58: 0 | AZ58: 0 | BA58: 0 | BB58: 0 | BC58: 0
B59: Mold, minimum charge | AE59: 2500.00 | AH59: $0 | AK59: $0 | AN59: $0 | AQ59: $0 | AT59: $0 | AV59: DEMOLITION | AY59: 0 | AZ59: 0 | BA59: 0 | BB59: 0 | BC59: 0
AH60: $0 | AK60: $0 | AN60: $0 | AQ60: $0 | AT60: $0 | AV60: DEMOLITION | AY60: 0 | AZ60: 0 | BA60: 0 | BB60: 0 | BC60: 0
AH61: $0 | AK61: $0 | AN61: $0 | AQ61: $0 | AT61: $0 | AV61: DEMOLITION | AY61: 0 | AZ61: 0 | BA61: 0 | BB61: 0 | BC61: 0
AV62: DEMOLITION | AY62: =AY41 -> $1,200 | AZ62: =AZ41 -> $0 | BA62: =BA41 -> $0 | BB62: =BB41 -> $1,200
AG63: =CONCATENATE(B41," ","TOTAL") -> DEMOLITION TOTAL | AH63: =SUBTOTAL(9,AH42:AH62) -> $1,200 | AK63: =SUBTOTAL(9,AK42:AK62) -> $0 | AN63: =SUBTOTAL(9,AN42:AN62) -> $0 | AQ63: =SUBTOTAL(9,AQ41:AQ62) -> $1,200 | AT63: =SUM(AT24:AT51) -> $1,200 | AV63: DEMOLITION | AY63: =AY41 -> 1200 | AZ63: =AZ41 -> 0 | BA63: =BA41 -> 0 | BB63: =BB41 -> 1200 | BC63: =SUM(BC41:BC62) -> 1200
AV64: DEMOLITION | AY64: =AY41 -> $1,200 | AZ64: =AZ41 -> $0 | BA64: =BA41 -> $0 | BB64: =BB41 -> $1,200
AV65: DEMOLITION | AY65: =AY63 -> 1200 | AZ65: =AZ63 -> 0 | BA65: =BA63 -> 0 | BB65: =BB63 -> 1200 | BC65: =BC63 -> 1200
B66: STRUCTURAL CONCRETE | AV66: =$B$66 -> STRUCTURAL CONCRETE | AY66: =SUM(AY67:AY86) -> 0 | AZ66: =SUM(AZ67:AZ86) -> 0 | BA66: =SUM(BA67:BA86) -> 0 | BB66: =SUM(BB67:BB86) -> 0 | BC66: =AQ66 -> 0
B67: Excavation | AH67: =T67*Y67 -> $0 | AK67: =T67*AB67 -> $0 | AN67: =T67*AE67 -> $0 | AQ67: =SUM(AH67:AP67) -> $0 | AT67: =SUM(AH67:AP67) -> $0 | AV67: STRUCTURAL CONCRETE | AY67: =AH67 -> 0 | AZ67: =AK67 -> 0 | BA67: =AN67 -> 0 | BB67: =SUM(AY67:BA67) -> 0 | BC67: 0
B68: Excavation bid/allowance | W68: ls | X68: ls | AH68: =T68*Y68 -> $0 | AK68: $0 | AN68: $0 | AQ68: $0 | AT68: $0 | AV68: STRUCTURAL CONCRETE | AY68: 0 | AZ68: 0 | BA68: 0 | BB68: 0 | BC68: 0
B69: Footing trenching | W69: cy | X69: lf | Y69: 20.00 | AH69: $0 | AK69: $0 | AN69: $0 | AQ69: $0 | AT69: $0 | AV69: STRUCTURAL CONCRETE | AY69: 0 | AZ69: 0 | BA69: 0 | BB69: 0 | BC69: 0
B70: Backfill of trenches | W70: cy | X70: lf | Y70: 10.00 | AH70: $0 | AK70: $0 | AN70: $0 | AQ70: $0 | AT70: $0 | AV70: STRUCTURAL CONCRETE | AY70: 0 | AZ70: 0 | BA70: 0 | BB70: 0 | BC70: 0
AH71: $0 | AK71: $0 | AN71: $0 | AQ71: $0 | AT71: $0 | AV71: STRUCTURAL CONCRETE | AY71: 0 | AZ71: 0 | BA71: 0 | BB71: 0 | BC71: 0
AH72: $0 | AK72: $0 | AN72: $0 | AQ72: $0 | AT72: $0 | AV72: STRUCTURAL CONCRETE | AY72: 0 | AZ72: 0 | BA72: 0 | BB72: 0 | BC72: 0
B73: Foundation | AH73: $0 | AK73: $0 | AN73: $0 | AQ73: $0 | AT73: $0 | AV73: STRUCTURAL CONCRETE | AY73: 0 | AZ73: 0 | BA73: 0 | BB73: 0 | BC73: 0
B74: Foundation bid/allowance | W74: ls | X74: ls | AH74: $0 | AK74: $0 | AN74: $0 | AQ74: $0 | AT74: $0 | AV74: STRUCTURAL CONCRETE | AY74: 0 | AZ74: 0 | BA74: 0 | BB74: 0 | BC74: 0
B75: Concrete slab on grade, 4" thick | W75: sf | X75: ls | Y75: 3.00 | AB75: 2.50 | AD75: 2.50 | AH75: $0 | AK75: $0 | AN75: $0 | AQ75: $0 | AT75: $0 | AV75: STRUCTURAL CONCRETE | AY75: 0 | AZ75: 0 | BA75: 0 | BB75: 0 | BC75: 0
B76: Concrete footing, 12" wide | W76: lf | X76: lf | Y76: 20.00 | AB76: 10.00 | AD76: 10.00 | AH76: $0 | AK76: $0 | AN76: $0 | AQ76: $0 | AT76: $0 | AV76: STRUCTURAL CONCRETE | AY76: 0 | AZ76: 0 | BA76: 0 | BB76: 0 | BC76: 0
B77: Stem wall, single story | W77: lf | X77: lf | Y77: 115.00 | AB77: 30.00 | AD77: 30.00 | AH77: $0 | AK77: $0 | AN77: $0 | AQ77: $0 | AT77: $0 | AV77: STRUCTURAL CONCRETE | AY77: 0 | AZ77: 0 | BA77: 0 | BB77: 0 | BC77: 0
AH78: $0 | AK78: $0 | AN78: $0 | AQ78: $0 | AT78: $0 | AV78: STRUCTURAL CONCRETE | AY78: 0 | AZ78: 0 | BA78: 0 | BB78: 0 | BC78: 0
AH79: $0 | AK79: $0 | AN79: $0 | AQ79: $0 | AT79: $0 | AV79: STRUCTURAL CONCRETE | AY79: 0 | AZ79: 0 | BA79: 0 | BB79: 0 | BC79: 0
B80: Structural Repairs | AH80: $0 | AK80: $0 | AN80: $0 | AQ80: $0 | AT80: $0 | AV80: STRUCTURAL CONCRETE | AY80: 0 | AZ80: 0 | BA80: 0 | BB80: 0 | BC80: 0
B81: Structural Repairs bid/allowance | W81: ls | X81: ls | AH81: $0 | AK81: $0 | AN81: $0 | AQ81: $0 | AT81: $0 | AV81: STRUCTURAL CONCRETE | AY81: 0 | AZ81: 0 | BA81: 0 | BB81: 0 | BC81: 0
B82: Stair mud jacking, case by case | W82: ea | X82: ls | AE82: 500.00 | AG82: 500.00 | AH82: $0 | AK82: $0 | AN82: $0 | AQ82: $0 | AT82: $0 | AV82: STRUCTURAL CONCRETE | AY82: 0 | AZ82: 0 | BA82: 0 | BB82: 0 | BC82: 0
B83: Bowing foundation walls, vertical I-Beams | W83: ea | X83: ea | AE83: 800.00 | AG83: 500.00 | AH83: $0 | AK83: $0 | AN83: $0 | AQ83: $0 | AT83: $0 | AV83: STRUCTURAL CONCRETE | AY83: 0 | AZ83: 0 | BA83: 0 | BB83: 0 | BC83: 0
B84: Settled foundation walls, concrete piers/underpinning | W84: ea | X84: ea | AE84: 1100.00 | AG84: 850.00 | AH84: $0 | AK84: $0 | AN84: $0 | AQ84: $0 | AT84: $0 | AV84: STRUCTURAL CONCRETE | AY84: 0 | AZ84: 0 | BA84: 0 | BB84: 0 | BC84: 0
B85: Foundation waterproofing & drain tile, single story | W85: lf | AE85: 145.00 | AH85: $0 | AK85: $0 | AN85: $0 | AQ85: $0 | AT85: $0 | AV85: STRUCTURAL CONCRETE | AY85: 0 | AZ85: 0 | BA85: 0 | BB85: 0 | BC85: 0
B86: Epoxy crack injection | W86: lf | AE86: 12.00 | AH86: $0 | AK86: $0 | AN86: $0 | AQ86: $0 | AT86: $0 | AV86: STRUCTURAL CONCRETE | AY86: 0 | AZ86: 0 | BA86: 0 | BB86: 0 | BC86: 0
AV87: STRUCTURAL CONCRETE | AY87: =AY66 -> $0 | AZ87: =AZ66 -> $0 | BA87: =BA66 -> $0 | BB87: =BB66 -> $0
AG88: =CONCATENATE(B66," ","TOTAL") -> STRUCTURAL CONCRETE TOTAL | AH88: =SUBTOTAL(9,AH66:AH87) -> $0 | AK88: =SUBTOTAL(9,AK66:AK87) -> $0 | AN88: =SUBTOTAL(9,AN66:AN87) -> $0 | AQ88: =SUBTOTAL(9,AQ66:AQ87) -> $0 | AT88: =SUM(AT66:AT86) -> $0 | AV88: STRUCTURAL CONCRETE | AY88: =AY66 -> 0 | AZ88: =AZ66 -> 0 | BA88: =BA66 -> 0 | BB88: =BB66 -> 0 | BC88: =SUM(BC66:BC87) -> 0
AV89: STRUCTURAL CONCRETE | AY89: =AY66 -> $0 | AZ89: =AZ66 -> $0 | BA89: =BA66 -> $0 | BB89: =BB66 -> $0
AV90: STRUCTURAL CONCRETE | AY90: =AY88 -> 0 | AZ90: =AZ88 -> 0 | BA90: =BA88 -> 0 | BB90: =BB88 -> 0 | BC90: =BC88 -> 0
B91: CONCRETE & FLATWORK | AV91: =$B$91 -> CONCRETE & FLATWORK | AY91: =SUM(AY92:AY111) -> 0 | AZ91: =SUM(AZ92:AZ111) -> 0 | BA91: =SUM(BA92:BA111) -> 0 | BB91: =SUM(BB92:BB111) -> 0 | BC91: =AQ91 -> 0
B92: Concrete | X92: ls | AH92: =T92*Y92 -> $0 | AK92: =T92*AB92 -> $0 | AN92: =T92*AE92 -> $0 | AQ92: =SUM(AH92:AP92) -> $0 | AV92: CONCRETE & FLATWORK | AY92: =AH92 -> 0 | AZ92: =AK92 -> 0 | BA92: =AN92 -> 0 | BB92: =SUM(AY92:BA92) -> 0 | BC92: 0
B93: Concrete bid/allowance | W93: ls | X93: sf | AH93: =T93*Y93 -> $0 | AK93: $0 | AN93: $0 | AQ93: $0 | AV93: CONCRETE & FLATWORK | AY93: 0 | AZ93: 0 | BA93: 0 | BB93: 0 | BC93: 0
B94: Concrete flatwork demo | W94: sf | X94: sf | Y94: 2.00 | AH94: $0 | AK94: $0 | AN94: $0 | AQ94: $0 | AV94: CONCRETE & FLATWORK | AY94: 0 | AZ94: 0 | BA94: 0 | BB94: 0 | BC94: 0
B95: Concrete driveway/patio, 6" thick | W95: sf | X95: sf | Y95: 2.00 | AB95: 3.00 | AD95: 1.75 | AH95: $0 | AK95: $0 | AN95: $0 | AQ95: $0 | AV95: CONCRETE & FLATWORK | AY95: 0 | AZ95: 0 | BA95: 0 | BB95: 0 | BC95: 0
B96: Concrete sidewalk, 4" thick | W96: sf | Y96: 1.20 | AB96: 2.05 | AH96: $0 | AK96: $0 | AN96: $0 | AQ96: $0 | AV96: CONCRETE & FLATWORK | AY96: 0 | AZ96: 0 | BA96: 0 | BB96: 0 | BC96: 0
B97: Add for 4" base rock below concrete pavement | W97: sf | Y97: 0.25 | AB97: 0.75 | AH97: $0 | AK97: $0 | AN97: $0 | AQ97: $0 | AV97: CONCRETE & FLATWORK | AY97: 0 | AZ97: 0 | BA97: 0 | BB97: 0 | BC97: 0
AH98: $0 | AK98: $0 | AN98: $0 | AQ98: $0 | AV98: CONCRETE & FLATWORK | AY98: 0 | AZ98: 0 | BA98: 0 | BB98: 0 | BC98: 0
B99: Asphalt | AH99: $0 | AK99: $0 | AN99: $0 | AQ99: $0 | AV99: CONCRETE & FLATWORK | AY99: 0 | AZ99: 0 | BA99: 0 | BB99: 0 | BC99: 0
B100: Asphalt bid/allowance | W100: ls | AH100: $0 | AK100: $0 | AN100: $0 | AQ100: $0 | AV100: CONCRETE & FLATWORK | AY100: 0 | AZ100: 0 | BA100: 0 | BB100: 0 | BC100: 0
B101: Asphalt pavement, 5" thick | W101: sy | AE101: 23.00 | AH101: $0 | AK101: $0 | AN101: $0 | AQ101: $0 | AV101: CONCRETE & FLATWORK | AY101: 0 | AZ101: 0 | BA101: 0 | BB101: 0 | BC101: 0
B102: Asphalt pavement, 7" thick | W102: sy | AE102: 27.00 | AH102: $0 | AK102: $0 | AN102: $0 | AQ102: $0 | AV102: CONCRETE & FLATWORK | AY102: 0 | AZ102: 0 | BA102: 0 | BB102: 0 | BC102: 0
B103: Asphalt pavement, wearing course, 1" thick only | W103: sy | AE103: 8.00 | AH103: $0 | AK103: $0 | AN103: $0 | AQ103: $0 | AV103: CONCRETE & FLATWORK | AY103: 0 | AZ103: 0 | BA103: 0 | BB103: 0 | BC103: 0
B104: Asphalt seal coat | W104: sy | AE104: 3.00 | AH104: $0 | AK104: $0 | AN104: $0 | AQ104: $0 | AV104: CONCRETE & FLATWORK | AY104: 0 | AZ104: 0 | BA104: 0 | BB104: 0 | BC104: 0
B105: Add for 4" base rock below asphalt pavement | W105: sy | AE105: 9.00 | AH105: $0 | AK105: $0 | AN105: $0 | AQ105: $0 | AV105: CONCRETE & FLATWORK | AY105: 0 | AZ105: 0 | BA105: 0 | BB105: 0 | BC105: 0
AH106: $0 | AK106: $0 | AN106: $0 | AQ106: $0 | AV106: CONCRETE & FLATWORK | AY106: 0 | AZ106: 0 | BA106: 0 | BB106: 0 | BC106: 0
B107: Pavers | AH107: $0 | AK107: $0 | AN107: $0 | AQ107: $0 | AV107: CONCRETE & FLATWORK | AY107: 0 | AZ107: 0 | BA107: 0 | BB107: 0 | BC107: 0
B108: Pavers bid/allowance | W108: ls | AH108: $0 | AK108: $0 | AN108: $0 | AQ108: $0 | AV108: CONCRETE & FLATWORK | AY108: 0 | AZ108: 0 | BA108: 0 | BB108: 0 | BC108: 0
B109: Brick pavers, sand base | W109: sf | Y109: 6.50 | AB109: 3.50 | AH109: $0 | AK109: $0 | AN109: $0 | AQ109: $0 | AV109: CONCRETE & FLATWORK | AY109: 0 | AZ109: 0 | BA109: 0 | BB109: 0 | BC109: 0
B110: Brick pavers, mortar base | W110: sf | Y110: 9.50 | AB110: 6.00 | AH110: $0 | AK110: $0 | AN110: $0 | AQ110: $0 | AV110: CONCRETE & FLATWORK | AY110: 0 | AZ110: 0 | BA110: 0 | BB110: 0 | BC110: 0
AH111: $0 | AK111: $0 | AN111: $0 | AQ111: $0 | AV111: CONCRETE & FLATWORK | AY111: 0 | AZ111: 0 | BA111: 0 | BB111: 0 | BC111: 0
AV112: CONCRETE & FLATWORK | AY112: =AY91 -> $0 | AZ112: =AZ91 -> $0 | BA112: =BA91 -> $0 | BB112: =BB91 -> $0
AG113: =CONCATENATE(B91," ","TOTAL") -> CONCRETE & FLATWORK TOTAL | AH113: =SUBTOTAL(9,AH91:AH112) -> $0 | AK113: =SUBTOTAL(9,AK91:AK112) -> $0 | AN113: =SUBTOTAL(9,AN91:AN112) -> $0 | AQ113: =SUBTOTAL(9,AQ91:AQ112) -> $0 | AT113: =SUM(AT91:AT101) -> $0 | AV113: CONCRETE & FLATWORK | AY113: =AY91 -> 0 | AZ113: =AZ91 -> 0 | BA113: =BA91 -> 0 | BB113: =BB91 -> 0 | BC113: =SUM(BC91:BC112) -> 0
AV114: CONCRETE & FLATWORK | AY114: =AY91 -> $0 | AZ114: =AZ91 -> $0 | BA114: =BA91 -> $0 | BB114: =BB91 -> $0
AV115: CONCRETE & FLATWORK | AY115: =AY113 -> 0 | AZ115: =AZ113 -> 0 | BA115: =BA113 -> 0 | BB115: =BB113 -> 0 | BC115: =BC113 -> 0
B116: MASONRY | AV116: =$B$116 -> MASONRY | AY116: =SUM(AY117:AY136) -> 0 | AZ116: =SUM(AZ117:AZ136) -> 0 | BA116: =SUM(BA117:BA136) -> 0 | BB116: =SUM(BB117:BB136) -> 0 | BC116: =AQ116 -> 0
B117: Masonry bid/allowance | W117: ls | X117: ls | AH117: =T117*Y117 -> $0 | AK117: =T117*AB117 -> $0 | AN117: =T117*AE117 -> $0 | AQ117: =SUM(AH117:AP117) -> $0 | AV117: MASONRY | AY117: =AH117 -> 0 | AZ117: =AK117 -> 0 | BA117: =AN117 -> 0 | BB117: =SUM(AY117:BA117) -> 0 | BC117: 0
B118: CMU, 4x8 | W118: sf | X118: sf | Y118: 3.75 | AB118: 2.00 | AD118: 2.00 | AH118: =T118*Y118 -> $0 | AK118: $0 | AN118: $0 | AQ118: $0 | AV118: MASONRY | AY118: 0 | AZ118: 0 | BA118: 0 | BB118: 0 | BC118: 0
B119: CMU, 8x8 | W119: sf | X119: sf | Y119: 4.50 | AB119: 2.50 | AD119: 4.00 | AH119: $0 | AK119: $0 | AN119: $0 | AQ119: $0 | AV119: MASONRY | AY119: 0 | AZ119: 0 | BA119: 0 | BB119: 0 | BC119: 0
B120: Brick veneer | W120: sf | X120: sf | Y120: 8.00 | AB120: 4.00 | AD120: 8.00 | AH120: $0 | AK120: $0 | AN120: $0 | AQ120: $0 | AV120: MASONRY | AY120: 0 | AZ120: 0 | BA120: 0 | BB120: 0 | BC120: 0
B121: Natural stone | W121: sf | X121: ls | Y121: 15.00 | AB121: 14.00 | AD121: 2000.00 | AH121: $0 | AK121: $0 | AN121: $0 | AQ121: $0 | AV121: MASONRY | AY121: 0 | AZ121: 0 | BA121: 0 | BB121: 0 | BC121: 0
B122: Masonry waterproofing | W122: sf | X122: sf | Y122: 0.80 | AB122: 0.50 | AD122: 0.50 | AH122: $0 | AK122: $0 | AN122: $0 | AQ122: $0 | AV122: MASONRY | AY122: 0 | AZ122: 0 | BA122: 0 | BB122: 0 | BC122: 0
B123: Tuck-point masonry | W123: sf | X123: sf | Y123: 4.75 | AB123: 0.50 | AH123: $0 | AK123: $0 | AN123: $0 | AQ123: $0 | AV123: MASONRY | AY123: 0 | AZ123: 0 | BA123: 0 | BB123: 0 | BC123: 0
B124: Power wash masonry | W124: sf | Y124: 1.00 | AH124: $0 | AK124: $0 | AN124: $0 | AQ124: $0 | AV124: MASONRY | AY124: 0 | AZ124: 0 | BA124: 0 | BB124: 0 | BC124: 0
B125: Chimney, brick | W125: vlf | Y125: 50.00 | AB125: 35.00 | AH125: $0 | AK125: $0 | AN125: $0 | AQ125: $0 | AV125: MASONRY | AY125: 0 | AZ125: 0 | BA125: 0 | BB125: 0 | BC125: 0
B126: Chimney, stone | W126: vlf | Y126: 70.00 | AB126: 75.00 | AH126: $0 | AK126: $0 | AN126: $0 | AQ126: $0 | AV126: MASONRY | AY126: 0 | AZ126: 0 | BA126: 0 | BB126: 0 | BC126: 0
B127: Add to above for chimney cap | W127: ea | Y127: 35.00 | AB127: 50.00 | AH127: $0 | AK127: $0 | AN127: $0 | AQ127: $0 | AV127: MASONRY | AY127: 0 | AZ127: 0 | BA127: 0 | BB127: 0 | BC127: 0
B128: Fireplace complete, brick, 3ft-4ft wide w/ chimney | W128: ea | Y128: 3500.00 | AB128: 2000.00 | AH128: $0 | AK128: $0 | AN128: $0 | AQ128: $0 | AV128: MASONRY | AY128: 0 | AZ128: 0 | BA128: 0 | BB128: 0 | BC128: 0
AH129: $0 | AK129: $0 | AN129: $0 | AQ129: $0 | AV129: MASONRY | AY129: 0 | AZ129: 0 | BA129: 0 | BB129: 0 | BC129: 0
AH130: $0 | AK130: $0 | AN130: $0 | AQ130: $0 | AV130: MASONRY | AY130: 0 | AZ130: 0 | BA130: 0 | BB130: 0 | BC130: 0
AH131: $0 | AK131: $0 | AN131: $0 | AQ131: $0 | AV131: MASONRY | AY131: 0 | AZ131: 0 | BA131: 0 | BB131: 0 | BC131: 0
AH132: $0 | AK132: $0 | AN132: $0 | AQ132: $0 | AV132: MASONRY | AY132: 0 | AZ132: 0 | BA132: 0 | BB132: 0 | BC132: 0
AH133: $0 | AK133: $0 | AN133: $0 | AQ133: $0 | AV133: MASONRY | AY133: 0 | AZ133: 0 | BA133: 0 | BB133: 0 | BC133: 0
AH134: $0 | AK134: $0 | AN134: $0 | AQ134: $0 | AV134: MASONRY | AY134: 0 | AZ134: 0 | BA134: 0 | BB134: 0 | BC134: 0
AH135: $0 | AK135: $0 | AN135: $0 | AQ135: $0 | AV135: MASONRY | AY135: 0 | AZ135: 0 | BA135: 0 | BB135: 0 | BC135: 0
AH136: $0 | AK136: $0 | AN136: $0 | AQ136: $0 | AV136: MASONRY | AY136: 0 | AZ136: 0 | BA136: 0 | BB136: 0 | BC136: 0
AV137: MASONRY | AY137: =AY116 -> $0 | AZ137: =AZ116 -> $0 | BA137: =BA116 -> $0 | BB137: =BB116 -> $0
AG138: =CONCATENATE(B116," ","TOTAL") -> MASONRY TOTAL | AH138: =SUBTOTAL(9,AH116:AH137) -> $0 | AK138: =SUBTOTAL(9,AK116:AK137) -> $0 | AN138: =SUBTOTAL(9,AN116:AN137) -> $0 | AQ138: =SUBTOTAL(9,AQ116:AQ137) -> $0 | AT138: =SUM(AT119:AT131) -> $0 | AV138: MASONRY | AY138: =AY116 -> 0 | AZ138: =AZ116 -> 0 | BA138: =BA116 -> 0 | BB138: =BB116 -> 0 | BC138: =SUM(BC116:BC137) -> 0
AV139: MASONRY | AY139: =AY116 -> $0 | AZ139: =AZ116 -> $0 | BA139: =BA116 -> $0 | BB139: =BB116 -> $0
AV140: MASONRY | AY140: =AY138 -> 0 | AZ140: =AZ138 -> 0 | BA140: =BA138 -> 0 | BB140: =BB138 -> 0 | BC140: =BC138 -> 0
B141: SIDING | AV141: =$B$141 -> SIDING | AY141: =SUM(AY142:AY161) -> 0 | AZ141: =SUM(AZ142:AZ161) -> 0 | BA141: =SUM(BA142:BA161) -> 0 | BB141: =SUM(BB142:BB161) -> 0 | BC141: =AQ141 -> 0
B142: Siding bid/allowance | W142: ls | X142: ls | AH142: =T142*Y142 -> $0 | AK142: =T142*AB142 -> $0 | AN142: =T142*AE142 -> $0 | AQ142: =SUM(AH142:AP142) -> $0 | AT142: =SUM(AH142:AP142) -> $0 | AV142: SIDING | AY142: =AH142 -> 0 | AZ142: =AK142 -> 0 | BA142: =AN142 -> 0 | BB142: =SUM(AY142:BA142) -> 0 | BC142: 0
B143: Demo existing siding | W143: sf | X143: sf | Y143: 0.75 | AH143: =T143*Y143 -> $0 | AK143: $0 | AN143: $0 | AQ143: $0 | AT143: $0 | AV143: SIDING | AY143: 0 | AZ143: 0 | BA143: 0 | BB143: 0 | BC143: 0
B144: Plywood panel, douglas fir | W144: sf | X144: sf | Y144: 1.15 | AB144: 1.25 | AD144: 1.25 | AH144: $0 | AK144: $0 | AN144: $0 | AQ144: $0 | AT144: $0 | AV144: SIDING | AY144: 0 | AZ144: 0 | BA144: 0 | BB144: 0 | BC144: 0
B145: Plywood panel, cedar | W145: sf | X145: sf | Y145: 1.20 | AB145: 2.75 | AD145: 1.00 | AH145: $0 | AK145: $0 | AN145: $0 | AQ145: $0 | AT145: $0 | AV145: SIDING | AY145: 0 | AZ145: 0 | BA145: 0 | BB145: 0 | BC145: 0
B146: Tongue and groove, douglas fir | W146: sf | X146: sf | Y146: 1.25 | AB146: 2.50 | AD146: 1.50 | AH146: $0 | AK146: $0 | AN146: $0 | AQ146: $0 | AT146: $0 | AV146: SIDING | AY146: 0 | AZ146: 0 | BA146: 0 | BB146: 0 | BC146: 0
B147: Tongue and groove, cedar | W147: sf | X147: sf | Y147: 1.75 | AB147: 4.00 | AD147: 1.00 | AH147: $0 | AK147: $0 | AN147: $0 | AQ147: $0 | AT147: $0 | AV147: SIDING | AY147: 0 | AZ147: 0 | BA147: 0 | BB147: 0 | BC147: 0
B148: Board and batten, douglas fir | W148: sf | X148: sf | Y148: 2.25 | AB148: 1.00 | AD148: 1.50 | AH148: $0 | AK148: $0 | AN148: $0 | AQ148: $0 | AT148: $0 | AV148: SIDING | AY148: 0 | AZ148: 0 | BA148: 0 | BB148: 0 | BC148: 0
B149: Board and batten, cedar | W149: sf | Y149: 2.50 | AB149: 1.00 | AH149: $0 | AK149: $0 | AN149: $0 | AQ149: $0 | AT149: $0 | AV149: SIDING | AY149: 0 | AZ149: 0 | BA149: 0 | BB149: 0 | BC149: 0
B150: Wood shingle/shake | W150: sf | Y150: 2.75 | AB150: 1.75 | AH150: $0 | AK150: $0 | AN150: $0 | AQ150: $0 | AT150: $0 | AV150: SIDING | AY150: 0 | AZ150: 0 | BA150: 0 | BB150: 0 | BC150: 0
B151: Fiber cement siding, 4x8 panels | W151: sf | Y151: 0.85 | AB151: 1.00 | AH151: $0 | AK151: $0 | AN151: $0 | AQ151: $0 | AT151: $0 | AV151: SIDING | AY151: 0 | AZ151: 0 | BA151: 0 | BB151: 0 | BC151: 0
B152: Fiber cement siding, lap | W152: sf | Y152: 1.50 | AB152: 1.20 | AH152: $0 | AK152: $0 | AN152: $0 | AQ152: $0 | AT152: $0 | AV152: SIDING | AY152: 0 | AZ152: 0 | BA152: 0 | BB152: 0 | BC152: 0
B153: Vinyl siding, non-insulated | W153: sf | Y153: 1.50 | AB153: 1.30 | AH153: $0 | AK153: $0 | AN153: $0 | AQ153: $0 | AT153: $0 | AV153: SIDING | AY153: 0 | AZ153: 0 | BA153: 0 | BB153: 0 | BC153: 0
B154: Vinyl siding, insulated | W154: sf | Y154: 3.00 | AB154: 1.75 | AH154: $0 | AK154: $0 | AN154: $0 | AQ154: $0 | AT154: $0 | AV154: SIDING | AY154: 0 | AZ154: 0 | BA154: 0 | BB154: 0 | BC154: 0
B155: Trim, 1"x3", pine | W155: lf | Y155: 1.25 | AB155: 0.40 | AH155: $0 | AK155: $0 | AN155: $0 | AQ155: $0 | AT155: $0 | AV155: SIDING | AY155: 0 | AZ155: 0 | BA155: 0 | BB155: 0 | BC155: 0
B156: Trim, 1"x4", pine | W156: lf | Y156: 1.50 | AB156: 0.90 | AH156: $0 | AK156: $0 | AN156: $0 | AQ156: $0 | AT156: $0 | AV156: SIDING | AY156: 0 | AZ156: 0 | BA156: 0 | BB156: 0 | BC156: 0
B157: Trim, 1"x6", pine | W157: lf | Y157: 1.50 | AB157: 1.30 | AH157: $0 | AK157: $0 | AN157: $0 | AQ157: $0 | AT157: $0 | AV157: SIDING | AY157: 0 | AZ157: 0 | BA157: 0 | BB157: 0 | BC157: 0
B158: Siding patch, window/door, siding, insulation | W158: ea | Y158: 125.00 | AB158: 75.00 | AH158: $0 | AK158: $0 | AN158: $0 | AQ158: $0 | AT158: $0 | AV158: SIDING | AY158: 0 | AZ158: 0 | BA158: 0 | BB158: 0 | BC158: 0
B159: Stucco | W159: sf | Y159: 7.25 | AB159: 3.00 | AH159: $0 | AK159: $0 | AN159: $0 | AQ159: $0 | AT159: $0 | AV159: SIDING | AY159: 0 | AZ159: 0 | BA159: 0 | BB159: 0 | BC159: 0
AH160: $0 | AK160: $0 | AN160: $0 | AQ160: $0 | AT160: $0 | AV160: SIDING | AY160: 0 | AZ160: 0 | BA160: 0 | BB160: 0 | BC160: 0
AH161: $0 | AK161: $0 | AN161: $0 | AQ161: $0 | AT161: $0 | AV161: SIDING | AY161: 0 | AZ161: 0 | BA161: 0 | BB161: 0 | BC161: 0
AV162: SIDING | AY162: =AY141 -> $0 | AZ162: =AZ141 -> $0 | BA162: =BA141 -> $0 | BB162: =BB141 -> $0
AG163: =CONCATENATE(B141," ","TOTAL") -> SIDING TOTAL | AH163: =SUBTOTAL(9,AH141:AH162) -> $0 | AK163: =SUBTOTAL(9,AK141:AK162) -> $0 | AN163: =SUBTOTAL(9,AN141:AN162) -> $0 | AQ163: =SUBTOTAL(9,AQ141:AQ162) -> $0 | AT163: =SUM(AT144:AT152) -> $0 | AV163: SIDING | AY163: =AY141 -> 0 | AZ163: =AZ141 -> 0 | BA163: =BA141 -> 0 | BB163: =BB141 -> 0 | BC163: =SUM(BC141:BC162) -> 0
AV164: SIDING | AY164: =AY141 -> $0 | AZ164: =AZ141 -> $0 | BA164: =BA141 -> $0 | BB164: =BB141 -> $0
AV165: SIDING | AY165: =AY163 -> 0 | AZ165: =AZ163 -> 0 | BA165: =BA163 -> 0 | BB165: =BB163 -> 0 | BC165: =BC163 -> 0
B166: DECKING AND PATIOS | AV166: =$B$166 -> DECKING AND PATIOS | AY166: =SUM(AY167:AY186) -> 2000 | AZ166: =SUM(AZ167:AZ186) -> 1000 | BA166: =SUM(BA167:BA186) -> 0 | BB166: =SUM(BB167:BB186) -> 3000 | BC166: =AQ166 -> 0
B167: Decking | AH167: =T167*Y167 -> $0 | AK167: =T167*AB167 -> $0 | AN167: =T167*AE167 -> $0 | AQ167: =SUM(AH167:AP167) -> $0 | AT167: =SUM(AH167:AP167) -> $0 | AV167: DECKING AND PATIOS | AY167: =AH167 -> 0 | AZ167: =AK167 -> 0 | BA167: =AN167 -> 0 | BB167: =SUM(AY167:BA167) -> 0 | BC167: 0
B168: Deck bid/allowance | W168: ls | X168: ls | AH168: =T168*Y168 -> $0 | AK168: $0 | AN168: $0 | AQ168: $0 | AT168: $0 | AV168: DECKING AND PATIOS | AY168: 0 | AZ168: 0 | BA168: 0 | BB168: 0 | BC168: 0
B169: New deck, columns, joists, railing-treated lumber | T169: 200 | W169: sf | X169: sf | Y169: 10.00 | AB169: 5.00 | AD169: 5.00 | AH169: $2,000 | AK169: $1,000 | AN169: $0 | AQ169: $3,000 | AT169: $3,000 | AV169: DECKING AND PATIOS | AY169: 2000 | AZ169: 1000 | BA169: 0 | BB169: 3000 | BC169: 3000
B170: New deck, columns, joists, railing-cedar | W170: sf | X170: sf | Y170: 10.00 | AB170: 8.50 | AD170: 8.50 | AH170: $0 | AK170: $0 | AN170: $0 | AQ170: $0 | AT170: $0 | AV170: DECKING AND PATIOS | AY170: 0 | AZ170: 0 | BA170: 0 | BB170: 0 | BC170: 0
B171: Existing deck, replace decking | W171: sf | X171: sf | Y171: 5.00 | AB171: 2.00 | AD171: 2.00 | AH171: $0 | AK171: $0 | AN171: $0 | AQ171: $0 | AT171: $0 | AV171: DECKING AND PATIOS | AY171: 0 | AZ171: 0 | BA171: 0 | BB171: 0 | BC171: 0
B172: Install railing w/ wood balusters only | W172: lf | X172: lf | Y172: 15.00 | AB172: 15.00 | AD172: 7.50 | AH172: $0 | AK172: $0 | AN172: $0 | AQ172: $0 | AT172: $0 | AV172: DECKING AND PATIOS | AY172: 0 | AZ172: 0 | BA172: 0 | BB172: 0 | BC172: 0
B173: Install railing w/ metal balusters only | W173: lf | X173: lf | Y173: 15.00 | AB173: 25.00 | AD173: 25.00 | AH173: $0 | AK173: $0 | AN173: $0 | AQ173: $0 | AT173: $0 | AV173: DECKING AND PATIOS | AY173: 0 | AZ173: 0 | BA173: 0 | BB173: 0 | BC173: 0
B174: Stairs, 5 to 7 risers | W174: ea | Y174: 700.00 | AB174: 175.00 | AH174: $0 | AK174: $0 | AN174: $0 | AQ174: $0 | AT174: $0 | AV174: DECKING AND PATIOS | AY174: 0 | AZ174: 0 | BA174: 0 | BB174: 0 | BC174: 0
AH175: $0 | AK175: $0 | AN175: $0 | AQ175: $0 | AT175: $0 | AV175: DECKING AND PATIOS | AY175: 0 | AZ175: 0 | BA175: 0 | BB175: 0 | BC175: 0
AH176: $0 | AK176: $0 | AN176: $0 | AQ176: $0 | AT176: $0 | AV176: DECKING AND PATIOS | AY176: 0 | AZ176: 0 | BA176: 0 | BB176: 0 | BC176: 0
B177: Covered Patio | AH177: $0 | AK177: $0 | AN177: $0 | AQ177: $0 | AT177: $0 | AV177: DECKING AND PATIOS | AY177: 0 | AZ177: 0 | BA177: 0 | BB177: 0 | BC177: 0
B178: Covered Patio bid/allowance | W178: ls | X178: ls | AH178: $0 | AK178: $0 | AN178: $0 | AQ178: $0 | AT178: $0 | AV178: DECKING AND PATIOS | AY178: 0 | AZ178: 0 | BA178: 0 | BB178: 0 | BC178: 0
B179: Covered patio, floor, roof frame, decking, treated | W179: sf | Y179: 20.00 | AB179: 15.00 | AH179: $0 | AK179: $0 | AN179: $0 | AQ179: $0 | AT179: $0 | AV179: DECKING AND PATIOS | AY179: 0 | AZ179: 0 | BA179: 0 | BB179: 0 | BC179: 0
B180: Install railing w/ wood balusters only | W180: lf | X180: lf | Y180: 15.00 | AB180: 15.00 | AD180: 7.50 | AH180: $0 | AK180: $0 | AN180: $0 | AQ180: $0 | AT180: $0 | AV180: DECKING AND PATIOS | AY180: 0 | AZ180: 0 | BA180: 0 | BB180: 0 | BC180: 0
B181: Install railing w/ metal balusters only | W181: lf | X181: lf | Y181: 15.00 | AB181: 25.00 | AD181: 25.00 | AH181: $0 | AK181: $0 | AN181: $0 | AQ181: $0 | AT181: $0 | AV181: DECKING AND PATIOS | AY181: 0 | AZ181: 0 | BA181: 0 | BB181: 0 | BC181: 0
B182: Stairs, 5 to 7 risers | W182: ea | Y182: 700.00 | AB182: 175.00 | AH182: $0 | AK182: $0 | AN182: $0 | AQ182: $0 | AT182: $0 | AV182: DECKING AND PATIOS | AY182: 0 | AZ182: 0 | BA182: 0 | BB182: 0 | BC182: 0
B183: Wood board ceiling, tongue and groove | W183: sf | Y183: 1.75 | AB183: 2.00 | AH183: $0 | AK183: $0 | AN183: $0 | AQ183: $0 | AT183: $0 | AV183: DECKING AND PATIOS | AY183: 0 | AZ183: 0 | BA183: 0 | BB183: 0 | BC183: 0
B184: Insect screening | W184: sf | Y184: 1.50 | AB184: 1.25 | AH184: $0 | AK184: $0 | AN184: $0 | AQ184: $0 | AT184: $0 | AV184: DECKING AND PATIOS | AY184: 0 | AZ184: 0 | BA184: 0 | BB184: 0 | BC184: 0
AH185: $0 | AK185: $0 | AN185: $0 | AQ185: $0 | AT185: $0 | AV185: DECKING AND PATIOS | AY185: 0 | AZ185: 0 | BA185: 0 | BB185: 0 | BC185: 0
AH186: $0 | AK186: $0 | AN186: $0 | AQ186: $0 | AT186: $0 | AV186: DECKING AND PATIOS | AY186: 0 | AZ186: 0 | BA186: 0 | BB186: 0 | BC186: 0
AV187: DECKING AND PATIOS | AY187: =AY166 -> $2,000 | AZ187: =AZ166 -> $1,000 | BA187: =BA166 -> $0 | BB187: =BB166 -> $3,000
AG188: =CONCATENATE(B166," ","TOTAL") -> DECKING AND PATIOS TOTAL | AH188: =SUBTOTAL(9,AH166:AH187) -> $2,000 | AK188: =SUBTOTAL(9,AK166:AK187) -> $1,000 | AN188: =SUBTOTAL(9,AN166:AN187) -> $0 | AQ188: =SUBTOTAL(9,AQ166:AQ187) -> $3,000 | AT188: =SUM(AT168:AT176) -> $3,000 | AV188: DECKING AND PATIOS | AY188: =AY166 -> 2000 | AZ188: =AZ166 -> 1000 | BA188: =BA166 -> 0 | BB188: =BB166 -> 3000 | BC188: =SUM(BC166:BC187) -> 3000
AV189: DECKING AND PATIOS | AY189: =AY166 -> $2,000 | AZ189: =AZ166 -> $1,000 | BA189: =BA166 -> $0 | BB189: =BB166 -> $3,000
AV190: DECKING AND PATIOS | AY190: =AY188 -> 2000 | AZ190: =AZ188 -> 1000 | BA190: =BA188 -> 0 | BB190: =BB188 -> 3000 | BC190: =BC188 -> 3000
B191: ROOFING | AV191: =$B$191 -> ROOFING | AY191: =SUM(AY192:AY211) -> 2500 | AZ191: =SUM(AZ192:AZ211) -> 2000 | BA191: =SUM(BA192:BA211) -> 0 | BB191: =SUM(BB192:BB211) -> 4500 | BC191: =AQ191 -> 0
B192: Roofing bid/allowance | W192: ls | X192: ls | AH192: =T192*Y192 -> $0 | AK192: =T192*AB192 -> $0 | AN192: =T192*AE192 -> $0 | AQ192: =SUM(AH192:AP192) -> $0 | AT192: =SUM(AH192:AP192) -> $0 | AV192: ROOFING | AY192: =AH192 -> 0 | AZ192: =AK192 -> 0 | BA192: =AN192 -> 0 | BB192: =SUM(AY192:BA192) -> 0 | BC192: 0
B193: Asphalt shingle roof | AH193: =T193*Y193 -> $0 | AK193: $0 | AN193: $0 | AQ193: $0 | AT193: $0 | AV193: ROOFING | AY193: 0 | AZ193: 0 | BA193: 0 | BB193: 0 | BC193: 0
B194: Roof repair/patch, asphalt | W194: ea | X194: ea | Y194: 175.00 | AB194: 100.00 | AD194: 100.00 | AH194: $0 | AK194: $0 | AN194: $0 | AQ194: $0 | AT194: $0 | AV194: ROOFING | AY194: 0 | AZ194: 0 | BA194: 0 | BB194: 0 | BC194: 0
B195: Roof replacement-demo & replace, 3-tab | W195: sq | Y195: 75.00 | AB195: 50.00 | AH195: $0 | AK195: $0 | AN195: $0 | AQ195: $0 | AT195: $0 | AV195: ROOFING | AY195: 0 | AZ195: 0 | BA195: 0 | BB195: 0 | BC195: 0
B196: Roof replacement-demo & replace, architectural | T196: 20 | W196: sq | Y196: 125.00 | AB196: 100.00 | AD196: 100.00 | AH196: $2,500 | AK196: $2,000 | AN196: $0 | AQ196: $4,500 | AT196: $4,500 | AV196: ROOFING | AY196: 2500 | AZ196: 2000 | BA196: 0 | BB196: 4500 | BC196: 4500
B197: Premium for 3 layer tear off | W197: sq | X197: sq | Y197: 35.00 | AH197: $0 | AK197: $0 | AN197: $0 | AQ197: $0 | AT197: $0 | AV197: ROOFING | AY197: 0 | AZ197: 0 | BA197: 0 | BB197: 0 | BC197: 0
B198: Premium for steep pitch roof | W198: sq | X198: sq | Y198: 25.00 | AH198: $0 | AK198: $0 | AN198: $0 | AQ198: $0 | AT198: $0 | AV198: ROOFING | AY198: 0 | AZ198: 0 | BA198: 0 | BB198: 0 | BC198: 0
AH199: $0 | AK199: $0 | AN199: $0 | AQ199: $0 | AT199: $0 | AV199: ROOFING | AY199: 0 | AZ199: 0 | BA199: 0 | BB199: 0 | BC199: 0
B200: Wood Shingle Roof | AH200: $0 | AK200: $0 | AN200: $0 | AQ200: $0 | AT200: $0 | AV200: ROOFING | AY200: 0 | AZ200: 0 | BA200: 0 | BB200: 0 | BC200: 0
B201: Roof repair/patch, wood | W201: ea | X201: ea | Y201: 175.00 | AB201: 100.00 | AD201: 100.00 | AH201: $0 | AK201: $0 | AN201: $0 | AQ201: $0 | AT201: $0 | AV201: ROOFING | AY201: 0 | AZ201: 0 | BA201: 0 | BB201: 0 | BC201: 0
B202: Roof replacement-demo & replace, 3-tab | W202: sq | Y202: 75.00 | AB202: 50.00 | AH202: $0 | AK202: $0 | AN202: $0 | AQ202: $0 | AT202: $0 | AV202: ROOFING | AY202: 0 | AZ202: 0 | BA202: 0 | BB202: 0 | BC202: 0
B203: Wood shingle, low end | W203: sq | Y203: 225.00 | AB203: 200.00 | AH203: $0 | AK203: $0 | AN203: $0 | AQ203: $0 | AT203: $0 | AV203: ROOFING | AY203: 0 | AZ203: 0 | BA203: 0 | BB203: 0 | BC203: 0
... 452 more rows

Sheet REHAB CALC
B3: AFTER REPAIR VALUE | AI3: REPAIR ESTIMATE | BF3: DETAILED | BN3: REHABBER PROFIT
B6: =ARV -> $175,000 | AI6: =T('REHAB ESTIMATOR'!N5:T5) -> GENERAL CONDITIONS | AS6: =AJ88 -> $2,290 | AX6: =T('REHAB ESTIMATOR'!Y9:AE9) -> FRAMING & DRYWALL | BH6: =AJ100 -> $750 | CJ6: 5% | CL6: 15%
AI8: =T('REHAB ESTIMATOR'!N6:T6) -> DEMOLITION | AS8: =AJ89 -> $1,200 | AX8: =T('REHAB ESTIMATOR'!Y10:AE10) -> CABINETS & COUNTERTOPS | BH8: =AJ101 -> $6,205 | BN8: =ARV*CL5 -> 0
BN9: =B6*CL6 -> $26,250
AI10: =T('REHAB ESTIMATOR'!N7:T7) -> STRUCTURAL CONCRETE | AS10: =AJ90 -> $0 | AX10: =T('REHAB ESTIMATOR'!Y11:AE11) -> DOORS & TRIM | BH10: =AJ102 -> $3,140
AI12: =T('REHAB ESTIMATOR'!N8:T8) -> CONCRETE & FLATWORK | AS12: =AJ91 -> $0 | AX12: =T('REHAB ESTIMATOR'!Y12:AE12) -> CARPET & RESILIENT | BH12: =AJ103 -> $2,730
B13: FIXED COSTS | V13: DETAILED | AD13: 15%
AI14: =T('REHAB ESTIMATOR'!N9:T9) -> MASONRY | AS14: =AJ92 -> $0 | AX14: =T('REHAB ESTIMATOR'!AJ5:AP5) -> HARDWOOD FLOORING | BH14: =AJ104 -> $1,400
B16: BUYING COSTS | AI16: =T('REHAB ESTIMATOR'!N10:T10) -> SIDING | AS16: =AJ93 -> $0 | AX16: =T('REHAB ESTIMATOR'!AJ6:AP6) -> TILING | BH16: =AJ105 -> $3,535 | CF16: 70% RULE
ER17: ='REHAB INFO SHEET'!BS28 -> 0%
B18: BROKERAGE FEE ($300 Avg.) | Z18: $300 | AI18: =T('REHAB ESTIMATOR'!N11:T11) -> DECKING AND PATIOS | AS18: =AJ94 -> $3,000 | AX18: =T('REHAB ESTIMATOR'!AJ7:AP7) -> PAINTING | BH18: =AJ106 -> $4,275 | CF18: Purchase Price % OF ARV (Before Repairs)
ER19: =IF(V13="% OF ARV","% OF ARV","") -> 
B20: INSPECTION COSTS ($400 Avg.) | Z20: $400 | AI20: =T('REHAB ESTIMATOR'!N12:T12) -> ROOFING | AS20: =AJ95 -> $4,500 | AX20: =T('REHAB ESTIMATOR'!AJ8:AP8) -> APPLIANCES | BH20: =AJ107 -> $2,675 | ER20: =IF(V13="% OF ARV",CONCATENATE("Fixed Costs are being calculated at ",ER17*100,"%"," ","of ARV"),"") -> 
B22: APPRAISAL FEE ($500 Avg.) | AI22: =T('REHAB ESTIMATOR'!Y5:AE5) -> EXT. DOORS & WINDOWS | AS22: =AJ96 -> $2,750 | AX22: =T('REHAB ESTIMATOR'!AJ9:AP9) -> PLUMBING | BH22: =AJ108 -> $3,635 | CB22: ARV | CC22: =B6 -> $175,000
CB23: =AI3 -> REPAIR ESTIMATE | CC23: =AI33+AI43 -> $48,626 | CF23: =IF(B6=0,"",((BN49+TOTAL_REPAIR_COSTS_WHOLESALE+REPAIR_CONTINGENCY_WHOLESALE)/B6)) -> 74%
B24: TITLE SEARCH ($300 Avg.) | Z24: $500 | AI24: =T('REHAB ESTIMATOR'!Y6:AE6) -> GARAGE DOORS | AS24: =AJ97 -> $1,200 | AX24: =T('REHAB ESTIMATOR'!AJ10:AP10) -> HVAC | BH24: =AJ109 -> $350 | CB24: =B13 -> FIXED COSTS | CC24: =B73 -> $18,900 | CY24: LOAN AMOUNT | DJ24: DOWN PAYMENT | DU24: CASH OUTLAY
CB25: =BN3 -> REHABBER PROFIT | CC25: =BN9 -> $26,250
B26: TITLE INSURANCE ($150 Avg.) | AI26: =T('REHAB ESTIMATOR'!Y7:AE7) -> LANDSCAPING | AS26: =AJ98 -> $865 | AX26: =T('REHAB ESTIMATOR'!AJ11:AP11) -> ELECTRICAL | BH26: =AJ110 -> $3,231 | CB26: =T(BN46) -> REHABBER MAXIMUM PURCHASE PRICE | CC26: =BN49 -> $78,793
CY27: =Loan_Amount -> All Cash | DJ27: =Down_Payment -> Select Loan Type | DU27: $107,550
B28: CLOSING COSTS &POINTS | Z28: ='REHAB INFO SHEET'!AX122 -> $0 | AI28: =T('REHAB ESTIMATOR'!Y8:AE8) -> MISC. EXT. IMPROVEMENTS | AS28: =AJ99 -> $505 | AX28: =T('REHAB ESTIMATOR'!AJ12:AP12) -> MISCELLANEOUS | BH28: =AJ111 -> $390
B30: OTHER | AI30: TOTAL REPAIR ESTIMATE
B32: TOTAL BUYING COSTS | Z32: =SUM(Z18:AG31) -> $1,200 | CY32: TOTAL INVESTMENT
AI33: =SUM(AS6:AW29)+SUM(BH6:BL29) -> $48,626
B34: HOLDING COSTS | K34: # OF MONTHS | Q34: Per Month
CY35: =IF(OR(CY27="All Cash",CY27="Select Loan Type"),(DU27+(TOTAL_SELLING_COSTS)),(CY27+DU27+(TOTAL_SELLING_COSTS)-DJ27)) -> $121,550
B36: LOAN PAYMENT | K36: REHAB SCHEDULE | Q36: ='REHAB INFO SHEET'!AK122 -> $0 | Z36: =IF(Q36="Select Loan Type",0,((Q36*'REHAB INFO SHEET'!AF36))) -> $0
B38: PROPERTY TAXES | L38: =Rehab_Schedule -> 3.0 | Q38: ='REHAB INFO SHEET'!AW32/12 -> $167 | Z38: =Q38*'REHAB INFO SHEET'!$AF$36 -> $1,000
B40: UTILITIES | Q40: ='REHAB INFO SHEET'!BO32 -> $250 | Z40: =Q40*'REHAB INFO SHEET'!$AF$36 -> $1,500 | AI40: REPAIR CONTINGENCY
K41: LISTING PERIOD
B42: INSURANCE | Q42: ='REHAB INFO SHEET'!AW34 -> $150 | Z42: =Q42*'REHAB INFO SHEET'!$AF$36 -> $900
L43: =Listing_Schedule -> 3.0 | BF43: 5%
B44: HOA DUES | Q44: ='REHAB INFO SHEET'!BO34/12 -> $0 | Z44: =Q44*'REHAB INFO SHEET'!$AF$36 -> $0
B46: MAINTENANCE | K46: TOTAL HOLDING | Q46: ='REHAB INFO SHEET'!AW36 -> $50 | Z46: =Q46*'REHAB INFO SHEET'!$AF$36 -> $300 | AI46: =TOTAL_REPAIR_COSTS_WHOLESALE*BF43 -> $2,431 | BN46: REHABBER MAXIMUM PURCHASE PRICE
B48: OTHER | L48: =L38+L43 -> 6.0 | Q48: ='REHAB INFO SHEET'!BO36 -> $0 | Z48: =Q48*'REHAB INFO SHEET'!$AF$36 -> $0
BN49: =B6-B73-TOTAL_REPAIR_COSTS_WHOLESALE-REPAIR_CONTINGENCY_WHOLESALE-REHABBER_PROFIT_WHOLESALE -> $78,793
Q50: =SUM(Q36:U49) -> $617 | V50: TOTALS | Z50: =SUM(Z36:AG49) -> $3,700
B52: SELLING COSTS
B54: COMMISSIONS | Q54: 6.0% | V54: of sale price | Z54: =Q54*B6 -> $10,500
B56: SELLER ASSISTED CLOSING COSTS | Q56: 1.0% | V56: of sale price | Z56: =Q56*B6 -> $1,750
B58: BROKERAGE FEE ($300 Avg.) | Z58: $300 | BN58: WHOLESALER ASSIGNMENT FEE
B60: HOME WARRANTY ($450 Avg.) | Z60: $450
BN61: $5,000
B62: TITLE INSURANCE ($150 Avg.) | Z62: $500
B64: 2ND APPRAISAL ($500 Avg.) | Z64: $500
B66: OTHER
B68: TOTAL SELLING COSTS | Z68: =SUM(Z54:AG67) -> $14,000
B70: TOTAL FIXED COSTS | BN70: WHOLESALER MAXIMUM ALLOWABLE OFFER
B73: =IF(V13="% of ARV",AD13*ARV,TOTAL_BUYING_COSTS_WHOLESALE+TOTAL_HOLDING_COSTS_WHOLESALE+TOTAL_SELLING_COSTS_WHOLESALE) -> $18,900 | BN73: =BN49-Wholesale_Profit -> $73,793
BN81: © 2015 by wholesalingspreadsheet.com. All rights reserved
N87: Scopes of Work DIY vs Subbed Sorter | U87: LABOR | X87: MATL | AA87: SUB | AD87: TOTAL
N88: =T('REHAB ESTIMATOR'!N5:T5) -> GENERAL CONDITIONS | U88: ='REHAB ESTIMATOR'!AH38 -> $240.00 | Z88: ='REHAB ESTIMATOR'!AK38 -> $2,050.00 | AE88: ='REHAB ESTIMATOR'!AN38 -> $0.00 | AJ88: =SUM(U88:AI88) -> $2,290.00 | AW88: =AI6 -> GENERAL CONDITIONS | AX88: =AS6 -> $2,290
N89: =T('REHAB ESTIMATOR'!N6:T6) -> DEMOLITION | U89: ='REHAB ESTIMATOR'!AH63 -> $1,200.00 | Z89: ='REHAB ESTIMATOR'!AK63 -> $0.00 | AE89: ='REHAB ESTIMATOR'!AN63 -> $0.00 | AJ89: =SUM(U89:AI89) -> $1,200.00 | AW89: =AI8 -> DEMOLITION | AX89: =AS8 -> $1,200
C90: DETAILED | N90: =T('REHAB ESTIMATOR'!N7:T7) -> STRUCTURAL CONCRETE | U90: ='REHAB ESTIMATOR'!AH88 -> $0.00 | Z90: ='REHAB ESTIMATOR'!AK88 -> $0.00 | AE90: ='REHAB ESTIMATOR'!AN88 -> $0.00 | AJ90: $0.00 | AW90: =AI10 -> STRUCTURAL CONCRETE | AX90: =AS10 -> $0
C91: QUICK BID | N91: =T('REHAB ESTIMATOR'!N8:T8) -> CONCRETE & FLATWORK | U91: ='REHAB ESTIMATOR'!AH113 -> $0.00 | Z91: ='REHAB ESTIMATOR'!AK113 -> $0.00 | AE91: ='REHAB ESTIMATOR'!AN113 -> $0.00 | AJ91: $0.00 | AW91: =AI12 -> CONCRETE & FLATWORK | AX91: =AS12 -> $0
C92: LUMP SUM | N92: =T('REHAB ESTIMATOR'!N9:T9) -> MASONRY | U92: ='REHAB ESTIMATOR'!AH138 -> $0.00 | Z92: ='REHAB ESTIMATOR'!AK138 -> $0.00 | AE92: ='REHAB ESTIMATOR'!AN138 -> $0.00 | AJ92: $0.00 | AW92: =AI14 -> MASONRY | AX92: =AS14 -> $0
N93: =T('REHAB ESTIMATOR'!N10:T10) -> SIDING | U93: ='REHAB ESTIMATOR'!AH163 -> $0.00 | Z93: ='REHAB ESTIMATOR'!AK163 -> $0.00 | AE93: ='REHAB ESTIMATOR'!AN163 -> $0.00 | AJ93: $0.00 | AW93: =AI16 -> SIDING | AX93: =AS16 -> $0
C94: DETAILED | N94: =T('REHAB ESTIMATOR'!N11:T11) -> DECKING AND PATIOS | U94: ='REHAB ESTIMATOR'!AH188 -> $2,000.00 | Z94: ='REHAB ESTIMATOR'!AK188 -> $1,000.00 | AE94: ='REHAB ESTIMATOR'!AN188 -> $0.00 | AJ94: $3,000.00 | AW94: =AI18 -> DECKING AND PATIOS | AX94: =AS18 -> $3,000
C95: % OF ARV | N95: =T('REHAB ESTIMATOR'!N12:T12) -> ROOFING | U95: ='REHAB ESTIMATOR'!AH213 -> $2,500.00 | Z95: ='REHAB ESTIMATOR'!AK213 -> $2,000.00 | AE95: ='REHAB ESTIMATOR'!AN213 -> $0.00 | AJ95: $4,500.00 | AW95: =AI20 -> ROOFING | AX95: =AS20 -> $4,500
N96: =T('REHAB ESTIMATOR'!Y5:AE5) -> EXT. DOORS & WINDOWS | U96: ='REHAB ESTIMATOR'!AH238 -> $825.00 | Z96: ='REHAB ESTIMATOR'!AK238 -> $1,925.00 | AE96: ='REHAB ESTIMATOR'!AN238 -> $0.00 | AJ96: $2,750.00 | AW96: =AI22 -> EXT. DOORS & WINDOWS | AX96: =AS22 -> $2,750
N97: =T('REHAB ESTIMATOR'!Y6:AE6) -> GARAGE DOORS | U97: ='REHAB ESTIMATOR'!AH263 -> $300.00 | Z97: ='REHAB ESTIMATOR'!AK263 -> $900.00 | AE97: ='REHAB ESTIMATOR'!AN263 -> $0.00 | AJ97: $1,200.00 | AW97: =AI24 -> GARAGE DOORS | AX97: =AS24 -> $1,200
N98: =T('REHAB ESTIMATOR'!Y7:AE7) -> LANDSCAPING | U98: ='REHAB ESTIMATOR'!AH288 -> $355.00 | Z98: ='REHAB ESTIMATOR'!AK288 -> $510.00 | AE98: ='REHAB ESTIMATOR'!AN288 -> $0.00 | AJ98: $865.00 | AW98: =AI26 -> LANDSCAPING | AX98: =AS26 -> $865
N99: =T('REHAB ESTIMATOR'!Y8:AE8) -> MISC. EXT. IMPROVEMENTS | U99: ='REHAB ESTIMATOR'!AH313 -> $225.00 | Z99: ='REHAB ESTIMATOR'!AK313 -> $280.00 | AE99: ='REHAB ESTIMATOR'!AN313 -> $0.00 | AJ99: $505.00 | AW99: =AI28 -> MISC. EXT. IMPROVEMENTS | AX99: =AS28 -> $505
N100: =T('REHAB ESTIMATOR'!Y9:AE9) -> FRAMING & DRYWALL | U100: ='REHAB ESTIMATOR'!AH338 -> $750.00 | Z100: ='REHAB ESTIMATOR'!AK338 -> $0.00 | AE100: ='REHAB ESTIMATOR'!AN338 -> $0.00 | AJ100: $750.00 | AW100: =AX6 -> FRAMING & DRYWALL | AX100: =BH6 -> $750
N101: =T('REHAB ESTIMATOR'!Y10:AE10) -> CABINETS & COUNTERTOPS | U101: ='REHAB ESTIMATOR'!AH363 -> $800.00 | Z101: ='REHAB ESTIMATOR'!AK363 -> $5,405.00 | AE101: ='REHAB ESTIMATOR'!AN363 -> $0.00 | AJ101: $6,205.00 | AW101: =AX8 -> CABINETS & COUNTERTOPS | AX101: =BH8 -> $6,205
N102: =T('REHAB ESTIMATOR'!Y11:AE11) -> DOORS & TRIM | U102: ='REHAB ESTIMATOR'!AH388 -> $1,570.00 | Z102: ='REHAB ESTIMATOR'!AK388 -> $1,570.00 | AE102: ='REHAB ESTIMATOR'!AN388 -> $0.00 | AJ102: $3,140.00 | AW102: =AX10 -> DOORS & TRIM | AX102: =BH10 -> $3,140
N103: =T('REHAB ESTIMATOR'!Y12:AE12) -> CARPET & RESILIENT | U103: ='REHAB ESTIMATOR'!AH413 -> $660.00 | Z103: ='REHAB ESTIMATOR'!AK413 -> $2,070.00 | AE103: ='REHAB ESTIMATOR'!AN413 -> $0.00 | AJ103: $2,730.00 | AW103: =AX12 -> CARPET & RESILIENT | AX103: =BH12 -> $2,730
N104: =T('REHAB ESTIMATOR'!AJ5:AP5) -> HARDWOOD FLOORING | U104: ='REHAB ESTIMATOR'!AH438 -> $600.00 | Z104: ='REHAB ESTIMATOR'!AK438 -> $800.00 | AE104: ='REHAB ESTIMATOR'!AN438 -> $0.00 | AJ104: $1,400.00 | AW104: =AX14 -> HARDWOOD FLOORING | AX104: =BH14 -> $1,400
N105: =T('REHAB ESTIMATOR'!AJ6:AP6) -> TILING | U105: ='REHAB ESTIMATOR'!AH463 -> $1,565.00 | Z105: ='REHAB ESTIMATOR'!AK463 -> $1,970.00 | AE105: ='REHAB ESTIMATOR'!AN463 -> $0.00 | AJ105: $3,535.00 | AW105: =AX16 -> TILING | AX105: =BH16 -> $3,535
N106: =T('REHAB ESTIMATOR'!AJ7:AP7) -> PAINTING | U106: ='REHAB ESTIMATOR'!AH488 -> $2,000.00 | Z106: ='REHAB ESTIMATOR'!AK488 -> $2,275.00 | AE106: ='REHAB ESTIMATOR'!AN488 -> $0.00 | AJ106: $4,275.00 | AW106: =AX18 -> PAINTING | AX106: =BH18 -> $4,275
N107: =T('REHAB ESTIMATOR'!AJ8:AP8) -> APPLIANCES | U107: ='REHAB ESTIMATOR'!AH513 -> $0.00 | Z107: ='REHAB ESTIMATOR'!AK513 -> $2,675.00 | AE107: ='REHAB ESTIMATOR'!AN513 -> $0.00 | AJ107: $2,675.00 | AW107: =AX20 -> APPLIANCES | AX107: =BH20 -> $2,675
N108: =T('REHAB ESTIMATOR'!AJ9:AP9) -> PLUMBING | U108: ='REHAB ESTIMATOR'!AH538 -> $1,745.00 | Z108: ='REHAB ESTIMATOR'!AK538 -> $1,890.00 | AE108: ='REHAB ESTIMATOR'!AN538 -> $0.00 | AJ108: $3,635.00 | AW108: =AX22 -> PLUMBING | AX108: =BH22 -> $3,635
N109: =T('REHAB ESTIMATOR'!AJ10:AP10) -> HVAC | U109: ='REHAB ESTIMATOR'!AH563 -> $125.00 | Z109: ='REHAB ESTIMATOR'!AK563 -> $225.00 | AE109: ='REHAB ESTIMATOR'!AN563 -> $0.00 | AJ109: $350.00 | AW109: =AX24 -> HVAC | AX109: =BH24 -> $350
N110: =T('REHAB ESTIMATOR'!AJ11:AP11) -> ELECTRICAL | U110: ='REHAB ESTIMATOR'!AH588 -> $0.00 | Z110: ='REHAB ESTIMATOR'!AK588 -> $1,106.00 | AE110: ='REHAB ESTIMATOR'!AN588 -> $2,125.00 | AJ110: $3,231.00 | AW110: =AX26 -> ELECTRICAL | AX110: =BH26 -> $3,231
N111: =T('REHAB ESTIMATOR'!AJ12:AP12) -> MISCELLANEOUS | U111: ='REHAB ESTIMATOR'!AH613 -> $150.00 | Z111: ='REHAB ESTIMATOR'!AK613 -> $240.00 | AE111: ='REHAB ESTIMATOR'!AN613 -> $0.00 | AJ111: $390.00 | AW111: =AX28 -> MISCELLANEOUS | AX111: =BH28 -> $390
U112: =SUM(U88:Y111) -> $17,610.00 | Z112: =SUM(Z88:AD111) -> $28,891.00 | AE112: =SUM(AE88:AI111) -> $2,125.00 | AJ112: =SUM(AJ88:AN111) -> $48,626.00
N114: =B70 -> TOTAL FIXED COSTS | O114: =TOTAL_FIXED_COSTS -> 18900
N115: =BN3 -> REHABBER PROFIT | O115: =Profit -> 
N116: =BN46 -> REHABBER MAXIMUM PURCHASE PRICE | O116: =MAXIMUM_PURCHASE_PRICE -> 78792.7

Sheet INSPECTION CHECKLIST
F3: PROPERTY FEATURES | AD3: STRUCTURAL REPAIRS
F4: Street Address: | L4: =T(Street_Address) -> 2325 NW 49th St | AD4: Cracks?: YES / NO | AO4: Moisture?: YES / NO
F5: City/State/Zip: | L5: =T(City_State_Zip) -> Kansas City, MO 64151 | AD5: Settling?: YES / NO | AO5: Bowing Walls: YES / NO
F6: Square Feet: | K6: =Square_Feet -> 2000 | O6: # of Beds: | S6: =Beds -> 4 | U6: Baths: | Y6: =Baths -> 3 | AD6: Piers: SOG 8ft oc | 1-Story 7ft oc | 2-Story 6ft oc | Masonry 5ft oc + 2 piers @ corners
F7: Property Type: REO SHORT SALE HUD HOMEPATH OTHER: | AD7: NOTES:
F8: Property Vacant? YES / NO | R8: Winterized?: YES / NO
F9: EXTERIOR PROPERTY FEATURES/REPAIRS | AD9: KITCHEN FEATURES/REPAIRS
F10: Repair/Replace | O10: QTY | R10: Unit | T10: Exterior Notes: | AD10: Repair/Replace | AM10: QTY | AP10: Unit | AR10: Kitchen Notes:
F12: Painting | R12: Sq ft | AD12: Base Cabinets | AP12: lf
F13: Wood siding | R13: Sq ft | AD13: Upper Cabinets | AP13: lf
F14: Wood trim | R14: lf | AD14: Countertop | AP14: Sq ft
F15: Vinyl siding | R15: Sq ft | AD15: Backsplash | AP15: Sq ft
F16: Brick/stone | R16: Sq ft | AD16: Tile flooring | AP16: Sq ft
F17: Roofing | R17: SQ | AD17: Hardwood flooring | AP17: Sq ft
F18: Gutters/downspouts | R18: lf | AD18: Paint | AP18: Sq ft
F19: Garage Doors | R19: ea | AD19: Wood trim | AP19: lf
F20: Entry door | R20: ea | AD20: Sink | AP20: ea
F21: Patio door | R21: ea | AD21: Faucet Fixture | AP21: ea
F22: Windows | R22: ea | AD22: Garbage Disposal | AP22: ea
F23: Shutters | R23: ea | AD23: Range | AP23: ea
F24: Deck | R24: Sq ft | AD24: Refrigerator | AP24: ea
F25: Fence | R25: lf | AD25: Dishwasher | AP25: ea
F26: Concrete driveway | R26: Sq ft | AD26: Microwave/Range Hood | AP26: ea
F27: Concrete sidewalk | R27: Sq ft | AD27: Duct vent | AP27: ea
F28: Shed | R28: ea | AD28: GFI Plugs/Outlets | AP28: ea
F29: Mulch | R29: Sq ft | AD29: Light fixtures | AP29: ea
F30: Tree removal/trim | R30: ea | AD30: Can lighting | AP30: ea
F31: COMMON ROOM FEATURES/REPAIRS
F32: Repair/Replace | O32: Unit | Q32: Fill in Quantity Below: | AR32: Notes:
Q33: Master | T33: Bed 1 | X33: Bed 2 | Z33: Bed 3 | AC33: Living | AF33: Dining | AI33: Other 1 | AL33: Other 2 | AO33: Total
F34: Carpet | O34: Sq ft
F35: Tile flooring | O35: Sq ft
F36: Hardwood | O36: Sq ft
F37: Vinyl flooring | O37: Sq ft
F38: Wallpaper | O38: Sq ft
F39: Paint | O39: Sq ft
F40: Doors | O40: ea
F41: Door hardware | O41: ea
F42: Closet Doors | O42: ea
F43: Closet Shelving | O43: lf
F44: Crown Molding | O44: lf
F45: Wood Trim | O45: lf
F46: Duct Vents | O46: ea
F47: Can light | O47: ea
F48: Dome light | O48: ea
F49: Fan Lights | O49: ea
F50: BATHROOM FEATURES/REPAIRS | AP50: MEP SYSTEMS
F51: Repair/Replace | O51: Unit | Q51: Fill in Quantity Below: | AF51: Bathroom Notes | AP51: System | AZ51: Replace:
Q52: Master | T52: Bath 1 | W52: Bath 2 | Z52: Bath 3 | AC52: Total
F53: Subfloor | O53: Sq ft | AP53: HVAC SYSTEM
F54: Wall tile | O54: Sq ft | AP54: Air conditioner unit | AZ54: YES / NO
F55: Floor tile | O55: Sq ft | AP55: Furnace: GAS / ELECTRIC | AZ55: YES / NO
F56: Paint | O56: Sq ft | AP56: Duct work modification req'd: | AZ56: YES / NO
F57: Vanity cabinet | O57: lf | AP57: Asbestos wrapping on duct? | AZ57: YES / NO
F58: Vanity countertop | O58: Sq ft | AP58: PLUMBING SYSTEM
F59: Mirror | O59: ea | AP59: Water Heater: GAS / ELEC | AZ59: YES / NO
F60: Faucet | O60: ea | AP60: Piping: COPP / GALV / LEAD | AZ60: YES / NO
F61: Doors | O61: ea | AP61: Water supply line work: | AZ61: YES / NO
F62: Door hardware | O62: ea | AP62: Sanitary line work: | AZ62: YES / NO
F63: Wood trim | O63: ea | AP63: Asbestos insulation on piping | AZ63: YES / NO
F64: Duct Vents | O64: Lf | AP64: ELECTRICAL SYSTEM
F65: Shower pan | O65: ea | AP65: Electrical Service: | AZ65: YES / NO
F66: Bathtub | O66: ea | AP66: Electrical Panel: | AZ66: YES / NO
F67: Shower/tub faucet | O67: ea | AP67: Wiring: COPP / ALUM / KNOB | AZ67: YES / NO
F68: Toilet | O68: ea | AP68: Cable Service Work: | AZ68: YES / NO
F69: GFI | O69: ea | AP69: Notes:
F70: Vanity light | O70: ea
F71: Exhaust fan | O71: ea
F73: Preliminary Budget | T73: Preliminary Budget | AA73: Walkthrough Adjustments ↑↓ | AH73: Post-Walkthrough | AP73: Comments
F75: General Conditions | T75: ='REHAB ESTIMATOR'!U5 -> $2,290 | AH75: =IF(AA75=0,T75,T75+AA75) -> $2,290
F76: Demolition | T76: ='REHAB ESTIMATOR'!U6 -> $1,200 | AH76: =IF(AA76=0,T76,T76+AA76) -> $1,200
F77: Structural Improvements | T77: ='REHAB ESTIMATOR'!U7 -> $0 | AH77: =IF(AA77=0,T77,T77+AA77) -> $0
F78: Concrete/Flatwork | T78: ='REHAB ESTIMATOR'!U8 -> $0 | AH78: =IF(AA78=0,T78,T78+AA78) -> $0
F79: Masonry | T79: ='REHAB ESTIMATOR'!U9 -> $0 | AH79: $0
F80: Siding | T80: ='REHAB ESTIMATOR'!U10 -> $0 | AH80: $0
F81: Decking | T81: ='REHAB ESTIMATOR'!U11 -> $3,000 | AH81: $3,000
F82: Roofing | T82: ='REHAB ESTIMATOR'!U12 -> $4,500 | AH82: $4,500
F83: Doors & Windows | T83: ='REHAB ESTIMATOR'!AF5 -> $2,750 | AH83: $2,750
F84: Garage Doors | T84: ='REHAB ESTIMATOR'!AF6 -> $1,200 | AH84: $1,200
F85: Landscaping | T85: ='REHAB ESTIMATOR'!AF7 -> $865 | AH85: $865
F86: Miscellaneous Exterior Improvements | T86: ='REHAB ESTIMATOR'!AF8 -> $505 | AH86: $505
F87: Framing and Drywall | T87: ='REHAB ESTIMATOR'!AF9 -> $750 | AH87: $750
F88: Cabinets & Countertops | T88: ='REHAB ESTIMATOR'!AF10 -> $6,205 | AH88: $6,205
F89: Doors & Trim | T89: ='REHAB ESTIMATOR'!AF11 -> $3,140 | AH89: $3,140
F90: Carpet and Resilient Flooring | T90: ='REHAB ESTIMATOR'!AF12 -> $2,730 | AH90: $2,730
F91: Hardwood Flooring | T91: ='REHAB ESTIMATOR'!AQ5 -> $1,400 | AH91: $1,400
F92: Tiling | T92: ='REHAB ESTIMATOR'!AQ6 -> $3,535 | AH92: $3,535
F93: Painting | T93: ='REHAB ESTIMATOR'!AQ7 -> $4,275 | AH93: $4,275
F94: Appliances | T94: ='REHAB ESTIMATOR'!AQ8 -> $2,675 | AH94: $2,675
F95: Plumbing | T95: ='REHAB ESTIMATOR'!AQ9 -> $3,635 | AH95: $3,635
F96: HVAC | T96: ='REHAB ESTIMATOR'!AQ10 -> $350 | AH96: $350
F97: Electrical | T97: ='REHAB ESTIMATOR'!AQ11 -> $3,231 | AH97: $3,231
F98: Staging and Furnishings | T98: ='REHAB ESTIMATOR'!AQ12 -> $390 | AH98: $390
F99: TOTAL REPAIR COSTS | T99: =SUM(T75:Z98) -> $48,626 | AA99: =IF(SUM(AA75:AG98)=0,"",(SUM(AA75:AG98))) ->  | AH99: =IF(SUM(AH75:AO98)=0,"",SUM(AH75:AO98)) -> $48,626
F100: Preliminary Maximum Purchase Price Analysis | AE100: Post Walkthrough MPP Analysis
F102: Potential Sales Price | W102: =ARV -> $175,000 | AE102: Potential Sales Price
F104: Buying Costs | W104: =-TOTAL_BUYING_COSTS -> -$1,200 | AE104: Buying Costs
F106: Holding Costs | W106: =-TOTAL_HOLDING_COSTS -> -$3,700 | AE106: Holding Costs
F107: Selling Costs | W107: =-TOTAL_SELLING_COSTS -> -$14,000 | AE107: Selling Costs
W108: =-T99 -> -$48,626
F109: Repair Costs | AE109: Repair Costs
F110: Repair Cost Contingency | S110: ='REHAB CALC'!BF43 -> 5% | W110: =-REPAIR_CONTINGENCY -> -$2,431 | AE110: Repair Cost Contingency
W111: =-REHABBER_PROFIT_WHOLESALE -> -$26,250
F112: Desired Profit | AE112: Desired Profit
F113: Rehabbers Max Purchase Price | W113: =MAXIMUM_PURCHASE_PRICE -> $78,793 | AE113: Rehabbers Max Purchase Price
W115: =-Wholesale_Profit -> -$5,000
F116: Wholesale Assignment Fee | AE116: Wholesale Assignment Fee
F118: Wholesale MAO | W118: =WHOLESALE_MAO -> $73,793 | AE118: Wholesale MAO
F119: Net to Owner (-6% Sales Comm) | W119: =W118-(W118*0.06) -> $69,365 | AE119: Net to Owner
F120: OFFER TRACKING
G122: Offer 1: | AE122: Counter 1:
W123: Date: | AU123: Date:
G124: Offer 2: | AE124: Counter 2:
W125: Date: | AU125: Date:
G126: Offer 3: | AE126: Counter 3:
W127: Date: | AU127: Date:
F132: 60
F137: 55
F142: 50
F147: 45
F152: 40
F157: 35
F162: 30
F167: 25
F172: 20
F177: 15
F182: 10
F187: 5
F192: 0 | K192: 5 | O192: 10 | U192: 15 | Y192: 20 | AE192: 25 | AI192: 30 | AO192: 35 | AS192: 40 | AY192: 45
AI195: © 2015 by wholesalingspreadsheet.com. All rights reserved

Sheet REHAB SHEET
O2: Assignment Fee Adjustment | S2: Total Assignment Fee
L3: Adjust Sales Price | P3: =M3 -> $0 | S3: =P3+Wholesale_Profit -> $5,000
H8: =T('REHAB INFO SHEET'!AM10) -> 2325 NW 49th St
H11: =T(Street_Address) -> 2325 NW 49th St
R12: OFFERED AT:
H13: Subdivision: | K13: =T(Subdivision) -> Misty Woods | R13: ='REHAB CALC'!BN49+'REHAB SHEET'!M3 -> $78,793
H14: School District: | K14: =T(School_District) -> Park Hill School District
I15: # of Beds: | K15: =Beds -> 4 | L15: Baths: | M15: =Baths -> 3.0 | N15: sqft: | O15: =Square_Feet -> 2,000 sf
R16: =IFERROR((R13+TOTAL_REMODEL_ESTIMATE+REPAIR_CONTINGENCY_WHOLESALE)/ARV,"") -> 74% | U16: of ARV
I17: Property Description
I18: Input brief description of the neighborhood, property, rehab challenges and opportunities.
H31: Purchase Assumptions /Rehab Assumptions
I32: After Repair Value: | L32: =ARV -> $175,000 | O32: ARV $/sf: | Q32: =IF(Square_Feet=0,"",ARV/Square_Feet) -> $87.50
I34: Repair Cost Summary
I36: =T('REHAB ESTIMATOR'!N5:T5) -> GENERAL CONDITIONS | L36: =GC_ESTIMATE -> $2,290 | N36: =T('REHAB ESTIMATOR'!Y5:AE5) -> EXT. DOORS & WINDOWS | Q36: =EXT_DOORS_WINDOWS_ESTIMATE -> $2,750 | S36: =T('REHAB ESTIMATOR'!AJ5:AP5) -> HARDWOOD FLOORING | V36: =HARDWOOD_ESTIMATE -> $1,400
I37: =T('REHAB ESTIMATOR'!N6:T6) -> DEMOLITION | L37: =DEMOLITION_ESTIMATE -> $1,200 | N37: =T('REHAB ESTIMATOR'!Y6:AE6) -> GARAGE DOORS | Q37: =GARAGE_DOORS_ESTIMATE -> $1,200 | S37: =T('REHAB ESTIMATOR'!AJ6:AP6) -> TILING | V37: =TILING_ESTIMATE -> $3,535
I38: =T('REHAB ESTIMATOR'!N7:T7) -> STRUCTURAL CONCRETE | L38: =STRUCTURAL_CONRETE_ESTIMATE -> $0 | N38: =T('REHAB ESTIMATOR'!Y7:AE7) -> LANDSCAPING | Q38: =LANDSCAPING_ESTIMATE -> $865 | S38: =T('REHAB ESTIMATOR'!AJ7:AP7) -> PAINTING | V38: =PAINTING_ESTIMATE -> $4,275
I39: =T('REHAB ESTIMATOR'!N8:T8) -> CONCRETE & FLATWORK | L39: =CONCRETE_FLATWORK_ESTIMATE -> $0 | N39: =T('REHAB ESTIMATOR'!Y8:AE8) -> MISC. EXT. IMPROVEMENTS | Q39: =MISC_EXT_IMP_ESTIMATE -> $505 | S39: =T('REHAB ESTIMATOR'!AJ8:AP8) -> APPLIANCES | V39: =APPLIANCES_ESTIMATE -> $2,675
I40: =T('REHAB ESTIMATOR'!N9:T9) -> MASONRY | L40: =MASONRY_ESTIMATE -> $0 | N40: =T('REHAB ESTIMATOR'!Y9:AE9) -> FRAMING & DRYWALL | Q40: =DRYWALL_ESTIMATE -> $750 | S40: =T('REHAB ESTIMATOR'!AJ9:AP9) -> PLUMBING | V40: =PLUMBING_ESTIMATE -> $3,635
I41: =T('REHAB ESTIMATOR'!N10:T10) -> SIDING | L41: =SIDING_ESTIMATE -> $0 | N41: =T('REHAB ESTIMATOR'!Y10:AE10) -> CABINETS & COUNTERTOPS | Q41: =CABINETS_ESTIMATE -> $6,205 | S41: =T('REHAB ESTIMATOR'!AJ10:AP10) -> HVAC | V41: =HVAC_ESTIMATE -> $350
I42: =T('REHAB ESTIMATOR'!N11:T11) -> DECKING AND PATIOS | L42: =DECKING_ESTIMATE -> $3,000 | N42: =T('REHAB ESTIMATOR'!Y11:AE11) -> DOORS & TRIM | Q42: =DOORS_TRIM_ESTIMATE -> $3,140 | S42: =T('REHAB ESTIMATOR'!AJ11:AP11) -> ELECTRICAL | V42: =ELECTRICAL_ESTIMATE -> $3,231
I43: =T('REHAB ESTIMATOR'!N12:T12) -> ROOFING | L43: =ROOFING_ESTIMATE -> $4,500 | N43: =T('REHAB ESTIMATOR'!Y12:AE12) -> CARPET & RESILIENT | Q43: =CARPET_ESTIMATE -> $2,730 | S43: =T('REHAB ESTIMATOR'!AJ12:AP12) -> MISCELLANEOUS | V43: =MISC_ESTIMATE -> $390 | AG43: =IF('REHAB CALC'!V13="% of ARV",1,0) -> 0
L44: =TOTAL_REMODEL_ESTIMATE -> $48,626 | Q44: =REPAIR_CONTINGENCY_WHOLESALE -> $2,431 | AG44: ='REHAB CALC'!AD13 -> 15%
I45: Total Repair Cost: | O45: =Q44/L44 -> 5% Cont: | S45: Project Schedule (Mo) | V45: =Schedule -> 6.0 | AG45: =IF(AG43=1,CONCATENATE("Fixed Costs are being calculated at"," ",AG44*100,"%"," ","of ARV",""),"") -> 
I47: Fixed Costs:
I48: Buying Costs (Closing costs, Appraisal fees, Inspection costs, etc.) | T48: =TOTAL_BUYING_COSTS_WHOLESALE -> $1,200
I49: Holding Costs (Mortgage Payments, PMI, Taxes, Utilities, Insurance, etc.) | T49: =TOTAL_HOLDING_COSTS_WHOLESALE -> $3,700
I50: Selling Costs (Commissions, Closing Costs, Warranties, etc.) | T50: =TOTAL_SELLING_COSTS_WHOLESALE -> $14,000
Q52: Total Fixed Costs: | T52: ='REHAB CALC'!B73 -> $18,900
R54: PROJECTED GROSS PROFIT:
R55: =REHABBER_PROFIT_WHOLESALE-P3 -> $26,250
H58: Investment Disclaimer:
H59: Any scope of work and cost information provided by us is for informational purposals only and is provided As-Is without warranty of any kind. In no event shall we be held liable for any special, indirect or consequential damages whatsover resulting from loss of profits. Use caution and seek the advice of qualified professionals. Consult with your real estate professionals, contractors, or other professional advisors before making investment decisions based upon the information provided.
H62: =T(Company_Name) -> WholesalingSpreadsheet.com | L62: =(Company_Phone) -> 8163880197 | O62: =T(Company_Email) -> dave@costpointsolutions.com | T62: =T(Company_Website) -> www.wholesalingspreadsheet.com
Q65: © 2015 by wholesalingspreadsheet.com. All rights reserved

Sheet REHAB PACKET
O2: Assignment Fee Adjustment | S2: Total Assignment Fee
L3: Adjust Offer Sales Price | P3: =M3 -> $0 | S3: =P3+Wholesale_Profit -> $5,000
J20: =T(Street_Address) -> 2325 NW 49th St
J23: =T(City_State_Zip) -> Kansas City, MO 64151
J25: =TODAY() -> 2015-06-04
J29: =T(Company_Name) -> WholesalingSpreadsheet.com
J31: =T(Company_Street_Address) -> P.O Box 165324
J32: =T(Company_City_State_Zip) -> North Kansas City, MO 64116
J33: =(Company_Phone) -> 8163880197
J34: =T(Company_Email) -> dave@costpointsolutions.com
J35: =T(Company_Website) -> www.wholesalingspreadsheet.com
H55: =T(Company_Name) -> WholesalingSpreadsheet.com | L55: =(Company_Phone) -> 8163880197 | O55: =T(Company_Email) -> dave@costpointsolutions.com | T55: =T(Company_Website) -> www.wholesalingspreadsheet.com
H59: =T(Street_Address) -> 2325 NW 49th St
H62: =T(City_State_Zip) -> Kansas City, MO 64151
H64: Subdivision: | K64: =T(Subdivision) -> Misty Woods | R64: OFFERED AT:
H65: School District: | K65: =T(School_District) -> Park Hill School District | R65: ='REHAB CALC'!BN49+'REHAB PACKET'!M3 -> $78,793
I66: # of Beds: | K66: =Beds -> 4 | L66: Baths: | M66: =Baths -> 3.0 | N66: sqft: | O66: =Square_Feet -> 2000
R68: =IFERROR((R65+TOTAL_REMODEL_ESTIMATE+Remodel_Contingency)/ARV,"") ->  | U68: of ARV
I69: Property Description
I70: Input brief description of the neighborhood, property, rehab challenges and opportunities.
H79: Purchase Assumptions /Rehab Assumptions
I80: After Repair Value: | L80: =ARV -> $175,000 | O80: ARV $/sf: | Q80: =IF(Square_Feet=0,"",ARV/Square_Feet) -> $87.50
I82: Repair Cost Summary
I84: =T('REHAB ESTIMATOR'!N5:T5) -> GENERAL CONDITIONS | L84: =GC_ESTIMATE -> $2,290 | N84: =T('REHAB ESTIMATOR'!Y5:AE5) -> EXT. DOORS & WINDOWS | Q84: =EXT_DOORS_WINDOWS_ESTIMATE -> $2,750 | S84: =T('REHAB ESTIMATOR'!AJ5:AP5) -> HARDWOOD FLOORING | V84: =HARDWOOD_ESTIMATE -> $1,400
I85: =T('REHAB ESTIMATOR'!N6:T6) -> DEMOLITION | L85: =DEMOLITION_ESTIMATE -> $1,200 | N85: =T('REHAB ESTIMATOR'!Y6:AE6) -> GARAGE DOORS | Q85: =GARAGE_DOORS_ESTIMATE -> $1,200 | S85: =T('REHAB ESTIMATOR'!AJ6:AP6) -> TILING | V85: =TILING_ESTIMATE -> $3,535
I86: =T('REHAB ESTIMATOR'!N7:T7) -> STRUCTURAL CONCRETE | L86: =STRUCTURAL_CONRETE_ESTIMATE -> $0 | N86: =T('REHAB ESTIMATOR'!Y7:AE7) -> LANDSCAPING | Q86: =LANDSCAPING_ESTIMATE -> $865 | S86: =T('REHAB ESTIMATOR'!AJ7:AP7) -> PAINTING | V86: =PAINTING_ESTIMATE -> $4,275
I87: =T('REHAB ESTIMATOR'!N8:T8) -> CONCRETE & FLATWORK | L87: =CONCRETE_FLATWORK_ESTIMATE -> $0 | N87: =T('REHAB ESTIMATOR'!Y8:AE8) -> MISC. EXT. IMPROVEMENTS | Q87: =MISC_EXT_IMP_ESTIMATE -> $505 | S87: =T('REHAB ESTIMATOR'!AJ8:AP8) -> APPLIANCES | V87: =APPLIANCES_ESTIMATE -> $2,675
I88: =T('REHAB ESTIMATOR'!N9:T9) -> MASONRY | L88: =MASONRY_ESTIMATE -> $0 | N88: =T('REHAB ESTIMATOR'!Y9:AE9) -> FRAMING & DRYWALL | Q88: =DRYWALL_ESTIMATE -> $750 | S88: =T('REHAB ESTIMATOR'!AJ9:AP9) -> PLUMBING | V88: =PLUMBING_ESTIMATE -> $3,635
I89: =T('REHAB ESTIMATOR'!N10:T10) -> SIDING | L89: =SIDING_ESTIMATE -> $0 | N89: =T('REHAB ESTIMATOR'!Y10:AE10) -> CABINETS & COUNTERTOPS | Q89: =CABINETS_ESTIMATE -> $6,205 | S89: =T('REHAB ESTIMATOR'!AJ10:AP10) -> HVAC | V89: =HVAC_ESTIMATE -> $350
I90: =T('REHAB ESTIMATOR'!N11:T11) -> DECKING AND PATIOS | L90: =DECKING_ESTIMATE -> $3,000 | N90: =T('REHAB ESTIMATOR'!Y11:AE11) -> DOORS & TRIM | Q90: =DOORS_TRIM_ESTIMATE -> $3,140 | S90: =T('REHAB ESTIMATOR'!AJ11:AP11) -> ELECTRICAL | V90: =ELECTRICAL_ESTIMATE -> $3,231
I91: =T('REHAB ESTIMATOR'!N12:T12) -> ROOFING | L91: =ROOFING_ESTIMATE -> $4,500 | N91: =T('REHAB ESTIMATOR'!Y12:AE12) -> CARPET & RESILIENT | Q91: =CARPET_ESTIMATE -> $2,730 | S91: =T('REHAB ESTIMATOR'!AJ12:AP12) -> MISCELLANEOUS | V91: =MISC_ESTIMATE -> $390
L92: =TOTAL_REMODEL_ESTIMATE -> $48,626 | Q92: =REPAIR_CONTINGENCY -> $2,431
I93: Total Repair Cost: | O93: =Q92/L92 -> 5% Cont: | S93: Rehab Schedule (Mo) | V93: =Rehab_Schedule -> 3.0
I95: Fixed Costs: | AF95: =IF('REHAB CALC'!V13="% of ARV",1,0) -> 0
I96: Buying Costs (Closing costs, Appraisal fees, Inspection costs, etc.) | T96: =TOTAL_BUYING_COSTS_WHOLESALE -> $1,200 | AF96: ='REHAB CALC'!AD13 -> 15%
I97: Holding Costs (Mortgage Payments, PMI, Taxes, Utilities, Insurance, etc.) | T97: =TOTAL_HOLDING_COSTS_WHOLESALE -> $3,700 | AF97: =IF(AF95=1,CONCATENATE("Fixed Costs are being calculated at"," ",AF96*100,"%"," ","of ARV",""),"") -> 
I98: Selling Costs (Commissions, Closing Costs, Warranties, etc.) | T98: =TOTAL_SELLING_COSTS_WHOLESALE -> $14,000
Q100: Total Fixed Costs: | T100: ='REHAB CALC'!B73 -> $18,900
R102: PROJECTED GROSS PROFIT:
R103: =REHABBER_PROFIT_WHOLESALE-P3 -> $26,250
H108: =T(Company_Name) -> WholesalingSpreadsheet.com | L108: =(Company_Phone) -> 8163880197 | O108: =T(Company_Email) -> dave@costpointsolutions.com | T108: =T(Company_Website) -> www.wholesalingspreadsheet.com
H110: =T(Street_Address) -> 2325 NW 49th St
H113: =T(City_State_Zip) -> Kansas City, MO 64151
I115: Input a brief description of repairs required for the property.
H129: Picture Caption | N129: Picture Caption | T129: Picture Caption
H142: Picture Caption | N142: Picture Caption | T142: Picture Caption
H155: Picture Caption | N155: Picture Caption | T155: Picture Caption
H159: Investment Disclaimer:
H160: Any scope of work and cost information provided by us is for informational purposals only and is provided As-Is without warranty of any kind. In no event shall we be held liable for any special, indirect or consequential damages whatsover resulting from loss of profits. Use caution and seek the advice of qualified professionals. Consult with your real estate professionals, contractors, or other professional advisors before making investment decisions based upon the information provided.
H163: =T(Company_Name) -> WholesalingSpreadsheet.com | L163: =(Company_Phone) -> 8163880197 | O163: =T(Company_Email) -> dave@costpointsolutions.com | T163: =T(Company_Website) -> www.wholesalingspreadsheet.com
Q166: © 2015 by wholesalingspreadsheet.com. All rights reserved

Sheet REHAB REPAIR ESTIMATE
C3: REPAIR COST ESTIMATE
C5: =T(Street_Address) -> 2325 NW 49th St
C7: =T(City_State_Zip) -> Kansas City, MO 64151
U8: DIYED
C9: Input a brief description of the repairs required to the property. | U9: SUBBED
C14: Total Repair Estimate | G14: Breakdown by Scope of Work
C16: =TOTAL_REPAIR_ESTIMATE -> $48,626 | G16: ='REHAB ESTIMATOR'!N5 -> GENERAL CONDITIONS | I16: =GC_ESTIMATE -> $2,290 | J16: ='REHAB ESTIMATOR'!Y5 -> EXT. DOORS & WINDOWS | L16: =EXT_DOORS_WINDOWS_ESTIMATE -> $2,750 | M16: ='REHAB ESTIMATOR'!AJ5 -> HARDWOOD FLOORING | O16: =HARDWOOD_ESTIMATE -> $1,400
G17: ='REHAB ESTIMATOR'!N6 -> DEMOLITION | I17: =DEMOLITION_ESTIMATE -> $1,200 | J17: ='REHAB ESTIMATOR'!Y6 -> GARAGE DOORS | L17: =GARAGE_DOORS_ESTIMATE -> $1,200 | M17: ='REHAB ESTIMATOR'!AJ6 -> TILING | O17: =TILING_ESTIMATE -> $3,535
G18: ='REHAB ESTIMATOR'!N7 -> STRUCTURAL CONCRETE | I18: =STRUCTURAL_CONRETE_ESTIMATE -> $0 | J18: ='REHAB ESTIMATOR'!Y7 -> LANDSCAPING | L18: =LANDSCAPING_ESTIMATE -> $865 | M18: ='REHAB ESTIMATOR'!AJ7 -> PAINTING | O18: =PAINTING_ESTIMATE -> $4,275
G19: ='REHAB ESTIMATOR'!N8 -> CONCRETE & FLATWORK | I19: =CONCRETE_FLATWORK_ESTIMATE -> $0 | J19: ='REHAB ESTIMATOR'!Y8 -> MISC. EXT. IMPROVEMENTS | L19: =MISC_EXT_IMP_ESTIMATE -> $505 | M19: ='REHAB ESTIMATOR'!AJ8 -> APPLIANCES | O19: =APPLIANCES_ESTIMATE -> $2,675
G20: ='REHAB ESTIMATOR'!N9 -> MASONRY | I20: =MASONRY_ESTIMATE -> $0 | J20: ='REHAB ESTIMATOR'!Y9 -> FRAMING & DRYWALL | L20: =DRYWALL_ESTIMATE -> $750 | M20: ='REHAB ESTIMATOR'!AJ9 -> PLUMBING | O20: =PLUMBING_ESTIMATE -> $3,635
C21: Breakdown by Work Type | G21: ='REHAB ESTIMATOR'!N10 -> SIDING | I21: =SIDING_ESTIMATE -> $0 | J21: ='REHAB ESTIMATOR'!Y10 -> CABINETS & COUNTERTOPS | L21: =CABINETS_ESTIMATE -> $6,205 | M21: ='REHAB ESTIMATOR'!AJ10 -> HVAC | O21: =HVAC_ESTIMATE -> $350
C22: LAB/EQUIP | D22: MAT'L | E22: SUB | G22: ='REHAB ESTIMATOR'!N11 -> DECKING AND PATIOS | I22: =DECKING_ESTIMATE -> $3,000 | J22: ='REHAB ESTIMATOR'!Y11 -> DOORS & TRIM | L22: =DOORS_TRIM_ESTIMATE -> $3,140 | M22: ='REHAB ESTIMATOR'!AJ11 -> ELECTRICAL | O22: =ELECTRICAL_ESTIMATE -> $3,231
C23: =K629 -> $17,610 | D23: =L629 -> $28,891 | E23: =M629 -> $2,125 | G23: ='REHAB ESTIMATOR'!N12 -> ROOFING | I23: =ROOFING_ESTIMATE -> $4,500 | J23: ='REHAB ESTIMATOR'!Y12 -> CARPET & RESILIENT | L23: =CARPET_ESTIMATE -> $2,730 | M23: ='REHAB ESTIMATOR'!AJ12 -> MISCELLANEOUS | O23: =MISC_ESTIMATE -> $390
K25: Totals
C26: Description of Work | I26: QTY | J26: Unit | K26: Lab | L26: Mat'l | M26: Sub | N26: Total Cost | P26: SORTER
C28: =T('REHAB ESTIMATOR'!B16:S16) -> GENERAL CONDITIONS | I28: =SUM(I29:I46) -> 20 | P28: =I28 -> 20 | U28: DIYED LABOR | V28: MAT'L | W28: SUB
C29: =T('REHAB ESTIMATOR'!B17:S17) -> Dumpster rental-40 yard | I29: ='REHAB ESTIMATOR'!T17 -> 2 | J29: =T('REHAB ESTIMATOR'!W17:X17) -> ea | K29: ='REHAB ESTIMATOR'!AH17 -> $0 | L29: =V29 -> $800 | M29: =W29 -> $0 | N29: =SUM(K29:M29) -> $800 | P29: =I29 -> 2 | U29: ='REHAB ESTIMATOR'!AH17 -> $0.00 | V29: ='REHAB ESTIMATOR'!AK17 -> $800.00 | W29: ='REHAB ESTIMATOR'!AN17 -> $0.00
C30: =T('REHAB ESTIMATOR'!B18:S18) -> Construction Permits < $10k | I30: ='REHAB ESTIMATOR'!T18 -> 0 | J30: =T('REHAB ESTIMATOR'!W18:X18) -> job | K30: ='REHAB ESTIMATOR'!AH18 -> $0 | L30: $0 | M30: $0 | N30: =SUM(K30:M30) -> $0 | P30: 0 | U30: ='REHAB ESTIMATOR'!AH18 -> $0.00 | V30: ='REHAB ESTIMATOR'!AK18 -> $0.00 | W30: ='REHAB ESTIMATOR'!AN18 -> $0.00
C31: =T('REHAB ESTIMATOR'!B19:S19) -> Construction Permits, 10k to $25k | I31: ='REHAB ESTIMATOR'!T19 -> 0 | J31: =T('REHAB ESTIMATOR'!W19:X19) -> job | K31: ='REHAB ESTIMATOR'!AH19 -> $0 | L31: $0 | M31: $0 | N31: $0 | P31: 0 | U31: ='REHAB ESTIMATOR'!AH19 -> $0.00 | V31: ='REHAB ESTIMATOR'!AK19 -> $0.00 | W31: ='REHAB ESTIMATOR'!AN19 -> $0.00
C32: =T('REHAB ESTIMATOR'!B20:S20) -> Construction Permits, 25k to 50k | I32: ='REHAB ESTIMATOR'!T20 -> 1 | J32: =T('REHAB ESTIMATOR'!W20:X20) -> job | K32: ='REHAB ESTIMATOR'!AH20 -> $0 | L32: $1,000 | M32: $0 | N32: $1,000 | P32: 1 | U32: ='REHAB ESTIMATOR'!AH20 -> $0.00 | V32: ='REHAB ESTIMATOR'!AK20 -> $1,000.00 | W32: ='REHAB ESTIMATOR'!AN20 -> $0.00
C33: =T('REHAB ESTIMATOR'!B21:S21) -> Storage Container | I33: ='REHAB ESTIMATOR'!T21 -> 0 | J33: =T('REHAB ESTIMATOR'!W21:X21) -> job | K33: ='REHAB ESTIMATOR'!AH21 -> $0 | L33: $0 | M33: $0 | N33: $0 | P33: 0 | U33: ='REHAB ESTIMATOR'!AH21 -> $0.00 | V33: ='REHAB ESTIMATOR'!AK21 -> $0.00 | W33: ='REHAB ESTIMATOR'!AN21 -> $0.00
C34: =T('REHAB ESTIMATOR'!B22:S22) -> Chemical Toilet | I34: ='REHAB ESTIMATOR'!T22 -> 0 | J34: =T('REHAB ESTIMATOR'!W22:X22) -> mo | K34: ='REHAB ESTIMATOR'!AH22 -> $0 | L34: $0 | M34: $0 | N34: $0 | P34: 0 | U34: ='REHAB ESTIMATOR'!AH22 -> $0.00 | V34: ='REHAB ESTIMATOR'!AK22 -> $0.00 | W34: ='REHAB ESTIMATOR'!AN22 -> $0.00
C35: =T('REHAB ESTIMATOR'!B23:S23) -> Misc. Tools & Materials | I35: ='REHAB ESTIMATOR'!T23 -> 1 | J35: =T('REHAB ESTIMATOR'!W23:X23) -> ls | K35: ='REHAB ESTIMATOR'!AH23 -> $0 | L35: $250 | M35: $0 | N35: $250 | P35: 1 | U35: ='REHAB ESTIMATOR'!AH23 -> $0.00 | V35: ='REHAB ESTIMATOR'!AK23 -> $250.00 | W35: ='REHAB ESTIMATOR'!AN23 -> $0.00
C36: =T('REHAB ESTIMATOR'!B24:S24) -> Rekey/lock box | I36: ='REHAB ESTIMATOR'!T24 -> 0 | J36: =T('REHAB ESTIMATOR'!W24:X24) -> ea | K36: ='REHAB ESTIMATOR'!AH24 -> $0 | L36: $0 | M36: $0 | N36: $0 | P36: 0 | U36: ='REHAB ESTIMATOR'!AH24 -> $0.00 | V36: ='REHAB ESTIMATOR'!AK24 -> $0.00 | W36: ='REHAB ESTIMATOR'!AN24 -> $0.00
C37: =T('REHAB ESTIMATOR'!B25:S25) -> Turn on utilities | I37: ='REHAB ESTIMATOR'!T25 -> 0 | J37: =T('REHAB ESTIMATOR'!W25:X25) -> ls | K37: ='REHAB ESTIMATOR'!AH25 -> $0 | L37: $0 | M37: $0 | N37: $0 | P37: 0 | U37: ='REHAB ESTIMATOR'!AH25 -> $0.00 | V37: ='REHAB ESTIMATOR'!AK25 -> $0.00 | W37: ='REHAB ESTIMATOR'!AN25 -> $0.00
C38: =T('REHAB ESTIMATOR'!B26:S26) -> Truck expense/car payment | I38: ='REHAB ESTIMATOR'!T26 -> 0 | J38: =T('REHAB ESTIMATOR'!W26:X26) -> month | K38: ='REHAB ESTIMATOR'!AH26 -> $0 | L38: $0 | M38: $0 | N38: $0 | P38: 0 | U38: ='REHAB ESTIMATOR'!AH26 -> $0.00 | V38: ='REHAB ESTIMATOR'!AK26 -> $0.00 | W38: ='REHAB ESTIMATOR'!AN26 -> $0.00
C39: =T('REHAB ESTIMATOR'!B27:S27) -> Fuel/gas expense | I39: ='REHAB ESTIMATOR'!T27 -> 0 | J39: =T('REHAB ESTIMATOR'!W27:X27) -> wk | K39: ='REHAB ESTIMATOR'!AH27 -> $0 | L39: $0 | M39: $0 | N39: $0 | P39: 0 | U39: ='REHAB ESTIMATOR'!AH27 -> $0.00 | V39: ='REHAB ESTIMATOR'!AK27 -> $0.00 | W39: ='REHAB ESTIMATOR'!AN27 -> $0.00
C40: =T('REHAB ESTIMATOR'!B28:S28) -> Project management | I40: ='REHAB ESTIMATOR'!T28 -> 0 | J40: =T('REHAB ESTIMATOR'!W28:X28) -> wk | K40: ='REHAB ESTIMATOR'!AH28 -> $0 | L40: $0 | M40: $0 | N40: $0 | P40: 0 | U40: ='REHAB ESTIMATOR'!AH28 -> $0.00 | V40: ='REHAB ESTIMATOR'!AK28 -> $0.00 | W40: ='REHAB ESTIMATOR'!AN28 -> $0.00
C41: =T('REHAB ESTIMATOR'!B29:S29) -> Architectural Fees | I41: ='REHAB ESTIMATOR'!T29 -> 0 | J41: =T('REHAB ESTIMATOR'!W29:X29) -> hrs | K41: ='REHAB ESTIMATOR'!AH29 -> $0 | L41: $0 | M41: $0 | N41: $0 | P41: 0 | U41: ='REHAB ESTIMATOR'!AH29 -> $0.00 | V41: ='REHAB ESTIMATOR'!AK29 -> $0.00 | W41: ='REHAB ESTIMATOR'!AN29 -> $0.00
C42: =T('REHAB ESTIMATOR'!B30:S30) -> Engineering Fees | I42: ='REHAB ESTIMATOR'!T30 -> 0 | J42: =T('REHAB ESTIMATOR'!W30:X30) -> hrs | K42: ='REHAB ESTIMATOR'!AH30 -> $0 | L42: $0 | M42: $0 | N42: $0 | P42: 0 | U42: ='REHAB ESTIMATOR'!AH30 -> $0.00 | V42: ='REHAB ESTIMATOR'!AK30 -> $0.00 | W42: ='REHAB ESTIMATOR'!AN30 -> $0.00
C43: =T('REHAB ESTIMATOR'!B31:S31) -> Professional Photography | I43: ='REHAB ESTIMATOR'!T31 -> 0 | J43: =T('REHAB ESTIMATOR'!W31:X31) -> ls | K43: ='REHAB ESTIMATOR'!AH31 -> $0 | L43: $0 | M43: $0 | N43: $0 | P43: 0 | U43: ='REHAB ESTIMATOR'!AH31 -> $0.00 | V43: ='REHAB ESTIMATOR'!AK31 -> $0.00 | W43: ='REHAB ESTIMATOR'!AN31 -> $0.00
C44: =T('REHAB ESTIMATOR'!B32:S32) -> Material Deliveries | I44: ='REHAB ESTIMATOR'!T32 -> 0 | J44: =T('REHAB ESTIMATOR'!W32:X32) -> ea | K44: ='REHAB ESTIMATOR'!AH32 -> $0 | L44: $0 | M44: $0 | N44: $0 | P44: 0 | U44: ='REHAB ESTIMATOR'!AH32 -> $0.00 | V44: ='REHAB ESTIMATOR'!AK32 -> $0.00 | W44: ='REHAB ESTIMATOR'!AN32 -> $0.00
C45: =T('REHAB ESTIMATOR'!B33:S33) -> Final cleaning | I45: ='REHAB ESTIMATOR'!T33 -> 16 | J45: =T('REHAB ESTIMATOR'!W33:X33) -> hrs | K45: ='REHAB ESTIMATOR'!AH33 -> $240 | L45: $0 | M45: $0 | N45: $240 | P45: 16 | U45: ='REHAB ESTIMATOR'!AH33 -> $240.00 | V45: ='REHAB ESTIMATOR'!AK33 -> $0.00 | W45: ='REHAB ESTIMATOR'!AN33 -> $0.00
C46: =T('REHAB ESTIMATOR'!B34:S34) ->  | I46: ='REHAB ESTIMATOR'!T34 -> 0 | J46: =T('REHAB ESTIMATOR'!W34:X34) ->  | K46: ='REHAB ESTIMATOR'!AH34 -> $0 | L46: $0 | M46: $0 | N46: $0 | P46: 0 | U46: ='REHAB ESTIMATOR'!AH34 -> $0.00 | V46: ='REHAB ESTIMATOR'!AK34 -> $0.00 | W46: ='REHAB ESTIMATOR'!AN34 -> $0.00
C47: =T('REHAB ESTIMATOR'!B35:S35) ->  | I47: ='REHAB ESTIMATOR'!T35 -> 0 | J47: =T('REHAB ESTIMATOR'!W35:X35) ->  | K47: ='REHAB ESTIMATOR'!AH35 -> $0 | L47: $0 | M47: $0 | N47: $0 | P47: 0 | U47: ='REHAB ESTIMATOR'!AH35 -> $0.00 | V47: ='REHAB ESTIMATOR'!AK35 -> $0.00 | W47: ='REHAB ESTIMATOR'!AN35 -> $0.00
C48: =T('REHAB ESTIMATOR'!B36:S36) ->  | I48: ='REHAB ESTIMATOR'!T36 -> 0 | J48: =T('REHAB ESTIMATOR'!W36:X36) ->  | K48: ='REHAB ESTIMATOR'!AH36 -> $0 | L48: $0 | M48: $0 | N48: $0 | P48: 0 | U48: ='REHAB ESTIMATOR'!AH36 -> $0.00 | V48: ='REHAB ESTIMATOR'!AK36 -> $0.00 | W48: ='REHAB ESTIMATOR'!AN36 -> $0.00
P49: =P50 -> 40
C50: =T('REHAB ESTIMATOR'!AG38) -> GENERAL CONDITIONS TOTAL | K50: =SUM(K29:K49) -> $240 | L50: =SUM(L29:L49) -> $2,050 | M50: =SUM(M29:M49) -> $0 | N50: =SUM(N29:O49) -> $2,290 | P50: =SUM(P28:P46) -> 40 | U50: =SUM(U29:U49) -> $240.00 | V50: =SUM(V29:V49) -> $2,050.00 | W50: =SUM(W29:W49) -> $0.00
P51: =P52 -> 40
P52: =P50 -> 40
C53: =T('REHAB ESTIMATOR'!B41:S41) -> DEMOLITION | I53: =SUM(I54:I71) -> 80 | P53: 80
C54: =T('REHAB ESTIMATOR'!B42:S42) -> Demolition | I54: ='REHAB ESTIMATOR'!T42 -> 0 | J54: =T('REHAB ESTIMATOR'!W42:X42) -> ls | K54: ='REHAB ESTIMATOR'!AH42 -> $0 | L54: =V54 -> $0 | M54: =W54 -> $0 | N54: =SUM(K54:M54) -> $0 | P54: 0 | U54: ='REHAB ESTIMATOR'!AH42 -> $0.00 | V54: ='REHAB ESTIMATOR'!AK42 -> $0.00 | W54: ='REHAB ESTIMATOR'!AN42 -> $0.00
C55: =T('REHAB ESTIMATOR'!B43:S43) -> Demo bid/allowance | I55: ='REHAB ESTIMATOR'!T43 -> 0 | J55: =T('REHAB ESTIMATOR'!W43:X43) -> ls | K55: ='REHAB ESTIMATOR'!AH43 -> $0 | L55: $0 | M55: $0 | N55: =SUM(K55:M55) -> $0 | P55: 0 | U55: ='REHAB ESTIMATOR'!AH43 -> $0.00 | V55: ='REHAB ESTIMATOR'!AK43 -> $0.00 | W55: ='REHAB ESTIMATOR'!AN43 -> $0.00
C56: =T('REHAB ESTIMATOR'!B44:S44) -> Demolition work per hour | I56: ='REHAB ESTIMATOR'!T44 -> 80 | J56: =T('REHAB ESTIMATOR'!W44:X44) -> hrs | K56: ='REHAB ESTIMATOR'!AH44 -> $1,200 | L56: $0 | M56: $0 | N56: $1,200 | P56: 80 | U56: ='REHAB ESTIMATOR'!AH44 -> $1,200.00 | V56: ='REHAB ESTIMATOR'!AK44 -> $0.00 | W56: ='REHAB ESTIMATOR'!AN44 -> $0.00
C57: =T('REHAB ESTIMATOR'!B45:S45) -> Room demolition, typical room | I57: ='REHAB ESTIMATOR'!T45 -> 0 | J57: =T('REHAB ESTIMATOR'!W45:X45) -> sf | K57: ='REHAB ESTIMATOR'!AH45 -> $0 | L57: $0 | M57: $0 | N57: $0 | P57: 0 | U57: ='REHAB ESTIMATOR'!AH45 -> $0.00 | V57: ='REHAB ESTIMATOR'!AK45 -> $0.00 | W57: ='REHAB ESTIMATOR'!AN45 -> $0.00
C58: =T('REHAB ESTIMATOR'!B46:S46) -> Room demolition, bathroom | I58: ='REHAB ESTIMATOR'!T46 -> 0 | J58: =T('REHAB ESTIMATOR'!W46:X46) -> sf | K58: ='REHAB ESTIMATOR'!AH46 -> $0 | L58: $0 | M58: $0 | N58: $0 | P58: 0 | U58: ='REHAB ESTIMATOR'!AH46 -> $0.00 | V58: ='REHAB ESTIMATOR'!AK46 -> $0.00 | W58: ='REHAB ESTIMATOR'!AN46 -> $0.00
C59: =T('REHAB ESTIMATOR'!B47:S47) -> Room demolition, kitchen | I59: ='REHAB ESTIMATOR'!T47 -> 0 | J59: =T('REHAB ESTIMATOR'!W47:X47) -> sf | K59: ='REHAB ESTIMATOR'!AH47 -> $0 | L59: $0 | M59: $0 | N59: $0 | P59: 0 | U59: ='REHAB ESTIMATOR'!AH47 -> $0.00 | V59: ='REHAB ESTIMATOR'!AK47 -> $0.00 | W59: ='REHAB ESTIMATOR'!AN47 -> $0.00
C60: =T('REHAB ESTIMATOR'!B48:S48) -> Building demolition, 1-story wood-framed | I60: ='REHAB ESTIMATOR'!T48 -> 0 | J60: =T('REHAB ESTIMATOR'!W48:X48) -> sf | K60: ='REHAB ESTIMATOR'!AH48 -> $0 | L60: $0 | M60: $0 | N60: $0 | P60: 0 | U60: ='REHAB ESTIMATOR'!AH48 -> $0.00 | V60: ='REHAB ESTIMATOR'!AK48 -> $0.00 | W60: ='REHAB ESTIMATOR'!AN48 -> $0.00
C61: =T('REHAB ESTIMATOR'!B49:S49) -> Building demolition, 2-story wood framed | I61: ='REHAB ESTIMATOR'!T49 -> 0 | J61: =T('REHAB ESTIMATOR'!W49:X49) -> sf | K61: ='REHAB ESTIMATOR'!AH49 -> $0 | L61: $0 | M61: $0 | N61: $0 | P61: 0 | U61: ='REHAB ESTIMATOR'!AH49 -> $0.00 | V61: ='REHAB ESTIMATOR'!AK49 -> $0.00 | W61: ='REHAB ESTIMATOR'!AN49 -> $0.00
C62: =T('REHAB ESTIMATOR'!B50:S50) -> Building demolition, masonry | I62: ='REHAB ESTIMATOR'!T50 -> 0 | J62: =T('REHAB ESTIMATOR'!W50:X50) -> sf | K62: ='REHAB ESTIMATOR'!AH50 -> $0 | L62: $0 | M62: $0 | N62: $0 | P62: 0 | U62: ='REHAB ESTIMATOR'!AH50 -> $0.00 | V62: ='REHAB ESTIMATOR'!AK50 -> $0.00 | W62: ='REHAB ESTIMATOR'!AN50 -> $0.00
C63: =T('REHAB ESTIMATOR'!B51:S51) -> Building demolition, steel/concrete | I63: ='REHAB ESTIMATOR'!T51 -> 0 | J63: =T('REHAB ESTIMATOR'!W51:X51) -> sf | K63: ='REHAB ESTIMATOR'!AH51 -> $0 | L63: $0 | M63: $0 | N63: $0 | P63: 0 | U63: ='REHAB ESTIMATOR'!AH51 -> $0.00 | V63: ='REHAB ESTIMATOR'!AK51 -> $0.00 | W63: ='REHAB ESTIMATOR'!AN51 -> $0.00
C64: =T('REHAB ESTIMATOR'!B52:S52) -> Concrete slab demolition, 4"-6" | I64: ='REHAB ESTIMATOR'!T52 -> 0 | J64: =T('REHAB ESTIMATOR'!W52:X52) ->  | K64: ='REHAB ESTIMATOR'!AH52 -> $0 | L64: $0 | M64: $0 | N64: $0 | P64: 0 | U64: ='REHAB ESTIMATOR'!AH52 -> $0.00 | V64: ='REHAB ESTIMATOR'!AK52 -> $0.00 | W64: ='REHAB ESTIMATOR'!AN52 -> $0.00
C65: =T('REHAB ESTIMATOR'!B53:S53) ->  | I65: ='REHAB ESTIMATOR'!T53 -> 0 | J65: =T('REHAB ESTIMATOR'!W53:X53) ->  | K65: ='REHAB ESTIMATOR'!AH53 -> $0 | L65: $0 | M65: $0 | N65: $0 | P65: 0 | U65: ='REHAB ESTIMATOR'!AH53 -> $0.00 | V65: ='REHAB ESTIMATOR'!AK53 -> $0.00 | W65: ='REHAB ESTIMATOR'!AN53 -> $0.00
C66: =T('REHAB ESTIMATOR'!B54:S54) ->  | I66: ='REHAB ESTIMATOR'!T54 -> 0 | J66: =T('REHAB ESTIMATOR'!W54:X54) ->  | K66: ='REHAB ESTIMATOR'!AH54 -> $0 | L66: $0 | M66: $0 | N66: $0 | P66: 0 | U66: ='REHAB ESTIMATOR'!AH54 -> $0.00 | V66: ='REHAB ESTIMATOR'!AK54 -> $0.00 | W66: ='REHAB ESTIMATOR'!AN54 -> $0.00
C67: =T('REHAB ESTIMATOR'!B55:S55) -> Abatement | I67: ='REHAB ESTIMATOR'!T55 -> 0 | J67: =T('REHAB ESTIMATOR'!W55:X55) -> ls | K67: ='REHAB ESTIMATOR'!AH55 -> $0 | L67: $0 | M67: $0 | N67: $0 | P67: 0 | U67: ='REHAB ESTIMATOR'!AH55 -> $0.00 | V67: ='REHAB ESTIMATOR'!AK55 -> $0.00 | W67: ='REHAB ESTIMATOR'!AN55 -> $0.00
C68: =T('REHAB ESTIMATOR'!B56:S56) -> Asbestos bid/allowance | I68: ='REHAB ESTIMATOR'!T56 -> 0 | J68: =T('REHAB ESTIMATOR'!W56:X56) -> ls | K68: ='REHAB ESTIMATOR'!AH56 -> $0 | L68: $0 | M68: $0 | N68: $0 | P68: 0 | U68: ='REHAB ESTIMATOR'!AH56 -> $0.00 | V68: ='REHAB ESTIMATOR'!AK56 -> $0.00 | W68: ='REHAB ESTIMATOR'!AN56 -> $0.00
C69: =T('REHAB ESTIMATOR'!B57:S57) -> Asbestos testing | I69: ='REHAB ESTIMATOR'!T57 -> 0 | J69: =T('REHAB ESTIMATOR'!W57:X57) -> ea | K69: ='REHAB ESTIMATOR'!AH57 -> $0 | L69: $0 | M69: $0 | N69: $0 | P69: 0 | U69: ='REHAB ESTIMATOR'!AH57 -> $0.00 | V69: ='REHAB ESTIMATOR'!AK57 -> $0.00 | W69: ='REHAB ESTIMATOR'!AN57 -> $0.00
C70: =T('REHAB ESTIMATOR'!B58:S58) -> Asbestos abatement, minimum charge | I70: ='REHAB ESTIMATOR'!T58 -> 0 | J70: =T('REHAB ESTIMATOR'!W58:X58) -> ea | K70: ='REHAB ESTIMATOR'!AH58 -> $0 | L70: $0 | M70: $0 | N70: $0 | P70: 0 | U70: ='REHAB ESTIMATOR'!AH58 -> $0.00 | V70: ='REHAB ESTIMATOR'!AK58 -> $0.00 | W70: ='REHAB ESTIMATOR'!AN58 -> $0.00
C71: =T('REHAB ESTIMATOR'!B59:S59) -> Mold, minimum charge | I71: ='REHAB ESTIMATOR'!T59 -> 0 | J71: =T('REHAB ESTIMATOR'!W59:X59) ->  | K71: ='REHAB ESTIMATOR'!AH59 -> $0 | L71: $0 | M71: $0 | N71: $0 | P71: 0 | U71: ='REHAB ESTIMATOR'!AH59 -> $0.00 | V71: ='REHAB ESTIMATOR'!AK59 -> $0.00 | W71: ='REHAB ESTIMATOR'!AN59 -> $0.00
C72: =T('REHAB ESTIMATOR'!B60:S60) ->  | I72: ='REHAB ESTIMATOR'!T60 -> 0 | J72: =T('REHAB ESTIMATOR'!W60:X60) ->  | K72: ='REHAB ESTIMATOR'!AH60 -> $0 | L72: $0 | M72: $0 | N72: $0 | P72: 0 | U72: ='REHAB ESTIMATOR'!AH60 -> $0.00 | V72: ='REHAB ESTIMATOR'!AK60 -> $0.00 | W72: ='REHAB ESTIMATOR'!AN60 -> $0.00
C73: =T('REHAB ESTIMATOR'!B61:S61) ->  | I73: ='REHAB ESTIMATOR'!T61 -> 0 | J73: =T('REHAB ESTIMATOR'!W61:X61) ->  | K73: ='REHAB ESTIMATOR'!AH61 -> $0 | L73: $0 | M73: $0 | N73: $0 | P73: 0 | U73: ='REHAB ESTIMATOR'!AH61 -> $0.00 | V73: ='REHAB ESTIMATOR'!AK61 -> $0.00 | W73: ='REHAB ESTIMATOR'!AN61 -> $0.00
P74: =P75 -> 160
C75: =T('REHAB ESTIMATOR'!AG63) -> DEMOLITION TOTAL | K75: =SUM(K54:K74) -> $1,200 | L75: =SUM(L54:L74) -> $0 | M75: =SUM(M54:M74) -> $0 | N75: =SUM(N54:O74) -> $1,200 | P75: =SUM(P53:P63) -> 160 | U75: =SUM(U54:U74) -> $1,200.00 | V75: =SUM(V54:V74) -> $0.00 | W75: =SUM(W54:W74) -> $0.00
P76: =P77 -> 160
P77: =P75 -> 160
C78: =T('REHAB ESTIMATOR'!B66:S66) -> STRUCTURAL CONCRETE | I78: =SUM(I79:I96) -> 0 | P78: 0
C79: =T('REHAB ESTIMATOR'!B67:S67) -> Excavation | I79: ='REHAB ESTIMATOR'!T67 -> 0 | J79: =T('REHAB ESTIMATOR'!W67:X67) ->  | K79: ='REHAB ESTIMATOR'!AH67 -> $0 | L79: =V79 -> $0 | M79: =W79 -> $0 | N79: =SUM(K79:M79) -> $0 | P79: =I79 -> 0 | U79: ='REHAB ESTIMATOR'!AH67 -> $0.00 | V79: ='REHAB ESTIMATOR'!AK67 -> $0.00 | W79: ='REHAB ESTIMATOR'!AN67 -> $0.00
C80: =T('REHAB ESTIMATOR'!B68:S68) -> Excavation bid/allowance | I80: ='REHAB ESTIMATOR'!T68 -> 0 | J80: =T('REHAB ESTIMATOR'!W68:X68) -> ls | K80: ='REHAB ESTIMATOR'!AH68 -> $0 | L80: $0 | M80: $0 | N80: =SUM(K80:M80) -> $0 | P80: 0 | U80: ='REHAB ESTIMATOR'!AH68 -> $0.00 | V80: ='REHAB ESTIMATOR'!AK68 -> $0.00 | W80: ='REHAB ESTIMATOR'!AN68 -> $0.00
C81: =T('REHAB ESTIMATOR'!B69:S69) -> Footing trenching | I81: ='REHAB ESTIMATOR'!T69 -> 0 | J81: =T('REHAB ESTIMATOR'!W69:X69) -> cy | K81: ='REHAB ESTIMATOR'!AH69 -> $0 | L81: $0 | M81: $0 | N81: $0 | P81: 0 | U81: ='REHAB ESTIMATOR'!AH69 -> $0.00 | V81: ='REHAB ESTIMATOR'!AK69 -> $0.00 | W81: ='REHAB ESTIMATOR'!AN69 -> $0.00
C82: =T('REHAB ESTIMATOR'!B70:S70) -> Backfill of trenches | I82: ='REHAB ESTIMATOR'!T70 -> 0 | J82: =T('REHAB ESTIMATOR'!W70:X70) -> cy | K82: ='REHAB ESTIMATOR'!AH70 -> $0 | L82: $0 | M82: $0 | N82: $0 | P82: 0 | U82: ='REHAB ESTIMATOR'!AH70 -> $0.00 | V82: ='REHAB ESTIMATOR'!AK70 -> $0.00 | W82: ='REHAB ESTIMATOR'!AN70 -> $0.00
C83: =T('REHAB ESTIMATOR'!B71:S71) ->  | I83: ='REHAB ESTIMATOR'!T71 -> 0 | J83: =T('REHAB ESTIMATOR'!W71:X71) ->  | K83: ='REHAB ESTIMATOR'!AH71 -> $0 | L83: $0 | M83: $0 | N83: $0 | P83: 0 | U83: ='REHAB ESTIMATOR'!AH71 -> $0.00 | V83: ='REHAB ESTIMATOR'!AK71 -> $0.00 | W83: ='REHAB ESTIMATOR'!AN71 -> $0.00
C84: =T('REHAB ESTIMATOR'!B72:S72) ->  | I84: ='REHAB ESTIMATOR'!T72 -> 0 | J84: =T('REHAB ESTIMATOR'!W72:X72) ->  | K84: ='REHAB ESTIMATOR'!AH72 -> $0 | L84: $0 | M84: $0 | N84: $0 | P84: 0 | U84: ='REHAB ESTIMATOR'!AH72 -> $0.00 | V84: ='REHAB ESTIMATOR'!AK72 -> $0.00 | W84: ='REHAB ESTIMATOR'!AN72 -> $0.00
C85: =T('REHAB ESTIMATOR'!B73:S73) -> Foundation | I85: ='REHAB ESTIMATOR'!T73 -> 0 | J85: =T('REHAB ESTIMATOR'!W73:X73) ->  | K85: ='REHAB ESTIMATOR'!AH73 -> $0 | L85: $0 | M85: $0 | N85: $0 | P85: =I85 -> 0 | U85: ='REHAB ESTIMATOR'!AH73 -> $0.00 | V85: ='REHAB ESTIMATOR'!AK73 -> $0.00 | W85: ='REHAB ESTIMATOR'!AN73 -> $0.00
C86: =T('REHAB ESTIMATOR'!B74:S74) -> Foundation bid/allowance | I86: ='REHAB ESTIMATOR'!T74 -> 0 | J86: =T('REHAB ESTIMATOR'!W74:X74) -> ls | K86: ='REHAB ESTIMATOR'!AH74 -> $0 | L86: $0 | M86: $0 | N86: $0 | P86: 0 | U86: ='REHAB ESTIMATOR'!AH74 -> $0.00 | V86: ='REHAB ESTIMATOR'!AK74 -> $0.00 | W86: ='REHAB ESTIMATOR'!AN74 -> $0.00
C87: =T('REHAB ESTIMATOR'!B75:S75) -> Concrete slab on grade, 4" thick | I87: ='REHAB ESTIMATOR'!T75 -> 0 | J87: =T('REHAB ESTIMATOR'!W75:X75) -> sf | K87: ='REHAB ESTIMATOR'!AH75 -> $0 | L87: $0 | M87: $0 | N87: $0 | P87: 0 | U87: ='REHAB ESTIMATOR'!AH75 -> $0.00 | V87: ='REHAB ESTIMATOR'!AK75 -> $0.00 | W87: ='REHAB ESTIMATOR'!AN75 -> $0.00
C88: =T('REHAB ESTIMATOR'!B76:S76) -> Concrete footing, 12" wide | I88: ='REHAB ESTIMATOR'!T76 -> 0 | J88: =T('REHAB ESTIMATOR'!W76:X76) -> lf | K88: ='REHAB ESTIMATOR'!AH76 -> $0 | L88: $0 | M88: $0 | N88: $0 | P88: 0 | U88: ='REHAB ESTIMATOR'!AH76 -> $0.00 | V88: ='REHAB ESTIMATOR'!AK76 -> $0.00 | W88: ='REHAB ESTIMATOR'!AN76 -> $0.00
C89: =T('REHAB ESTIMATOR'!B77:S77) -> Stem wall, single story | I89: ='REHAB ESTIMATOR'!T77 -> 0 | J89: =T('REHAB ESTIMATOR'!W77:X77) -> lf | K89: ='REHAB ESTIMATOR'!AH77 -> $0 | L89: $0 | M89: $0 | N89: $0 | P89: 0 | U89: ='REHAB ESTIMATOR'!AH77 -> $0.00 | V89: ='REHAB ESTIMATOR'!AK77 -> $0.00 | W89: ='REHAB ESTIMATOR'!AN77 -> $0.00
C90: =T('REHAB ESTIMATOR'!B78:S78) ->  | I90: ='REHAB ESTIMATOR'!T78 -> 0 | J90: =T('REHAB ESTIMATOR'!W78:X78) ->  | K90: ='REHAB ESTIMATOR'!AH78 -> $0 | L90: $0 | M90: $0 | N90: $0 | P90: 0 | U90: ='REHAB ESTIMATOR'!AH78 -> $0.00 | V90: ='REHAB ESTIMATOR'!AK78 -> $0.00 | W90: ='REHAB ESTIMATOR'!AN78 -> $0.00
C91: =T('REHAB ESTIMATOR'!B79:S79) ->  | I91: ='REHAB ESTIMATOR'!T79 -> 0 | J91: =T('REHAB ESTIMATOR'!W79:X79) ->  | K91: ='REHAB ESTIMATOR'!AH79 -> $0 | L91: $0 | M91: $0 | N91: $0 | P91: 0 | U91: ='REHAB ESTIMATOR'!AH79 -> $0.00 | V91: ='REHAB ESTIMATOR'!AK79 -> $0.00 | W91: ='REHAB ESTIMATOR'!AN79 -> $0.00
C92: =T('REHAB ESTIMATOR'!B80:S80) -> Structural Repairs | I92: ='REHAB ESTIMATOR'!T80 -> 0 | J92: =T('REHAB ESTIMATOR'!W80:X80) ->  | K92: ='REHAB ESTIMATOR'!AH80 -> $0 | L92: $0 | M92: $0 | N92: $0 | P92: =I92 -> 0 | U92: ='REHAB ESTIMATOR'!AH80 -> $0.00 | V92: ='REHAB ESTIMATOR'!AK80 -> $0.00 | W92: ='REHAB ESTIMATOR'!AN80 -> $0.00
C93: =T('REHAB ESTIMATOR'!B81:S81) -> Structural Repairs bid/allowance | I93: ='REHAB ESTIMATOR'!T81 -> 0 | J93: =T('REHAB ESTIMATOR'!W81:X81) -> ls | K93: ='REHAB ESTIMATOR'!AH81 -> $0 | L93: $0 | M93: $0 | N93: $0 | P93: 0 | U93: ='REHAB ESTIMATOR'!AH81 -> $0.00 | V93: ='REHAB ESTIMATOR'!AK81 -> $0.00 | W93: ='REHAB ESTIMATOR'!AN81 -> $0.00
C94: =T('REHAB ESTIMATOR'!B82:S82) -> Stair mud jacking, case by case | I94: ='REHAB ESTIMATOR'!T82 -> 0 | J94: =T('REHAB ESTIMATOR'!W82:X82) -> ea | K94: ='REHAB ESTIMATOR'!AH82 -> $0 | L94: $0 | M94: $0 | N94: $0 | P94: 0 | U94: ='REHAB ESTIMATOR'!AH82 -> $0.00 | V94: ='REHAB ESTIMATOR'!AK82 -> $0.00 | W94: ='REHAB ESTIMATOR'!AN82 -> $0.00
C95: =T('REHAB ESTIMATOR'!B83:S83) -> Bowing foundation walls, vertical I-Beams | I95: ='REHAB ESTIMATOR'!T83 -> 0 | J95: =T('REHAB ESTIMATOR'!W83:X83) -> ea | K95: ='REHAB ESTIMATOR'!AH83 -> $0 | L95: $0 | M95: $0 | N95: $0 | P95: 0 | U95: ='REHAB ESTIMATOR'!AH83 -> $0.00 | V95: ='REHAB ESTIMATOR'!AK83 -> $0.00 | W95: ='REHAB ESTIMATOR'!AN83 -> $0.00
C96: =T('REHAB ESTIMATOR'!B84:S84) -> Settled foundation walls, concrete piers/underpinning | I96: ='REHAB ESTIMATOR'!T84 -> 0 | J96: =T('REHAB ESTIMATOR'!W84:X84) -> ea | K96: ='REHAB ESTIMATOR'!AH84 -> $0 | L96: $0 | M96: $0 | N96: $0 | P96: 0 | U96: ='REHAB ESTIMATOR'!AH84 -> $0.00 | V96: ='REHAB ESTIMATOR'!AK84 -> $0.00 | W96: ='REHAB ESTIMATOR'!AN84 -> $0.00
C97: =T('REHAB ESTIMATOR'!B85:S85) -> Foundation waterproofing & drain tile, single story | I97: ='REHAB ESTIMATOR'!T85 -> 0 | J97: =T('REHAB ESTIMATOR'!W85:X85) -> lf | K97: ='REHAB ESTIMATOR'!AH85 -> $0 | L97: $0 | M97: $0 | N97: $0 | P97: 0 | U97: ='REHAB ESTIMATOR'!AH85 -> $0.00 | V97: ='REHAB ESTIMATOR'!AK85 -> $0.00 | W97: ='REHAB ESTIMATOR'!AN85 -> $0.00
C98: =T('REHAB ESTIMATOR'!B86:S86) -> Epoxy crack injection | I98: ='REHAB ESTIMATOR'!T86 -> 0 | J98: =T('REHAB ESTIMATOR'!W86:X86) -> lf | K98: ='REHAB ESTIMATOR'!AH86 -> $0 | L98: $0 | M98: $0 | N98: $0 | P98: 0 | U98: ='REHAB ESTIMATOR'!AH86 -> $0.00 | V98: ='REHAB ESTIMATOR'!AK86 -> $0.00 | W98: ='REHAB ESTIMATOR'!AN86 -> $0.00
P99: =P100 -> 0
C100: =T('REHAB ESTIMATOR'!AG88) -> STRUCTURAL CONCRETE TOTAL | K100: =SUM(K79:K99) -> $0 | L100: =SUM(L79:L99) -> $0 | M100: =SUM(M79:M99) -> $0 | N100: =SUM(N79:O99) -> $0 | P100: =SUM(P78:P98) -> 0 | U100: =SUM(U79:U99) -> $0.00 | V100: =SUM(V79:V99) -> $0.00 | W100: =SUM(W79:W99) -> $0.00
P101: =P102 -> 0
P102: =P100 -> 0
C103: =T('REHAB ESTIMATOR'!B91:S91) -> CONCRETE & FLATWORK | I103: =SUM(I104:I121) -> 0 | P103: 0
C104: =T('REHAB ESTIMATOR'!B92:S92) -> Concrete | I104: ='REHAB ESTIMATOR'!T92 -> 0 | J104: =T('REHAB ESTIMATOR'!W92:X92) ->  | K104: ='REHAB ESTIMATOR'!AH92 -> $0 | L104: =V104 -> $0 | M104: =W104 -> $0 | N104: =SUM(K104:M104) -> $0 | P104: 0 | U104: ='REHAB ESTIMATOR'!AH92 -> $0.00 | V104: ='REHAB ESTIMATOR'!AK92 -> $0.00 | W104: ='REHAB ESTIMATOR'!AN92 -> $0.00
C105: =T('REHAB ESTIMATOR'!B93:S93) -> Concrete bid/allowance | I105: ='REHAB ESTIMATOR'!T93 -> 0 | J105: =T('REHAB ESTIMATOR'!W93:X93) -> ls | K105: ='REHAB ESTIMATOR'!AH93 -> $0 | L105: $0 | M105: $0 | N105: =SUM(K105:M105) -> $0 | P105: 0 | U105: ='REHAB ESTIMATOR'!AH93 -> $0.00 | V105: ='REHAB ESTIMATOR'!AK93 -> $0.00 | W105: ='REHAB ESTIMATOR'!AN93 -> $0.00
C106: =T('REHAB ESTIMATOR'!B94:S94) -> Concrete flatwork demo | I106: ='REHAB ESTIMATOR'!T94 -> 0 | J106: =T('REHAB ESTIMATOR'!W94:X94) -> sf | K106: ='REHAB ESTIMATOR'!AH94 -> $0 | L106: $0 | M106: $0 | N106: $0 | P106: 0 | U106: ='REHAB ESTIMATOR'!AH94 -> $0.00 | V106: ='REHAB ESTIMATOR'!AK94 -> $0.00 | W106: ='REHAB ESTIMATOR'!AN94 -> $0.00
C107: =T('REHAB ESTIMATOR'!B95:S95) -> Concrete driveway/patio, 6" thick | I107: ='REHAB ESTIMATOR'!T95 -> 0 | J107: =T('REHAB ESTIMATOR'!W95:X95) -> sf | K107: ='REHAB ESTIMATOR'!AH95 -> $0 | L107: $0 | M107: $0 | N107: $0 | P107: 0 | U107: ='REHAB ESTIMATOR'!AH95 -> $0.00 | V107: ='REHAB ESTIMATOR'!AK95 -> $0.00 | W107: ='REHAB ESTIMATOR'!AN95 -> $0.00
C108: =T('REHAB ESTIMATOR'!B96:S96) -> Concrete sidewalk, 4" thick | I108: ='REHAB ESTIMATOR'!T96 -> 0 | J108: =T('REHAB ESTIMATOR'!W96:X96) -> sf | K108: ='REHAB ESTIMATOR'!AH96 -> $0 | L108: $0 | M108: $0 | N108: $0 | P108: 0 | U108: ='REHAB ESTIMATOR'!AH96 -> $0.00 | V108: ='REHAB ESTIMATOR'!AK96 -> $0.00 | W108: ='REHAB ESTIMATOR'!AN96 -> $0.00
C109: =T('REHAB ESTIMATOR'!B97:S97) -> Add for 4" base rock below concrete pavement | I109: ='REHAB ESTIMATOR'!T97 -> 0 | J109: =T('REHAB ESTIMATOR'!W97:X97) -> sf | K109: ='REHAB ESTIMATOR'!AH97 -> $0 | L109: $0 | M109: $0 | N109: $0 | P109: 0 | U109: ='REHAB ESTIMATOR'!AH97 -> $0.00 | V109: ='REHAB ESTIMATOR'!AK97 -> $0.00 | W109: ='REHAB ESTIMATOR'!AN97 -> $0.00
C110: =T('REHAB ESTIMATOR'!B98:S98) ->  | I110: ='REHAB ESTIMATOR'!T98 -> 0 | J110: =T('REHAB ESTIMATOR'!W98:X98) ->  | K110: ='REHAB ESTIMATOR'!AH98 -> $0 | L110: $0 | M110: $0 | N110: $0 | P110: 0 | U110: ='REHAB ESTIMATOR'!AH98 -> $0.00 | V110: ='REHAB ESTIMATOR'!AK98 -> $0.00 | W110: ='REHAB ESTIMATOR'!AN98 -> $0.00
C111: =T('REHAB ESTIMATOR'!B99:S99) -> Asphalt | I111: ='REHAB ESTIMATOR'!T99 -> 0 | J111: =T('REHAB ESTIMATOR'!W99:X99) ->  | K111: ='REHAB ESTIMATOR'!AH99 -> $0 | L111: $0 | M111: $0 | N111: $0 | P111: 0 | U111: ='REHAB ESTIMATOR'!AH99 -> $0.00 | V111: ='REHAB ESTIMATOR'!AK99 -> $0.00 | W111: ='REHAB ESTIMATOR'!AN99 -> $0.00
C112: =T('REHAB ESTIMATOR'!B100:S100) -> Asphalt bid/allowance | I112: ='REHAB ESTIMATOR'!T100 -> 0 | J112: =T('REHAB ESTIMATOR'!W100:X100) -> ls | K112: ='REHAB ESTIMATOR'!AH100 -> $0 | L112: $0 | M112: $0 | N112: $0 | P112: 0 | U112: ='REHAB ESTIMATOR'!AH100 -> $0.00 | V112: ='REHAB ESTIMATOR'!AK100 -> $0.00 | W112: ='REHAB ESTIMATOR'!AN100 -> $0.00
C113: =T('REHAB ESTIMATOR'!B101:S101) -> Asphalt pavement, 5" thick | I113: ='REHAB ESTIMATOR'!T101 -> 0 | J113: =T('REHAB ESTIMATOR'!W101:X101) -> sy | K113: ='REHAB ESTIMATOR'!AH101 -> $0 | L113: $0 | M113: $0 | N113: $0 | P113: 0 | U113: ='REHAB ESTIMATOR'!AH101 -> $0.00 | V113: ='REHAB ESTIMATOR'!AK101 -> $0.00 | W113: ='REHAB ESTIMATOR'!AN101 -> $0.00
C114: =T('REHAB ESTIMATOR'!B102:S102) -> Asphalt pavement, 7" thick | I114: ='REHAB ESTIMATOR'!T102 -> 0 | J114: =T('REHAB ESTIMATOR'!W102:X102) -> sy | K114: ='REHAB ESTIMATOR'!AH102 -> $0 | L114: $0 | M114: $0 | N114: $0 | P114: 0 | U114: ='REHAB ESTIMATOR'!AH102 -> $0.00 | V114: ='REHAB ESTIMATOR'!AK102 -> $0.00 | W114: ='REHAB ESTIMATOR'!AN102 -> $0.00
C115: =T('REHAB ESTIMATOR'!B103:S103) -> Asphalt pavement, wearing course, 1" thick only | I115: ='REHAB ESTIMATOR'!T103 -> 0 | J115: =T('REHAB ESTIMATOR'!W103:X103) -> sy | K115: ='REHAB ESTIMATOR'!AH103 -> $0 | L115: $0 | M115: $0 | N115: $0 | P115: 0 | U115: ='REHAB ESTIMATOR'!AH103 -> $0.00 | V115: ='REHAB ESTIMATOR'!AK103 -> $0.00 | W115: ='REHAB ESTIMATOR'!AN103 -> $0.00
C116: =T('REHAB ESTIMATOR'!B104:S104) -> Asphalt seal coat | I116: ='REHAB ESTIMATOR'!T104 -> 0 | J116: =T('REHAB ESTIMATOR'!W104:X104) -> sy | K116: ='REHAB ESTIMATOR'!AH104 -> $0 | L116: $0 | M116: $0 | N116: $0 | P116: 0 | U116: ='REHAB ESTIMATOR'!AH104 -> $0.00 | V116: ='REHAB ESTIMATOR'!AK104 -> $0.00 | W116: ='REHAB ESTIMATOR'!AN104 -> $0.00
C117: =T('REHAB ESTIMATOR'!B105:S105) -> Add for 4" base rock below asphalt pavement | I117: ='REHAB ESTIMATOR'!T105 -> 0 | J117: =T('REHAB ESTIMATOR'!W105:X105) -> sy | K117: ='REHAB ESTIMATOR'!AH105 -> $0 | L117: $0 | M117: $0 | N117: $0 | P117: 0 | U117: ='REHAB ESTIMATOR'!AH105 -> $0.00 | V117: ='REHAB ESTIMATOR'!AK105 -> $0.00 | W117: ='REHAB ESTIMATOR'!AN105 -> $0.00
C118: =T('REHAB ESTIMATOR'!B106:S106) ->  | I118: ='REHAB ESTIMATOR'!T106 -> 0 | J118: =T('REHAB ESTIMATOR'!W106:X106) ->  | K118: ='REHAB ESTIMATOR'!AH106 -> $0 | L118: $0 | M118: $0 | N118: $0 | P118: 0 | U118: ='REHAB ESTIMATOR'!AH106 -> $0.00 | V118: ='REHAB ESTIMATOR'!AK106 -> $0.00 | W118: ='REHAB ESTIMATOR'!AN106 -> $0.00
C119: =T('REHAB ESTIMATOR'!B107:S107) -> Pavers | I119: ='REHAB ESTIMATOR'!T107 -> 0 | J119: =T('REHAB ESTIMATOR'!W107:X107) ->  | K119: ='REHAB ESTIMATOR'!AH107 -> $0 | L119: $0 | M119: $0 | N119: $0 | P119: 0 | U119: ='REHAB ESTIMATOR'!AH107 -> $0.00 | V119: ='REHAB ESTIMATOR'!AK107 -> $0.00 | W119: ='REHAB ESTIMATOR'!AN107 -> $0.00
C120: =T('REHAB ESTIMATOR'!B108:S108) -> Pavers bid/allowance | I120: ='REHAB ESTIMATOR'!T108 -> 0 | J120: =T('REHAB ESTIMATOR'!W108:X108) -> ls | K120: ='REHAB ESTIMATOR'!AH108 -> $0 | L120: $0 | M120: $0 | N120: $0 | P120: 0 | U120: ='REHAB ESTIMATOR'!AH108 -> $0.00 | V120: ='REHAB ESTIMATOR'!AK108 -> $0.00 | W120: ='REHAB ESTIMATOR'!AN108 -> $0.00
C121: =T('REHAB ESTIMATOR'!B109:S109) -> Brick pavers, sand base | I121: ='REHAB ESTIMATOR'!T109 -> 0 | J121: =T('REHAB ESTIMATOR'!W109:X109) -> sf | K121: ='REHAB ESTIMATOR'!AH109 -> $0 | L121: $0 | M121: $0 | N121: $0 | P121: 0 | U121: ='REHAB ESTIMATOR'!AH109 -> $0.00 | V121: ='REHAB ESTIMATOR'!AK109 -> $0.00 | W121: ='REHAB ESTIMATOR'!AN109 -> $0.00
C122: =T('REHAB ESTIMATOR'!B110:S110) -> Brick pavers, mortar base | I122: ='REHAB ESTIMATOR'!T110 -> 0 | J122: =T('REHAB ESTIMATOR'!W110:X110) -> sf | K122: ='REHAB ESTIMATOR'!AH110 -> $0 | L122: $0 | M122: $0 | N122: $0 | P122: 0 | U122: ='REHAB ESTIMATOR'!AH110 -> $0.00 | V122: ='REHAB ESTIMATOR'!AK110 -> $0.00 | W122: ='REHAB ESTIMATOR'!AN110 -> $0.00
C123: =T('REHAB ESTIMATOR'!B111:S111) ->  | I123: ='REHAB ESTIMATOR'!T111 -> 0 | J123: =T('REHAB ESTIMATOR'!W111:X111) ->  | K123: ='REHAB ESTIMATOR'!AH111 -> $0 | L123: $0 | M123: $0 | N123: $0 | P123: 0 | U123: ='REHAB ESTIMATOR'!AH111 -> $0.00 | V123: ='REHAB ESTIMATOR'!AK111 -> $0.00 | W123: ='REHAB ESTIMATOR'!AN111 -> $0.00
P124: =P125 -> 0
C125: =T('REHAB ESTIMATOR'!AG113) -> CONCRETE & FLATWORK TOTAL | K125: =SUM(K104:K124) -> $0 | L125: =SUM(L104:L124) -> $0 | M125: =SUM(M104:M124) -> $0 | N125: =SUM(N104:O124) -> $0 | P125: =SUM(P103:P113) -> 0 | U125: =SUM(U104:U124) -> $0.00 | V125: =SUM(V104:V124) -> $0.00 | W125: =SUM(W104:W124) -> $0.00
P126: =P127 -> 0
P127: =P125 -> 0
C128: =T('REHAB ESTIMATOR'!B116:S116) -> MASONRY | I128: =SUM(I129:I146) -> 0 | P128: 0
C129: =T('REHAB ESTIMATOR'!B117:S117) -> Masonry bid/allowance | I129: ='REHAB ESTIMATOR'!T117 -> 0 | J129: =T('REHAB ESTIMATOR'!W117:X117) -> ls | K129: ='REHAB ESTIMATOR'!AH117 -> $0 | L129: =V129 -> $0 | M129: =W129 -> $0 | N129: =SUM(K129:M129) -> $0 | P129: 0 | U129: ='REHAB ESTIMATOR'!AH117 -> $0.00 | V129: ='REHAB ESTIMATOR'!AK117 -> $0.00 | W129: ='REHAB ESTIMATOR'!AN117 -> $0.00
C130: =T('REHAB ESTIMATOR'!B118:S118) -> CMU, 4x8 | I130: ='REHAB ESTIMATOR'!T118 -> 0 | J130: =T('REHAB ESTIMATOR'!W118:X118) -> sf | K130: ='REHAB ESTIMATOR'!AH118 -> $0 | L130: $0 | M130: $0 | N130: =SUM(K130:M130) -> $0 | P130: 0 | U130: ='REHAB ESTIMATOR'!AH118 -> $0.00 | V130: ='REHAB ESTIMATOR'!AK118 -> $0.00 | W130: ='REHAB ESTIMATOR'!AN118 -> $0.00
C131: =T('REHAB ESTIMATOR'!B119:S119) -> CMU, 8x8 | I131: ='REHAB ESTIMATOR'!T119 -> 0 | J131: =T('REHAB ESTIMATOR'!W119:X119) -> sf | K131: ='REHAB ESTIMATOR'!AH119 -> $0 | L131: $0 | M131: $0 | N131: $0 | P131: 0 | U131: ='REHAB ESTIMATOR'!AH119 -> $0.00 | V131: ='REHAB ESTIMATOR'!AK119 -> $0.00 | W131: ='REHAB ESTIMATOR'!AN119 -> $0.00
C132: =T('REHAB ESTIMATOR'!B120:S120) -> Brick veneer | I132: ='REHAB ESTIMATOR'!T120 -> 0 | J132: =T('REHAB ESTIMATOR'!W120:X120) -> sf | K132: ='REHAB ESTIMATOR'!AH120 -> $0 | L132: $0 | M132: $0 | N132: $0 | P132: 0 | U132: ='REHAB ESTIMATOR'!AH120 -> $0.00 | V132: ='REHAB ESTIMATOR'!AK120 -> $0.00 | W132: ='REHAB ESTIMATOR'!AN120 -> $0.00
C133: =T('REHAB ESTIMATOR'!B121:S121) -> Natural stone | I133: ='REHAB ESTIMATOR'!T121 -> 0 | J133: =T('REHAB ESTIMATOR'!W121:X121) -> sf | K133: ='REHAB ESTIMATOR'!AH121 -> $0 | L133: $0 | M133: $0 | N133: $0 | P133: 0 | U133: ='REHAB ESTIMATOR'!AH121 -> $0.00 | V133: ='REHAB ESTIMATOR'!AK121 -> $0.00 | W133: ='REHAB ESTIMATOR'!AN121 -> $0.00
C134: =T('REHAB ESTIMATOR'!B122:S122) -> Masonry waterproofing | I134: ='REHAB ESTIMATOR'!T122 -> 0 | J134: =T('REHAB ESTIMATOR'!W122:X122) -> sf | K134: ='REHAB ESTIMATOR'!AH122 -> $0 | L134: $0 | M134: $0 | N134: $0 | P134: 0 | U134: ='REHAB ESTIMATOR'!AH122 -> $0.00 | V134: ='REHAB ESTIMATOR'!AK122 -> $0.00 | W134: ='REHAB ESTIMATOR'!AN122 -> $0.00
C135: =T('REHAB ESTIMATOR'!B123:S123) -> Tuck-point masonry | I135: ='REHAB ESTIMATOR'!T123 -> 0 | J135: =T('REHAB ESTIMATOR'!W123:X123) -> sf | K135: ='REHAB ESTIMATOR'!AH123 -> $0 | L135: $0 | M135: $0 | N135: $0 | P135: 0 | U135: ='REHAB ESTIMATOR'!AH123 -> $0.00 | V135: ='REHAB ESTIMATOR'!AK123 -> $0.00 | W135: ='REHAB ESTIMATOR'!AN123 -> $0.00
C136: =T('REHAB ESTIMATOR'!B124:S124) -> Power wash masonry | I136: ='REHAB ESTIMATOR'!T124 -> 0 | J136: =T('REHAB ESTIMATOR'!W124:X124) -> sf | K136: ='REHAB ESTIMATOR'!AH124 -> $0 | L136: $0 | M136: $0 | N136: $0 | P136: 0 | U136: ='REHAB ESTIMATOR'!AH124 -> $0.00 | V136: ='REHAB ESTIMATOR'!AK124 -> $0.00 | W136: ='REHAB ESTIMATOR'!AN124 -> $0.00
C137: =T('REHAB ESTIMATOR'!B125:S125) -> Chimney, brick | I137: ='REHAB ESTIMATOR'!T125 -> 0 | J137: =T('REHAB ESTIMATOR'!W125:X125) -> vlf | K137: ='REHAB ESTIMATOR'!AH125 -> $0 | L137: $0 | M137: $0 | N137: $0 | P137: 0 | U137: ='REHAB ESTIMATOR'!AH125 -> $0.00 | V137: ='REHAB ESTIMATOR'!AK125 -> $0.00 | W137: ='REHAB ESTIMATOR'!AN125 -> $0.00
C138: =T('REHAB ESTIMATOR'!B126:S126) -> Chimney, stone | I138: ='REHAB ESTIMATOR'!T126 -> 0 | J138: =T('REHAB ESTIMATOR'!W126:X126) -> vlf | K138: ='REHAB ESTIMATOR'!AH126 -> $0 | L138: $0 | M138: $0 | N138: $0 | P138: 0 | U138: ='REHAB ESTIMATOR'!AH126 -> $0.00 | V138: ='REHAB ESTIMATOR'!AK126 -> $0.00 | W138: ='REHAB ESTIMATOR'!AN126 -> $0.00
C139: =T('REHAB ESTIMATOR'!B127:S127) -> Add to above for chimney cap | I139: ='REHAB ESTIMATOR'!T127 -> 0 | J139: =T('REHAB ESTIMATOR'!W127:X127) -> ea | K139: ='REHAB ESTIMATOR'!AH127 -> $0 | L139: $0 | M139: $0 | N139: $0 | P139: 0 | U139: ='REHAB ESTIMATOR'!AH127 -> $0.00 | V139: ='REHAB ESTIMATOR'!AK127 -> $0.00 | W139: ='REHAB ESTIMATOR'!AN127 -> $0.00
C140: =T('REHAB ESTIMATOR'!B128:S128) -> Fireplace complete, brick, 3ft-4ft wide w/ chimney | I140: ='REHAB ESTIMATOR'!T128 -> 0 | J140: =T('REHAB ESTIMATOR'!W128:X128) -> ea | K140: ='REHAB ESTIMATOR'!AH128 -> $0 | L140: $0 | M140: $0 | N140: $0 | P140: 0 | U140: ='REHAB ESTIMATOR'!AH128 -> $0.00 | V140: ='REHAB ESTIMATOR'!AK128 -> $0.00 | W140: ='REHAB ESTIMATOR'!AN128 -> $0.00
C141: =T('REHAB ESTIMATOR'!B129:S129) ->  | I141: ='REHAB ESTIMATOR'!T129 -> 0 | J141: =T('REHAB ESTIMATOR'!W129:X129) ->  | K141: ='REHAB ESTIMATOR'!AH129 -> $0 | L141: $0 | M141: $0 | N141: $0 | P141: =I141 -> 0 | U141: ='REHAB ESTIMATOR'!AH129 -> $0.00 | V141: ='REHAB ESTIMATOR'!AK129 -> $0.00 | W141: ='REHAB ESTIMATOR'!AN129 -> $0.00
C142: =T('REHAB ESTIMATOR'!B130:S130) ->  | I142: ='REHAB ESTIMATOR'!T130 -> 0 | J142: =T('REHAB ESTIMATOR'!W130:X130) ->  | K142: ='REHAB ESTIMATOR'!AH130 -> $0 | L142: $0 | M142: $0 | N142: $0 | P142: 0 | U142: ='REHAB ESTIMATOR'!AH130 -> $0.00 | V142: ='REHAB ESTIMATOR'!AK130 -> $0.00 | W142: ='REHAB ESTIMATOR'!AN130 -> $0.00
C143: =T('REHAB ESTIMATOR'!B131:S131) ->  | I143: ='REHAB ESTIMATOR'!T131 -> 0 | J143: =T('REHAB ESTIMATOR'!W131:X131) ->  | K143: ='REHAB ESTIMATOR'!AH131 -> $0 | L143: $0 | M143: $0 | N143: $0 | P143: 0 | U143: ='REHAB ESTIMATOR'!AH131 -> $0.00 | V143: ='REHAB ESTIMATOR'!AK131 -> $0.00 | W143: ='REHAB ESTIMATOR'!AN131 -> $0.00
C144: =T('REHAB ESTIMATOR'!B132:S132) ->  | I144: ='REHAB ESTIMATOR'!T132 -> 0 | J144: =T('REHAB ESTIMATOR'!W132:X132) ->  | K144: ='REHAB ESTIMATOR'!AH132 -> $0 | L144: $0 | M144: $0 | N144: $0 | P144: 0 | U144: ='REHAB ESTIMATOR'!AH132 -> $0.00 | V144: ='REHAB ESTIMATOR'!AK132 -> $0.00 | W144: ='REHAB ESTIMATOR'!AN132 -> $0.00
C145: =T('REHAB ESTIMATOR'!B133:S133) ->  | I145: ='REHAB ESTIMATOR'!T133 -> 0 | J145: =T('REHAB ESTIMATOR'!W133:X133) ->  | K145: ='REHAB ESTIMATOR'!AH133 -> $0 | L145: $0 | M145: $0 | N145: $0 | P145: 0 | U145: ='REHAB ESTIMATOR'!AH133 -> $0.00 | V145: ='REHAB ESTIMATOR'!AK133 -> $0.00 | W145: ='REHAB ESTIMATOR'!AN133 -> $0.00
C146: =T('REHAB ESTIMATOR'!B134:S134) ->  | I146: ='REHAB ESTIMATOR'!T134 -> 0 | J146: =T('REHAB ESTIMATOR'!W134:X134) ->  | K146: ='REHAB ESTIMATOR'!AH134 -> $0 | L146: $0 | M146: $0 | N146: $0 | P146: 0 | U146: ='REHAB ESTIMATOR'!AH134 -> $0.00 | V146: ='REHAB ESTIMATOR'!AK134 -> $0.00 | W146: ='REHAB ESTIMATOR'!AN134 -> $0.00
C147: =T('REHAB ESTIMATOR'!B135:S135) ->  | I147: ='REHAB ESTIMATOR'!T135 -> 0 | J147: =T('REHAB ESTIMATOR'!W135:X135) ->  | K147: ='REHAB ESTIMATOR'!AH135 -> $0 | L147: $0 | M147: $0 | N147: $0 | P147: 0 | U147: ='REHAB ESTIMATOR'!AH135 -> $0.00 | V147: ='REHAB ESTIMATOR'!AK135 -> $0.00 | W147: ='REHAB ESTIMATOR'!AN135 -> $0.00
C148: =T('REHAB ESTIMATOR'!B136:S136) ->  | I148: ='REHAB ESTIMATOR'!T136 -> 0 | J148: =T('REHAB ESTIMATOR'!W136:X136) ->  | K148: ='REHAB ESTIMATOR'!AH136 -> $0 | L148: $0 | M148: $0 | N148: $0 | P148: 0 | U148: ='REHAB ESTIMATOR'!AH136 -> $0.00 | V148: ='REHAB ESTIMATOR'!AK136 -> $0.00 | W148: ='REHAB ESTIMATOR'!AN136 -> $0.00
P149: =P150 -> 0
C150: =T('REHAB ESTIMATOR'!AG138) -> MASONRY TOTAL | K150: =SUM(K129:K149) -> $0 | L150: =SUM(L129:L149) -> $0 | M150: =SUM(M129:M149) -> $0 | N150: =SUM(N129:O149) -> $0 | P150: =SUM(P128:P143) -> 0 | U150: =SUM(U129:U149) -> $0.00 | V150: =SUM(V129:V149) -> $0.00 | W150: =SUM(W129:W149) -> $0.00
P151: =P152 -> 0
P152: =P150 -> 0
C153: =T('REHAB ESTIMATOR'!B141:S141) -> SIDING | I153: =SUM(I154:I171) -> 0 | P153: 0
C154: =T('REHAB ESTIMATOR'!B142:S142) -> Siding bid/allowance | I154: ='REHAB ESTIMATOR'!T142 -> 0 | J154: =T('REHAB ESTIMATOR'!W142:X142) -> ls | K154: ='REHAB ESTIMATOR'!AH142 -> $0 | L154: =V154 -> $0 | M154: =W154 -> $0 | N154: =SUM(K154:M154) -> $0 | P154: 0 | U154: ='REHAB ESTIMATOR'!AH142 -> $0.00 | V154: ='REHAB ESTIMATOR'!AK142 -> $0.00 | W154: ='REHAB ESTIMATOR'!AN142 -> $0.00
C155: =T('REHAB ESTIMATOR'!B143:S143) -> Demo existing siding | I155: ='REHAB ESTIMATOR'!T143 -> 0 | J155: =T('REHAB ESTIMATOR'!W143:X143) -> sf | K155: ='REHAB ESTIMATOR'!AH143 -> $0 | L155: $0 | M155: $0 | N155: =SUM(K155:M155) -> $0 | P155: 0 | U155: ='REHAB ESTIMATOR'!AH143 -> $0.00 | V155: ='REHAB ESTIMATOR'!AK143 -> $0.00 | W155: ='REHAB ESTIMATOR'!AN143 -> $0.00
C156: =T('REHAB ESTIMATOR'!B144:S144) -> Plywood panel, douglas fir | I156: ='REHAB ESTIMATOR'!T144 -> 0 | J156: =T('REHAB ESTIMATOR'!W144:X144) -> sf | K156: ='REHAB ESTIMATOR'!AH144 -> $0 | L156: $0 | M156: $0 | N156: $0 | P156: 0 | U156: ='REHAB ESTIMATOR'!AH144 -> $0.00 | V156: ='REHAB ESTIMATOR'!AK144 -> $0.00 | W156: ='REHAB ESTIMATOR'!AN144 -> $0.00
C157: =T('REHAB ESTIMATOR'!B145:S145) -> Plywood panel, cedar | I157: ='REHAB ESTIMATOR'!T145 -> 0 | J157: =T('REHAB ESTIMATOR'!W145:X145) -> sf | K157: ='REHAB ESTIMATOR'!AH145 -> $0 | L157: $0 | M157: $0 | N157: $0 | P157: 0 | U157: ='REHAB ESTIMATOR'!AH145 -> $0.00 | V157: ='REHAB ESTIMATOR'!AK145 -> $0.00 | W157: ='REHAB ESTIMATOR'!AN145 -> $0.00
C158: =T('REHAB ESTIMATOR'!B146:S146) -> Tongue and groove, douglas fir | I158: ='REHAB ESTIMATOR'!T146 -> 0 | J158: =T('REHAB ESTIMATOR'!W146:X146) -> sf | K158: ='REHAB ESTIMATOR'!AH146 -> $0 | L158: $0 | M158: $0 | N158: $0 | P158: 0 | U158: ='REHAB ESTIMATOR'!AH146 -> $0.00 | V158: ='REHAB ESTIMATOR'!AK146 -> $0.00 | W158: ='REHAB ESTIMATOR'!AN146 -> $0.00
C159: =T('REHAB ESTIMATOR'!B147:S147) -> Tongue and groove, cedar | I159: ='REHAB ESTIMATOR'!T147 -> 0 | J159: =T('REHAB ESTIMATOR'!W147:X147) -> sf | K159: ='REHAB ESTIMATOR'!AH147 -> $0 | L159: $0 | M159: $0 | N159: $0 | P159: 0 | U159: ='REHAB ESTIMATOR'!AH147 -> $0.00 | V159: ='REHAB ESTIMATOR'!AK147 -> $0.00 | W159: ='REHAB ESTIMATOR'!AN147 -> $0.00
C160: =T('REHAB ESTIMATOR'!B148:S148) -> Board and batten, douglas fir | I160: ='REHAB ESTIMATOR'!T148 -> 0 | J160: =T('REHAB ESTIMATOR'!W148:X148) -> sf | K160: ='REHAB ESTIMATOR'!AH148 -> $0 | L160: $0 | M160: $0 | N160: $0 | P160: 0 | U160: ='REHAB ESTIMATOR'!AH148 -> $0.00 | V160: ='REHAB ESTIMATOR'!AK148 -> $0.00 | W160: ='REHAB ESTIMATOR'!AN148 -> $0.00
C161: =T('REHAB ESTIMATOR'!B149:S149) -> Board and batten, cedar | I161: ='REHAB ESTIMATOR'!T149 -> 0 | J161: =T('REHAB ESTIMATOR'!W149:X149) -> sf | K161: ='REHAB ESTIMATOR'!AH149 -> $0 | L161: $0 | M161: $0 | N161: $0 | P161: 0 | U161: ='REHAB ESTIMATOR'!AH149 -> $0.00 | V161: ='REHAB ESTIMATOR'!AK149 -> $0.00 | W161: ='REHAB ESTIMATOR'!AN149 -> $0.00
C162: =T('REHAB ESTIMATOR'!B150:S150) -> Wood shingle/shake | I162: ='REHAB ESTIMATOR'!T150 -> 0 | J162: =T('REHAB ESTIMATOR'!W150:X150) -> sf | K162: ='REHAB ESTIMATOR'!AH150 -> $0 | L162: $0 | M162: $0 | N162: $0 | P162: 0 | U162: ='REHAB ESTIMATOR'!AH150 -> $0.00 | V162: ='REHAB ESTIMATOR'!AK150 -> $0.00 | W162: ='REHAB ESTIMATOR'!AN150 -> $0.00
C163: =T('REHAB ESTIMATOR'!B151:S151) -> Fiber cement siding, 4x8 panels | I163: ='REHAB ESTIMATOR'!T151 -> 0 | J163: =T('REHAB ESTIMATOR'!W151:X151) -> sf | K163: ='REHAB ESTIMATOR'!AH151 -> $0 | L163: $0 | M163: $0 | N163: $0 | P163: 0 | U163: ='REHAB ESTIMATOR'!AH151 -> $0.00 | V163: ='REHAB ESTIMATOR'!AK151 -> $0.00 | W163: ='REHAB ESTIMATOR'!AN151 -> $0.00
C164: =T('REHAB ESTIMATOR'!B152:S152) -> Fiber cement siding, lap | I164: ='REHAB ESTIMATOR'!T152 -> 0 | J164: =T('REHAB ESTIMATOR'!W152:X152) -> sf | K164: ='REHAB ESTIMATOR'!AH152 -> $0 | L164: $0 | M164: $0 | N164: $0 | P164: 0 | U164: ='REHAB ESTIMATOR'!AH152 -> $0.00 | V164: ='REHAB ESTIMATOR'!AK152 -> $0.00 | W164: ='REHAB ESTIMATOR'!AN152 -> $0.00
C165: =T('REHAB ESTIMATOR'!B153:S153) -> Vinyl siding, non-insulated | I165: ='REHAB ESTIMATOR'!T153 -> 0 | J165: =T('REHAB ESTIMATOR'!W153:X153) -> sf | K165: ='REHAB ESTIMATOR'!AH153 -> $0 | L165: $0 | M165: $0 | N165: $0 | P165: 0 | U165: ='REHAB ESTIMATOR'!AH153 -> $0.00 | V165: ='REHAB ESTIMATOR'!AK153 -> $0.00 | W165: ='REHAB ESTIMATOR'!AN153 -> $0.00
C166: =T('REHAB ESTIMATOR'!B154:S154) -> Vinyl siding, insulated | I166: ='REHAB ESTIMATOR'!T154 -> 0 | J166: =T('REHAB ESTIMATOR'!W154:X154) -> sf | K166: ='REHAB ESTIMATOR'!AH154 -> $0 | L166: $0 | M166: $0 | N166: $0 | P166: 0 | U166: ='REHAB ESTIMATOR'!AH154 -> $0.00 | V166: ='REHAB ESTIMATOR'!AK154 -> $0.00 | W166: ='REHAB ESTIMATOR'!AN154 -> $0.00
C167: =T('REHAB ESTIMATOR'!B155:S155) -> Trim, 1"x3", pine | I167: ='REHAB ESTIMATOR'!T155 -> 0 | J167: =T('REHAB ESTIMATOR'!W155:X155) -> lf | K167: ='REHAB ESTIMATOR'!AH155 -> $0 | L167: $0 | M167: $0 | N167: $0 | P167: 0 | U167: ='REHAB ESTIMATOR'!AH155 -> $0.00 | V167: ='REHAB ESTIMATOR'!AK155 -> $0.00 | W167: ='REHAB ESTIMATOR'!AN155 -> $0.00
C168: =T('REHAB ESTIMATOR'!B156:S156) -> Trim, 1"x4", pine | I168: ='REHAB ESTIMATOR'!T156 -> 0 | J168: =T('REHAB ESTIMATOR'!W156:X156) -> lf | K168: ='REHAB ESTIMATOR'!AH156 -> $0 | L168: $0 | M168: $0 | N168: $0 | P168: 0 | U168: ='REHAB ESTIMATOR'!AH156 -> $0.00 | V168: ='REHAB ESTIMATOR'!AK156 -> $0.00 | W168: ='REHAB ESTIMATOR'!AN156 -> $0.00
C169: =T('REHAB ESTIMATOR'!B157:S157) -> Trim, 1"x6", pine | I169: ='REHAB ESTIMATOR'!T157 -> 0 | J169: =T('REHAB ESTIMATOR'!W157:X157) -> lf | K169: ='REHAB ESTIMATOR'!AH157 -> $0 | L169: $0 | M169: $0 | N169: $0 | P169: 0 | U169: ='REHAB ESTIMATOR'!AH157 -> $0.00 | V169: ='REHAB ESTIMATOR'!AK157 -> $0.00 | W169: ='REHAB ESTIMATOR'!AN157 -> $0.00
C170: =T('REHAB ESTIMATOR'!B158:S158) -> Siding patch, window/door, siding, insulation | I170: ='REHAB ESTIMATOR'!T158 -> 0 | J170: =T('REHAB ESTIMATOR'!W158:X158) -> ea | K170: ='REHAB ESTIMATOR'!AH158 -> $0 | L170: $0 | M170: $0 | N170: $0 | P170: 0 | U170: ='REHAB ESTIMATOR'!AH158 -> $0.00 | V170: ='REHAB ESTIMATOR'!AK158 -> $0.00 | W170: ='REHAB ESTIMATOR'!AN158 -> $0.00
C171: =T('REHAB ESTIMATOR'!B159:S159) -> Stucco | I171: ='REHAB ESTIMATOR'!T159 -> 0 | J171: =T('REHAB ESTIMATOR'!W159:X159) -> sf | K171: ='REHAB ESTIMATOR'!AH159 -> $0 | L171: $0 | M171: $0 | N171: $0 | P171: 0 | U171: ='REHAB ESTIMATOR'!AH159 -> $0.00 | V171: ='REHAB ESTIMATOR'!AK159 -> $0.00 | W171: ='REHAB ESTIMATOR'!AN159 -> $0.00
C172: =T('REHAB ESTIMATOR'!B160:S160) ->  | I172: ='REHAB ESTIMATOR'!T160 -> 0 | J172: =T('REHAB ESTIMATOR'!W160:X160) ->  | K172: ='REHAB ESTIMATOR'!AH160 -> $0 | L172: $0 | M172: $0 | N172: $0 | P172: 0 | U172: ='REHAB ESTIMATOR'!AH160 -> $0.00 | V172: ='REHAB ESTIMATOR'!AK160 -> $0.00 | W172: ='REHAB ESTIMATOR'!AN160 -> $0.00
C173: =T('REHAB ESTIMATOR'!B161:S161) ->  | I173: ='REHAB ESTIMATOR'!T161 -> 0 | J173: =T('REHAB ESTIMATOR'!W161:X161) ->  | K173: ='REHAB ESTIMATOR'!AH161 -> $0 | L173: $0 | M173: $0 | N173: $0 | P173: 0 | U173: ='REHAB ESTIMATOR'!AH161 -> $0.00 | V173: ='REHAB ESTIMATOR'!AK161 -> $0.00 | W173: ='REHAB ESTIMATOR'!AN161 -> $0.00
P174: =P175 -> 0
C175: =T('REHAB ESTIMATOR'!AG163) -> SIDING TOTAL | K175: =SUM(K154:K174) -> $0 | L175: =SUM(L154:L174) -> $0 | M175: =SUM(M154:M174) -> $0 | N175: =SUM(N154:O174) -> $0 | P175: =SUM(P153:P164) -> 0 | U175: =SUM(U154:U174) -> $0.00 | V175: =SUM(V154:V174) -> $0.00 | W175: =SUM(W154:W174) -> $0.00
P176: =P177 -> 0
P177: =P175 -> 0
C178: =T('REHAB ESTIMATOR'!B166:S166) -> DECKING AND PATIOS | I178: =SUM(I179:I196) -> 200 | P178: 200
C179: =T('REHAB ESTIMATOR'!B167:S167) -> Decking | I179: ='REHAB ESTIMATOR'!T167 -> 0 | J179: =T('REHAB ESTIMATOR'!W167:X167) ->  | K179: ='REHAB ESTIMATOR'!AH167 -> $0 | L179: =V179 -> $0 | M179: =W179 -> $0 | N179: =SUM(K179:M179) -> $0 | P179: 0 | U179: ='REHAB ESTIMATOR'!AH167 -> $0.00 | V179: ='REHAB ESTIMATOR'!AK167 -> $0.00 | W179: ='REHAB ESTIMATOR'!AN167 -> $0.00
C180: =T('REHAB ESTIMATOR'!B168:S168) -> Deck bid/allowance | I180: ='REHAB ESTIMATOR'!T168 -> 0 | J180: =T('REHAB ESTIMATOR'!W168:X168) -> ls | K180: ='REHAB ESTIMATOR'!AH168 -> $0 | L180: $0 | M180: $0 | N180: =SUM(K180:M180) -> $0 | P180: 0 | U180: ='REHAB ESTIMATOR'!AH168 -> $0.00 | V180: ='REHAB ESTIMATOR'!AK168 -> $0.00 | W180: ='REHAB ESTIMATOR'!AN168 -> $0.00
C181: =T('REHAB ESTIMATOR'!B169:S169) -> New deck, columns, joists, railing-treated lumber | I181: ='REHAB ESTIMATOR'!T169 -> 200 | J181: =T('REHAB ESTIMATOR'!W169:X169) -> sf | K181: ='REHAB ESTIMATOR'!AH169 -> $2,000 | L181: $1,000 | M181: $0 | N181: $3,000 | P181: 200 | U181: ='REHAB ESTIMATOR'!AH169 -> $2,000.00 | V181: ='REHAB ESTIMATOR'!AK169 -> $1,000.00 | W181: ='REHAB ESTIMATOR'!AN169 -> $0.00
C182: =T('REHAB ESTIMATOR'!B170:S170) -> New deck, columns, joists, railing-cedar | I182: ='REHAB ESTIMATOR'!T170 -> 0 | J182: =T('REHAB ESTIMATOR'!W170:X170) -> sf | K182: ='REHAB ESTIMATOR'!AH170 -> $0 | L182: $0 | M182: $0 | N182: $0 | P182: 0 | U182: ='REHAB ESTIMATOR'!AH170 -> $0.00 | V182: ='REHAB ESTIMATOR'!AK170 -> $0.00 | W182: ='REHAB ESTIMATOR'!AN170 -> $0.00
C183: =T('REHAB ESTIMATOR'!B171:S171) -> Existing deck, replace decking | I183: ='REHAB ESTIMATOR'!T171 -> 0 | J183: =T('REHAB ESTIMATOR'!W171:X171) -> sf | K183: ='REHAB ESTIMATOR'!AH171 -> $0 | L183: $0 | M183: $0 | N183: $0 | P183: 0 | U183: ='REHAB ESTIMATOR'!AH171 -> $0.00 | V183: ='REHAB ESTIMATOR'!AK171 -> $0.00 | W183: ='REHAB ESTIMATOR'!AN171 -> $0.00
C184: =T('REHAB ESTIMATOR'!B172:S172) -> Install railing w/ wood balusters only | I184: ='REHAB ESTIMATOR'!T172 -> 0 | J184: =T('REHAB ESTIMATOR'!W172:X172) -> lf | K184: ='REHAB ESTIMATOR'!AH172 -> $0 | L184: $0 | M184: $0 | N184: $0 | P184: 0 | U184: ='REHAB ESTIMATOR'!AH172 -> $0.00 | V184: ='REHAB ESTIMATOR'!AK172 -> $0.00 | W184: ='REHAB ESTIMATOR'!AN172 -> $0.00
C185: =T('REHAB ESTIMATOR'!B173:S173) -> Install railing w/ metal balusters only | I185: ='REHAB ESTIMATOR'!T173 -> 0 | J185: =T('REHAB ESTIMATOR'!W173:X173) -> lf | K185: ='REHAB ESTIMATOR'!AH173 -> $0 | L185: $0 | M185: $0 | N185: $0 | P185: 0 | U185: ='REHAB ESTIMATOR'!AH173 -> $0.00 | V185: ='REHAB ESTIMATOR'!AK173 -> $0.00 | W185: ='REHAB ESTIMATOR'!AN173 -> $0.00
C186: =T('REHAB ESTIMATOR'!B174:S174) -> Stairs, 5 to 7 risers | I186: ='REHAB ESTIMATOR'!T174 -> 0 | J186: =T('REHAB ESTIMATOR'!W174:X174) -> ea | K186: ='REHAB ESTIMATOR'!AH174 -> $0 | L186: $0 | M186: $0 | N186: $0 | P186: 0 | U186: ='REHAB ESTIMATOR'!AH174 -> $0.00 | V186: ='REHAB ESTIMATOR'!AK174 -> $0.00 | W186: ='REHAB ESTIMATOR'!AN174 -> $0.00
C187: =T('REHAB ESTIMATOR'!B175:S175) ->  | I187: ='REHAB ESTIMATOR'!T175 -> 0 | J187: =T('REHAB ESTIMATOR'!W175:X175) ->  | K187: ='REHAB ESTIMATOR'!AH175 -> $0 | L187: $0 | M187: $0 | N187: $0 | P187: 0 | U187: ='REHAB ESTIMATOR'!AH175 -> $0.00 | V187: ='REHAB ESTIMATOR'!AK175 -> $0.00 | W187: ='REHAB ESTIMATOR'!AN175 -> $0.00
C188: =T('REHAB ESTIMATOR'!B176:S176) ->  | I188: ='REHAB ESTIMATOR'!T176 -> 0 | J188: =T('REHAB ESTIMATOR'!W176:X176) ->  | K188: ='REHAB ESTIMATOR'!AH176 -> $0 | L188: $0 | M188: $0 | N188: $0 | P188: 0 | U188: ='REHAB ESTIMATOR'!AH176 -> $0.00 | V188: ='REHAB ESTIMATOR'!AK176 -> $0.00 | W188: ='REHAB ESTIMATOR'!AN176 -> $0.00
C189: =T('REHAB ESTIMATOR'!B177:S177) -> Covered Patio | I189: ='REHAB ESTIMATOR'!T177 -> 0 | J189: =T('REHAB ESTIMATOR'!W177:X177) ->  | K189: ='REHAB ESTIMATOR'!AH177 -> $0 | L189: $0 | M189: $0 | N189: $0 | P189: 0 | U189: ='REHAB ESTIMATOR'!AH177 -> $0.00 | V189: ='REHAB ESTIMATOR'!AK177 -> $0.00 | W189: ='REHAB ESTIMATOR'!AN177 -> $0.00
C190: =T('REHAB ESTIMATOR'!B178:S178) -> Covered Patio bid/allowance | I190: ='REHAB ESTIMATOR'!T178 -> 0 | J190: =T('REHAB ESTIMATOR'!W178:X178) -> ls | K190: ='REHAB ESTIMATOR'!AH178 -> $0 | L190: $0 | M190: $0 | N190: $0 | P190: 0 | U190: ='REHAB ESTIMATOR'!AH178 -> $0.00 | V190: ='REHAB ESTIMATOR'!AK178 -> $0.00 | W190: ='REHAB ESTIMATOR'!AN178 -> $0.00
C191: =T('REHAB ESTIMATOR'!B179:S179) -> Covered patio, floor, roof frame, decking, treated | I191: ='REHAB ESTIMATOR'!T179 -> 0 | J191: =T('REHAB ESTIMATOR'!W179:X179) -> sf | K191: ='REHAB ESTIMATOR'!AH179 -> $0 | L191: $0 | M191: $0 | N191: $0 | P191: 0 | U191: ='REHAB ESTIMATOR'!AH179 -> $0.00 | V191: ='REHAB ESTIMATOR'!AK179 -> $0.00 | W191: ='REHAB ESTIMATOR'!AN179 -> $0.00
C192: =T('REHAB ESTIMATOR'!B180:S180) -> Install railing w/ wood balusters only | I192: ='REHAB ESTIMATOR'!T180 -> 0 | J192: =T('REHAB ESTIMATOR'!W180:X180) -> lf | K192: ='REHAB ESTIMATOR'!AH180 -> $0 | L192: $0 | M192: $0 | N192: $0 | P192: 0 | U192: ='REHAB ESTIMATOR'!AH180 -> $0.00 | V192: ='REHAB ESTIMATOR'!AK180 -> $0.00 | W192: ='REHAB ESTIMATOR'!AN180 -> $0.00
C193: =T('REHAB ESTIMATOR'!B181:S181) -> Install railing w/ metal balusters only | I193: ='REHAB ESTIMATOR'!T181 -> 0 | J193: =T('REHAB ESTIMATOR'!W181:X181) -> lf | K193: ='REHAB ESTIMATOR'!AH181 -> $0 | L193: $0 | M193: $0 | N193: $0 | P193: 0 | U193: ='REHAB ESTIMATOR'!AH181 -> $0.00 | V193: ='REHAB ESTIMATOR'!AK181 -> $0.00 | W193: ='REHAB ESTIMATOR'!AN181 -> $0.00
C194: =T('REHAB ESTIMATOR'!B182:S182) -> Stairs, 5 to 7 risers | I194: ='REHAB ESTIMATOR'!T182 -> 0 | J194: =T('REHAB ESTIMATOR'!W182:X182) -> ea | K194: ='REHAB ESTIMATOR'!AH182 -> $0 | L194: $0 | M194: $0 | N194: $0 | P194: 0 | U194: ='REHAB ESTIMATOR'!AH182 -> $0.00 | V194: ='REHAB ESTIMATOR'!AK182 -> $0.00 | W194: ='REHAB ESTIMATOR'!AN182 -> $0.00
C195: =T('REHAB ESTIMATOR'!B183:S183) -> Wood board ceiling, tongue and groove | I195: ='REHAB ESTIMATOR'!T183 -> 0 | J195: =T('REHAB ESTIMATOR'!W183:X183) -> sf | K195: ='REHAB ESTIMATOR'!AH183 -> $0 | L195: $0 | M195: $0 | N195: $0 | P195: 0 | U195: ='REHAB ESTIMATOR'!AH183 -> $0.00 | V195: ='REHAB ESTIMATOR'!AK183 -> $0.00 | W195: ='REHAB ESTIMATOR'!AN183 -> $0.00
C196: =T('REHAB ESTIMATOR'!B184:S184) -> Insect screening | I196: ='REHAB ESTIMATOR'!T184 -> 0 | J196: =T('REHAB ESTIMATOR'!W184:X184) -> sf | K196: ='REHAB ESTIMATOR'!AH184 -> $0 | L196: $0 | M196: $0 | N196: $0 | P196: 0 | U196: ='REHAB ESTIMATOR'!AH184 -> $0.00 | V196: ='REHAB ESTIMATOR'!AK184 -> $0.00 | W196: ='REHAB ESTIMATOR'!AN184 -> $0.00
C197: =T('REHAB ESTIMATOR'!B185:S185) ->  | I197: ='REHAB ESTIMATOR'!T185 -> 0 | J197: =T('REHAB ESTIMATOR'!W185:X185) ->  | K197: ='REHAB ESTIMATOR'!AH185 -> $0 | L197: $0 | M197: $0 | N197: $0 | P197: 0 | U197: ='REHAB ESTIMATOR'!AH185 -> $0.00 | V197: ='REHAB ESTIMATOR'!AK185 -> $0.00 | W197: ='REHAB ESTIMATOR'!AN185 -> $0.00
C198: =T('REHAB ESTIMATOR'!B186:S186) ->  | I198: ='REHAB ESTIMATOR'!T186 -> 0 | J198: =T('REHAB ESTIMATOR'!W186:X186) ->  | K198: ='REHAB ESTIMATOR'!AH186 -> $0 | L198: $0 | M198: $0 | N198: $0 | P198: 0 | U198: ='REHAB ESTIMATOR'!AH186 -> $0.00 | V198: ='REHAB ESTIMATOR'!AK186 -> $0.00 | W198: ='REHAB ESTIMATOR'!AN186 -> $0.00
P199: =P200 -> 400
C200: =T('REHAB ESTIMATOR'!AG188) -> DECKING AND PATIOS TOTAL | K200: =SUM(K179:K199) -> $2,000 | L200: =SUM(L179:L199) -> $1,000 | M200: =SUM(M179:M199) -> $0 | N200: =SUM(N179:O199) -> $3,000 | P200: =SUM(P178:P188) -> 400 | U200: =SUM(U179:U199) -> $2,000.00 | V200: =SUM(V179:V199) -> $1,000.00 | W200: =SUM(W179:W199) -> $0.00
P201: =P202 -> 400
P202: =P200 -> 400
C203: =T('REHAB ESTIMATOR'!B191:S191) -> ROOFING | I203: =SUM(I204:I221) -> 20 | P203: 20
C204: =T('REHAB ESTIMATOR'!B192:S192) -> Roofing bid/allowance | I204: ='REHAB ESTIMATOR'!T192 -> 0 | J204: =T('REHAB ESTIMATOR'!W192:X192) -> ls | K204: ='REHAB ESTIMATOR'!AH192 -> $0 | L204: =V204 -> $0 | M204: =W204 -> $0 | N204: =SUM(K204:M204) -> $0 | P204: 0 | U204: ='REHAB ESTIMATOR'!AH192 -> $0.00 | V204: ='REHAB ESTIMATOR'!AK192 -> $0.00 | W204: ='REHAB ESTIMATOR'!AN192 -> $0.00
C205: =T('REHAB ESTIMATOR'!B193:S193) -> Asphalt shingle roof | I205: ='REHAB ESTIMATOR'!T193 -> 0 | J205: =T('REHAB ESTIMATOR'!W193:X193) ->  | K205: ='REHAB ESTIMATOR'!AH193 -> $0 | L205: $0 | M205: $0 | N205: =SUM(K205:M205) -> $0 | P205: 0 | U205: ='REHAB ESTIMATOR'!AH193 -> $0.00 | V205: ='REHAB ESTIMATOR'!AK193 -> $0.00 | W205: ='REHAB ESTIMATOR'!AN193 -> $0.00
C206: =T('REHAB ESTIMATOR'!B194:S194) -> Roof repair/patch, asphalt | I206: ='REHAB ESTIMATOR'!T194 -> 0 | J206: =T('REHAB ESTIMATOR'!W194:X194) -> ea | K206: ='REHAB ESTIMATOR'!AH194 -> $0 | L206: $0 | M206: $0 | N206: $0 | P206: 0 | U206: ='REHAB ESTIMATOR'!AH194 -> $0.00 | V206: ='REHAB ESTIMATOR'!AK194 -> $0.00 | W206: ='REHAB ESTIMATOR'!AN194 -> $0.00
C207: =T('REHAB ESTIMATOR'!B195:S195) -> Roof replacement-demo & replace, 3-tab | I207: ='REHAB ESTIMATOR'!T195 -> 0 | J207: =T('REHAB ESTIMATOR'!W195:X195) -> sq | K207: ='REHAB ESTIMATOR'!AH195 -> $0 | L207: $0 | M207: $0 | N207: $0 | P207: 0 | U207: ='REHAB ESTIMATOR'!AH195 -> $0.00 | V207: ='REHAB ESTIMATOR'!AK195 -> $0.00 | W207: ='REHAB ESTIMATOR'!AN195 -> $0.00
C208: =T('REHAB ESTIMATOR'!B196:S196) -> Roof replacement-demo & replace, architectural | I208: ='REHAB ESTIMATOR'!T196 -> 20 | J208: =T('REHAB ESTIMATOR'!W196:X196) -> sq | K208: ='REHAB ESTIMATOR'!AH196 -> $2,500 | L208: $2,000 | M208: $0 | N208: $4,500 | P208: 20 | U208: ='REHAB ESTIMATOR'!AH196 -> $2,500.00 | V208: ='REHAB ESTIMATOR'!AK196 -> $2,000.00 | W208: ='REHAB ESTIMATOR'!AN196 -> $0.00
C209: =T('REHAB ESTIMATOR'!B197:S197) -> Premium for 3 layer tear off | I209: ='REHAB ESTIMATOR'!T197 -> 0 | J209: =T('REHAB ESTIMATOR'!W197:X197) -> sq | K209: ='REHAB ESTIMATOR'!AH197 -> $0 | L209: $0 | M209: $0 | N209: $0 | P209: 0 | U209: ='REHAB ESTIMATOR'!AH197 -> $0.00 | V209: ='REHAB ESTIMATOR'!AK197 -> $0.00 | W209: ='REHAB ESTIMATOR'!AN197 -> $0.00
C210: =T('REHAB ESTIMATOR'!B198:S198) -> Premium for steep pitch roof | I210: ='REHAB ESTIMATOR'!T198 -> 0 | J210: =T('REHAB ESTIMATOR'!W198:X198) -> sq | K210: ='REHAB ESTIMATOR'!AH198 -> $0 | L210: $0 | M210: $0 | N210: $0 | P210: 0 | U210: ='REHAB ESTIMATOR'!AH198 -> $0.00 | V210: ='REHAB ESTIMATOR'!AK198 -> $0.00 | W210: ='REHAB ESTIMATOR'!AN198 -> $0.00
C211: =T('REHAB ESTIMATOR'!B199:S199) ->  | I211: ='REHAB ESTIMATOR'!T199 -> 0 | J211: =T('REHAB ESTIMATOR'!W199:X199) ->  | K211: ='REHAB ESTIMATOR'!AH199 -> $0 | L211: $0 | M211: $0 | N211: $0 | P211: 0 | U211: ='REHAB ESTIMATOR'!AH199 -> $0.00 | V211: ='REHAB ESTIMATOR'!AK199 -> $0.00 | W211: ='REHAB ESTIMATOR'!AN199 -> $0.00
... 423 more rows

Sheet REHAB SCOPE OF WORK
C3: SCOPE OF WORK
C5: =T(Street_Address) -> 2325 NW 49th St
C7: =T(City_State_Zip) -> Kansas City, MO 64151
C10: DESCRIPTION OF WORK | D10: QTY | E10: UNIT | F10: NOTES
C12: =T('REHAB ESTIMATOR'!B16:S16) -> GENERAL CONDITIONS | D12: =SUM(D13:D36) -> 20
C13: =T('REHAB ESTIMATOR'!B17:S17) -> Dumpster rental-40 yard | D13: ='REHAB ESTIMATOR'!T17 -> 2 | E13: =T('REHAB ESTIMATOR'!W17) -> ea
C14: =T('REHAB ESTIMATOR'!B18:S18) -> Construction Permits < $10k | D14: ='REHAB ESTIMATOR'!T18 -> 0 | E14: =T('REHAB ESTIMATOR'!W18) -> job
C15: =T('REHAB ESTIMATOR'!B19:S19) -> Construction Permits, 10k to $25k | D15: ='REHAB ESTIMATOR'!T19 -> 0 | E15: =T('REHAB ESTIMATOR'!W19) -> job
C16: =T('REHAB ESTIMATOR'!B20:S20) -> Construction Permits, 25k to 50k | D16: ='REHAB ESTIMATOR'!T20 -> 1 | E16: =T('REHAB ESTIMATOR'!W20) -> job
C17: =T('REHAB ESTIMATOR'!B21:S21) -> Storage Container | D17: ='REHAB ESTIMATOR'!T21 -> 0 | E17: =T('REHAB ESTIMATOR'!W21) -> job
C18: =T('REHAB ESTIMATOR'!B22:S22) -> Chemical Toilet | D18: ='REHAB ESTIMATOR'!T22 -> 0 | E18: =T('REHAB ESTIMATOR'!W22) -> mo
C19: =T('REHAB ESTIMATOR'!B23:S23) -> Misc. Tools & Materials | D19: ='REHAB ESTIMATOR'!T23 -> 1 | E19: =T('REHAB ESTIMATOR'!W23) -> ls
C20: =T('REHAB ESTIMATOR'!B24:S24) -> Rekey/lock box | D20: ='REHAB ESTIMATOR'!T24 -> 0 | E20: =T('REHAB ESTIMATOR'!W24) -> ea
C21: =T('REHAB ESTIMATOR'!B25:S25) -> Turn on utilities | D21: ='REHAB ESTIMATOR'!T25 -> 0 | E21: =T('REHAB ESTIMATOR'!W25) -> ls
C22: =T('REHAB ESTIMATOR'!B26:S26) -> Truck expense/car payment | D22: ='REHAB ESTIMATOR'!T26 -> 0 | E22: =T('REHAB ESTIMATOR'!W26) -> month
C23: =T('REHAB ESTIMATOR'!B27:S27) -> Fuel/gas expense | D23: ='REHAB ESTIMATOR'!T27 -> 0 | E23: =T('REHAB ESTIMATOR'!W27) -> wk
C24: =T('REHAB ESTIMATOR'!B28:S28) -> Project management | D24: ='REHAB ESTIMATOR'!T28 -> 0 | E24: =T('REHAB ESTIMATOR'!W28) -> wk
C25: =T('REHAB ESTIMATOR'!B29:S29) -> Architectural Fees | D25: ='REHAB ESTIMATOR'!T29 -> 0 | E25: =T('REHAB ESTIMATOR'!W29) -> hrs
C26: =T('REHAB ESTIMATOR'!B30:S30) -> Engineering Fees | D26: ='REHAB ESTIMATOR'!T30 -> 0 | E26: =T('REHAB ESTIMATOR'!W30) -> hrs
C27: =T('REHAB ESTIMATOR'!B31:S31) -> Professional Photography | D27: ='REHAB ESTIMATOR'!T31 -> 0 | E27: =T('REHAB ESTIMATOR'!W31) -> ls
C28: =T('REHAB ESTIMATOR'!B32:S32) -> Material Deliveries | D28: ='REHAB ESTIMATOR'!T32 -> 0 | E28: =T('REHAB ESTIMATOR'!W32) -> ea
C29: =T('REHAB ESTIMATOR'!B33:S33) -> Final cleaning | D29: ='REHAB ESTIMATOR'!T33 -> 16 | E29: =T('REHAB ESTIMATOR'!W33) -> hrs
C30: =T('REHAB ESTIMATOR'!B34:S34) ->  | D30: ='REHAB ESTIMATOR'!T34 -> 0 | E30: =T('REHAB ESTIMATOR'!W34) -> 
C31: =T('REHAB ESTIMATOR'!B35:S35) ->  | D31: ='REHAB ESTIMATOR'!T35 -> 0 | E31: =T('REHAB ESTIMATOR'!W35) -> 
C32: =T('REHAB ESTIMATOR'!B36:S36) ->  | D32: ='REHAB ESTIMATOR'!T36 -> 0 | E32: =T('REHAB ESTIMATOR'!W36) -> 
C33: =T('REHAB ESTIMATOR'!B37:S37) ->  | D33: ='REHAB ESTIMATOR'!T37 -> 0 | E33: =T('REHAB ESTIMATOR'!W37) -> 
C34: =T('REHAB ESTIMATOR'!B38:S38) ->  | D34: ='REHAB ESTIMATOR'!T38 -> 0 | E34: =T('REHAB ESTIMATOR'!W38) -> 
C35: =T('REHAB ESTIMATOR'!B39:S39) ->  | D35: ='REHAB ESTIMATOR'!T39 -> 0 | E35: =T('REHAB ESTIMATOR'!W39) -> 
C36: =T('REHAB ESTIMATOR'!B40:S40) ->  | D36: ='REHAB ESTIMATOR'!T40 -> 0 | E36: =T('REHAB ESTIMATOR'!W40) -> 
C37: =T('REHAB ESTIMATOR'!B41:S41) -> DEMOLITION | D37: =SUM(D38:D61) -> 80
C38: =T('REHAB ESTIMATOR'!B42:S42) -> Demolition | D38: ='REHAB ESTIMATOR'!T42 -> 0 | E38: =T('REHAB ESTIMATOR'!W42) -> ls
C39: =T('REHAB ESTIMATOR'!B43:S43) -> Demo bid/allowance | D39: ='REHAB ESTIMATOR'!T43 -> 0 | E39: =T('REHAB ESTIMATOR'!W43) -> ls
C40: =T('REHAB ESTIMATOR'!B44:S44) -> Demolition work per hour | D40: ='REHAB ESTIMATOR'!T44 -> 80 | E40: =T('REHAB ESTIMATOR'!W44) -> hrs
C41: =T('REHAB ESTIMATOR'!B45:S45) -> Room demolition, typical room | D41: ='REHAB ESTIMATOR'!T45 -> 0 | E41: =T('REHAB ESTIMATOR'!W45) -> sf
C42: =T('REHAB ESTIMATOR'!B46:S46) -> Room demolition, bathroom | D42: ='REHAB ESTIMATOR'!T46 -> 0 | E42: =T('REHAB ESTIMATOR'!W46) -> sf
C43: =T('REHAB ESTIMATOR'!B47:S47) -> Room demolition, kitchen | D43: ='REHAB ESTIMATOR'!T47 -> 0 | E43: =T('REHAB ESTIMATOR'!W47) -> sf
C44: =T('REHAB ESTIMATOR'!B48:S48) -> Building demolition, 1-story wood-framed | D44: ='REHAB ESTIMATOR'!T48 -> 0 | E44: =T('REHAB ESTIMATOR'!W48) -> sf
C45: =T('REHAB ESTIMATOR'!B49:S49) -> Building demolition, 2-story wood framed | D45: ='REHAB ESTIMATOR'!T49 -> 0 | E45: =T('REHAB ESTIMATOR'!W49) -> sf
C46: =T('REHAB ESTIMATOR'!B50:S50) -> Building demolition, masonry | D46: ='REHAB ESTIMATOR'!T50 -> 0 | E46: =T('REHAB ESTIMATOR'!W50) -> sf
C47: =T('REHAB ESTIMATOR'!B51:S51) -> Building demolition, steel/concrete | D47: ='REHAB ESTIMATOR'!T51 -> 0 | E47: =T('REHAB ESTIMATOR'!W51) -> sf
C48: =T('REHAB ESTIMATOR'!B52:S52) -> Concrete slab demolition, 4"-6" | D48: ='REHAB ESTIMATOR'!T52 -> 0 | E48: =T('REHAB ESTIMATOR'!W52) -> 
C49: =T('REHAB ESTIMATOR'!B53:S53) ->  | D49: ='REHAB ESTIMATOR'!T53 -> 0 | E49: =T('REHAB ESTIMATOR'!W53) -> 
C50: =T('REHAB ESTIMATOR'!B54:S54) ->  | D50: ='REHAB ESTIMATOR'!T54 -> 0 | E50: =T('REHAB ESTIMATOR'!W54) -> 
C51: =T('REHAB ESTIMATOR'!B55:S55) -> Abatement | D51: ='REHAB ESTIMATOR'!T55 -> 0 | E51: =T('REHAB ESTIMATOR'!W55) -> ls
C52: =T('REHAB ESTIMATOR'!B56:S56) -> Asbestos bid/allowance | D52: ='REHAB ESTIMATOR'!T56 -> 0 | E52: =T('REHAB ESTIMATOR'!W56) -> ls
C53: =T('REHAB ESTIMATOR'!B57:S57) -> Asbestos testing | D53: ='REHAB ESTIMATOR'!T57 -> 0 | E53: =T('REHAB ESTIMATOR'!W57) -> ea
C54: =T('REHAB ESTIMATOR'!B58:S58) -> Asbestos abatement, minimum charge | D54: ='REHAB ESTIMATOR'!T58 -> 0 | E54: =T('REHAB ESTIMATOR'!W58) -> ea
C55: =T('REHAB ESTIMATOR'!B59:S59) -> Mold, minimum charge | D55: ='REHAB ESTIMATOR'!T59 -> 0 | E55: =T('REHAB ESTIMATOR'!W59) -> 
C56: =T('REHAB ESTIMATOR'!B60:S60) ->  | D56: ='REHAB ESTIMATOR'!T60 -> 0 | E56: =T('REHAB ESTIMATOR'!W60) -> 
C57: =T('REHAB ESTIMATOR'!B61:S61) ->  | D57: ='REHAB ESTIMATOR'!T61 -> 0 | E57: =T('REHAB ESTIMATOR'!W61) -> 
C58: =T('REHAB ESTIMATOR'!B62:S62) ->  | D58: ='REHAB ESTIMATOR'!T62 -> 0 | E58: =T('REHAB ESTIMATOR'!W62) -> 
C59: =T('REHAB ESTIMATOR'!B63:S63) ->  | D59: ='REHAB ESTIMATOR'!T63 -> 0 | E59: =T('REHAB ESTIMATOR'!W63) -> 
C60: =T('REHAB ESTIMATOR'!B64:S64) ->  | D60: ='REHAB ESTIMATOR'!T64 -> 0 | E60: =T('REHAB ESTIMATOR'!W64) -> 
C61: =T('REHAB ESTIMATOR'!B65:S65) ->  | D61: ='REHAB ESTIMATOR'!T65 -> 0 | E61: =T('REHAB ESTIMATOR'!W65) -> 
C62: =T('REHAB ESTIMATOR'!B66:S66) -> STRUCTURAL CONCRETE | D62: =SUM(D63:D86) -> 0
C63: =T('REHAB ESTIMATOR'!B67:S67) -> Excavation | D63: ='REHAB ESTIMATOR'!T67 -> 0 | E63: =T('REHAB ESTIMATOR'!W67) -> 
C64: =T('REHAB ESTIMATOR'!B68:S68) -> Excavation bid/allowance | D64: ='REHAB ESTIMATOR'!T68 -> 0 | E64: =T('REHAB ESTIMATOR'!W68) -> ls
C65: =T('REHAB ESTIMATOR'!B69:S69) -> Footing trenching | D65: ='REHAB ESTIMATOR'!T69 -> 0 | E65: =T('REHAB ESTIMATOR'!W69) -> cy
C66: =T('REHAB ESTIMATOR'!B70:S70) -> Backfill of trenches | D66: ='REHAB ESTIMATOR'!T70 -> 0 | E66: =T('REHAB ESTIMATOR'!W70) -> cy
C67: =T('REHAB ESTIMATOR'!B71:S71) ->  | D67: ='REHAB ESTIMATOR'!T71 -> 0 | E67: =T('REHAB ESTIMATOR'!W71) -> 
C68: =T('REHAB ESTIMATOR'!B72:S72) ->  | D68: ='REHAB ESTIMATOR'!T72 -> 0 | E68: =T('REHAB ESTIMATOR'!W72) -> 
C69: =T('REHAB ESTIMATOR'!B73:S73) -> Foundation | D69: ='REHAB ESTIMATOR'!T73 -> 0 | E69: =T('REHAB ESTIMATOR'!W73) -> 
C70: =T('REHAB ESTIMATOR'!B74:S74) -> Foundation bid/allowance | D70: ='REHAB ESTIMATOR'!T74 -> 0 | E70: =T('REHAB ESTIMATOR'!W74) -> ls
C71: =T('REHAB ESTIMATOR'!B75:S75) -> Concrete slab on grade, 4" thick | D71: ='REHAB ESTIMATOR'!T75 -> 0 | E71: =T('REHAB ESTIMATOR'!W75) -> sf
C72: =T('REHAB ESTIMATOR'!B76:S76) -> Concrete footing, 12" wide | D72: ='REHAB ESTIMATOR'!T76 -> 0 | E72: =T('REHAB ESTIMATOR'!W76) -> lf
C73: =T('REHAB ESTIMATOR'!B77:S77) -> Stem wall, single story | D73: ='REHAB ESTIMATOR'!T77 -> 0 | E73: =T('REHAB ESTIMATOR'!W77) -> lf
C74: =T('REHAB ESTIMATOR'!B78:S78) ->  | D74: ='REHAB ESTIMATOR'!T78 -> 0 | E74: =T('REHAB ESTIMATOR'!W78) -> 
C75: =T('REHAB ESTIMATOR'!B79:S79) ->  | D75: ='REHAB ESTIMATOR'!T79 -> 0 | E75: =T('REHAB ESTIMATOR'!W79) -> 
C76: =T('REHAB ESTIMATOR'!B80:S80) -> Structural Repairs | D76: ='REHAB ESTIMATOR'!T80 -> 0 | E76: =T('REHAB ESTIMATOR'!W80) -> 
C77: =T('REHAB ESTIMATOR'!B81:S81) -> Structural Repairs bid/allowance | D77: ='REHAB ESTIMATOR'!T81 -> 0 | E77: =T('REHAB ESTIMATOR'!W81) -> ls
C78: =T('REHAB ESTIMATOR'!B82:S82) -> Stair mud jacking, case by case | D78: ='REHAB ESTIMATOR'!T82 -> 0 | E78: =T('REHAB ESTIMATOR'!W82) -> ea
C79: =T('REHAB ESTIMATOR'!B83:S83) -> Bowing foundation walls, vertical I-Beams | D79: ='REHAB ESTIMATOR'!T83 -> 0 | E79: =T('REHAB ESTIMATOR'!W83) -> ea
C80: =T('REHAB ESTIMATOR'!B84:S84) -> Settled foundation walls, concrete piers/underpinning | D80: ='REHAB ESTIMATOR'!T84 -> 0 | E80: =T('REHAB ESTIMATOR'!W84) -> ea
C81: =T('REHAB ESTIMATOR'!B85:S85) -> Foundation waterproofing & drain tile, single story | D81: ='REHAB ESTIMATOR'!T85 -> 0 | E81: =T('REHAB ESTIMATOR'!W85) -> lf
C82: =T('REHAB ESTIMATOR'!B86:S86) -> Epoxy crack injection | D82: ='REHAB ESTIMATOR'!T86 -> 0 | E82: =T('REHAB ESTIMATOR'!W86) -> lf
C83: =T('REHAB ESTIMATOR'!B87:S87) ->  | D83: ='REHAB ESTIMATOR'!T87 -> 0 | E83: =T('REHAB ESTIMATOR'!W87) -> 
C84: =T('REHAB ESTIMATOR'!B88:S88) ->  | D84: ='REHAB ESTIMATOR'!T88 -> 0 | E84: =T('REHAB ESTIMATOR'!W88) -> 
C85: =T('REHAB ESTIMATOR'!B89:S89) ->  | D85: ='REHAB ESTIMATOR'!T89 -> 0 | E85: =T('REHAB ESTIMATOR'!W89) -> 
C86: =T('REHAB ESTIMATOR'!B90:S90) ->  | D86: ='REHAB ESTIMATOR'!T90 -> 0 | E86: =T('REHAB ESTIMATOR'!W90) -> 
C87: =T('REHAB ESTIMATOR'!B91:S91) -> CONCRETE & FLATWORK | D87: =SUM(D88:D111) -> 0
C88: =T('REHAB ESTIMATOR'!B92:S92) -> Concrete | D88: ='REHAB ESTIMATOR'!T92 -> 0 | E88: =T('REHAB ESTIMATOR'!W92:X92) -> 
C89: =T('REHAB ESTIMATOR'!B93:S93) -> Concrete bid/allowance | D89: ='REHAB ESTIMATOR'!T93 -> 0 | E89: =T('REHAB ESTIMATOR'!W93:X93) -> ls
C90: =T('REHAB ESTIMATOR'!B94:S94) -> Concrete flatwork demo | D90: ='REHAB ESTIMATOR'!T94 -> 0 | E90: =T('REHAB ESTIMATOR'!W94:X94) -> sf
C91: =T('REHAB ESTIMATOR'!B95:S95) -> Concrete driveway/patio, 6" thick | D91: ='REHAB ESTIMATOR'!T95 -> 0 | E91: =T('REHAB ESTIMATOR'!W95:X95) -> sf
C92: =T('REHAB ESTIMATOR'!B96:S96) -> Concrete sidewalk, 4" thick | D92: ='REHAB ESTIMATOR'!T96 -> 0 | E92: =T('REHAB ESTIMATOR'!W96:X96) -> sf
C93: =T('REHAB ESTIMATOR'!B97:S97) -> Add for 4" base rock below concrete pavement | D93: ='REHAB ESTIMATOR'!T97 -> 0 | E93: =T('REHAB ESTIMATOR'!W97:X97) -> sf
C94: =T('REHAB ESTIMATOR'!B98:S98) ->  | D94: ='REHAB ESTIMATOR'!T98 -> 0 | E94: =T('REHAB ESTIMATOR'!W98:X98) -> 
C95: =T('REHAB ESTIMATOR'!B99:S99) -> Asphalt | D95: ='REHAB ESTIMATOR'!T99 -> 0 | E95: =T('REHAB ESTIMATOR'!W99:X99) -> 
C96: =T('REHAB ESTIMATOR'!B100:S100) -> Asphalt bid/allowance | D96: ='REHAB ESTIMATOR'!T100 -> 0 | E96: =T('REHAB ESTIMATOR'!W100:X100) -> ls
C97: =T('REHAB ESTIMATOR'!B101:S101) -> Asphalt pavement, 5" thick | D97: ='REHAB ESTIMATOR'!T101 -> 0 | E97: =T('REHAB ESTIMATOR'!W101:X101) -> sy
C98: =T('REHAB ESTIMATOR'!B102:S102) -> Asphalt pavement, 7" thick | D98: ='REHAB ESTIMATOR'!T102 -> 0 | E98: =T('REHAB ESTIMATOR'!W102:X102) -> sy
C99: =T('REHAB ESTIMATOR'!B103:S103) -> Asphalt pavement, wearing course, 1" thick only | D99: ='REHAB ESTIMATOR'!T103 -> 0 | E99: =T('REHAB ESTIMATOR'!W103:X103) -> sy
C100: =T('REHAB ESTIMATOR'!B104:S104) -> Asphalt seal coat | D100: ='REHAB ESTIMATOR'!T104 -> 0 | E100: =T('REHAB ESTIMATOR'!W104:X104) -> sy
C101: =T('REHAB ESTIMATOR'!B105:S105) -> Add for 4" base rock below asphalt pavement | D101: ='REHAB ESTIMATOR'!T105 -> 0 | E101: =T('REHAB ESTIMATOR'!W105:X105) -> sy
C102: =T('REHAB ESTIMATOR'!B106:S106) ->  | D102: ='REHAB ESTIMATOR'!T106 -> 0 | E102: =T('REHAB ESTIMATOR'!W106:X106) -> 
C103: =T('REHAB ESTIMATOR'!B107:S107) -> Pavers | D103: ='REHAB ESTIMATOR'!T107 -> 0 | E103: =T('REHAB ESTIMATOR'!W107:X107) -> 
C104: =T('REHAB ESTIMATOR'!B108:S108) -> Pavers bid/allowance | D104: ='REHAB ESTIMATOR'!T108 -> 0 | E104: =T('REHAB ESTIMATOR'!W108:X108) -> ls
C105: =T('REHAB ESTIMATOR'!B109:S109) -> Brick pavers, sand base | D105: ='REHAB ESTIMATOR'!T109 -> 0 | E105: =T('REHAB ESTIMATOR'!W109:X109) -> sf
C106: =T('REHAB ESTIMATOR'!B110:S110) -> Brick pavers, mortar base | D106: ='REHAB ESTIMATOR'!T110 -> 0 | E106: =T('REHAB ESTIMATOR'!W110:X110) -> sf
C107: =T('REHAB ESTIMATOR'!B111:S111) ->  | D107: ='REHAB ESTIMATOR'!T111 -> 0 | E107: =T('REHAB ESTIMATOR'!W111:X111) -> 
C108: =T('REHAB ESTIMATOR'!B112:S112) ->  | D108: ='REHAB ESTIMATOR'!T112 -> 0 | E108: =T('REHAB ESTIMATOR'!W112:X112) -> 
C109: =T('REHAB ESTIMATOR'!B113:S113) ->  | D109: ='REHAB ESTIMATOR'!T113 -> 0 | E109: =T('REHAB ESTIMATOR'!W113:X113) -> 
C110: =T('REHAB ESTIMATOR'!B114:S114) ->  | D110: ='REHAB ESTIMATOR'!T114 -> 0 | E110: =T('REHAB ESTIMATOR'!W114:X114) -> 
C111: =T('REHAB ESTIMATOR'!B115:S115) ->  | D111: ='REHAB ESTIMATOR'!T115 -> 0 | E111: =T('REHAB ESTIMATOR'!W115:X115) -> 
C112: =T('REHAB ESTIMATOR'!B116:S116) -> MASONRY | D112: =SUM(D113:D136) -> 0
C113: =T('REHAB ESTIMATOR'!B117:S117) -> Masonry bid/allowance | D113: ='REHAB ESTIMATOR'!T117 -> 0 | E113: =T('REHAB ESTIMATOR'!W117:X117) -> ls
C114: =T('REHAB ESTIMATOR'!B118:S118) -> CMU, 4x8 | D114: ='REHAB ESTIMATOR'!T118 -> 0 | E114: =T('REHAB ESTIMATOR'!W118:X118) -> sf
C115: =T('REHAB ESTIMATOR'!B119:S119) -> CMU, 8x8 | D115: ='REHAB ESTIMATOR'!T119 -> 0 | E115: =T('REHAB ESTIMATOR'!W119:X119) -> sf
C116: =T('REHAB ESTIMATOR'!B120:S120) -> Brick veneer | D116: ='REHAB ESTIMATOR'!T120 -> 0 | E116: =T('REHAB ESTIMATOR'!W120:X120) -> sf
C117: =T('REHAB ESTIMATOR'!B121:S121) -> Natural stone | D117: ='REHAB ESTIMATOR'!T121 -> 0 | E117: =T('REHAB ESTIMATOR'!W121:X121) -> sf
C118: =T('REHAB ESTIMATOR'!B122:S122) -> Masonry waterproofing | D118: ='REHAB ESTIMATOR'!T122 -> 0 | E118: =T('REHAB ESTIMATOR'!W122:X122) -> sf
C119: =T('REHAB ESTIMATOR'!B123:S123) -> Tuck-point masonry | D119: ='REHAB ESTIMATOR'!T123 -> 0 | E119: =T('REHAB ESTIMATOR'!W123:X123) -> sf
C120: =T('REHAB ESTIMATOR'!B124:S124) -> Power wash masonry | D120: ='REHAB ESTIMATOR'!T124 -> 0 | E120: =T('REHAB ESTIMATOR'!W124:X124) -> sf
C121: =T('REHAB ESTIMATOR'!B125:S125) -> Chimney, brick | D121: ='REHAB ESTIMATOR'!T125 -> 0 | E121: =T('REHAB ESTIMATOR'!W125:X125) -> vlf
C122: =T('REHAB ESTIMATOR'!B126:S126) -> Chimney, stone | D122: ='REHAB ESTIMATOR'!T126 -> 0 | E122: =T('REHAB ESTIMATOR'!W126:X126) -> vlf
C123: =T('REHAB ESTIMATOR'!B127:S127) -> Add to above for chimney cap | D123: ='REHAB ESTIMATOR'!T127 -> 0 | E123: =T('REHAB ESTIMATOR'!W127:X127) -> ea
C124: =T('REHAB ESTIMATOR'!B128:S128) -> Fireplace complete, brick, 3ft-4ft wide w/ chimney | D124: ='REHAB ESTIMATOR'!T128 -> 0 | E124: =T('REHAB ESTIMATOR'!W128:X128) -> ea
C125: =T('REHAB ESTIMATOR'!B129:S129) ->  | D125: ='REHAB ESTIMATOR'!T129 -> 0 | E125: =T('REHAB ESTIMATOR'!W129:X129) -> 
C126: =T('REHAB ESTIMATOR'!B130:S130) ->  | D126: ='REHAB ESTIMATOR'!T130 -> 0 | E126: =T('REHAB ESTIMATOR'!W130:X130) -> 
C127: =T('REHAB ESTIMATOR'!B131:S131) ->  | D127: ='REHAB ESTIMATOR'!T131 -> 0 | E127: =T('REHAB ESTIMATOR'!W131:X131) -> 
C128: =T('REHAB ESTIMATOR'!B132:S132) ->  | D128: ='REHAB ESTIMATOR'!T132 -> 0 | E128: =T('REHAB ESTIMATOR'!W132:X132) -> 
C129: =T('REHAB ESTIMATOR'!B133:S133) ->  | D129: ='REHAB ESTIMATOR'!T133 -> 0 | E129: =T('REHAB ESTIMATOR'!W133:X133) -> 
C130: =T('REHAB ESTIMATOR'!B134:S134) ->  | D130: ='REHAB ESTIMATOR'!T134 -> 0 | E130: =T('REHAB ESTIMATOR'!W134:X134) -> 
C131: =T('REHAB ESTIMATOR'!B135:S135) ->  | D131: ='REHAB ESTIMATOR'!T135 -> 0 | E131: =T('REHAB ESTIMATOR'!W135:X135) -> 
C132: =T('REHAB ESTIMATOR'!B136:S136) ->  | D132: ='REHAB ESTIMATOR'!T136 -> 0 | E132: =T('REHAB ESTIMATOR'!W136:X136) -> 
C133: =T('REHAB ESTIMATOR'!B137:S137) ->  | D133: ='REHAB ESTIMATOR'!T137 -> 0 | E133: =T('REHAB ESTIMATOR'!W137:X137) -> 
C134: =T('REHAB ESTIMATOR'!B138:S138) ->  | D134: ='REHAB ESTIMATOR'!T138 -> 0 | E134: =T('REHAB ESTIMATOR'!W138:X138) -> 
C135: =T('REHAB ESTIMATOR'!B139:S139) ->  | D135: ='REHAB ESTIMATOR'!T139 -> 0 | E135: =T('REHAB ESTIMATOR'!W139:X139) -> 
C136: =T('REHAB ESTIMATOR'!B140:S140) ->  | D136: ='REHAB ESTIMATOR'!T140 -> 0 | E136: =T('REHAB ESTIMATOR'!W140:X140) -> 
C137: =T('REHAB ESTIMATOR'!B141:S141) -> SIDING | D137: =SUM(D138:D161) -> 0
C138: =T('REHAB ESTIMATOR'!B142:S142) -> Siding bid/allowance | D138: ='REHAB ESTIMATOR'!T142 -> 0 | E138: =T('REHAB ESTIMATOR'!W142:X142) -> ls
C139: =T('REHAB ESTIMATOR'!B143:S143) -> Demo existing siding | D139: ='REHAB ESTIMATOR'!T143 -> 0 | E139: =T('REHAB ESTIMATOR'!W143:X143) -> sf
C140: =T('REHAB ESTIMATOR'!B144:S144) -> Plywood panel, douglas fir | D140: ='REHAB ESTIMATOR'!T144 -> 0 | E140: =T('REHAB ESTIMATOR'!W144:X144) -> sf
C141: =T('REHAB ESTIMATOR'!B145:S145) -> Plywood panel, cedar | D141: ='REHAB ESTIMATOR'!T145 -> 0 | E141: =T('REHAB ESTIMATOR'!W145:X145) -> sf
C142: =T('REHAB ESTIMATOR'!B146:S146) -> Tongue and groove, douglas fir | D142: ='REHAB ESTIMATOR'!T146 -> 0 | E142: =T('REHAB ESTIMATOR'!W146:X146) -> sf
C143: =T('REHAB ESTIMATOR'!B147:S147) -> Tongue and groove, cedar | D143: ='REHAB ESTIMATOR'!T147 -> 0 | E143: =T('REHAB ESTIMATOR'!W147:X147) -> sf
C144: =T('REHAB ESTIMATOR'!B148:S148) -> Board and batten, douglas fir | D144: ='REHAB ESTIMATOR'!T148 -> 0 | E144: =T('REHAB ESTIMATOR'!W148:X148) -> sf
C145: =T('REHAB ESTIMATOR'!B149:S149) -> Board and batten, cedar | D145: ='REHAB ESTIMATOR'!T149 -> 0 | E145: =T('REHAB ESTIMATOR'!W149:X149) -> sf
C146: =T('REHAB ESTIMATOR'!B150:S150) -> Wood shingle/shake | D146: ='REHAB ESTIMATOR'!T150 -> 0 | E146: =T('REHAB ESTIMATOR'!W150:X150) -> sf
C147: =T('REHAB ESTIMATOR'!B151:S151) -> Fiber cement siding, 4x8 panels | D147: ='REHAB ESTIMATOR'!T151 -> 0 | E147: =T('REHAB ESTIMATOR'!W151:X151) -> sf
C148: =T('REHAB ESTIMATOR'!B152:S152) -> Fiber cement siding, lap | D148: ='REHAB ESTIMATOR'!T152 -> 0 | E148: =T('REHAB ESTIMATOR'!W152:X152) -> sf
C149: =T('REHAB ESTIMATOR'!B153:S153) -> Vinyl siding, non-insulated | D149: ='REHAB ESTIMATOR'!T153 -> 0 | E149: =T('REHAB ESTIMATOR'!W153:X153) -> sf
C150: =T('REHAB ESTIMATOR'!B154:S154) -> Vinyl siding, insulated | D150: ='REHAB ESTIMATOR'!T154 -> 0 | E150: =T('REHAB ESTIMATOR'!W154:X154) -> sf
C151: =T('REHAB ESTIMATOR'!B155:S155) -> Trim, 1"x3", pine | D151: ='REHAB ESTIMATOR'!T155 -> 0 | E151: =T('REHAB ESTIMATOR'!W155:X155) -> lf
C152: =T('REHAB ESTIMATOR'!B156:S156) -> Trim, 1"x4", pine | D152: ='REHAB ESTIMATOR'!T156 -> 0 | E152: =T('REHAB ESTIMATOR'!W156:X156) -> lf
C153: =T('REHAB ESTIMATOR'!B157:S157) -> Trim, 1"x6", pine | D153: ='REHAB ESTIMATOR'!T157 -> 0 | E153: =T('REHAB ESTIMATOR'!W157:X157) -> lf
C154: =T('REHAB ESTIMATOR'!B158:S158) -> Siding patch, window/door, siding, insulation | D154: ='REHAB ESTIMATOR'!T158 -> 0 | E154: =T('REHAB ESTIMATOR'!W158:X158) -> ea
C155: =T('REHAB ESTIMATOR'!B159:S159) -> Stucco | D155: ='REHAB ESTIMATOR'!T159 -> 0 | E155: =T('REHAB ESTIMATOR'!W159:X159) -> sf
C156: =T('REHAB ESTIMATOR'!B160:S160) ->  | D156: ='REHAB ESTIMATOR'!T160 -> 0 | E156: =T('REHAB ESTIMATOR'!W160:X160) -> 
C157: =T('REHAB ESTIMATOR'!B161:S161) ->  | D157: ='REHAB ESTIMATOR'!T161 -> 0 | E157: =T('REHAB ESTIMATOR'!W161:X161) -> 
C158: =T('REHAB ESTIMATOR'!B162:S162) ->  | D158: ='REHAB ESTIMATOR'!T162 -> 0 | E158: =T('REHAB ESTIMATOR'!W162:X162) -> 
C159: =T('REHAB ESTIMATOR'!B163:S163) ->  | D159: ='REHAB ESTIMATOR'!T163 -> 0 | E159: =T('REHAB ESTIMATOR'!W163:X163) -> 
C160: =T('REHAB ESTIMATOR'!B164:S164) ->  | D160: ='REHAB ESTIMATOR'!T164 -> 0 | E160: =T('REHAB ESTIMATOR'!W164:X164) -> 
C161: =T('REHAB ESTIMATOR'!B165:S165) ->  | D161: ='REHAB ESTIMATOR'!T165 -> 0 | E161: =T('REHAB ESTIMATOR'!W165:X165) -> 
C162: =T('REHAB ESTIMATOR'!B166:S166) -> DECKING AND PATIOS | D162: =SUM(D163:D186) -> 200
C163: =T('REHAB ESTIMATOR'!B167:S167) -> Decking | D163: ='REHAB ESTIMATOR'!T167 -> 0 | E163: =T('REHAB ESTIMATOR'!W167:X167) -> 
C164: =T('REHAB ESTIMATOR'!B168:S168) -> Deck bid/allowance | D164: ='REHAB ESTIMATOR'!T168 -> 0 | E164: =T('REHAB ESTIMATOR'!W168:X168) -> ls
C165: =T('REHAB ESTIMATOR'!B169:S169) -> New deck, columns, joists, railing-treated lumber | D165: ='REHAB ESTIMATOR'!T169 -> 200 | E165: =T('REHAB ESTIMATOR'!W169:X169) -> sf
C166: =T('REHAB ESTIMATOR'!B170:S170) -> New deck, columns, joists, railing-cedar | D166: ='REHAB ESTIMATOR'!T170 -> 0 | E166: =T('REHAB ESTIMATOR'!W170:X170) -> sf
C167: =T('REHAB ESTIMATOR'!B171:S171) -> Existing deck, replace decking | D167: ='REHAB ESTIMATOR'!T171 -> 0 | E167: =T('REHAB ESTIMATOR'!W171:X171) -> sf
C168: =T('REHAB ESTIMATOR'!B172:S172) -> Install railing w/ wood balusters only | D168: ='REHAB ESTIMATOR'!T172 -> 0 | E168: =T('REHAB ESTIMATOR'!W172:X172) -> lf
C169: =T('REHAB ESTIMATOR'!B173:S173) -> Install railing w/ metal balusters only | D169: ='REHAB ESTIMATOR'!T173 -> 0 | E169: =T('REHAB ESTIMATOR'!W173:X173) -> lf
C170: =T('REHAB ESTIMATOR'!B174:S174) -> Stairs, 5 to 7 risers | D170: ='REHAB ESTIMATOR'!T174 -> 0 | E170: =T('REHAB ESTIMATOR'!W174:X174) -> ea
C171: =T('REHAB ESTIMATOR'!B175:S175) ->  | D171: ='REHAB ESTIMATOR'!T175 -> 0 | E171: =T('REHAB ESTIMATOR'!W175:X175) -> 
C172: =T('REHAB ESTIMATOR'!B176:S176) ->  | D172: ='REHAB ESTIMATOR'!T176 -> 0 | E172: =T('REHAB ESTIMATOR'!W176:X176) -> 
C173: =T('REHAB ESTIMATOR'!B177:S177) -> Covered Patio | D173: ='REHAB ESTIMATOR'!T177 -> 0 | E173: =T('REHAB ESTIMATOR'!W177:X177) -> 
C174: =T('REHAB ESTIMATOR'!B178:S178) -> Covered Patio bid/allowance | D174: ='REHAB ESTIMATOR'!T178 -> 0 | E174: =T('REHAB ESTIMATOR'!W178:X178) -> ls
C175: =T('REHAB ESTIMATOR'!B179:S179) -> Covered patio, floor, roof frame, decking, treated | D175: ='REHAB ESTIMATOR'!T179 -> 0 | E175: =T('REHAB ESTIMATOR'!W179:X179) -> sf
C176: =T('REHAB ESTIMATOR'!B180:S180) -> Install railing w/ wood balusters only | D176: ='REHAB ESTIMATOR'!T180 -> 0 | E176: =T('REHAB ESTIMATOR'!W180:X180) -> lf
C177: =T('REHAB ESTIMATOR'!B181:S181) -> Install railing w/ metal balusters only | D177: ='REHAB ESTIMATOR'!T181 -> 0 | E177: =T('REHAB ESTIMATOR'!W181:X181) -> lf
C178: =T('REHAB ESTIMATOR'!B182:S182) -> Stairs, 5 to 7 risers | D178: ='REHAB ESTIMATOR'!T182 -> 0 | E178: =T('REHAB ESTIMATOR'!W182:X182) -> ea
C179: =T('REHAB ESTIMATOR'!B183:S183) -> Wood board ceiling, tongue and groove | D179: ='REHAB ESTIMATOR'!T183 -> 0 | E179: =T('REHAB ESTIMATOR'!W183:X183) -> sf
C180: =T('REHAB ESTIMATOR'!B184:S184) -> Insect screening | D180: ='REHAB ESTIMATOR'!T184 -> 0 | E180: =T('REHAB ESTIMATOR'!W184:X184) -> sf
C181: =T('REHAB ESTIMATOR'!B185:S185) ->  | D181: ='REHAB ESTIMATOR'!T185 -> 0 | E181: =T('REHAB ESTIMATOR'!W185:X185) -> 
C182: =T('REHAB ESTIMATOR'!B186:S186) ->  | D182: ='REHAB ESTIMATOR'!T186 -> 0 | E182: =T('REHAB ESTIMATOR'!W186:X186) -> 
C183: =T('REHAB ESTIMATOR'!B187:S187) ->  | D183: ='REHAB ESTIMATOR'!T187 -> 0 | E183: =T('REHAB ESTIMATOR'!W187:X187) -> 
C184: =T('REHAB ESTIMATOR'!B188:S188) ->  | D184: ='REHAB ESTIMATOR'!T188 -> 0 | E184: =T('REHAB ESTIMATOR'!W188:X188) -> 
C185: =T('REHAB ESTIMATOR'!B189:S189) ->  | D185: ='REHAB ESTIMATOR'!T189 -> 0 | E185: =T('REHAB ESTIMATOR'!W189:X189) -> 
C186: =T('REHAB ESTIMATOR'!B190:S190) ->  | D186: ='REHAB ESTIMATOR'!T190 -> 0 | E186: =T('REHAB ESTIMATOR'!W190:X190) -> 
C187: =T('REHAB ESTIMATOR'!B191:S191) -> ROOFING | D187: =SUM(D188:D211) -> 20
C188: =T('REHAB ESTIMATOR'!B192:S192) -> Roofing bid/allowance | D188: ='REHAB ESTIMATOR'!T192 -> 0 | E188: =T('REHAB ESTIMATOR'!W192:X192) -> ls
C189: =T('REHAB ESTIMATOR'!B193:S193) -> Asphalt shingle roof | D189: ='REHAB ESTIMATOR'!T193 -> 0 | E189: =T('REHAB ESTIMATOR'!W193:X193) -> 
C190: =T('REHAB ESTIMATOR'!B194:S194) -> Roof repair/patch, asphalt | D190: ='REHAB ESTIMATOR'!T194 -> 0 | E190: =T('REHAB ESTIMATOR'!W194:X194) -> ea
C191: =T('REHAB ESTIMATOR'!B195:S195) -> Roof replacement-demo & replace, 3-tab | D191: ='REHAB ESTIMATOR'!T195 -> 0 | E191: =T('REHAB ESTIMATOR'!W195:X195) -> sq
C192: =T('REHAB ESTIMATOR'!B196:S196) -> Roof replacement-demo & replace, architectural | D192: ='REHAB ESTIMATOR'!T196 -> 20 | E192: =T('REHAB ESTIMATOR'!W196:X196) -> sq
C193: =T('REHAB ESTIMATOR'!B197:S197) -> Premium for 3 layer tear off | D193: ='REHAB ESTIMATOR'!T197 -> 0 | E193: =T('REHAB ESTIMATOR'!W197:X197) -> sq
C194: =T('REHAB ESTIMATOR'!B198:S198) -> Premium for steep pitch roof | D194: ='REHAB ESTIMATOR'!T198 -> 0 | E194: =T('REHAB ESTIMATOR'!W198:X198) -> sq
C195: =T('REHAB ESTIMATOR'!B199:S199) ->  | D195: ='REHAB ESTIMATOR'!T199 -> 0 | E195: =T('REHAB ESTIMATOR'!W199:X199) -> 
C196: =T('REHAB ESTIMATOR'!B200:S200) -> Wood Shingle Roof | D196: ='REHAB ESTIMATOR'!T200 -> 0 | E196: =T('REHAB ESTIMATOR'!W200:X200) -> 
C197: =T('REHAB ESTIMATOR'!B201:S201) -> Roof repair/patch, wood | D197: ='REHAB ESTIMATOR'!T201 -> 0 | E197: =T('REHAB ESTIMATOR'!W201:X201) -> ea
C198: =T('REHAB ESTIMATOR'!B202:S202) -> Roof replacement-demo & replace, 3-tab | D198: ='REHAB ESTIMATOR'!T202 -> 0 | E198: =T('REHAB ESTIMATOR'!W202:X202) -> sq
C199: =T('REHAB ESTIMATOR'!B203:S203) -> Wood shingle, low end | D199: ='REHAB ESTIMATOR'!T203 -> 0 | E199: =T('REHAB ESTIMATOR'!W203:X203) -> sq
C200: =T('REHAB ESTIMATOR'!B204:S204) -> Wood shingle, high end | D200: ='REHAB ESTIMATOR'!T204 -> 0 | E200: =T('REHAB ESTIMATOR'!W204:X204) -> sq
C201: =T('REHAB ESTIMATOR'!B205:S205) -> Roof sheathing, plywood 1/2", remove & install | D201: ='REHAB ESTIMATOR'!T205 -> 0 | E201: =T('REHAB ESTIMATOR'!W205:X205) -> sheet
C202: =T('REHAB ESTIMATOR'!B206:S206) ->  | D202: ='REHAB ESTIMATOR'!T206 -> 0 | E202: =T('REHAB ESTIMATOR'!W206:X206) -> 
C203: =T('REHAB ESTIMATOR'!B207:S207) -> Slate/Clay Tile | D203: ='REHAB ESTIMATOR'!T207 -> 0 | E203: =T('REHAB ESTIMATOR'!W207:X207) -> 
C204: =T('REHAB ESTIMATOR'!B208:S208) -> Roof replacement-demo & replace, slate | D204: ='REHAB ESTIMATOR'!T208 -> 0 | E204: =T('REHAB ESTIMATOR'!W208:X208) -> sq
C205: =T('REHAB ESTIMATOR'!B209:S209) ->  | D205: ='REHAB ESTIMATOR'!T209 -> 0 | E205: =T('REHAB ESTIMATOR'!W209:X209) -> 
C206: =T('REHAB ESTIMATOR'!B210:S210) -> Gutters & downspouts, aluminum | D206: ='REHAB ESTIMATOR'!T210 -> 0 | E206: =T('REHAB ESTIMATOR'!W210:X210) -> lf
C207: =T('REHAB ESTIMATOR'!B211:S211) -> Clean gutters & downspouts | D207: ='REHAB ESTIMATOR'!T211 -> 0 | E207: =T('REHAB ESTIMATOR'!W211:X211) -> 
... 405 more rows

Sheet HOMEOWNER REPORT
O2: Allocate Portion of Profit | S2: Total Amount Allocated
P3: 100.00% | S3: =C80 -> $45,150.00
H6: OUR OFFER BY THE NUMBERS
I8: Property Information
I10: Property Address: | L10: =T(Street_Address) -> 2325 NW 49th St
L11: =T(City_State_Zip) -> Kansas City, MO 64151 | S11: # of Beds: | U11: =Beds -> 4
I12: Subdivision: | L12: =T(Subdivision) -> Misty Woods | S12: # of Baths: | U12: =Baths -> 3.0
I13: School District: | L13: =T(School_District) -> Park Hill School District | S13: sqft: | U13: =Square_Feet -> 2,000
H15: The following is a detailed appraisal and best-faith offer for your real property in as-is condition based upon comparable sales and required renovations and repairs. Please use this information as a reference and acknowledgement of due diligence in evaluating our offer.
H19: Comparables Sales Information:
H20: Address | L20: Beds | M20: Baths | N20: Sqft | P20: Sales Price | R20: $/sf | T20: Notes
H21: =T(Comparable1_Address) ->  | L21: =Comparable1_Beds -> 0 | M21: =Comparable1_Baths -> 0.0 | N21: =Comparable1_SF -> 0 | P21: =Comparable1_Sales_Price -> 0 | R21: =IF(N21=0,0,P21/N21) -> $0.0 /sf
H22: =T(Comparable2_Address) ->  | L22: =Comparable2_Beds -> 0 | M22: =Comparable2_Baths -> 0.0 | N22: =Comparable2_SF -> 0 | P22: =Comparable2_Sales_Price -> 0 | R22: =IF(N22=0,0,P22/N22) -> $0.0 /sf
H23: =T(Comparable3_Address) ->  | L23: =Comparable3_Beds -> 0 | M23: =Comparable3_Baths -> 0.0 | N23: =Comparable3_SF -> 0 | P23: =Comparable3_Sales_Price -> 0 | R23: =IF(N23=0,0,P23/N23) -> $0.0 /sf
I25: Investment Breakdown:
I26: After Repair Value: | L26: =ARV -> $175,000 | O26: ARV $/sf: | Q26: =IF(Square_Feet=0,"",ARV/Square_Feet) -> $87.50 | S26: % of Comps: | U26: =IF(SUM(R21:S23)=0,0,Q26/AVERAGE(R21:S23)) -> 0%
I28: Repair Cost Summary
I30: =T('REHAB ESTIMATOR'!N5:T5) -> GENERAL CONDITIONS | L30: =V63 -> $4,531 | N30: =T('REHAB ESTIMATOR'!Y5:AE5) -> EXT. DOORS & WINDOWS | Q30: =V71 -> $5,441 | S30: =T('REHAB ESTIMATOR'!AJ5:AP5) -> HARDWOOD FLOORING | V30: =V79 -> $2,770
I31: =T('REHAB ESTIMATOR'!N6:T6) -> DEMOLITION | L31: =V64 -> $2,374 | N31: =T('REHAB ESTIMATOR'!Y6:AE6) -> GARAGE DOORS | Q31: =V72 -> $2,374 | S31: =T('REHAB ESTIMATOR'!AJ6:AP6) -> TILING | V31: =V80 -> $6,994
I32: =T('REHAB ESTIMATOR'!N7:T7) -> STRUCTURAL CONCRETE | L32: $0 | N32: =T('REHAB ESTIMATOR'!Y7:AE7) -> LANDSCAPING | Q32: $1,711 | S32: =T('REHAB ESTIMATOR'!AJ7:AP7) -> PAINTING | V32: $8,458
I33: =T('REHAB ESTIMATOR'!N8:T8) -> CONCRETE & FLATWORK | L33: $0 | N33: =T('REHAB ESTIMATOR'!Y8:AE8) -> MISC. EXT. IMPROVEMENTS | Q33: $999 | S33: =T('REHAB ESTIMATOR'!AJ8:AP8) -> APPLIANCES | V33: $5,293
I34: =T('REHAB ESTIMATOR'!N9:T9) -> MASONRY | L34: $0 | N34: =T('REHAB ESTIMATOR'!Y9:AE9) -> FRAMING & DRYWALL | Q34: $1,484 | S34: =T('REHAB ESTIMATOR'!AJ9:AP9) -> PLUMBING | V34: $7,192
I35: =T('REHAB ESTIMATOR'!N10:T10) -> SIDING | L35: $0 | N35: =T('REHAB ESTIMATOR'!Y10:AE10) -> CABINETS & COUNTERTOPS | Q35: $12,277 | S35: =T('REHAB ESTIMATOR'!AJ10:AP10) -> HVAC | V35: $692
I36: =T('REHAB ESTIMATOR'!N11:T11) -> DECKING AND PATIOS | L36: $5,936 | N36: =T('REHAB ESTIMATOR'!Y11:AE11) -> DOORS & TRIM | Q36: $6,213 | S36: =T('REHAB ESTIMATOR'!AJ11:AP11) -> ELECTRICAL | V36: $6,393
I37: =T('REHAB ESTIMATOR'!N12:T12) -> ROOFING | L37: $8,903 | N37: =T('REHAB ESTIMATOR'!Y12:AE12) -> CARPET & RESILIENT | Q37: $5,401 | S37: =T('REHAB ESTIMATOR'!AJ12:AP12) -> MISCELLANEOUS | V37: $772
M38: =X86 -> $96,207 | T38: =Rehab_Schedule -> 3.0
J39: Total Repair Cost: | Q39: Rehab Schedule (Mo)
I41: Fixed Costs:
I42: Buying Costs (Closing costs, Appraisal fees, Inspection costs, etc.) | T42: =V87 -> 0
I43: Holding Costs (Mortgage Payments, PMI, Taxes, Utilities, Insurance, etc.) | T43: =V88 -> 0
I44: Selling Costs (Commissions, Closing Costs, Warranties, etc.) | T44: =V89 -> 0
Q46: Gross Profit: | T46: =C78 -> 0
R48: Property Price Opinion
R50: =MAXIMUM_PURCHASE_PRICE -> $78,793
H55: Disclaimer: The information above is provided as a basis in establishing our Property Price Opinion. The intent of our offer is to earn a profit after property rehabilitation. Actual property figures including rehab cost, fixed cost, and profit, may vary materially, and there is no guarantee of accuracy of the figures presented above.
H56: =T(Company_Name) -> WholesalingSpreadsheet.com | L56: =(Company_Phone) -> 8163880197 | O56: =T(Company_Email) -> dave@costpointsolutions.com | T56: =T(Company_Website) -> www.wholesalingspreadsheet.com
Q59: © 2015 by wholesalingspreadsheet.com. All rights reserved
F62: Scope of Work | H62: Raw Cost of Work | J62: Contingency Amount | L62: Cost w/ Contingency | N62: % of Total Repairs | P62: Fixed Costs Allocated | R62: Profits Allocated | T62: Total Allocated | V62: Cost w/ Allocations
F63: General Conditions | H63: =GC_ESTIMATE -> $2,290.00 | J63: =IF($C$65=0,0,(H63/TOTAL_REMODEL_ESTIMATE)*$C$65) -> $114.50 | L63: =H63+J63 -> $2,404.50 | N63: =IF($L$90=0,0,L63/$L$90) -> 4.71% | P63: =N63*$C$70 -> $890.08 | R63: =$C$76*N63 -> $1,236.22 | T63: =P63+R63 -> $2,126.30 | V63: =L63+T63 -> $4,530.80
C64: Repair Conting | F64: Demolition | H64: =DEMOLITION_ESTIMATE -> $1,200.00 | J64: $60.00 | L64: =H64+J64 -> $1,260.00 | N64: =IF($L$90=0,0,L64/$L$90) -> 2.47% | P64: $466.42 | R64: $647.80 | T64: $1,114.22 | V64: $2,374.22
C65: =REPAIR_CONTINGENCY -> $2,431.30 | F65: Structural Concrete | H65: =STRUCTURAL_CONRETE_ESTIMATE -> $0.00 | J65: $0.00 | L65: $0.00 | N65: 0.00% | P65: $0.00 | R65: $0.00 | T65: $0.00 | V65: $0.00
F66: Concrete/Flatwork | H66: =CONCRETE_FLATWORK_ESTIMATE -> $0.00 | J66: $0.00 | L66: $0.00 | N66: 0.00% | P66: $0.00 | R66: $0.00 | T66: $0.00 | V66: $0.00
F67: Masonry | H67: =MASONRY_ESTIMATE -> $0.00 | J67: $0.00 | L67: $0.00 | N67: 0.00% | P67: $0.00 | R67: $0.00 | T67: $0.00 | V67: $0.00
C68: Yes | F68: Siding | H68: =SIDING_ESTIMATE -> $0.00 | J68: $0.00 | L68: $0.00 | N68: 0.00% | P68: $0.00 | R68: $0.00 | T68: $0.00 | V68: $0.00
C69: Fixed Cost Allocated | F69: Decking | H69: =DECKING_ESTIMATE -> $3,000.00 | J69: $150.00 | L69: $3,150.00 | N69: 6.17% | P69: $1,166.04 | R69: $1,619.50 | T69: $2,785.55 | V69: $5,935.55
C70: =IF(C68="Yes",TOTAL_FIXED_COSTS,0) -> $18,900.00 | F70: Roofing | H70: =ROOFING_ESTIMATE -> $4,500.00 | J70: $225.00 | L70: $4,725.00 | N70: 9.25% | P70: $1,749.06 | R70: $2,429.26 | T70: $4,178.32 | V70: $8,903.32
C71: Allocate Profits (Yes/No) | F71: Doors & Windows | H71: =EXT_DOORS_WINDOWS_ESTIMATE -> $2,750.00 | J71: $137.50 | L71: $2,887.50 | N71: 5.66% | P71: $1,068.87 | R71: $1,484.55 | T71: $2,553.42 | V71: $5,440.92
F72: Garage Doors | H72: =GARAGE_DOORS_ESTIMATE -> $1,200.00 | J72: $60.00 | L72: $1,260.00 | N72: 2.47% | P72: $466.42 | R72: $647.80 | T72: $1,114.22 | V72: $2,374.22
C73: Yes | F73: Landscaping | H73: =LANDSCAPING_ESTIMATE -> $865.00 | J73: $43.25 | L73: $908.25 | N73: 1.78% | P73: $336.21 | R73: $466.96 | T73: $803.17 | V73: $1,711.42
C74: Profit Amount Allocated | F74: Misc. Ext. Improv. | H74: =MISC_EXT_IMP_ESTIMATE -> $505.00 | J74: $25.25 | L74: $530.25 | N74: 1.04% | P74: $196.28 | R74: $272.62 | T74: $468.90 | V74: $999.15
F75: Framing/Drywall | H75: =DRYWALL_ESTIMATE -> $750.00 | J75: $37.50 | L75: $787.50 | N75: 1.54% | P75: $291.51 | R75: $404.88 | T75: $696.39 | V75: $1,483.89
C76: =IF(C73="yes",REHABBER_PROFIT_WHOLESALE*P3,0) -> $26,250.00 | F76: Cabinets/Counters | H76: =CABINETS_ESTIMATE -> $6,205.00 | J76: $310.25 | L76: $6,515.25 | N76: 12.76% | P76: $2,411.77 | R76: $3,349.67 | T76: $5,761.44 | V76: $12,276.69
C77: Profit Shown | F77: Doors and Trim | H77: =DOORS_TRIM_ESTIMATE -> $3,140.00 | J77: $157.00 | L77: $3,297.00 | N77: 6.46% | P77: $1,220.46 | R77: $1,695.08 | T77: $2,915.54 | V77: $6,212.54
C78: =REHABBER_PROFIT_WHOLESALE-C76 -> $0.00 | F78: Carpet & Resilient | H78: =CARPET_ESTIMATE -> $2,730.00 | J78: $136.50 | L78: $2,866.50 | N78: 5.61% | P78: $1,061.10 | R78: $1,473.75 | T78: $2,534.85 | V78: $5,401.35
C79: Total Allocated | F79: Hardwood Flooring | H79: =HARDWOOD_ESTIMATE -> $1,400.00 | J79: $70.00 | L79: $1,470.00 | N79: 2.88% | P79: $544.15 | R79: $755.77 | T79: $1,299.92 | V79: $2,769.92
C80: =C70+C76 -> $45,150.00 | F80: Tiling | H80: =TILING_ESTIMATE -> $3,535.00 | J80: $176.75 | L80: $3,711.75 | N80: 7.27% | P80: $1,373.99 | R80: $1,908.32 | T80: $3,282.30 | V80: $6,994.05
F81: Painting | H81: =PAINTING_ESTIMATE -> $4,275.00 | J81: $213.75 | L81: $4,488.75 | N81: 8.79% | P81: $1,661.61 | R81: $2,307.79 | T81: $3,969.40 | V81: $8,458.15
F82: Appliances | H82: =APPLIANCES_ESTIMATE -> $2,675.00 | J82: $133.75 | L82: $2,808.75 | N82: 5.50% | P82: $1,039.72 | R82: $1,444.06 | T82: $2,483.78 | V82: $5,292.53
F83: Plumbing | H83: =PLUMBING_ESTIMATE -> $3,635.00 | J83: $181.75 | L83: $3,816.75 | N83: 7.48% | P83: $1,412.86 | R83: $1,962.30 | T83: $3,375.15 | V83: $7,191.90
F84: HVAC | H84: =HVAC_ESTIMATE -> $350.00 | J84: $17.50 | L84: $367.50 | N84: 0.72% | P84: $136.04 | R84: $188.94 | T84: $324.98 | V84: $692.48
F85: Electrical | H85: =ELECTRICAL_ESTIMATE -> $3,231.00 | J85: $161.55 | L85: $3,392.55 | N85: 6.64% | P85: $1,255.83 | R85: $1,744.21 | T85: $3,000.03 | V85: $6,392.58 | X85: Total Repair Costs
F86: Furnishings | H86: =MISC_ESTIMATE -> $390.00 | J86: $19.50 | L86: $409.50 | N86: 0.80% | P86: $151.59 | R86: $210.54 | T86: $362.12 | V86: $771.62 | X86: =SUM(V63:W86) -> $96,207.30
F87: Buying Costs | H87: =IF(C68="Yes",0,TOTAL_BUYING_COSTS) -> $0.00 | L87: =H87+J87 -> $0.00 | N87: 0.00% | P87: $0.00 | R87: $0.00 | T87: =P87+R87 -> $0.00 | V87: $0.00
F88: Holding Costs | H88: =IF(C68="Yes",0,TOTAL_HOLDING_COSTS) -> $0.00 | L88: =H88+J88 -> $0.00 | N88: 0.00% | P88: $0.00 | R88: $0.00 | T88: =P88+R88 -> $0.00 | V88: $0.00
F89: Selling Costs | H89: =IF(C68="Yes",0,TOTAL_SELLING_COSTS) -> $0.00 | L89: =H89+J89 -> $0.00 | N89: 0.00% | P89: $0.00 | R89: $0.00 | T89: =P89+R89 -> $0.00 | V89: $0.00
H90: =SUM(H63:I89) -> $48,626.00 | J90: =SUM(J63:K89) -> $2,431.30 | L90: =SUM(L63:M89) -> $51,057.30 | N90: =SUM(N63:O89) -> 100.00% | P90: =SUM(P63:Q89) -> $18,900.00 | R90: =SUM(R63:S89) -> $26,250.00 | T90: =SUM(T63:U89) -> $45,150.00 | V90: =SUM(V63:W89) -> $96,207.30

Sheet DEAL CHEAT SHEET
H3: DEAL CHEAT SHEET
H5: AFTER REPAIR VALUE | P5: =ARV -> $175,000 | S5: input on Info Sheet
H7: FIXED COSTS
H8: BUYING COSTS | P8: Total Costs | S8: Notes
H9: =T('REHAB CALC'!B18:Y19) -> BROKERAGE FEE ($300 Avg.) | P9: ='REHAB CALC'!Z18 -> $300
H10: =T('REHAB CALC'!B20:Y21) -> INSPECTION COSTS ($400 Avg.) | P10: ='REHAB CALC'!Z20 -> $400
H11: =T('REHAB CALC'!B22:Y23) -> APPRAISAL FEE ($500 Avg.) | P11: ='REHAB CALC'!Z22 -> 0
H12: =T('REHAB CALC'!B24:Y25) -> TITLE SEARCH ($300 Avg.) | P12: ='REHAB CALC'!Z24 -> $500
H13: =T('REHAB CALC'!B26:Y27) -> TITLE INSURANCE ($150 Avg.) | P13: ='REHAB CALC'!Z26 -> 0
H14: =T('REHAB CALC'!B28:O29) -> CLOSING COSTS &POINTS | P14: ='REHAB CALC'!Z28 -> 0 | S14: points % * loan balance amount
H15: =T('REHAB CALC'!B30:Y31) -> OTHER | P15: ='REHAB CALC'!Z30 -> 0
H16: TOTAL BUYING COSTS | P16: =SUM(P9:R15) -> $1,200 | S16: =sum of buying costs
H18: HOLDING COSTS | M18: Monthly Costs | P18: Costs | S18: Notes
H19: =T('REHAB CALC'!B36:J37) -> LOAN PAYMENT | M19: ='REHAB CALC'!Q36 -> 0 | P19: ='REHAB CALC'!Z36 -> 0 | S19: monthly loan payment * total holding period
H20: =T('REHAB CALC'!B38:I39) -> PROPERTY TAXES | M20: ='REHAB CALC'!Q38 -> $167 | P20: ='REHAB CALC'!Z38 -> $1,000 | S20: monthly taxes * total holding period
H21: =T('REHAB CALC'!B40:I41) -> UTILITIES | M21: ='REHAB CALC'!Q40 -> $250 | P21: ='REHAB CALC'!Z40 -> $1,500 | S21: monthly utilities * total holding period
H22: =T('REHAB CALC'!B42:I43) -> INSURANCE | M22: ='REHAB CALC'!Q42 -> $150 | P22: ='REHAB CALC'!Z42 -> $900 | S22: monthly insurance * total holding period
H23: =T('REHAB CALC'!B44:I45) -> HOA DUES | M23: ='REHAB CALC'!Q44 -> 0 | P23: ='REHAB CALC'!Z44 -> 0 | S23: monthly HOA dues * total holding period
H24: =T('REHAB CALC'!B46:I47) -> MAINTENANCE | M24: ='REHAB CALC'!Q46 -> $50 | P24: ='REHAB CALC'!Z46 -> $300 | S24: monthly maintenance * total holding period
H25: =T('REHAB CALC'!B48:K49) -> OTHER | M25: ='REHAB CALC'!Q48 -> 0 | P25: ='REHAB CALC'!Z48 -> 0 | S25: other holding costs * total holding period
H26: TOTAL HOLDING COSTS | M26: =SUM(M19:O25) -> $617 | P26: =SUM(P19:R25) -> $3,700 | S26: total monthly holding costs * total holding period
H28: SELLING COSTS | M28: Monthly Costs | P28: Costs | S28: Notes
H29: =T('REHAB CALC'!B54:O55) -> COMMISSIONS | M29: =#REF! ->  | P29: ='REHAB CALC'!Z54 -> $10,500 | S29: sales commission % * ARV
H30: =T('REHAB CALC'!B56) -> SELLER ASSISTED CLOSING COSTS | M30: =#REF! ->  | P30: ='REHAB CALC'!Z56 -> $1,750 | S30: seller assisted closing costs * ARV
H31: =T('REHAB CALC'!B58) -> BROKERAGE FEE ($300 Avg.) | M31: =#REF! ->  | P31: ='REHAB CALC'!Z58 -> $300
H32: =T('REHAB CALC'!B60:Y61) -> HOME WARRANTY ($450 Avg.) | M32: =#REF! ->  | P32: ='REHAB CALC'!Z60 -> $450
H33: =T('REHAB CALC'!B62:Y63) -> TITLE INSURANCE ($150 Avg.) | M33: =#REF! ->  | P33: ='REHAB CALC'!Z62 -> $500
H34: =T('REHAB CALC'!B64:Y65) -> 2ND APPRAISAL ($500 Avg.) | M34: =#REF! ->  | P34: ='REHAB CALC'!Z64 -> $500
H35: =T('REHAB CALC'!B66:Y67) -> OTHER | M35: =#REF! ->  | P35: ='REHAB CALC'!Z66 -> 0
H36: TOTAL SELLING COSTS | P36: =SUM(P29:R35) -> $14,000 | S36: =sum of selling costs
H37: TOTAL FIXED COSTS | P37: =P16+P26+P36 -> $18,900 | S37: =buying costs + holding costs + selling costs
H39: REPAIR COSTS
H40: =T('REHAB ESTIMATOR'!N5:T5) -> GENERAL CONDITIONS | P40: =GC_ESTIMATE -> $2,290
H41: =T('REHAB ESTIMATOR'!N6:T6) -> DEMOLITION | P41: =DEMOLITION_ESTIMATE -> $1,200
H42: =T('REHAB ESTIMATOR'!N7:T7) -> STRUCTURAL CONCRETE | P42: =STRUCTURAL_CONRETE_ESTIMATE -> 0
H43: =T('REHAB ESTIMATOR'!N8:T8) -> CONCRETE & FLATWORK | P43: =CONCRETE_FLATWORK_ESTIMATE -> 0
H44: =T('REHAB ESTIMATOR'!N9:T9) -> MASONRY | P44: =MASONRY_ESTIMATE -> 0
H45: =T('REHAB ESTIMATOR'!N10:T10) -> SIDING | P45: =SIDING_ESTIMATE -> 0
H46: =T('REHAB ESTIMATOR'!N11:T11) -> DECKING AND PATIOS | P46: =DECKING_ESTIMATE -> $3,000
H47: =T('REHAB ESTIMATOR'!N12:T12) -> ROOFING | P47: =ROOFING_ESTIMATE -> $4,500
H48: =T('REHAB ESTIMATOR'!Y5:AE5) -> EXT. DOORS & WINDOWS | P48: =EXT_DOORS_WINDOWS_ESTIMATE -> $2,750
H49: =T('REHAB ESTIMATOR'!Y6:AE6) -> GARAGE DOORS | P49: =GARAGE_DOORS_ESTIMATE -> $1,200
H50: =T('REHAB ESTIMATOR'!Y7:AE7) -> LANDSCAPING | P50: =LANDSCAPING_ESTIMATE -> $865
H51: =T('REHAB ESTIMATOR'!Y8:AE8) -> MISC. EXT. IMPROVEMENTS | P51: =MISC_EXT_IMP_ESTIMATE -> $505
H52: =T('REHAB ESTIMATOR'!Y9:AE9) -> FRAMING & DRYWALL | P52: =DRYWALL_ESTIMATE -> $750
H53: =T('REHAB ESTIMATOR'!Y10:AE10) -> CABINETS & COUNTERTOPS | P53: =CABINETS_ESTIMATE -> $6,205
H54: =T('REHAB ESTIMATOR'!Y11:AE11) -> DOORS & TRIM | P54: =DOORS_TRIM_ESTIMATE -> $3,140
H55: =T('REHAB ESTIMATOR'!Y12:AE12) -> CARPET & RESILIENT | P55: =CARPET_ESTIMATE -> $2,730
H56: =T('REHAB ESTIMATOR'!AJ5:AP5) -> HARDWOOD FLOORING | P56: =HARDWOOD_ESTIMATE -> $1,400
H57: =T('REHAB ESTIMATOR'!AJ6:AP6) -> TILING | P57: =TILING_ESTIMATE -> $3,535
H58: =T('REHAB ESTIMATOR'!AJ7:AP7) -> PAINTING | P58: =PAINTING_ESTIMATE -> $4,275
H59: =T('REHAB ESTIMATOR'!AJ8:AP8) -> APPLIANCES | P59: =APPLIANCES_ESTIMATE -> $2,675
H60: =T('REHAB ESTIMATOR'!AJ9:AP9) -> PLUMBING | P60: =PLUMBING_ESTIMATE -> $3,635
H61: =T('REHAB ESTIMATOR'!AJ10:AP10) -> HVAC | P61: =HVAC_ESTIMATE -> $350
H62: =T('REHAB ESTIMATOR'!AJ11:AP11) -> ELECTRICAL | P62: =ELECTRICAL_ESTIMATE -> $3,231
H63: =T('REHAB ESTIMATOR'!AJ12:AP12) -> MISCELLANEOUS | P63: =MISC_ESTIMATE -> $390
H64: SUBTOTAL REPAIR COSTS | P64: =SUM(P40:R63) -> $48,626 | S64: =sum of repair costs
H66: REPAIR COST CONTINGENCY | P66: =REPAIR_CONTINGENCY_WHOLESALE -> $2,431
H68: TOTAL REPAIR COSTS w/ CONTINGENCY | P68: =P64+P66 -> $51,057 | S68: =subtotal repair costs + repair cost contingency
H70: REHABBER PROFIT | P70: ='REHAB CALC'!BN9 -> $26,250
H72: REHABBER MAXIMUM PURCHASE PRICE | P72: ='REHAB CALC'!BN49 -> $78,793 | S72: =ARV - Total Fixed Costs - Total Repairs Costs - Profit
H74: WHOLESALER ASSIGNMENT FEE | P74: ='REHAB CALC'!BN61 -> $5,000 | S74: =ARV - Total Fixed Costs - Total Repairs Costs - Profit
H76: WHOLESALER MAXIMUM ALLOWABLE OFFER | P76: ='REHAB CALC'!BN73 -> $73,793 | S76: =ARV - Total Fixed Costs - Total Repairs Costs - Profit
H77: MAXIMUM PURCHASE PRICE SUMMARY
H79: AFTER REPAIR VALUE | P79: =ARV -> $175,000
H80: TOTAL FIXED COSTS | P80: =-P37 -> $(18,900)
H81: TOTAL REPAIR COSTS w/ CONTINGENCY | P81: =-P68 -> $(51,057)
H82: REHAB PROFIT | P82: =-P70 -> $(26,250)
H83: MAXIMUM PURCHASE PRICE | P83: =P76 -> $73,793 | S83: =ARV - Total Fixed Costs - Total Repairs Costs - Profit
H84: INVESTMENT SUMMARY
H86: MAXIMUM PURCHASE PRICE | P86: =P83 -> $73,793
H87: TOTAL FIXED COSTS | P87: =P37 -> $18,900
H88: TOTAL REPAIR COSTS w/ CONTINGENCY | P88: =P68 -> $51,057
H89: TOTAL INVESTMENT | P89: =P86+P87+P88 -> $143,750 | S89: =Purchase Price + Fixed Costs + Repair Costs
H91: =T(Company_Name) -> WholesalingSpreadsheet.com | L91: =(Company_Phone) -> 8163880197 | O91: =T(Company_Email) -> dave@costpointsolutions.com | T91: =T(Company_Website) -> www.wholesalingspreadsheet.com
Q94: © 2015 by wholesalingspreadsheet.com. All rights reserved

Sheet FINANCING CHEAT SHEET
F3: FINANCING CHEAT SHEET
F5: Loan 1 Financing
J6: Loan Amount | L6: =IF(OR('REHAB INFO SHEET'!BI40=0,'REHAB INFO SHEET'!BI40="",'REHAB INFO SHEET'!BI40="All Cash"),"All Cash",'REHAB INFO SHEET'!AE49) -> All Cash | S6: =T('REHAB INFO SHEET'!BD44:BQ45) -> Interest Only | Y6: ='REHAB INFO SHEET'!BS44 -> 30
Y7: years
F9: Loan Breakdown Based Upon Project Cost | N9: Loan Amount | Q9: Notes
F10: =IF(L6="ARV","Loan Amount for ARV","Specific Loan Amount") -> Specific Loan Amount | N10: =IF(L6=0,0,((((((IF(L6="All Cash",0,IF(L6="",0,IF(L6="Purchase Price Only",0,IF(L6="Repair Cost Only",0,IF(L6="All Costs",0,IF(L6="ARV",ARV,IF('REHAB INFO SHEET'!EG7=FALSE,L6)))))))))))))) -> 0
F11: Purchase Price | N11: =IF(L6=0,0,((((((IF(L6="All Cash",0,IF(L6="",0,IF(L6="Purchase Price Only",#REF!,IF(L6="Repair Cost Only",0,IF(L6="All Costs",#REF!,IF(L6="ARV",0,IF(EG7=FALSE,EL9)))))))))))))) -> 0 | Q11: Maximum Purchase Price Value
F12: Fixed Costs
F13: Buying Costs | N13: =IF(L6=0,0,((((((IF(L6="All Cash",0,IF(L6="",0,IF(L6="Purchase Price Only",0,IF(L6="Repair Cost Only",0,IF(L6="All Costs",TOTAL_BUYING_COSTS-Q98,IF(L6="ARV",0,IF(EG8=FALSE,EL11)))))))))))))) -> 0 | Q13: Non-Financing Buying Costs
F14: Holding Costs | N14: =IF(L6=0,0,((((((IF(L6="All Cash",0,IF(L6="",0,IF(L6="Purchase Price Only",0,IF(L6="Repair Cost Only",0,IF(L6="All Costs",(TOTAL_HOLDING_COSTS-Q97),IF(L6="ARV",0,IF(EG8=FALSE,EL11)))))))))))))) -> 0 | Q14: Non-Financing Holding Costs
F15: Selling Costs | N15: 0 | Q15: Paid for out of proceeds at closing
F16: Repair Costs & Contingency | N16: =IF(L6=0,0,((((((IF(L6="All Cash",0,IF(L6="",0,IF(L6="Purchase Price Only",0,IF(L6="Repair Cost Only",#REF!+#REF!,IF(L6="All Costs",#REF!+#REF!,IF(L6="ARV",0,IF(EG7=FALSE,EL9)))))))))))))) -> 0
F17: Loan 1 Starting Balance | N17: =SUM(N10:P16) -> 0
F19: Loan Value & Investor Equity | K19: Totals | S19: Loan Balance | V19: Notes
F20: Loan 1 Amount | K20: =N17 -> 0 | N20: Loan 1 Starting Balance | S20: =K20 -> 0
F21: Down Payment | I21: ='REHAB INFO SHEET'!AT54 -> 0.0% | K21: ='REHAB INFO SHEET'!AZ55 -> 0 | N21: Down Payment Amount | S21: =-K21 -> 0
F22: Loan Balance after Down Payment | S22: =IFERROR(S20+S21,S20) -> 0
F24: =T('REHAB INFO SHEET'!BF57:BK57) -> Total Interest | K24: Totals | S24: Loan Balance | V24: Notes
F25: Interest Amount | I25: ='REHAB INFO SHEET'!$AE$57 -> 8.0% | K25: =IF('REHAB INFO SHEET'!BD44="Amortized",'REHAB INFO SHEET'!EG37,'REHAB INFO SHEET'!BF58) -> 0 | N25: Interest Rolled into Loan Balance | S25: ='REHAB INFO SHEET'!BL58 -> 0 | V25: Based upon loan balance after DP
F26: Principal Amount | K26: ='REHAB INFO SHEET'!EG41 -> 0 | N26: Principal Reductions | S26: =IF(S25>0,-K26,0) -> 0
F27: Total Loan Payments | K27: =SUM(K25:M26) -> 0 | N27: Loan Balance with Interest Rolled | S27: =IFERROR(S22+S25,0) -> 0
F29: Lender Points | K29: Total | S29: Loan Balance | V29: Notes
F30: Lender Points | I30: ='REHAB INFO SHEET'!AE60 -> 2.0% | K30: ='REHAB INFO SHEET'!AZ61 -> 0 | N30: Lender Points Added to Loan Balance | S30: ='REHAB INFO SHEET'!BL61 -> 0 | V30: Based upon loan balance after DP
F31: Final Loan Balance with Down Payment, Interest & Points Rolled | S31: =S27+S30 -> 0
F33: Total Loan 1 Financing Costs
F34: Financing Cost | K34: Upfront/During Rehab | N34: Rolled/Paid BackEnd | Q34: Totals | T34: Notes
F35: Interest Payments | I35: =I25 -> 8.0% | K35: ='REHAB INFO SHEET'!BF58-'REHAB INFO SHEET'!BL58 -> 0 | N35: ='REHAB INFO SHEET'!BL58 -> 0 | Q35: =SUM(K35:P35) -> 0 | T35: =IF(K35>0,"Interest Payments During Rehab (excluding principal)",IF(N35>0,"Interest Payments Rolled into Loan Balance","")) -> 
F36: Lender Points | I36: =I30 -> 2.0% | K36: ='REHAB INFO SHEET'!AZ61-'REHAB INFO SHEET'!BL61 -> 0 | N36: ='REHAB INFO SHEET'!BL61 -> 0 | Q36: =SUM(K36:P36) -> 0 | T36: =IF(K36>0,"Lender Points Paid Upfront out of Cash",IF(N36>0,"Lender Points Rolled into Loan Balance","")) -> 
F37: Profit Split | I37: ='REHAB INFO SHEET'!AT63 -> 0.0% | K37: 0 | N37: ='REHAB INFO SHEET'!BL64 -> 0 | Q37: =SUM(K37:P37) -> 0
F38: Total Financing Costs | K38: =SUM(K35:M37) -> 0 | N38: =SUM(N35:P37) -> 0 | Q38: =SUM(Q35:S37) -> 0
F40: Total Loan 1 Cash Outlay vs Finanacing
F41: Financing Cost | K41: Cash Outlay | N41: Financed | Q41: Totals
F42: Loan 1 Amount After Down Payment | K42: ='REHAB INFO SHEET'!AZ71 -> 0 | N42: =S22 -> 0 | Q42: =SUM(K42:P42) -> 0
F43: Down Payment | I43: =I21 -> 0.0% | K43: =K21 -> 0 | N43: 0 | Q43: =SUM(K43:P43) -> 0
F44: Interest Payments | I44: =I25 -> 8.0% | K44: =K35 -> 0 | N44: =N35 -> 0 | Q44: =SUM(K44:P44) -> 0 | T44: =IF(K44>0,"Interest Payments During Rehab (excluding principal)",IF(N44>0,"Interest Payments Rolled into Loan Balance","")) -> 
F45: Lender Points | I45: =I30 -> 2.0% | K45: =K36 -> 0 | N45: =N36 -> 0 | Q45: =SUM(K45:P45) -> 0 | T45: =IF(K45>0,"Lender Points Paid Upfront out of Cash",IF(N45>0,"Lender Points Rolled into Loan Balance","")) -> 
F46: Total Costs Cash vs Financed | K46: =SUM(K42:M45) -> 0 | N46: =SUM(N42:P45) -> 0 | Q46: =SUM(Q42:S45) -> 0
F48: Loan 2 Financing
J49: Loan Amount | L49: =IF(OR('REHAB INFO SHEET'!BI40=0,'REHAB INFO SHEET'!BI40="",'REHAB INFO SHEET'!BI40="All Cash"),"All Cash",'REHAB INFO SHEET'!AE86) -> All Cash | S49: =T('REHAB INFO SHEET'!BD81:BQ82) -> Interest Only | Y49: ='REHAB INFO SHEET'!BS81 -> 30
Y50: years
F52: Loan Breakdown Based Upon Project Cost | N52: Loan Amount | Q52: Notes
F53: =IF(L49="ARV","Loan Amount for ARV","Specific Loan Amount") -> Specific Loan Amount | N53: =IF(L49=0,0,((((((IF(L49="All Cash",0,IF(L49="",0,IF(L49="Purchase Price Only",0,IF(L49="Repair Cost Only",0,IF(L49="All Costs",0,IF(L49="ARV",ARV,IF('REHAB INFO SHEET'!EG7=FALSE,L49)))))))))))))) -> 0
F54: Purchase Price | N54: =IF(L49=0,0,((((((IF(L49="All Cash",0,IF(L49="",0,IF(L49="Purchase Price Only",#REF!,IF(L49="Repair Cost Only",0,IF(L49="All Costs",#REF!,IF(L49="ARV",0,IF(EG50=FALSE,EL52)))))))))))))) -> 0 | Q54: Maximum Purchase Price Value
F55: Fixed Costs
F56: Buying Costs | N56: =IF(L49=0,0,((((((IF(L49="All Cash",0,IF(L49="",0,IF(L49="Purchase Price Only",0,IF(L49="Repair Cost Only",0,IF(L49="All Costs",TOTAL_BUYING_COSTS-Q98,IF(L49="ARV",0,IF(EG51=FALSE,EL54)))))))))))))) -> 0 | Q56: Non-Financing Buying Costs
F57: Holding Costs | N57: =IF(L49=0,0,((((((IF(L49="All Cash",0,IF(L49="",0,IF(L49="Purchase Price Only",0,IF(L49="Repair Cost Only",0,IF(L49="All Costs",(TOTAL_HOLDING_COSTS-Q97),IF(L49="ARV",0,IF(EG51=FALSE,EL54)))))))))))))) -> 0 | Q57: Non-Financing Holding Costs
F58: Selling Costs | N58: 0 | Q58: Paid for out of proceeds at closing
F59: Repair Costs & Contingency | N59: =IF(L49=0,0,((((((IF(L49="All Cash",0,IF(L49="",0,IF(L49="Purchase Price Only",0,IF(L49="Repair Cost Only",#REF!+#REF!,IF(L49="All Costs",#REF!+#REF!,IF(L49="ARV",0,IF(EG50=FALSE,EL52)))))))))))))) -> 0
F60: Loan 1 Amount | N60: =SUM(N53:P59) -> 0
F62: Loan Value & Investor Equity | K62: Totals | S62: Loan Balance | V62: Notes
F63: Loan 2 Amount | K63: =N60 -> 0 | N63: Loan 2 Starting Balance | S63: =K63 -> 0
F64: Down Payment | I64: ='REHAB INFO SHEET'!AT91 -> 0.0% | K64: ='REHAB INFO SHEET'!AZ92 -> 0 | N64: Down Payment Amount | S64: =-K64 -> 0
F65: Loan Balance after Down Payment | S65: =IFERROR(S63+S64,S63) -> 0
F67: =T('REHAB INFO SHEET'!BF94:BK94) -> Total Interest | K67: Totals | S67: Loan Balance | V67: Notes
F68: Interest Amount | I68: ='REHAB INFO SHEET'!AE94 -> 0.0% | K68: ='REHAB INFO SHEET'!BF95 -> 0 | N68: Interest Rolled into Loan Balance | S68: ='REHAB INFO SHEET'!BL95 -> 0 | V68: Based upon loan balance after DP
F69: Principal Amount | K69: ='REHAB INFO SHEET'!FW44 -> 0 | N69: Principal Reductions | S69: =IF(S68>0,-K69,0) -> 0
F70: Total Loan Payments | K70: =SUM(K68:M69) -> 0 | N70: Loan Balance with Interest Rolled | S70: =IFERROR(S65+S68,0) -> 0
F72: Lender Points | K72: Total | S72: Loan Balance | V72: Notes
F73: Lender Points | I73: ='REHAB INFO SHEET'!AE97 -> 0.0% | K73: ='REHAB INFO SHEET'!AZ98 -> 0 | N73: Lender Points Added to Loan Balance | S73: ='REHAB INFO SHEET'!BL98 -> 0 | V73: Based upon loan balance after DP
F74: Final Loan Balance with Down Payment, Interest & Points Rolled | S74: =S70+S73 -> 0
F76: Total Loan 2 Financing Costs
F77: Financing Cost | K77: Upfront/During Rehab | N77: Rolled/Paid BackEnd | Q77: Totals | T77: Notes
F78: Interest Payments | I78: =I68 -> 0.0% | K78: ='REHAB INFO SHEET'!BF95-'REHAB INFO SHEET'!BL95 -> 0 | N78: ='REHAB INFO SHEET'!BL95 -> 0 | Q78: =SUM(K78:P78) -> 0
F79: Lender Points | I79: =I73 -> 0.0% | K79: ='REHAB INFO SHEET'!AZ98-'REHAB INFO SHEET'!BL98 -> 0 | N79: ='REHAB INFO SHEET'!BL98 -> 0 | Q79: =SUM(K79:P79) -> 0
F80: Profit Split | I80: ='REHAB INFO SHEET'!AT100 -> 0.0% | K80: 0 | N80: ='REHAB INFO SHEET'!BL101 -> 0 | Q80: =SUM(K80:P80) -> 0
F81: Total Financing Costs | K81: =SUM(K78:M80) -> 0 | N81: =SUM(N78:P80) -> 0 | Q81: =SUM(Q78:S80) -> 0
F83: Total Loan 2 Cash Outlay vs Finanacing
F84: Financing Cost | K84: Cash Outlay | N84: Financed | Q84: Totals
F85: Loan 2 Amount After Down Payment | K85: 0 | N85: =S65 -> 0 | Q85: =SUM(K85:P85) -> 0
F86: Down Payment | I86: =I43 -> 0.0% | K86: =K64 -> 0 | N86: 0 | Q86: =SUM(K86:P86) -> 0
F87: Interest Payments | I87: =I44 -> 8.0% | K87: =K78 -> 0 | N87: =N78 -> 0 | Q87: =SUM(K87:P87) -> 0
F88: Lender Points | I88: =I45 -> 2.0% | K88: =K79 -> 0 | N88: =N79 -> 0 | Q88: =SUM(K88:P88) -> 0
F89: Total Costs Cash vs Financed | K89: =SUM(K85:M88) -> 0 | N89: =SUM(N85:P88) -> 0 | Q89: =SUM(Q85:S88) -> 0
F91: Total Project Financing
F95: Total Project Financing Costs
F96: Financing Cost | K96: Upfront/During Rehab | N96: Rolled/Paid BackEnd | Q96: Totals | T96: Notes
F97: Interest Payments | K97: =K35+K78 -> 0 | N97: =N35+N78 -> 0 | Q97: =SUM(K97:P97) -> 0
F98: Lender Points | K98: =K36+K79 -> 0 | N98: =N36+N79 -> 0 | Q98: =SUM(K98:P98) -> 0
F99: Profit Split | K99: =K37+K80 -> 0 | N99: =N37+N80 -> 0 | Q99: =SUM(K99:P99) -> 0
F100: Total Financing Costs | K100: =SUM(K97:M99) -> 0 | N100: =SUM(N97:P99) -> 0 | Q100: =SUM(Q97:S99) -> 0
F102: Total Project Cash Outlay vs Finanacing
F103: Financing Cost | K103: Cash Outlay | N103: Financed | Q103: Totals
F104: Loan Amounts After Down Payments | K104: =K42+K85 -> 0 | N104: =IFERROR(N42+N85,0) -> 0 | Q104: =SUM(K104:P104) -> 0
F105: Down Payment | I105: =IFERROR(K105/(Q104+Q105),0) -> 0.0% | K105: =K43+K86 -> 0 | N105: =N43+N86 -> 0 | Q105: =SUM(K105:P105) -> 0
F106: Interest Payments | I106: =IFERROR(((Q106/Schedule)*12)/Q104,0) -> 0.0% | K106: =K44+K87 -> 0 | N106: =N44+N87 -> 0 | Q106: =SUM(K106:P106) -> 0
F107: Lender Points | I107: =IFERROR(Q107/Q104,0) -> 0.0% | K107: =K45+K88 -> 0 | N107: =N45+N88 -> 0 | Q107: =SUM(K107:P107) -> 0
F108: Total Costs Cash vs Financed | K108: =SUM(K104:M107) -> 0 | N108: =SUM(N104:P107) -> 0 | Q108: =SUM(Q104:S107) -> 0
F110: Total Capital Requirements vs Financing Assumptions
F111: Investment Type | N111: Financed | Q111: Notes
F112: Total Cash Investment | N112: =K108 -> 0
F113: Total Financed Investment | I113: =I81 -> 0 | N113: =N108 -> 0
F114: Total Investment Amount | N114: =SUM(N112:P113) -> 0
F116: Financing Cost | N116: Financed | Q116: Notes
F117: Total Investment Amount | I117: =I86 -> 0 | N117: =N114 -> 0
F118: Total Project Capital Required | N118: =IF(N117=0,0,MAXIMUM_PURCHASE_PRICE+TOTAL_BUYING_COSTS+TOTAL_HOLDING_COSTS+#REF!+#REF!) -> 0 | Q118: Purchase Price + Buying Costs + Holding Costs + Repair Costs + Contingency
F119: Over/Under Capitalized | N119: =N117-N118 -> 0 | Q119: =IF(N119>0,"Over Capitalized for Project Costs",IF(N119<0,"Under Capitalized for Project Costs","")) -> 
F121: =T(Company_Name) -> WholesalingSpreadsheet.com | H121: =(Company_Phone) -> 8163880197 | W121: =T(Company_Website) -> www.wholesalingspreadsheet.com
L124: © 2015 by wholesalingspreadsheet.com. All rights reserved

Sheet RENTAL
AA3: RENTAL
AI36: © 2015 by wholesalingspreadsheet.com. All rights reserved

Sheet RENTAL INFO SHEET
AF3: =IF(1>0,1,0) -> 1 | AH3: Required Field | AP3: =IF(1>0,1,0) -> 1 | AR3: Suggested, but Not Required | BD3: =IF(1>0,1,0) -> 1 | BF3: Field Completed
V4: Property Information:
V8: =IF(Project_Name>0,1,0) -> 1 | X8: Project Name: | AM8: Example Project
V10: =IF(AM10>0,1,0) -> 1 | X10: Property Type: | AM10: Single Family Home
V12: =IF(Street_Address>0,1,0) -> 1 | X12: Street Address: | AM12: Example Street
V14: =IF(City_State_Zip>0,1,0) -> 1 | X14: City/State/Zip Code: | AM14: Example City, State & Zip Code
V16: =IF(Subdivision>0,1,0) -> 1 | X16: Neighborhood: | AM16: Example Subdivision
V18: =IF(School_District>0,1,0) -> 1 | X18: School District: | AM18: Example School District
V20: =IF(AM20>0,1,0) -> 0 | X20: Status: (REO, HUD, FSBO, etc.):
BY21: Next: Estimate Rental Repairs
V22: =IF(COUNT(AM22,BH22)=2,1,0) -> 0 | X22: MLS ID #: | BB22: REO ID #:
V24: =IF(COUNT(Beds,Baths,Square_Feet)=3,1,0) -> 1 | X24: # of Beds*: | AM24: 3 | AU24: # of Baths*: | BA24: 2.0 | BI24: Square Feet*: | BP24: 2,000 sf
V27: Financial Information:
V31: =IF(AG31>0,1,0) -> 0 | X31: After Repair Value: | AF31: $175,000 | AW31: =IF(BH31>0,1,0) -> 0 | AY31: Asking Price: | BG31: $150,000
V34: Landlord's Desired Investment Criteria
V36: =IF(AD36>0,1,0) -> 1 | X36: Cap Rate (%): | AD36: 8% | AI36: =IF(AQ36>0,1,0) -> 1 | AK36: COCR (%): | AQ36: 12% | AV36: =IF(BD36>0,1,0) -> 1 | AX36: Cash Flow per Month: | BD36: $200 | BK36: =IF(BS36>0,1,0) -> 1 | BM36: IRR (%): | BS36: 15% | ES36: Landlord's Desired Cash Flow:
AJ40: Rental Income:
BK42: Total Monthly Income:
V43: =IF(AG43>0,1,0) -> 0 | X43: Monthly Rental Income: | AF43: $1,500 /mo | AP43: =IF(BA43>0,1,0) -> 0 | AR43: Other Monthly Income: | BA43: $0 /mo | BK43: =AF43+BA43 -> $1,500 /mo
AG47: Rental Expenses:
BI48: 50% Rule
V50: =IF(BI48="50% Rule","Expenses are being calculated at 50% of Rental Income","Fixed Expenses:") -> Expenses are being calculated at 50% of Rental Income
V52: =IF(AF52>0,1,0) -> 1 | X52: Property Taxes | AF52: $2,000 | AP52: per year | AW52: =IF(BG52>0,1,0) -> 1 | AY52: Property Insurance | BG52: $800 | BQ52: per year
V55: =IF(AF55>0,1,0) -> 0 | X55: Cleaning and Maintenance: | AP55: per month | AW55: =IF(BG55>0,1,0) -> 1 | AY55: HOA Dues: | BG55: $500 | BQ55: per year
V58: =IF(AF58>0,1,0) -> 0 | X58: Lawn and Groundskeeping: | AP58: per month | AW58: =IF(BG58>0,1,0) -> 0 | AY58: Auto and Travel: | BQ58: per month
V61: =IF(AF61>0,1,0) -> 0 | X61: Electrical Utilities: | AP61: per month | AW61: =IF(BG61>0,1,0) -> 0 | AY61: Water Utilities: | BQ61: per month
V64: =IF(AF64>0,1,0) -> 0 | X64: Gas Utilities: | AP64: per month | AW64: =IF(BG64>0,1,0) -> 0 | AY64: Garbage: | BQ64: per month
V67: =IF(AF67>0,1,0) -> 1 | X67: Advertising: | AF67: $250 | AP67: per year | AW67: =IF(BG67>0,1,0) -> 1 | AY67: Accounting & Legal: | BG67: $400 | BQ67: per year
V70: =IF(AF70>0,1,0) -> 0 | X70: Other 1: | AP70: per year | AW70: =IF(BG70>0,1,0) -> 0 | AY70: Other 2: | BQ70: per year
V73: Variable Expenses (%)
V75: =IF(AE75>0,1,0) -> 1 | X75: Vacancy Rate (%): | AE75: 8% | AJ75: =IF(CZ70>0,1,0) -> 0 | AL75: Property Mgt (%): | AS75: 10% | AX75: =IF(CF69>0,1,0) -> 0 | AZ75: Repairs (%): | BF75: 2% | BK75: =IF(CL70>0,1,0) -> 0 | BM75: Cap Ex (%): | BS75: 5%
V79: Future Assumptions:
AI82: =IF(AR82>0,1,0) -> 1 | AK82: Income Increases per Year (%): | AR82: 1% | AW82: =IF(BF82>0,1,0) -> 1 | AY82: Expense Increases per Year (%): | BF82: 1%
AK86: Financing Information:
BI87: Financed
V90: Rental Mortgage/Financing:
BD91: Amortized | BS91: 30
BD93: *the default setting is amortized | BS93: Years
V94: Financing Variables | AZ94: Financing Results
V96: =IF(AE96>0,1,0) -> 1 | X96: Financing Amount: | AE96: Purchase + Repairs | AZ96: Base Loan Amount
AZ97: =Loan_Amount -> $119,375
AE99: =IF(DG135=0,"",((((((IF(AE96="","Select Loan Type or Input Amount...",IF(AE96="Purchase Price Only","Loan for Purchase Value Only",IF(AE96="Repair Cost Only","Loan for Repair Costs Only",IF(AE96="Purchase + Repairs","Loan for Purchase Price + Repairs",IF(AE96="ARV","After Repair Value",IF(DN137=FALSE,"Specific Loan Amount",""))))))))))))) -> Loan for Purchase Price + Repairs
AZ100: =IF(DG135=0,"",((((((IF(AE96="","",IF(AE96="Purchase Price Only","Value Pending Purchase Price Analysis",IF(AE96="Repair Cost Only","Value Pending Repair Cost Estimate",IF(AE96="Purchase + Repairs","Value Pending Repair Estimate & Purchase Price Analysis",IF(AE96="ARV","Value Based Upon ARV Amount",IF(DN137=FALSE,"",""))))))))))))) -> Value Pending Repair Estimate & Purchase Price Analysis
V101: =IF(AE101>0,1,0) -> 1 | X101: Down Payment?: | AE101: Yes | AK101: =IF(OR(AE101="NO",AE101>0),1,0) -> 1 | AM101: Down Payment % | AT101: 20.00% | AZ101: Down Payment Amount | BL101: Loan Balance (after DP)
AZ102: =IFERROR(Down_Payment*1,0) -> $23,875 | BL102: =IFERROR(DN145*1,0) -> $95,500
V104: =IF(AE104>0,1,0) -> 1 | X104: Interest Rate %: | AE104: 5.50% | AK104: =IF(BI101>0,1,0) -> 0 | AM104: Lender Points Upfront %: | AT104: 3.00% | AZ104: =IF(BD91="Interest Only","Monthly Interest","Monthly Payment") -> Monthly Payment | BL104: Points Amount
AZ105: =IF(BD91="Interest Only",DA150,DN157) -> $542 | BL105: =IFERROR(AT104*BL102,0) -> $2,865
V107: Other Closing Costs:
V109: =IF(AE109>0,1,0) -> 0 | X109: Inspection Costs: | AN109: =IF(AW109>0,1,0) -> 0 | AP109: Title and Escrow: | BF109: =IF(BO109>0,1,0) -> 0 | BH109: Attorney Fees:
V112: =IF(AE112>0,1,0) -> 0 | X112: Pre-Paid Property Taxes: | AN112: =IF(AW112>0,1,0) -> 0 | AP112: Recording Fees: | BF112: =IF(BO112>0,1,0) -> 0 | BH112: Other Fees:
CE113: =AE109+AW109+BO109+AE112+AW112+BO112 -> $0
V116: Mortgage/Financing Results
W118: Down Payment | AK118: Points / Closing Costs Upfront | AX118: Total Cash Outlay | BK118: =IF(CG165="Interest Only","Monthly Interest Costs","Monthly Mortgage Payment") -> Monthly Mortgage Payment
W119: =AZ102 -> $23,875 | AK119: =BL105+CLOSING_COSTS -> $2,865 | AX119: =W119+AK119 -> $26,740 | BK119: =AZ105 -> $542
AX121: =Down Payment + Closing Costs
V122: Mortgage Breakdown
W124: Original Loan Balance | AK124: Loan Down Payment | AX124: Final Loan Balance | BK124: =IF(CG165="Interest Only","Monthly Interest Costs","Monthly Mortgage Payment") -> Monthly Mortgage Payment
W125: =IFERROR(AZ97*1,0) -> $119,375 | AK125: =IFERROR(-AZ102,0) -> -$23,875 | AX125: =W125+AK125 -> $95,500 | BK125: =AZ105 -> $542
V127: =Original Loan Balance | AK127: =Loan Down Payment Amount | AX127: =Original Loan Balance - Down Payment
V129: Comparables Sales Information:
EY130: NOI based upon 50% rule | FG130: CAP Rate Based Upon NOI/SALE PRICE
V132: =IF(AD137>0,1,0) -> 0 | W132: 1 | Y132: Street Address: | AY132: Sale Price: | CK132: Loan 1 | EY132: =(BM134*12)*0.5 -> $0.00 | FG132: =IFERROR(EY132/BG132,0) -> 0.00%
CF133: Lists: | CK133: Amount of Loan Required: | CZ133: Financing Calculation
Y134: # of Beds: | AK134: # of Baths: | AU134: Sq Ft: | BG134: Rental Rate: | EY134: NOI based upon 50% rule | FG134: CAP Rate Based Upon NOI/SALE PRICE
CF135: Property Type: | CK135: Purchase Only | CS135: =CAP_RATE_VALUATION*DG135 -> $107,495 | CZ135: Algo | DG135: =IF(BI87="Financed",1,0) -> 1 | DN135: Specific Loan Amount Algo
V136: =IF(AD141>0,1,0) -> 0 | W136: 2 | Y136: Street Address: | AY136: Sale Price: | CF136: Single Family Home | CK136: Repairs Only | CS136: =(TOTAL_RENTAL_ESTIMATE)*DG135 -> $11,880 | CZ136: If financed =1 | DN136: If false | DS136: If false | EY136: =(BM138*12)*0.5 -> $0.00 | FG136: =IFERROR(EY136/BG136,0) -> 0.00%
CF137: Duplex | CK137: =T(CF155) ->  | CS137: =(CAP_RATE_VALUATION+RENTAL_ESTIMATE)*DG135 -> $119,375 | DN137: =IF(DG135=0,"All Cash",((((((IF(AE96="","Select Loan Type or Input Amount...",IF(AE96="Purchase Price Only",CS135,IF(AE96="Repair Cost Only",CS136,IF(AE96="All Costs",CS137,IF(AE96="Specific Loan Amount",CS138)))))))))))) -> FALSE | DS137: =IF(DN137=FALSE,AE96) -> Purchase + Repairs
Y138: # of Beds: | AK138: # of Baths: | AU138: Sq Ft: | BG138: Rental Rate: | CF138: Condo | CK138: Specific Loan Amount | CS138: =IFERROR(DN139,0) -> 0 | CZ138: Down payment Required: | EY138: NOI based upon 50% rule | FG138: CAP Rate Based Upon NOI/SALE PRICE
CF139: Apartment | CK139: ARV | CS139: =AFTER_REPAIR_VALUE_RENTAL -> $175,000 | CZ139: Algo | DG139: =IF(AE101="yes",1,0) -> 1 | DN139: =DS137/1 ->  | DS139: =IFERROR(DN139,"Fix Financing Amount") -> Fix Financing Amount
V140: =IF(AD145>0,1,0) -> 0 | W140: 3 | Y140: Street Address: | AY140: Sale Price: | CK140: Down payment Amount: | CZ140: If yes=1 | EY140: =(BM142*12)*0.5 -> $0.00 | FG140: =IFERROR(EY140/BG140,0) -> 0.00%
CF141: Status: | CK141: Purchase Only | CS141: =(CS135*$AT$101)*$DG$139 -> $21,499.00 | CZ141: RESULTS | DQ141: Term | DS141: =IF(BS91=0,30,BS91) -> 30
Y142: # of Beds: | AK142: # of Baths: | AU142: Sq Ft: | BG142: Rental Rate: | CF142: REO | CK142: Repairs Only | CS142: =(CS136*$AT$101)*$DG$139 -> $2,376.00
CF143: HUD | CK143: All Costs | CS143: =(CS137*$AT$101)*$DG$139 -> $23,875.00 | DA143: Loan Amount | DL143: =IFERROR(DA144/1,0) -> 119375 | DN143: Loan Amount after Downpayment
CF144: Homepath | CK144: Specific Loan Amount | CS144: =(CS138*$AT$101)*$DG$139 -> 0 | DA144: =IF(DG135=0,"All Cash",((((((IF(AE96="","Select Loan Type or Input Amount...",IF(AE96="Purchase Price Only",CS135,IF(AE96="Repair Cost Only",CS136,IF(AE96="Purchase + Repairs",CS137,IF(AE96="ARV",CS139,IF(DN137=FALSE,DS139))))))))))))) -> $119,375 | DL144: =IF(DL143=0,0,DA144) -> 119375 | DN144: =IFERROR(Loan_Amount-Down_Payment,0) -> $95,500
V145: Your Company Information: | CF145: FSBO | CK145: ARV | CS145: =(CS139*$AT$101)*$DG$139 -> $35,000.00 | DN145: =IF(Down_Payment="Select Loan Type","Select Loan Type",DN144) -> $95,500
CF146: Short Sale | CK146: Loan Principal After Down payment | DA146: Down Payment Amount
CK147: Purchase Only | CS147: =CS135-CS141 -> $85,996 | DA147: =IFERROR(Loan_Amount*AT101,"Select Loan Type") -> $23,875 | DN147: Cash Outlay Output
V148: =IF(Company_Name>0,1,0) -> 1 | X148: Company Name: | AJ148: WholesalingSpreadsheet.com | CF148: Offer Type: | CK148: Repairs Only | CS148: =CS136-CS142 -> $9,504 | DN148: =IF(BI87="All Cash",CR160,IF(BI87="",CR160,IF(BI87=0,CR160,IF(AE96="",CR160,IF(AE96="Purchase Price Only",CS162,IF(AE96="Repair Cost Only",CS163,IF(AE96="All Costs",CS164,IF(AE96="Specific Loan Amount",CS165)))))))) -> FALSE
CF149: All Cash | CK149: All Costs | CS149: =CS137-CS143 -> $95,500 | DA149: Monthly Payment Result
V150: =IF(Company_Street_Address>0,1,0) -> 1 | X150: Street Address: | AJ150: P.O. Box 165324 | CF150: Financed | CK150: Specific Loan Amount | CS150: =CS138-CS144 -> 0 | DA150: =IFERROR(((Loan_Amount-Down_Payment)*Interest_Rate)/12,0) -> $438 | DN150: Points Result
CK151: ARV | CS151: =CS139-CS145 -> $140,000 | DN151: =IF(DG135=0,"",((((((IF(AE96="","",IF(AE96="Purchase Price Only",DJ164,IF(AE96="Repair Cost Only",DJ165,IF(AE96="All Costs",DJ166,IF(AE96="Specific Loan Amount",DJ167)))))))))))) -> FALSE
V152: =IF(Company_City_State_Zip>0,1,0) -> 1 | X152: City/State/Zip: | AJ152: North Kansas City, MO 64116 | CF152: Loan Required: | CK152: Monthly Payment (Interest Only) | CZ152: Cash Outlay Result
CF153: Purchase Price Only | CK153: Purchase Only | CS153: =(CS147*Interest_Rate)/12 -> $394 | CZ153: =DN148 -> FALSE | DN153: Loan Amount
V154: =IF(Company_Email>0,1,0) -> 1 | X154: Email: | AJ154: dave@costpointsolutions.com | BY154: Next: Estimate Rental Repairs
V156: =IF(Company_Phone>0,1,0) -> 1 | X156: Phone: | AJ156: 8163880197 | AZ156: Fax: | CF156: ARV | DN156: Amortized Monthly Payment Result
CF157: Specific Loan Amount | CK157: Specific Loan Amount | CS157: =(CS150*Interest_Rate)/12 -> 0 | DN157: =IFERROR(IF(Interest_Rate=0,0,-PMT(Interest_Rate/12,DS141*12,DN145)),0) -> $542
V158: =IF(Company_Website>0,1,0) -> 0 | X158: Website: | CK158: ARV | CS158: =(CS151*Interest_Rate)/12 -> $642
DN159: Monthly Result
AN160: © 2015 by wholesalingspreadsheet.com. All rights reserved | CF160: Down payment Yes or Nos? | CR160: =TOTAL_BUYING_COSTS+TOTAL_HOLDING_COSTS+TOTAL_REPAIR_ESTIMATE+REPAIR_CONTINGENCY+MAXIMUM_PURCHASE_PRICE -> $134,750 | CX160: Cash Outlay "All Cash" Scenario | DN160: =IFERROR(IF(BD91="Amortized",DN165/Schedule,DA150),0) -> $0
CF161: Yes | CK161: Cash Outlay w/ Financing
CF162: No | CK162: Purchase Only | CS162: =$CR$160-CS147 -> $48,754 | DR162: =DG135 -> 1
CK163: Repairs Only | CS163: =$CR$160-CS148 -> $125,246
CF164: Rolled | CK164: All Costs | CS164: =$CR$160-CS149 -> $39,250 | DG164: =CR160-W119 -> $110,875 | DN164: Total Interest Portion
CF165: Upfront | CK165: Specific Loan Amount | CS165: =$CR$160-CS150 -> $134,750 | DN165: =IFERROR(IF(Interest_Rate=0,0,(-CUMIPMT(Interest_Rate/12,DS141*12,DN145,1,Schedule,1))),0) -> $0
CK166: ARV | CS166: =$CR$160-CS151 -> $(5,250)
CF167: Monthly
CF168: Rolled | CK168: Cash Outlay w/ Financing + Financing Cash Outlay | DN168: Total Principal Portion
CK169: Purchase Only | CS169: =CS162+W119 -> $72,629 | DN169: =IF(BD91="Amortized",DN172-DN165,0) -> 
CK170: Repairs Only | CS170: =CS163+W119 -> $149,121
CF171: 1 | CK171: All Costs | CS171: =CS164+W119 -> $63,125 | DN171: Total Amortized Payment
CK172: Specific Loan Amount | CS172: =CS165+W119 -> $158,625 | DN172: =DN157*Schedule -> 
CF173: Interest Only
CK175: Amortized
CF177: per year
CF178: per month
CF180: Detailed
CF181: 50% Rule

Sheet RENTAL ESTIMATOR
A2: HIDE/UNHIDE
N3: ESTIMATE BREAKDOWN BY SCOPE OF WORK
N5: =B16 -> GENERAL CONDITIONS | U5: =AQ38 -> $0 | Y5: =B216 -> EXT. DOORS & WINDOWS | AF5: =AQ238 -> $0 | AJ5: =B416 -> HARDWOOD FLOORING | AQ5: =AQ438 -> $0
N6: =B41 -> DEMOLITION | U6: =AQ63 -> $480 | Y6: =B241 -> GARAGE DOORS | AF6: =AQ263 -> $0 | AJ6: =B441 -> TILING | AP6: =AQ463 -> 0 | AQ6: =AQ463 -> $0
B7: TOTAL RENTAL ESTIMATE | N7: =B66 -> STRUCTURAL CONCRETE | U7: =AQ88 -> $0 | Y7: =B266 -> LANDSCAPING | AF7: =AQ288 -> $0 | AJ7: =B466 -> PAINTING | AP7: =AQ488 -> 4000 | AQ7: =AQ488 -> $4,000
B8: =TOTAL_REMODEL_ESTIMATE -> $11,880 | N8: =B91 -> CONCRETE & FLATWORK | U8: =AQ113 -> $0 | Y8: =B291 -> MISC. EXT. IMPROVEMENTS | AF8: =AQ313 -> $0 | AJ8: =B491 -> APPLIANCES | AP8: =AQ513 -> 1650 | AQ8: =AQ513 -> $1,650
N9: =B116 -> MASONRY | U9: =AQ138 -> $0 | Y9: =B316 -> FRAMING & DRYWALL | AF9: =AQ338 -> $0 | AJ9: =B516 -> PLUMBING | AP9: =AQ538 -> 1310 | AQ9: =AQ538 -> $1,310
N10: =B141 -> SIDING | U10: =AQ163 -> $0 | Y10: =B341 -> CABINETS & COUNTERTOPS | AF10: =AQ363 -> $2,025 | AJ10: =B541 -> HVAC | AP10: =AQ563 -> 0 | AQ10: =AQ563 -> $0
B11: LAB/EQ | F11: MAT'L | J11: SUB | N11: =B166 -> DECKING AND PATIOS | U11: =AQ188 -> $0 | Y11: =B366 -> DOORS & TRIM | AF11: =AQ388 -> $0 | AJ11: =B566 -> ELECTRICAL | AP11: =AQ588 -> 0 | AQ11: =AQ588 -> $0
B12: =Labor_Estimate -> $6,250 | F12: =Material_Estimate -> $5,630 | J12: =Sub_Estimate -> $0 | N12: =B191 -> ROOFING | U12: =AQ213 -> $0 | Y12: =B391 -> CARPET & RESILIENT | AF12: =AQ413 -> $2,220 | AJ12: =B591 -> MISCELLANEOUS | AP12: =AQ613 -> 195 | AQ12: =AQ613 -> $195
B13: DESCRIPTION OF WORK | T13: QTY | W13: UNIT | Y13: UNIT PRICES | AH13: =AH38+AH63+AH88+AH113+AH138+AH163+AH188+AH213+AH238+AH263+AH288+AH313+AH338+AH363+AH388+AH413+AH438+AH463+AH488+AH513+AH538+AH563+AH588+AH613 -> $6,250 | AK13: =AK38+AK63+AK88+AK113+AK138+AK163+AK188+AK213+AK238+AK263+AK288+AK313+AK338+AK363+AK388+AK413+AK438+AK463+AK488+AK513+AK538+AK563+AK588+AK613 -> $5,630 | AN13: =AN38+AN63+AN88+AN113+AN138+AN163+AN188+AN213+AN238+AN263+AN288+AN313+AN338+AN363+AN388+AN413+AN438+AN463+AN488+AN513+AN538+AN563+AN588+AN613 -> $0 | AQ13: =Labor_Estimate+Material_Estimate+Sub_Estimate -> $11,880 | AV13: WORK BREAKDOWN BY SCOPE OF WORK | AW13: CUSTOM SORT 1 | AX13: CUSTOM SORT 2 | BC13: =BC38+BC63+BC88+BC113+BC138+BC163+BC188+BC213+BC238+BC263+BC288+BC313+BC338+BC363+BC388+BC413+BC438+BC463+BC488+BC513+BC538+BC563+BC588+BC613 -> $11,880
Y14: LABOR/EQUIP | AB14: MAT | AE14: SUB | AH14: LABOR/EQUIP | AK14: MAT | AN14: SUB | AQ14: TOTAL | AY14: LABOR | AZ14: MAT | BA14: SUB | BB14: TOTAL | BC14: =AQ14 -> TOTAL
B16: GENERAL CONDITIONS | AV16: =$B$16 -> GENERAL CONDITIONS | AY16: =SUM(AY17:AY36) -> 0 | AZ16: =SUM(AZ17:AZ36) -> 0 | BA16: =SUM(BA17:BA36) -> 0 | BB16: =SUM(BB17:BB36) -> 0 | BC16: =AQ16 -> 0
B17: Dumpster rental-40 yard | W17: ea | AB17: 400.00 | AH17: =T17*Y17 -> $0 | AK17: =T17*AB17 -> $0 | AN17: =T17*AE17 -> $0 | AQ17: =SUM(AH17:AO17) -> $0 | AV17: GENERAL CONDITIONS | AY17: =AH17 -> 0 | AZ17: =AK17 -> 0 | BA17: =AN17 -> 0 | BB17: =SUM(AY17:BA17) -> 0 | BC17: 0
B18: Construction Permits < $10k | W18: job | X18: job | AB18: 125.00 | AD18: 125.00 | AH18: =T18*Y18 -> $0 | AK18: $0 | AN18: $0 | AQ18: =SUM(AH18:AP18) -> $0 | AV18: GENERAL CONDITIONS | AY18: 0 | AZ18: 0 | BA18: 0 | BB18: 0 | BC18: 0
B19: Construction Permits, 10k to $25k | W19: job | X19: job | AB19: 500.00 | AH19: $0 | AK19: $0 | AN19: $0 | AQ19: $0 | AV19: GENERAL CONDITIONS | AY19: 0 | AZ19: 0 | BA19: 0 | BB19: 0 | BC19: 0
B20: Construction Permits, 25k to 50k | W20: job | X20: job | AB20: 1000.00 | AH20: $0 | AK20: $0 | AN20: $0 | AQ20: $0 | AV20: GENERAL CONDITIONS | AY20: 0 | AZ20: 0 | BA20: 0 | BB20: 0 | BC20: 0
B21: Storage Container | W21: job | X21: job | AB21: 200.00 | AD21: 200.00 | AH21: $0 | AK21: $0 | AN21: $0 | AQ21: $0 | AV21: GENERAL CONDITIONS | AY21: 0 | AZ21: 0 | BA21: 0 | BB21: 0 | BC21: 0
B22: Chemical Toilet | W22: mo | X22: mo | AB22: 85.00 | AD22: 85.00 | AH22: $0 | AK22: $0 | AN22: $0 | AQ22: $0 | AV22: GENERAL CONDITIONS | AY22: 0 | AZ22: 0 | BA22: 0 | BB22: 0 | BC22: 0
B23: Misc. Tools & Materials | W23: ls | X23: mo | AB23: 250.00 | AD23: 250.00 | AH23: $0 | AK23: $0 | AN23: $0 | AQ23: $0 | AV23: GENERAL CONDITIONS | AY23: 0 | AZ23: 0 | BA23: 0 | BB23: 0 | BC23: 0
B24: Rekey/lock box | W24: ea | X24: mo | Y24: 45.00 | AB24: 50.00 | AD24: 50.00 | AH24: $0 | AK24: $0 | AN24: $0 | AQ24: $0 | AV24: GENERAL CONDITIONS | AY24: 0 | AZ24: 0 | BA24: 0 | BB24: 0 | BC24: 0
B25: Turn on utilities | W25: ls | X25: mo | AB25: 125.00 | AD25: 125.00 | AH25: $0 | AK25: $0 | AN25: $0 | AQ25: $0 | AV25: GENERAL CONDITIONS | AY25: 0 | AZ25: 0 | BA25: 0 | BB25: 0 | BC25: 0
B26: Truck expense/car payment | W26: month | X26: mo | AB26: 250.00 | AD26: 250.00 | AH26: $0 | AK26: $0 | AN26: $0 | AQ26: $0 | AV26: GENERAL CONDITIONS | AY26: 0 | AZ26: 0 | BA26: 0 | BB26: 0 | BC26: 0
B27: Fuel/gas expense | W27: wk | X27: mo | AB27: 50.00 | AD27: 50.00 | AH27: $0 | AK27: $0 | AN27: $0 | AQ27: $0 | AV27: GENERAL CONDITIONS | AY27: 0 | AZ27: 0 | BA27: 0 | BB27: 0 | BC27: 0
B28: Project management | W28: wk | X28: mo | Y28: 1000.00 | AH28: $0 | AK28: $0 | AN28: $0 | AQ28: $0 | AV28: GENERAL CONDITIONS | AY28: 0 | AZ28: 0 | BA28: 0 | BB28: 0 | BC28: 0
B29: Architectural Fees | W29: hrs | X29: mo | AE29: 100.00 | AH29: $0 | AK29: $0 | AN29: $0 | AQ29: $0 | AV29: GENERAL CONDITIONS | AY29: 0 | AZ29: 0 | BA29: 0 | BB29: 0 | BC29: 0
B30: Engineering Fees | W30: hrs | X30: mo | AE30: 125.00 | AH30: $0 | AK30: $0 | AN30: $0 | AQ30: $0 | AV30: GENERAL CONDITIONS | AY30: 0 | AZ30: 0 | BA30: 0 | BB30: 0 | BC30: 0
B31: Professional Photography | W31: ls | X31: mo | AE31: 250.00 | AH31: $0 | AK31: $0 | AN31: $0 | AQ31: $0 | AV31: GENERAL CONDITIONS | AY31: 0 | AZ31: 0 | BA31: 0 | BB31: 0 | BC31: 0
B32: Material Deliveries | W32: ea | X32: mo | AB32: 65.00 | AH32: $0 | AK32: $0 | AN32: $0 | AQ32: $0 | AV32: GENERAL CONDITIONS | AY32: 0 | AZ32: 0 | BA32: 0 | BB32: 0 | BC32: 0
B33: Final cleaning | W33: hrs | Y33: 15.00 | AH33: $0 | AK33: $0 | AN33: $0 | AQ33: $0 | AV33: GENERAL CONDITIONS | AY33: 0 | AZ33: 0 | BA33: 0 | BB33: 0 | BC33: 0
AH34: $0 | AK34: $0 | AN34: $0 | AQ34: $0 | AV34: GENERAL CONDITIONS | AY34: 0 | AZ34: 0 | BA34: 0 | BB34: 0 | BC34: 0
AH35: $0 | AK35: $0 | AN35: $0 | AQ35: $0 | AV35: GENERAL CONDITIONS | AY35: 0 | AZ35: 0 | BA35: 0 | BB35: 0 | BC35: 0
AH36: $0 | AK36: $0 | AN36: $0 | AQ36: $0 | AV36: GENERAL CONDITIONS | AY36: 0 | AZ36: 0 | BA36: 0 | BB36: 0 | BC36: 0
AV37: GENERAL CONDITIONS | AY37: =AY16 -> $0 | AZ37: =AZ16 -> $0 | BA37: =BA16 -> $0 | BB37: =BB16 -> $0
AG38: =CONCATENATE(B16," ","TOTAL") -> GENERAL CONDITIONS TOTAL | AH38: =SUBTOTAL(9,AH17:AH37) -> $0 | AK38: =SUBTOTAL(9,AK17:AK37) -> $0 | AN38: =SUBTOTAL(9,AN17:AN37) -> $0 | AQ38: =SUBTOTAL(9,AQ16:AQ37) -> $0 | AT38: =SUM(AT14:AT34) -> $0 | AV38: GENERAL CONDITIONS | AY38: =AY16 -> 0 | AZ38: =AZ16 -> 0 | BA38: =BA16 -> 0 | BB38: =BB16 -> 0 | BC38: =SUM(BC16:BC37) -> 0
AV39: GENERAL CONDITIONS | AY39: =AY16 -> $0 | AZ39: =AZ16 -> $0 | BA39: =BA16 -> $0 | BB39: =BB16 -> $0
AY40: =AY38 -> 0 | AZ40: =AZ38 -> 0 | BA40: =BA38 -> 0 | BB40: =BB38 -> 0 | BC40: =BC38 -> 0
B41: DEMOLITION | AV41: =$B$41 -> DEMOLITION | AY41: =SUM(AY42:AY61) -> 480 | AZ41: =SUM(AZ42:AZ61) -> 0 | BA41: =SUM(BA42:BA61) -> 0 | BB41: =SUM(BB42:BB61) -> 480 | BC41: =AQ41 -> 0
B42: Demolition | W42: ls | X42: hrs | AH42: =T42*Y42 -> $0 | AK42: =T42*AB42 -> $0 | AN42: =T42*AE42 -> $0 | AQ42: =SUM(AH42:AP42) -> $0 | AT42: =SUM(AH42:AP42) -> $0 | AV42: DEMOLITION | AY42: =AH42 -> 0 | AZ42: =AK42 -> 0 | BA42: =AN42 -> 0 | BB42: =SUM(AY42:BA42) -> 0 | BC42: 0
B43: Demo bid/allowance | W43: ls | X43: ls | AH43: =T43*Y43 -> $0 | AK43: $0 | AN43: $0 | AQ43: $0 | AT43: $0 | AV43: DEMOLITION | AY43: 0 | AZ43: 0 | BA43: 0 | BB43: 0 | BC43: 0
B44: Demolition work per hour | T44: 32 | W44: hrs | Y44: 15.00 | AH44: $480 | AK44: $0 | AN44: $0 | AQ44: $480 | AT44: $480 | AV44: DEMOLITION | AY44: 480 | AZ44: 0 | BA44: 0 | BB44: 480 | BC44: 480
B45: Room demolition, typical room | W45: sf | Y45: 0.50 | AH45: $0 | AK45: $0 | AN45: $0 | AQ45: $0 | AT45: $0 | AV45: DEMOLITION | AY45: 0 | AZ45: 0 | BA45: 0 | BB45: 0 | BC45: 0
B46: Room demolition, bathroom | W46: sf | Y46: 1.75 | AH46: $0 | AK46: $0 | AN46: $0 | AQ46: $0 | AT46: $0 | AV46: DEMOLITION | AY46: 0 | AZ46: 0 | BA46: 0 | BB46: 0 | BC46: 0
B47: Room demolition, kitchen | W47: sf | Y47: 1.25 | AH47: $0 | AK47: $0 | AN47: $0 | AQ47: $0 | AT47: $0 | AV47: DEMOLITION | AY47: 0 | AZ47: 0 | BA47: 0 | BB47: 0 | BC47: 0
B48: Building demolition, 1-story wood-framed | W48: sf | Y48: 3.00 | AH48: $0 | AK48: $0 | AN48: $0 | AQ48: $0 | AT48: $0 | AV48: DEMOLITION | AY48: 0 | AZ48: 0 | BA48: 0 | BB48: 0 | BC48: 0
B49: Building demolition, 2-story wood framed | W49: sf | Y49: 3.20 | AH49: $0 | AK49: $0 | AN49: $0 | AQ49: $0 | AT49: $0 | AV49: DEMOLITION | AY49: 0 | AZ49: 0 | BA49: 0 | BB49: 0 | BC49: 0
B50: Building demolition, masonry | W50: sf | Y50: 4.15 | AH50: $0 | AK50: $0 | AN50: $0 | AQ50: $0 | AT50: $0 | AV50: DEMOLITION | AY50: 0 | AZ50: 0 | BA50: 0 | BB50: 0 | BC50: 0
B51: Building demolition, steel/concrete | W51: sf | Y51: 5.50 | AH51: $0 | AK51: $0 | AN51: $0 | AQ51: $0 | AT51: $0 | AV51: DEMOLITION | AY51: 0 | AZ51: 0 | BA51: 0 | BB51: 0 | BC51: 0
B52: Concrete slab demolition, 4"-6" | Y52: 2.00 | AH52: $0 | AK52: $0 | AN52: $0 | AQ52: $0 | AT52: $0 | AV52: DEMOLITION | AY52: 0 | AZ52: 0 | BA52: 0 | BB52: 0 | BC52: 0
AH53: $0 | AK53: $0 | AN53: $0 | AQ53: $0 | AT53: $0 | AV53: DEMOLITION | AY53: 0 | AZ53: 0 | BA53: 0 | BB53: 0 | BC53: 0
AH54: $0 | AK54: $0 | AN54: $0 | AQ54: $0 | AT54: $0 | AV54: DEMOLITION | AY54: 0 | AZ54: 0 | BA54: 0 | BB54: 0 | BC54: 0
B55: Abatement | W55: ls | AH55: $0 | AK55: $0 | AN55: $0 | AQ55: $0 | AT55: $0 | AV55: DEMOLITION | AY55: 0 | AZ55: 0 | BA55: 0 | BB55: 0 | BC55: 0
B56: Asbestos bid/allowance | W56: ls | X56: ls | AH56: $0 | AK56: $0 | AN56: $0 | AQ56: $0 | AT56: $0 | AV56: DEMOLITION | AY56: 0 | AZ56: 0 | BA56: 0 | BB56: 0 | BC56: 0
B57: Asbestos testing | W57: ea | AE57: 225.00 | AH57: $0 | AK57: $0 | AN57: $0 | AQ57: $0 | AT57: $0 | AV57: DEMOLITION | AY57: 0 | AZ57: 0 | BA57: 0 | BB57: 0 | BC57: 0
B58: Asbestos abatement, minimum charge | W58: ea | AE58: 2500.00 | AH58: $0 | AK58: $0 | AN58: $0 | AQ58: $0 | AT58: $0 | AV58: DEMOLITION | AY58: 0 | AZ58: 0 | BA58: 0 | BB58: 0 | BC58: 0
B59: Mold, minimum charge | AE59: 2500.00 | AH59: $0 | AK59: $0 | AN59: $0 | AQ59: $0 | AT59: $0 | AV59: DEMOLITION | AY59: 0 | AZ59: 0 | BA59: 0 | BB59: 0 | BC59: 0
AH60: $0 | AK60: $0 | AN60: $0 | AQ60: $0 | AT60: $0 | AV60: DEMOLITION | AY60: 0 | AZ60: 0 | BA60: 0 | BB60: 0 | BC60: 0
AH61: $0 | AK61: $0 | AN61: $0 | AQ61: $0 | AT61: $0 | AV61: DEMOLITION | AY61: 0 | AZ61: 0 | BA61: 0 | BB61: 0 | BC61: 0
AV62: DEMOLITION | AY62: =AY41 -> $480 | AZ62: =AZ41 -> $0 | BA62: =BA41 -> $0 | BB62: =BB41 -> $480
AG63: =CONCATENATE(B41," ","TOTAL") -> DEMOLITION TOTAL | AH63: =SUBTOTAL(9,AH42:AH62) -> $480 | AK63: =SUBTOTAL(9,AK42:AK62) -> $0 | AN63: =SUBTOTAL(9,AN42:AN62) -> $0 | AQ63: =SUBTOTAL(9,AQ41:AQ62) -> $480 | AT63: =SUM(AT24:AT51) -> $480 | AV63: DEMOLITION | AY63: =AY41 -> 480 | AZ63: =AZ41 -> 0 | BA63: =BA41 -> 0 | BB63: =BB41 -> 480 | BC63: =SUM(BC41:BC62) -> 480
AV64: DEMOLITION | AY64: =AY41 -> $480 | AZ64: =AZ41 -> $0 | BA64: =BA41 -> $0 | BB64: =BB41 -> $480
AV65: DEMOLITION | AY65: =AY63 -> 480 | AZ65: =AZ63 -> 0 | BA65: =BA63 -> 0 | BB65: =BB63 -> 480 | BC65: =BC63 -> 480
B66: STRUCTURAL CONCRETE | AV66: =$B$66 -> STRUCTURAL CONCRETE | AY66: =SUM(AY67:AY86) -> 0 | AZ66: =SUM(AZ67:AZ86) -> 0 | BA66: =SUM(BA67:BA86) -> 0 | BB66: =SUM(BB67:BB86) -> 0 | BC66: =AQ66 -> 0
B67: Excavation | AH67: =T67*Y67 -> $0 | AK67: =T67*AB67 -> $0 | AN67: =T67*AE67 -> $0 | AQ67: =SUM(AH67:AP67) -> $0 | AT67: =SUM(AH67:AP67) -> $0 | AV67: STRUCTURAL CONCRETE | AY67: =AH67 -> 0 | AZ67: =AK67 -> 0 | BA67: =AN67 -> 0 | BB67: =SUM(AY67:BA67) -> 0 | BC67: 0
B68: Excavation bid/allowance | W68: ls | X68: ls | AH68: =T68*Y68 -> $0 | AK68: $0 | AN68: $0 | AQ68: $0 | AT68: $0 | AV68: STRUCTURAL CONCRETE | AY68: 0 | AZ68: 0 | BA68: 0 | BB68: 0 | BC68: 0
B69: Footing trenching | W69: cy | X69: lf | Y69: 20.00 | AH69: $0 | AK69: $0 | AN69: $0 | AQ69: $0 | AT69: $0 | AV69: STRUCTURAL CONCRETE | AY69: 0 | AZ69: 0 | BA69: 0 | BB69: 0 | BC69: 0
B70: Backfill of trenches | W70: cy | X70: lf | Y70: 10.00 | AH70: $0 | AK70: $0 | AN70: $0 | AQ70: $0 | AT70: $0 | AV70: STRUCTURAL CONCRETE | AY70: 0 | AZ70: 0 | BA70: 0 | BB70: 0 | BC70: 0
AH71: $0 | AK71: $0 | AN71: $0 | AQ71: $0 | AT71: $0 | AV71: STRUCTURAL CONCRETE | AY71: 0 | AZ71: 0 | BA71: 0 | BB71: 0 | BC71: 0
AH72: $0 | AK72: $0 | AN72: $0 | AQ72: $0 | AT72: $0 | AV72: STRUCTURAL CONCRETE | AY72: 0 | AZ72: 0 | BA72: 0 | BB72: 0 | BC72: 0
B73: Foundation | AH73: $0 | AK73: $0 | AN73: $0 | AQ73: $0 | AT73: $0 | AV73: STRUCTURAL CONCRETE | AY73: 0 | AZ73: 0 | BA73: 0 | BB73: 0 | BC73: 0
B74: Foundation bid/allowance | W74: ls | X74: ls | AH74: $0 | AK74: $0 | AN74: $0 | AQ74: $0 | AT74: $0 | AV74: STRUCTURAL CONCRETE | AY74: 0 | AZ74: 0 | BA74: 0 | BB74: 0 | BC74: 0
B75: Concrete slab on grade, 4" thick | W75: sf | X75: ls | Y75: 3.00 | AB75: 2.50 | AD75: 2.50 | AH75: $0 | AK75: $0 | AN75: $0 | AQ75: $0 | AT75: $0 | AV75: STRUCTURAL CONCRETE | AY75: 0 | AZ75: 0 | BA75: 0 | BB75: 0 | BC75: 0
B76: Concrete footing, 12" wide | W76: lf | X76: lf | Y76: 20.00 | AB76: 10.00 | AD76: 10.00 | AH76: $0 | AK76: $0 | AN76: $0 | AQ76: $0 | AT76: $0 | AV76: STRUCTURAL CONCRETE | AY76: 0 | AZ76: 0 | BA76: 0 | BB76: 0 | BC76: 0
B77: Stem wall, single story | W77: lf | X77: lf | Y77: 115.00 | AB77: 30.00 | AD77: 30.00 | AH77: $0 | AK77: $0 | AN77: $0 | AQ77: $0 | AT77: $0 | AV77: STRUCTURAL CONCRETE | AY77: 0 | AZ77: 0 | BA77: 0 | BB77: 0 | BC77: 0
AH78: $0 | AK78: $0 | AN78: $0 | AQ78: $0 | AT78: $0 | AV78: STRUCTURAL CONCRETE | AY78: 0 | AZ78: 0 | BA78: 0 | BB78: 0 | BC78: 0
AH79: $0 | AK79: $0 | AN79: $0 | AQ79: $0 | AT79: $0 | AV79: STRUCTURAL CONCRETE | AY79: 0 | AZ79: 0 | BA79: 0 | BB79: 0 | BC79: 0
B80: Structural Repairs | AH80: $0 | AK80: $0 | AN80: $0 | AQ80: $0 | AT80: $0 | AV80: STRUCTURAL CONCRETE | AY80: 0 | AZ80: 0 | BA80: 0 | BB80: 0 | BC80: 0
B81: Structural Repairs bid/allowance | W81: ls | X81: ls | AH81: $0 | AK81: $0 | AN81: $0 | AQ81: $0 | AT81: $0 | AV81: STRUCTURAL CONCRETE | AY81: 0 | AZ81: 0 | BA81: 0 | BB81: 0 | BC81: 0
B82: Stair mud jacking, case by case | W82: ea | X82: ls | AE82: 500.00 | AG82: 500.00 | AH82: $0 | AK82: $0 | AN82: $0 | AQ82: $0 | AT82: $0 | AV82: STRUCTURAL CONCRETE | AY82: 0 | AZ82: 0 | BA82: 0 | BB82: 0 | BC82: 0
B83: Bowing foundation walls, vertical I-Beams | W83: ea | X83: ea | AE83: 800.00 | AG83: 500.00 | AH83: $0 | AK83: $0 | AN83: $0 | AQ83: $0 | AT83: $0 | AV83: STRUCTURAL CONCRETE | AY83: 0 | AZ83: 0 | BA83: 0 | BB83: 0 | BC83: 0
B84: Settled foundation walls, concrete piers/underpinning | W84: ea | X84: ea | AE84: 1100.00 | AG84: 850.00 | AH84: $0 | AK84: $0 | AN84: $0 | AQ84: $0 | AT84: $0 | AV84: STRUCTURAL CONCRETE | AY84: 0 | AZ84: 0 | BA84: 0 | BB84: 0 | BC84: 0
B85: Foundation waterproofing & drain tile, single story | W85: lf | AE85: 145.00 | AH85: $0 | AK85: $0 | AN85: $0 | AQ85: $0 | AT85: $0 | AV85: STRUCTURAL CONCRETE | AY85: 0 | AZ85: 0 | BA85: 0 | BB85: 0 | BC85: 0
B86: Epoxy crack injection | W86: lf | AE86: 12.00 | AH86: $0 | AK86: $0 | AN86: $0 | AQ86: $0 | AT86: $0 | AV86: STRUCTURAL CONCRETE | AY86: 0 | AZ86: 0 | BA86: 0 | BB86: 0 | BC86: 0
AV87: STRUCTURAL CONCRETE | AY87: =AY66 -> $0 | AZ87: =AZ66 -> $0 | BA87: =BA66 -> $0 | BB87: =BB66 -> $0
AG88: =CONCATENATE(B66," ","TOTAL") -> STRUCTURAL CONCRETE TOTAL | AH88: =SUBTOTAL(9,AH66:AH87) -> $0 | AK88: =SUBTOTAL(9,AK66:AK87) -> $0 | AN88: =SUBTOTAL(9,AN66:AN87) -> $0 | AQ88: =SUBTOTAL(9,AQ66:AQ87) -> $0 | AT88: =SUM(AT66:AT86) -> $0 | AV88: STRUCTURAL CONCRETE | AY88: =AY66 -> 0 | AZ88: =AZ66 -> 0 | BA88: =BA66 -> 0 | BB88: =BB66 -> 0 | BC88: =SUM(BC66:BC87) -> 0
AV89: STRUCTURAL CONCRETE | AY89: =AY66 -> $0 | AZ89: =AZ66 -> $0 | BA89: =BA66 -> $0 | BB89: =BB66 -> $0
AV90: STRUCTURAL CONCRETE | AY90: =AY88 -> 0 | AZ90: =AZ88 -> 0 | BA90: =BA88 -> 0 | BB90: =BB88 -> 0 | BC90: =BC88 -> 0
B91: CONCRETE & FLATWORK | AV91: =$B$91 -> CONCRETE & FLATWORK | AY91: =SUM(AY92:AY111) -> 0 | AZ91: =SUM(AZ92:AZ111) -> 0 | BA91: =SUM(BA92:BA111) -> 0 | BB91: =SUM(BB92:BB111) -> 0 | BC91: =AQ91 -> 0
B92: Concrete | X92: ls | AH92: =T92*Y92 -> $0 | AK92: =T92*AB92 -> $0 | AN92: =T92*AE92 -> $0 | AQ92: =SUM(AH92:AP92) -> $0 | AV92: CONCRETE & FLATWORK | AY92: =AH92 -> 0 | AZ92: =AK92 -> 0 | BA92: =AN92 -> 0 | BB92: =SUM(AY92:BA92) -> 0 | BC92: 0
B93: Concrete bid/allowance | W93: ls | X93: sf | AH93: =T93*Y93 -> $0 | AK93: $0 | AN93: $0 | AQ93: $0 | AV93: CONCRETE & FLATWORK | AY93: 0 | AZ93: 0 | BA93: 0 | BB93: 0 | BC93: 0
B94: Concrete flatwork demo | W94: sf | X94: sf | Y94: 2.00 | AH94: $0 | AK94: $0 | AN94: $0 | AQ94: $0 | AV94: CONCRETE & FLATWORK | AY94: 0 | AZ94: 0 | BA94: 0 | BB94: 0 | BC94: 0
B95: Concrete driveway/patio, 6" thick | W95: sf | X95: sf | Y95: 2.00 | AB95: 3.00 | AD95: 1.75 | AH95: $0 | AK95: $0 | AN95: $0 | AQ95: $0 | AV95: CONCRETE & FLATWORK | AY95: 0 | AZ95: 0 | BA95: 0 | BB95: 0 | BC95: 0
B96: Concrete sidewalk, 4" thick | W96: sf | Y96: 1.20 | AB96: 2.05 | AH96: $0 | AK96: $0 | AN96: $0 | AQ96: $0 | AV96: CONCRETE & FLATWORK | AY96: 0 | AZ96: 0 | BA96: 0 | BB96: 0 | BC96: 0
B97: Add for 4" base rock below concrete pavement | W97: sf | Y97: 0.25 | AB97: 0.75 | AH97: $0 | AK97: $0 | AN97: $0 | AQ97: $0 | AV97: CONCRETE & FLATWORK | AY97: 0 | AZ97: 0 | BA97: 0 | BB97: 0 | BC97: 0
AH98: $0 | AK98: $0 | AN98: $0 | AQ98: $0 | AV98: CONCRETE & FLATWORK | AY98: 0 | AZ98: 0 | BA98: 0 | BB98: 0 | BC98: 0
B99: Asphalt | AH99: $0 | AK99: $0 | AN99: $0 | AQ99: $0 | AV99: CONCRETE & FLATWORK | AY99: 0 | AZ99: 0 | BA99: 0 | BB99: 0 | BC99: 0
B100: Asphalt bid/allowance | W100: ls | AH100: $0 | AK100: $0 | AN100: $0 | AQ100: $0 | AV100: CONCRETE & FLATWORK | AY100: 0 | AZ100: 0 | BA100: 0 | BB100: 0 | BC100: 0
B101: Asphalt pavement, 5" thick | W101: sy | AE101: 23.00 | AH101: $0 | AK101: $0 | AN101: $0 | AQ101: $0 | AV101: CONCRETE & FLATWORK | AY101: 0 | AZ101: 0 | BA101: 0 | BB101: 0 | BC101: 0
B102: Asphalt pavement, 7" thick | W102: sy | AE102: 27.00 | AH102: $0 | AK102: $0 | AN102: $0 | AQ102: $0 | AV102: CONCRETE & FLATWORK | AY102: 0 | AZ102: 0 | BA102: 0 | BB102: 0 | BC102: 0
B103: Asphalt pavement, wearing course, 1" thick only | W103: sy | AE103: 8.00 | AH103: $0 | AK103: $0 | AN103: $0 | AQ103: $0 | AV103: CONCRETE & FLATWORK | AY103: 0 | AZ103: 0 | BA103: 0 | BB103: 0 | BC103: 0
B104: Asphalt seal coat | W104: sy | AE104: 3.00 | AH104: $0 | AK104: $0 | AN104: $0 | AQ104: $0 | AV104: CONCRETE & FLATWORK | AY104: 0 | AZ104: 0 | BA104: 0 | BB104: 0 | BC104: 0
B105: Add for 4" base rock below asphalt pavement | W105: sy | AE105: 9.00 | AH105: $0 | AK105: $0 | AN105: $0 | AQ105: $0 | AV105: CONCRETE & FLATWORK | AY105: 0 | AZ105: 0 | BA105: 0 | BB105: 0 | BC105: 0
AH106: $0 | AK106: $0 | AN106: $0 | AQ106: $0 | AV106: CONCRETE & FLATWORK | AY106: 0 | AZ106: 0 | BA106: 0 | BB106: 0 | BC106: 0
B107: Pavers | AH107: $0 | AK107: $0 | AN107: $0 | AQ107: $0 | AV107: CONCRETE & FLATWORK | AY107: 0 | AZ107: 0 | BA107: 0 | BB107: 0 | BC107: 0
B108: Pavers bid/allowance | W108: ls | AH108: $0 | AK108: $0 | AN108: $0 | AQ108: $0 | AV108: CONCRETE & FLATWORK | AY108: 0 | AZ108: 0 | BA108: 0 | BB108: 0 | BC108: 0
B109: Brick pavers, sand base | W109: sf | Y109: 6.50 | AB109: 3.50 | AH109: $0 | AK109: $0 | AN109: $0 | AQ109: $0 | AV109: CONCRETE & FLATWORK | AY109: 0 | AZ109: 0 | BA109: 0 | BB109: 0 | BC109: 0
B110: Brick pavers, mortar base | W110: sf | Y110: 9.50 | AB110: 6.00 | AH110: $0 | AK110: $0 | AN110: $0 | AQ110: $0 | AV110: CONCRETE & FLATWORK | AY110: 0 | AZ110: 0 | BA110: 0 | BB110: 0 | BC110: 0
AH111: $0 | AK111: $0 | AN111: $0 | AQ111: $0 | AV111: CONCRETE & FLATWORK | AY111: 0 | AZ111: 0 | BA111: 0 | BB111: 0 | BC111: 0
AV112: CONCRETE & FLATWORK | AY112: =AY91 -> $0 | AZ112: =AZ91 -> $0 | BA112: =BA91 -> $0 | BB112: =BB91 -> $0
AG113: =CONCATENATE(B91," ","TOTAL") -> CONCRETE & FLATWORK TOTAL | AH113: =SUBTOTAL(9,AH91:AH112) -> $0 | AK113: =SUBTOTAL(9,AK91:AK112) -> $0 | AN113: =SUBTOTAL(9,AN91:AN112) -> $0 | AQ113: =SUBTOTAL(9,AQ91:AQ112) -> $0 | AT113: =SUM(AT91:AT101) -> $0 | AV113: CONCRETE & FLATWORK | AY113: =AY91 -> 0 | AZ113: =AZ91 -> 0 | BA113: =BA91 -> 0 | BB113: =BB91 -> 0 | BC113: =SUM(BC91:BC112) -> 0
AV114: CONCRETE & FLATWORK | AY114: =AY91 -> $0 | AZ114: =AZ91 -> $0 | BA114: =BA91 -> $0 | BB114: =BB91 -> $0
AV115: CONCRETE & FLATWORK | AY115: =AY113 -> 0 | AZ115: =AZ113 -> 0 | BA115: =BA113 -> 0 | BB115: =BB113 -> 0 | BC115: =BC113 -> 0
B116: MASONRY | AV116: =$B$116 -> MASONRY | AY116: =SUM(AY117:AY136) -> 0 | AZ116: =SUM(AZ117:AZ136) -> 0 | BA116: =SUM(BA117:BA136) -> 0 | BB116: =SUM(BB117:BB136) -> 0 | BC116: =AQ116 -> 0
B117: Masonry bid/allowance | W117: ls | X117: ls | AH117: =T117*Y117 -> $0 | AK117: =T117*AB117 -> $0 | AN117: =T117*AE117 -> $0 | AQ117: =SUM(AH117:AP117) -> $0 | AV117: MASONRY | AY117: =AH117 -> 0 | AZ117: =AK117 -> 0 | BA117: =AN117 -> 0 | BB117: =SUM(AY117:BA117) -> 0 | BC117: 0
B118: CMU, 4x8 | W118: sf | X118: sf | Y118: 3.75 | AB118: 2.00 | AD118: 2.00 | AH118: =T118*Y118 -> $0 | AK118: $0 | AN118: $0 | AQ118: $0 | AV118: MASONRY | AY118: 0 | AZ118: 0 | BA118: 0 | BB118: 0 | BC118: 0
B119: CMU, 8x8 | W119: sf | X119: sf | Y119: 4.50 | AB119: 2.50 | AD119: 4.00 | AH119: $0 | AK119: $0 | AN119: $0 | AQ119: $0 | AV119: MASONRY | AY119: 0 | AZ119: 0 | BA119: 0 | BB119: 0 | BC119: 0
B120: Brick veneer | W120: sf | X120: sf | Y120: 8.00 | AB120: 4.00 | AD120: 8.00 | AH120: $0 | AK120: $0 | AN120: $0 | AQ120: $0 | AV120: MASONRY | AY120: 0 | AZ120: 0 | BA120: 0 | BB120: 0 | BC120: 0
B121: Natural stone | W121: sf | X121: ls | Y121: 15.00 | AB121: 14.00 | AD121: 2000.00 | AH121: $0 | AK121: $0 | AN121: $0 | AQ121: $0 | AV121: MASONRY | AY121: 0 | AZ121: 0 | BA121: 0 | BB121: 0 | BC121: 0
B122: Masonry waterproofing | W122: sf | X122: sf | Y122: 0.80 | AB122: 0.50 | AD122: 0.50 | AH122: $0 | AK122: $0 | AN122: $0 | AQ122: $0 | AV122: MASONRY | AY122: 0 | AZ122: 0 | BA122: 0 | BB122: 0 | BC122: 0
B123: Tuck-point masonry | W123: sf | X123: sf | Y123: 4.75 | AB123: 0.50 | AH123: $0 | AK123: $0 | AN123: $0 | AQ123: $0 | AV123: MASONRY | AY123: 0 | AZ123: 0 | BA123: 0 | BB123: 0 | BC123: 0
B124: Power wash masonry | W124: sf | Y124: 1.00 | AH124: $0 | AK124: $0 | AN124: $0 | AQ124: $0 | AV124: MASONRY | AY124: 0 | AZ124: 0 | BA124: 0 | BB124: 0 | BC124: 0
B125: Chimney, brick | W125: vlf | Y125: 50.00 | AB125: 35.00 | AH125: $0 | AK125: $0 | AN125: $0 | AQ125: $0 | AV125: MASONRY | AY125: 0 | AZ125: 0 | BA125: 0 | BB125: 0 | BC125: 0
B126: Chimney, stone | W126: vlf | Y126: 70.00 | AB126: 75.00 | AH126: $0 | AK126: $0 | AN126: $0 | AQ126: $0 | AV126: MASONRY | AY126: 0 | AZ126: 0 | BA126: 0 | BB126: 0 | BC126: 0
B127: Add to above for chimney cap | W127: ea | Y127: 35.00 | AB127: 50.00 | AH127: $0 | AK127: $0 | AN127: $0 | AQ127: $0 | AV127: MASONRY | AY127: 0 | AZ127: 0 | BA127: 0 | BB127: 0 | BC127: 0
B128: Fireplace complete, brick, 3ft-4ft wide w/ chimney | W128: ea | Y128: 3500.00 | AB128: 2000.00 | AH128: $0 | AK128: $0 | AN128: $0 | AQ128: $0 | AV128: MASONRY | AY128: 0 | AZ128: 0 | BA128: 0 | BB128: 0 | BC128: 0
AH129: $0 | AK129: $0 | AN129: $0 | AQ129: $0 | AV129: MASONRY | AY129: 0 | AZ129: 0 | BA129: 0 | BB129: 0 | BC129: 0
AH130: $0 | AK130: $0 | AN130: $0 | AQ130: $0 | AV130: MASONRY | AY130: 0 | AZ130: 0 | BA130: 0 | BB130: 0 | BC130: 0
AH131: $0 | AK131: $0 | AN131: $0 | AQ131: $0 | AV131: MASONRY | AY131: 0 | AZ131: 0 | BA131: 0 | BB131: 0 | BC131: 0
AH132: $0 | AK132: $0 | AN132: $0 | AQ132: $0 | AV132: MASONRY | AY132: 0 | AZ132: 0 | BA132: 0 | BB132: 0 | BC132: 0
AH133: $0 | AK133: $0 | AN133: $0 | AQ133: $0 | AV133: MASONRY | AY133: 0 | AZ133: 0 | BA133: 0 | BB133: 0 | BC133: 0
AH134: $0 | AK134: $0 | AN134: $0 | AQ134: $0 | AV134: MASONRY | AY134: 0 | AZ134: 0 | BA134: 0 | BB134: 0 | BC134: 0
AH135: $0 | AK135: $0 | AN135: $0 | AQ135: $0 | AV135: MASONRY | AY135: 0 | AZ135: 0 | BA135: 0 | BB135: 0 | BC135: 0
AH136: $0 | AK136: $0 | AN136: $0 | AQ136: $0 | AV136: MASONRY | AY136: 0 | AZ136: 0 | BA136: 0 | BB136: 0 | BC136: 0
AV137: MASONRY | AY137: =AY116 -> $0 | AZ137: =AZ116 -> $0 | BA137: =BA116 -> $0 | BB137: =BB116 -> $0
AG138: =CONCATENATE(B116," ","TOTAL") -> MASONRY TOTAL | AH138: =SUBTOTAL(9,AH116:AH137) -> $0 | AK138: =SUBTOTAL(9,AK116:AK137) -> $0 | AN138: =SUBTOTAL(9,AN116:AN137) -> $0 | AQ138: =SUBTOTAL(9,AQ116:AQ137) -> $0 | AT138: =SUM(AT119:AT131) -> $0 | AV138: MASONRY | AY138: =AY116 -> 0 | AZ138: =AZ116 -> 0 | BA138: =BA116 -> 0 | BB138: =BB116 -> 0 | BC138: =SUM(BC116:BC137) -> 0
AV139: MASONRY | AY139: =AY116 -> $0 | AZ139: =AZ116 -> $0 | BA139: =BA116 -> $0 | BB139: =BB116 -> $0
AV140: MASONRY | AY140: =AY138 -> 0 | AZ140: =AZ138 -> 0 | BA140: =BA138 -> 0 | BB140: =BB138 -> 0 | BC140: =BC138 -> 0
B141: SIDING | AV141: =$B$141 -> SIDING | AY141: =SUM(AY142:AY161) -> 0 | AZ141: =SUM(AZ142:AZ161) -> 0 | BA141: =SUM(BA142:BA161) -> 0 | BB141: =SUM(BB142:BB161) -> 0 | BC141: =AQ141 -> 0
B142: Siding bid/allowance | W142: ls | X142: ls | AH142: =T142*Y142 -> $0 | AK142: =T142*AB142 -> $0 | AN142: =T142*AE142 -> $0 | AQ142: =SUM(AH142:AP142) -> $0 | AT142: =SUM(AH142:AP142) -> $0 | AV142: SIDING | AY142: =AH142 -> 0 | AZ142: =AK142 -> 0 | BA142: =AN142 -> 0 | BB142: =SUM(AY142:BA142) -> 0 | BC142: 0
B143: Demo existing siding | W143: sf | X143: sf | Y143: 0.75 | AH143: =T143*Y143 -> $0 | AK143: $0 | AN143: $0 | AQ143: $0 | AT143: $0 | AV143: SIDING | AY143: 0 | AZ143: 0 | BA143: 0 | BB143: 0 | BC143: 0
B144: Plywood panel, douglas fir | W144: sf | X144: sf | Y144: 1.15 | AB144: 1.25 | AD144: 1.25 | AH144: $0 | AK144: $0 | AN144: $0 | AQ144: $0 | AT144: $0 | AV144: SIDING | AY144: 0 | AZ144: 0 | BA144: 0 | BB144: 0 | BC144: 0
B145: Plywood panel, cedar | W145: sf | X145: sf | Y145: 1.20 | AB145: 2.75 | AD145: 1.00 | AH145: $0 | AK145: $0 | AN145: $0 | AQ145: $0 | AT145: $0 | AV145: SIDING | AY145: 0 | AZ145: 0 | BA145: 0 | BB145: 0 | BC145: 0
B146: Tongue and groove, douglas fir | W146: sf | X146: sf | Y146: 1.25 | AB146: 2.50 | AD146: 1.50 | AH146: $0 | AK146: $0 | AN146: $0 | AQ146: $0 | AT146: $0 | AV146: SIDING | AY146: 0 | AZ146: 0 | BA146: 0 | BB146: 0 | BC146: 0
B147: Tongue and groove, cedar | W147: sf | X147: sf | Y147: 1.75 | AB147: 4.00 | AD147: 1.00 | AH147: $0 | AK147: $0 | AN147: $0 | AQ147: $0 | AT147: $0 | AV147: SIDING | AY147: 0 | AZ147: 0 | BA147: 0 | BB147: 0 | BC147: 0
B148: Board and batten, douglas fir | W148: sf | X148: sf | Y148: 2.25 | AB148: 1.00 | AD148: 1.50 | AH148: $0 | AK148: $0 | AN148: $0 | AQ148: $0 | AT148: $0 | AV148: SIDING | AY148: 0 | AZ148: 0 | BA148: 0 | BB148: 0 | BC148: 0
B149: Board and batten, cedar | W149: sf | Y149: 2.50 | AB149: 1.00 | AH149: $0 | AK149: $0 | AN149: $0 | AQ149: $0 | AT149: $0 | AV149: SIDING | AY149: 0 | AZ149: 0 | BA149: 0 | BB149: 0 | BC149: 0
B150: Wood shingle/shake | W150: sf | Y150: 2.75 | AB150: 1.75 | AH150: $0 | AK150: $0 | AN150: $0 | AQ150: $0 | AT150: $0 | AV150: SIDING | AY150: 0 | AZ150: 0 | BA150: 0 | BB150: 0 | BC150: 0
B151: Fiber cement siding, 4x8 panels | W151: sf | Y151: 0.85 | AB151: 1.00 | AH151: $0 | AK151: $0 | AN151: $0 | AQ151: $0 | AT151: $0 | AV151: SIDING | AY151: 0 | AZ151: 0 | BA151: 0 | BB151: 0 | BC151: 0
B152: Fiber cement siding, lap | W152: sf | Y152: 1.50 | AB152: 1.20 | AH152: $0 | AK152: $0 | AN152: $0 | AQ152: $0 | AT152: $0 | AV152: SIDING | AY152: 0 | AZ152: 0 | BA152: 0 | BB152: 0 | BC152: 0
B153: Vinyl siding, non-insulated | W153: sf | Y153: 1.50 | AB153: 1.30 | AH153: $0 | AK153: $0 | AN153: $0 | AQ153: $0 | AT153: $0 | AV153: SIDING | AY153: 0 | AZ153: 0 | BA153: 0 | BB153: 0 | BC153: 0
B154: Vinyl siding, insulated | W154: sf | Y154: 3.00 | AB154: 1.75 | AH154: $0 | AK154: $0 | AN154: $0 | AQ154: $0 | AT154: $0 | AV154: SIDING | AY154: 0 | AZ154: 0 | BA154: 0 | BB154: 0 | BC154: 0
B155: Trim, 1"x3", pine | W155: lf | Y155: 1.25 | AB155: 0.40 | AH155: $0 | AK155: $0 | AN155: $0 | AQ155: $0 | AT155: $0 | AV155: SIDING | AY155: 0 | AZ155: 0 | BA155: 0 | BB155: 0 | BC155: 0
B156: Trim, 1"x4", pine | W156: lf | Y156: 1.50 | AB156: 0.90 | AH156: $0 | AK156: $0 | AN156: $0 | AQ156: $0 | AT156: $0 | AV156: SIDING | AY156: 0 | AZ156: 0 | BA156: 0 | BB156: 0 | BC156: 0
B157: Trim, 1"x6", pine | W157: lf | Y157: 1.50 | AB157: 1.30 | AH157: $0 | AK157: $0 | AN157: $0 | AQ157: $0 | AT157: $0 | AV157: SIDING | AY157: 0 | AZ157: 0 | BA157: 0 | BB157: 0 | BC157: 0
B158: Siding patch, window/door, siding, insulation | W158: ea | Y158: 125.00 | AB158: 75.00 | AH158: $0 | AK158: $0 | AN158: $0 | AQ158: $0 | AT158: $0 | AV158: SIDING | AY158: 0 | AZ158: 0 | BA158: 0 | BB158: 0 | BC158: 0
B159: Stucco | W159: sf | Y159: 7.25 | AB159: 3.00 | AH159: $0 | AK159: $0 | AN159: $0 | AQ159: $0 | AT159: $0 | AV159: SIDING | AY159: 0 | AZ159: 0 | BA159: 0 | BB159: 0 | BC159: 0
AH160: $0 | AK160: $0 | AN160: $0 | AQ160: $0 | AT160: $0 | AV160: SIDING | AY160: 0 | AZ160: 0 | BA160: 0 | BB160: 0 | BC160: 0
AH161: $0 | AK161: $0 | AN161: $0 | AQ161: $0 | AT161: $0 | AV161: SIDING | AY161: 0 | AZ161: 0 | BA161: 0 | BB161: 0 | BC161: 0
AV162: SIDING | AY162: =AY141 -> $0 | AZ162: =AZ141 -> $0 | BA162: =BA141 -> $0 | BB162: =BB141 -> $0
AG163: =CONCATENATE(B141," ","TOTAL") -> SIDING TOTAL | AH163: =SUBTOTAL(9,AH141:AH162) -> $0 | AK163: =SUBTOTAL(9,AK141:AK162) -> $0 | AN163: =SUBTOTAL(9,AN141:AN162) -> $0 | AQ163: =SUBTOTAL(9,AQ141:AQ162) -> $0 | AT163: =SUM(AT144:AT152) -> $0 | AV163: SIDING | AY163: =AY141 -> 0 | AZ163: =AZ141 -> 0 | BA163: =BA141 -> 0 | BB163: =BB141 -> 0 | BC163: =SUM(BC141:BC162) -> 0
AV164: SIDING | AY164: =AY141 -> $0 | AZ164: =AZ141 -> $0 | BA164: =BA141 -> $0 | BB164: =BB141 -> $0
AV165: SIDING | AY165: =AY163 -> 0 | AZ165: =AZ163 -> 0 | BA165: =BA163 -> 0 | BB165: =BB163 -> 0 | BC165: =BC163 -> 0
B166: DECKING AND PATIOS | AV166: =$B$166 -> DECKING AND PATIOS | AY166: =SUM(AY167:AY186) -> 0 | AZ166: =SUM(AZ167:AZ186) -> 0 | BA166: =SUM(BA167:BA186) -> 0 | BB166: =SUM(BB167:BB186) -> 0 | BC166: =AQ166 -> 0
B167: Decking | AH167: =T167*Y167 -> $0 | AK167: =T167*AB167 -> $0 | AN167: =T167*AE167 -> $0 | AQ167: =SUM(AH167:AP167) -> $0 | AT167: =SUM(AH167:AP167) -> $0 | AV167: DECKING AND PATIOS | AY167: =AH167 -> 0 | AZ167: =AK167 -> 0 | BA167: =AN167 -> 0 | BB167: =SUM(AY167:BA167) -> 0 | BC167: 0
B168: Deck bid/allowance | W168: ls | X168: ls | AH168: =T168*Y168 -> $0 | AK168: $0 | AN168: $0 | AQ168: $0 | AT168: $0 | AV168: DECKING AND PATIOS | AY168: 0 | AZ168: 0 | BA168: 0 | BB168: 0 | BC168: 0
B169: New deck, columns, joists, railing-treated lumber | W169: sf | X169: sf | Y169: 10.00 | AB169: 5.00 | AD169: 5.00 | AH169: $0 | AK169: $0 | AN169: $0 | AQ169: $0 | AT169: $0 | AV169: DECKING AND PATIOS | AY169: 0 | AZ169: 0 | BA169: 0 | BB169: 0 | BC169: 0
B170: New deck, columns, joists, railing-cedar | W170: sf | X170: sf | Y170: 10.00 | AB170: 8.50 | AD170: 8.50 | AH170: $0 | AK170: $0 | AN170: $0 | AQ170: $0 | AT170: $0 | AV170: DECKING AND PATIOS | AY170: 0 | AZ170: 0 | BA170: 0 | BB170: 0 | BC170: 0
B171: Existing deck, replace decking | W171: sf | X171: sf | Y171: 5.00 | AB171: 2.00 | AD171: 2.00 | AH171: $0 | AK171: $0 | AN171: $0 | AQ171: $0 | AT171: $0 | AV171: DECKING AND PATIOS | AY171: 0 | AZ171: 0 | BA171: 0 | BB171: 0 | BC171: 0
B172: Install railing w/ wood balusters only | W172: lf | X172: lf | Y172: 15.00 | AB172: 15.00 | AD172: 7.50 | AH172: $0 | AK172: $0 | AN172: $0 | AQ172: $0 | AT172: $0 | AV172: DECKING AND PATIOS | AY172: 0 | AZ172: 0 | BA172: 0 | BB172: 0 | BC172: 0
B173: Install railing w/ metal balusters only | W173: lf | X173: lf | Y173: 15.00 | AB173: 25.00 | AD173: 25.00 | AH173: $0 | AK173: $0 | AN173: $0 | AQ173: $0 | AT173: $0 | AV173: DECKING AND PATIOS | AY173: 0 | AZ173: 0 | BA173: 0 | BB173: 0 | BC173: 0
B174: Stairs, 5 to 7 risers | W174: ea | Y174: 700.00 | AB174: 175.00 | AH174: $0 | AK174: $0 | AN174: $0 | AQ174: $0 | AT174: $0 | AV174: DECKING AND PATIOS | AY174: 0 | AZ174: 0 | BA174: 0 | BB174: 0 | BC174: 0
AH175: $0 | AK175: $0 | AN175: $0 | AQ175: $0 | AT175: $0 | AV175: DECKING AND PATIOS | AY175: 0 | AZ175: 0 | BA175: 0 | BB175: 0 | BC175: 0
AH176: $0 | AK176: $0 | AN176: $0 | AQ176: $0 | AT176: $0 | AV176: DECKING AND PATIOS | AY176: 0 | AZ176: 0 | BA176: 0 | BB176: 0 | BC176: 0
B177: Covered Patio | AH177: $0 | AK177: $0 | AN177: $0 | AQ177: $0 | AT177: $0 | AV177: DECKING AND PATIOS | AY177: 0 | AZ177: 0 | BA177: 0 | BB177: 0 | BC177: 0
B178: Covered Patio bid/allowance | W178: ls | X178: ls | AH178: $0 | AK178: $0 | AN178: $0 | AQ178: $0 | AT178: $0 | AV178: DECKING AND PATIOS | AY178: 0 | AZ178: 0 | BA178: 0 | BB178: 0 | BC178: 0
B179: Covered patio, floor, roof frame, decking, treated | W179: sf | Y179: 20.00 | AB179: 15.00 | AH179: $0 | AK179: $0 | AN179: $0 | AQ179: $0 | AT179: $0 | AV179: DECKING AND PATIOS | AY179: 0 | AZ179: 0 | BA179: 0 | BB179: 0 | BC179: 0
B180: Install railing w/ wood balusters only | W180: lf | X180: lf | Y180: 15.00 | AB180: 15.00 | AD180: 7.50 | AH180: $0 | AK180: $0 | AN180: $0 | AQ180: $0 | AT180: $0 | AV180: DECKING AND PATIOS | AY180: 0 | AZ180: 0 | BA180: 0 | BB180: 0 | BC180: 0
B181: Install railing w/ metal balusters only | W181: lf | X181: lf | Y181: 15.00 | AB181: 25.00 | AD181: 25.00 | AH181: $0 | AK181: $0 | AN181: $0 | AQ181: $0 | AT181: $0 | AV181: DECKING AND PATIOS | AY181: 0 | AZ181: 0 | BA181: 0 | BB181: 0 | BC181: 0
B182: Stairs, 5 to 7 risers | W182: ea | Y182: 700.00 | AB182: 175.00 | AH182: $0 | AK182: $0 | AN182: $0 | AQ182: $0 | AT182: $0 | AV182: DECKING AND PATIOS | AY182: 0 | AZ182: 0 | BA182: 0 | BB182: 0 | BC182: 0
B183: Wood board ceiling, tongue and groove | W183: sf | Y183: 1.75 | AB183: 2.00 | AH183: $0 | AK183: $0 | AN183: $0 | AQ183: $0 | AT183: $0 | AV183: DECKING AND PATIOS | AY183: 0 | AZ183: 0 | BA183: 0 | BB183: 0 | BC183: 0
B184: Insect screening | W184: sf | Y184: 1.50 | AB184: 1.25 | AH184: $0 | AK184: $0 | AN184: $0 | AQ184: $0 | AT184: $0 | AV184: DECKING AND PATIOS | AY184: 0 | AZ184: 0 | BA184: 0 | BB184: 0 | BC184: 0
AH185: $0 | AK185: $0 | AN185: $0 | AQ185: $0 | AT185: $0 | AV185: DECKING AND PATIOS | AY185: 0 | AZ185: 0 | BA185: 0 | BB185: 0 | BC185: 0
AH186: $0 | AK186: $0 | AN186: $0 | AQ186: $0 | AT186: $0 | AV186: DECKING AND PATIOS | AY186: 0 | AZ186: 0 | BA186: 0 | BB186: 0 | BC186: 0
AV187: DECKING AND PATIOS | AY187: =AY166 -> $0 | AZ187: =AZ166 -> $0 | BA187: =BA166 -> $0 | BB187: =BB166 -> $0
AG188: =CONCATENATE(B166," ","TOTAL") -> DECKING AND PATIOS TOTAL | AH188: =SUBTOTAL(9,AH166:AH187) -> $0 | AK188: =SUBTOTAL(9,AK166:AK187) -> $0 | AN188: =SUBTOTAL(9,AN166:AN187) -> $0 | AQ188: =SUBTOTAL(9,AQ166:AQ187) -> $0 | AT188: =SUM(AT168:AT176) -> $0 | AV188: DECKING AND PATIOS | AY188: =AY166 -> 0 | AZ188: =AZ166 -> 0 | BA188: =BA166 -> 0 | BB188: =BB166 -> 0 | BC188: =SUM(BC166:BC187) -> 0
AV189: DECKING AND PATIOS | AY189: =AY166 -> $0 | AZ189: =AZ166 -> $0 | BA189: =BA166 -> $0 | BB189: =BB166 -> $0
AV190: DECKING AND PATIOS | AY190: =AY188 -> 0 | AZ190: =AZ188 -> 0 | BA190: =BA188 -> 0 | BB190: =BB188 -> 0 | BC190: =BC188 -> 0
B191: ROOFING | AV191: =$B$191 -> ROOFING | AY191: =SUM(AY192:AY211) -> 0 | AZ191: =SUM(AZ192:AZ211) -> 0 | BA191: =SUM(BA192:BA211) -> 0 | BB191: =SUM(BB192:BB211) -> 0 | BC191: =AQ191 -> 0
B192: Roofing bid/allowance | W192: ls | X192: ls | AH192: =T192*Y192 -> $0 | AK192: =T192*AB192 -> $0 | AN192: =T192*AE192 -> $0 | AQ192: =SUM(AH192:AP192) -> $0 | AT192: =SUM(AH192:AP192) -> $0 | AV192: ROOFING | AY192: =AH192 -> 0 | AZ192: =AK192 -> 0 | BA192: =AN192 -> 0 | BB192: =SUM(AY192:BA192) -> 0 | BC192: 0
B193: Asphalt shingle roof | AH193: =T193*Y193 -> $0 | AK193: $0 | AN193: $0 | AQ193: $0 | AT193: $0 | AV193: ROOFING | AY193: 0 | AZ193: 0 | BA193: 0 | BB193: 0 | BC193: 0
B194: Roof repair/patch, asphalt | W194: ea | X194: ea | Y194: 175.00 | AB194: 100.00 | AD194: 100.00 | AH194: $0 | AK194: $0 | AN194: $0 | AQ194: $0 | AT194: $0 | AV194: ROOFING | AY194: 0 | AZ194: 0 | BA194: 0 | BB194: 0 | BC194: 0
B195: Roof replacement-demo & replace, 3-tab | W195: sq | Y195: 75.00 | AB195: 50.00 | AH195: $0 | AK195: $0 | AN195: $0 | AQ195: $0 | AT195: $0 | AV195: ROOFING | AY195: 0 | AZ195: 0 | BA195: 0 | BB195: 0 | BC195: 0
B196: Roof replacement-demo & replace, architectural | W196: sq | Y196: 125.00 | AB196: 100.00 | AD196: 100.00 | AH196: $0 | AK196: $0 | AN196: $0 | AQ196: $0 | AT196: $0 | AV196: ROOFING | AY196: 0 | AZ196: 0 | BA196: 0 | BB196: 0 | BC196: 0
B197: Premium for 3 layer tear off | W197: sq | X197: sq | Y197: 35.00 | AH197: $0 | AK197: $0 | AN197: $0 | AQ197: $0 | AT197: $0 | AV197: ROOFING | AY197: 0 | AZ197: 0 | BA197: 0 | BB197: 0 | BC197: 0
B198: Premium for steep pitch roof | W198: sq | X198: sq | Y198: 25.00 | AH198: $0 | AK198: $0 | AN198: $0 | AQ198: $0 | AT198: $0 | AV198: ROOFING | AY198: 0 | AZ198: 0 | BA198: 0 | BB198: 0 | BC198: 0
AH199: $0 | AK199: $0 | AN199: $0 | AQ199: $0 | AT199: $0 | AV199: ROOFING | AY199: 0 | AZ199: 0 | BA199: 0 | BB199: 0 | BC199: 0
B200: Wood Shingle Roof | AH200: $0 | AK200: $0 | AN200: $0 | AQ200: $0 | AT200: $0 | AV200: ROOFING | AY200: 0 | AZ200: 0 | BA200: 0 | BB200: 0 | BC200: 0
B201: Roof repair/patch, wood | W201: ea | X201: ea | Y201: 175.00 | AB201: 100.00 | AD201: 100.00 | AH201: $0 | AK201: $0 | AN201: $0 | AQ201: $0 | AT201: $0 | AV201: ROOFING | AY201: 0 | AZ201: 0 | BA201: 0 | BB201: 0 | BC201: 0
B202: Roof replacement-demo & replace, 3-tab | W202: sq | Y202: 75.00 | AB202: 50.00 | AH202: $0 | AK202: $0 | AN202: $0 | AQ202: $0 | AT202: $0 | AV202: ROOFING | AY202: 0 | AZ202: 0 | BA202: 0 | BB202: 0 | BC202: 0
B203: Wood shingle, low end | W203: sq | Y203: 225.00 | AB203: 200.00 | AH203: $0 | AK203: $0 | AN203: $0 | AQ203: $0 | AT203: $0 | AV203: ROOFING | AY203: 0 | AZ203: 0 | BA203: 0 | BB203: 0 | BC203: 0
... 453 more rows

Sheet RENTAL CALC
A2: Show Cash Flow
B3: GROSS OPERATING INCOME - YEAR 1 | AI3: FINANCING | BO3: LANDLORD'S PURCHASE PRICE BASED UPON CAP RATE
CZ4: ='RENTAL INFO SHEET'!AD36 -> 8%
CZ5: =CZ4-0.03 -> 5% | DA5: =CZ4-0.02 -> 6% | DB5: =CZ4-0.01 -> 7% | DC5: =CZ4+0.01 -> 9% | DD5: =CZ4+0.02 -> 10% | DE5: =CZ4+0.03 -> 11%
H6: =EL93 -> $16,560 | AB6: Monthly | AI6: Type of Loan | CK6: 5% | CL6: 15% | CM6: =CZ4 -> 8%
AB8: =EK93 -> $1,380 | AI8: =IF(OR(DO119="All Cash",DO119=""),"All Cash",CONCATENATE(DO119," ","@"," ",DS119*100,"%"," ","Interest"," ","w/"," ",DV119*100,"%"," ","Down")) -> 30-Year Fixed @ 5.5% Interest w/ 20% Down | BO8: =ARV*ED9 -> 0
BO9: =(CAP_RATE_VALUATION+RENTAL_ESTIMATE)/AFTER_REPAIR_VALUE_RENTAL -> 68% | BV9: =NET_OPERATING_INCOME/CAP_RATE - RENTAL_ESTIMATE -> $107,495
AI11: Amount of Loan
B13: OPERATING EXPENSES - YEAR 1 | AB13: Detailed | AI13: =IF(DO119="All Cash","All Cash",CONCATENATE("Loan Amount for"," ",T('RENTAL INFO SHEET'!AE96))) -> Loan Amount for Purchase + Repairs
BO14: of ARV
B16: =IF(AB13="50% Rule","Expenses are calculated at 50% of Rental Income","Fixed Rental Expenses") -> Fixed Rental Expenses | V16: =IF(AB13="50% Rule","","per month") -> per month | AB16: =IF(AB13="50% Rule","","per year") -> per year | AI16: Financing Breakdown | AS16: Capital Required | AZ16: Financed Amount | BG16: Cash Outlay | BO16: INVESTMENT CRITERIA TICKER
B18: =T(DL97) -> Property Taxes | V18: =EF97 -> $167 | AB18: =EL97 -> $2,000 | AI18: Purchase of Property | AS18: =CAP_RATE_VALUATION -> $107,495 | AZ18: =IF(AI8="All Cash",0,IF(AI13="Loan for Repair Cost Only",0,CAP_RATE_VALUATION*(1-'RENTAL INFO SHEET'!AT101))) -> $85,996 | BG18: =AS18-AZ18 -> $21,499
BO19: Desired Performance | BX19: Actual Performance | CG19: Performance Gauge
B20: =T(DL98) -> Property Insurance | V20: =EF98 -> $67 | AB20: =EL98 -> $800 | AI20: Closing Costs | AS20: ='RENTAL INFO SHEET'!AK119 -> $2,865 | AZ20: $0 | BG20: =AS20-AZ20 -> $2,865
BO21: 2% RULE TICKER | CG21: =IFERROR(IF(BX23>0,1,0),0) -> 1 | CJ21: =IFERROR(IF(BX23>0.01,2,0),0) -> 2 | CM21: =IFERROR(IF(BX23>0.015,3,0),0) -> 0 | CP21: =IFERROR(IF(BX23>0.0175,4,0),0) -> 0 | CS21: =IFERROR(IF(BX23>0.0199,5,0),0) -> 0
B22: =T(DL99) -> Cleaning and Maintenance: | V22: =EF99 -> $0 | AB22: =EL99 -> $0 | AI22: Rental Repair Costs | AS22: =RENTAL_ESTIMATE -> $11,880 | AZ22: =IF(AI13="All Cash",0,IF(AI13="Loan for Purchase Price Only",0,RENTAL_ESTIMATE*(1-'RENTAL INFO SHEET'!AT101))) -> $9,504 | BG22: =AS22-AZ22 -> $2,376
BO23: 2% | BX23: =AB8/CAP_RATE_VALUATION -> 1.3%
B24: =T(DL100) -> HOA Dues: | V24: =EF100 -> $42 | AB24: =EL100 -> $500 | AI24: Total | AS24: =SUM(AS18:AY23) -> $122,240 | AZ24: =SUM(AZ18:BF23) -> $95,500 | BG24: =SUM(BG18:BM23) -> $26,740
B26: =T(DL101) -> Lawn and Groundskeeping: | V26: =EF101 -> $0 | AB26: =EL101 -> $0
AI27: TOTAL CAPITAL REQUIRED | BO27: 50% EXPENSE RULE | CG27: =IFERROR(IF(BX29>0.2,1,0),0) -> 1 | CJ27: =IFERROR(IF(BX29>0.3,2,0),0) -> 2 | CM27: =IFERROR(IF(BX29>0.39,3,0),0) -> 3 | CP27: =IFERROR(IF(BX29>0.45,4,0),0) -> 0 | CS27: =IFERROR(IF(BX29>0.4999,5,0),0) -> 0
B28: =T(DL102) -> Auto and Travel: | V28: =EF102 -> $0 | AB28: =EL102 -> $0
BO29: 50% | BX29: =B61 -> 42% | CZ29: =(AFTER_REPAIR_VALUE_RENTAL*0.7)-AS22 -> $110,620
B30: =T(DL103) -> Electrical Utilities: | V30: =EF103 -> $0 | AB30: =EL103 -> $0 | AI30: =AS24 -> $122,240
B32: =T(DL104) -> Water Utilities: | V32: =EF104 -> $0 | AB32: =EL104 -> $0
BO33: CASH FLOW | CG33: =IFERROR(IF(BX35>BO35-150,1,0),0) -> 1 | CJ33: =IFERROR(IF(BX35>BO35-100,2,0),0) -> 2 | CM33: =IFERROR(IF(BX35>BO35-50,3,0),0) -> 3 | CP33: =IFERROR(IF(BX35>BO35-1,4,0),0) -> 4 | CS33: =IFERROR(IF(BX35>BO35,5,0),0) -> 5
B34: =T(DL105) -> Gas Utilities: | V34: =EF105 -> $0 | AB34: =EL105 -> $0
BO35: =IF('RENTAL INFO SHEET'!BD36=0,"",'RENTAL INFO SHEET'!BD36) -> $200 | BX35: =BH63 -> $254 | CZ35: =IF(AB13="50% Rule","50% Rule","") -> 
B36: =T(DL106) -> Garbage: | V36: =EF106 -> $0 | AB36: =EL106 -> $0
AI37: TOTAL FINANCED AMOUNT
B38: =T(DL107) -> Advertising: | V38: =EF107 -> $21 | AB38: =EL107 -> $250 | CZ38: =IF(AB13="50% Rule","Operating Expenses are being calculated at 50% of Rental Income","") -> 
BO39: CAP RATE | CG39: =IFERROR(IF(BX41>BO41-0.031,1,0),0) -> 1 | CJ39: =IFERROR(IF(BX41>BO41-0.021,2,0),0) -> 2 | CM39: =IFERROR(IF(BX41>BO41-0.011,3,0),0) -> 3 | CP39: =IFERROR(IF(BX41>BO41-0.001,4,0),0) -> 4 | CS39: =IFERROR(IF(BX41>BO41+0.009,5,0),0) -> 0
B40: =T(DL108) -> Accounting & Legal: | V40: =EF108 -> $33 | AB40: =EL108 -> $400 | AI40: =AZ24 -> $95,500
BO41: =IF('RENTAL INFO SHEET'!AD36=0,"",'RENTAL INFO SHEET'!AD36) -> 8% | BX41: =CAP_RATE -> 8%
B42: =T(DL109) -> Other 1: | V42: =EF109 -> $0 | AB42: =EL109 -> $0
B44: =T(DL110) -> Other 2: | V44: =EF110 -> $0 | AB44: =EL110 -> $0
BO45: COCR | CG45: =IFERROR(IF(BX47>BO47-0.031,1,0),0) -> 1 | CJ45: =IFERROR(IF(BX47>BO47-0.021,2,0),0) -> 2 | CM45: =IFERROR(IF(BX47>BO47-0.011,3,0),0) -> 3 | CP45: =IFERROR(IF(BX47>BO47-0.001,4,0),0) -> 0 | CS45: =IFERROR(IF(BX47>BO47+0.009,5,0),0) -> 0
B46: TOTAL FIXED RENTAL EXPENSES | V46: =SUM(V18:Z44) -> $329 | AB46: =SUM(AB18:AF44) -> $3,950
AI47: TOTAL CASH OUTLAY | BO47: =IF('RENTAL INFO SHEET'!AQ36=0,"",'RENTAL INFO SHEET'!AQ36) -> 12% | BX47: =AI61 -> 11%
B48: Variable Rental Expenses | V48: per month | AB48: per year
B50: =CONCATENATE(T(DL112)," ",DZ112*100,"%") -> Property Management (%): 10% | V50: =EK112 -> $150 | AB50: =EL112 -> $1,800 | AI50: =BG24 -> $26,740
BO51: IRR | CG51: =IFERROR(IF(BX53>BO53-0.031,1,0),0) -> 1 | CJ51: =IFERROR(IF(BX53>BO53-0.021,2,0),0) -> 2 | CM51: =IFERROR(IF(BX53>BO53-0.011,3,0),0) -> 3 | CP51: =IFERROR(IF(BX53>BO53-0.001,4,0),0) -> 4 | CS51: =IFERROR(IF(BX53>BO53+0.009,5,0),0) -> 5
B52: =CONCATENATE(T(DL113)," ",DZ113*100,"%") -> Repairs (%): 2% | V52: =EK113 -> $30 | AB52: =EL113 -> $360
BO53: =IF('RENTAL INFO SHEET'!BS36=0,"",'RENTAL INFO SHEET'!BS36) -> 15% | BX53: =IRR -> 17%
B54: =CONCATENATE(T(DL114)," ",DZ114*100,"%") -> Cap Ex (%): 5% | V54: =EK114 -> $75 | AB54: =EL114 -> $900
B56: TOTAL VARIABLE RENTAL EXPENSES | V56: =SUM(V50:AA54) -> $255 | AB56: =SUM(AB50:AG54) -> $3,060
B58: TOTAL OPERATING EXPENSES - YEAR 1 | AI58: ANNUAL CASH FLOW - YEAR 1 | BO58: WHOLESALER ASSIGNMENT FEE
B61: =H61/H6 -> 42% | H61: =IF(AB13="50% Rule",(H6*0.5),(AB46+AB56)) -> $7,010 | AB61: Monthly | AI61: =AN61/AI50 -> 11% | AN61: =EL125 -> $3,043 | BH61: Monthly | BO61: $5,000
AB63: =H61/12 -> $584 | BH63: =AN61/12 -> $254
B66: of Rent | AI66: CoCR
B69: NET OPERATING INCOME - YEAR 1 | AI69: TOTAL RETURN - YEAR 1 | BO69: WHOLESALER MAXIMUM ALLOWABLE OFFER
B72: =EM117 -> 53% | H72: =EL117 -> $9,550 | AB72: Monthly | AI72: =EL136 -> 16% | AN72: =EL135 -> $4,330 | BH72: Monthly | BO72: =CAP_RATE_VALUATION-BO61 -> $102,495
AB74: =EK117 -> $796 | BH74: =AN72/12 -> $361
B78: of Rent | AI78: Total Return
BO80: © 2015 by wholesalingspreadsheet.com. All rights reserved
R81: 50% Rule
R82: Detailed | EK82: YEAR 01
EO84: 02 | EP84: 03 | EQ84: 04 | ER84: 05 | ES84: 06 | ET84: 07 | EU84: 08 | EV84: 09 | EW84: 10 | EX84: 11 | EY84: 12 | EZ84: 13 | FA84: 14 | FB84: 15 | FC84: 16 | FD84: 17 | FE84: 18 | FF84: 19 | FG84: 20 | FH84: 21 | FI84: 22 | FJ84: 23 | FK84: 24 | FL84: 25 | FM84: 26 | FN84: 27 | FO84: 28 | FP84: 29 | FQ84: 30
DL87: Revenues | DV87: Annual Revenue Increase | EB87: ='RENTAL INFO SHEET'!AR82 -> 1.00% | FU87: =IF(A2="Show Dashboard",1,0) -> 0
DL88: Rental Income | DZ88: ='RENTAL INFO SHEET'!AF43 -> $1,500 | EB88: per month | EF88: =IF(EB88="per month",DZ88,IF(EB88="per year",(DZ88/12),IF(EB88="",DZ88))) -> $1,500 | EH88: =EF88*12 -> $18,000 | EK88: =EF88 -> $1,500 | EL88: =EH88 -> $18,000 | EM88: =IFERROR(EL88/$EL$89,"") -> 100.0% | EO88: =EL88*(1+$EB$87) -> $18,180 | EP88: =EO88*(1+$EB$87) -> $18,362 | EQ88: $18,545 | ER88: $18,731 | ES88: $18,918 | ET88: $19,107 | EU88: $19,298 | EV88: $19,491 | EW88: $19,686 | EX88: $19,883 | EY88: $20,082 | EZ88: $20,283 | FA88: $20,486 | FB88: $20,691 | FC88: $20,897 | FD88: $21,106 | FE88: $21,317 | FF88: $21,531 | FG88: $21,746 | FH88: $21,963 | FI88: $22,183 | FJ88: $22,405 | FK88: $22,629 | FL88: $22,855 | FM88: $23,084 | FN88: $23,315 | FO88: $23,548 | FP88: $23,783 | FQ88: $24,021 | FU88: Rental Term
DL89: Gross Scheduled Income | EF89: =SUM(EF88) -> $1,500 | EH89: =EF89*12 -> $18,000 | EK89: =SUM(EK88:EK88) -> $1,500 | EL89: =SUM(EL88:EL88) -> $18,000 | EM89: =SUM(EM88:EM88) -> 100% | EO89: =SUM(EO88:EO88) -> $18,180 | EP89: $18,362 | EQ89: $18,545 | ER89: $18,731 | ES89: $18,918 | ET89: $19,107 | EU89: $19,298 | EV89: $19,491 | EW89: $19,686 | EX89: $19,883 | EY89: $20,082 | EZ89: $20,283 | FA89: $20,486 | FB89: $20,691 | FC89: $20,897 | FD89: $21,106 | FE89: $21,317 | FF89: $21,531 | FG89: $21,746 | FH89: $21,963 | FI89: $22,183 | FJ89: $22,405 | FK89: $22,629 | FL89: $22,855 | FM89: $23,084 | FN89: $23,315 | FO89: $23,548 | FP89: $23,783 | FQ89: $24,021 | FU89: =RENTAL_TERM * FU87 -> 0
DL90: Vacancy Loss Amount | DY90: Vacancy Loss | EB90: ='RENTAL INFO SHEET'!AE75 -> 8.0% | EE90: Monthly | EK90: =EK89*-EB90 -> -$120 | EL90: =EL89*-EB90 -> -$1,440 | EM90: =IFERROR(EL90/EL89,"") -> -8.0% | EO90: =EO89*-$EB$90 -> -$1,454 | EP90: -$1,469 | EQ90: -$1,484 | ER90: -$1,498 | ES90: -$1,513 | ET90: -$1,529 | EU90: -$1,544 | EV90: -$1,559 | EW90: -$1,575 | EX90: -$1,591 | EY90: -$1,607 | EZ90: -$1,623 | FA90: -$1,639 | FB90: -$1,655 | FC90: -$1,672 | FD90: -$1,689 | FE90: -$1,705 | FF90: -$1,722 | FG90: -$1,740 | FH90: -$1,757 | FI90: -$1,775 | FJ90: -$1,792 | FK90: -$1,810 | FL90: -$1,828 | FM90: -$1,847 | FN90: -$1,865 | FO90: -$1,884 | FP90: -$1,903 | FQ90: -$1,922 | FU90: 50% Rule or Not
DL91: Effective Rental Income | EK91: =EK89+EK90 -> $1,380 | EL91: =EL89+EL90 -> $16,560 | EM91: =IFERROR(EL91/EL89,"") -> 92% | EO91: =EO89+EO90 -> $16,726 | EP91: $16,893 | EQ91: $17,062 | ER91: $17,232 | ES91: $17,405 | ET91: $17,579 | EU91: $17,755 | EV91: $17,932 | EW91: $18,111 | EX91: $18,293 | EY91: $18,475 | EZ91: $18,660 | FA91: $18,847 | FB91: $19,035 | FC91: $19,226 | FD91: $19,418 | FE91: $19,612 | FF91: $19,808 | FG91: $20,006 | FH91: $20,206 | FI91: $20,408 | FJ91: $20,612 | FK91: $20,819 | FL91: $21,027 | FM91: $21,237 | FN91: $21,449 | FO91: $21,664 | FP91: $21,881 | FQ91: $22,099 | FU91: =EXPENSE_TYPE -> Detailed
DL92: Other Income | DZ92: ='RENTAL INFO SHEET'!BA43 -> $0 | EB92: per month | EF92: =IF(EB92="per month",DZ92,IF(EB92="per year",(DZ92/12),IF(EB92="",DZ92))) -> $0 | EH92: =EF92*12 -> $0 | EK92: =EL92/12 -> $0 | EL92: =$EH$92 -> $0 | EM92: =IFERROR(EL92/EL93,"") -> 0% | EO92: =$EH$92 -> $0 | EP92: $0 | EQ92: $0 | ER92: $0 | ES92: $0 | ET92: $0 | EU92: $0 | EV92: $0 | EW92: $0 | EX92: $0 | EY92: $0 | EZ92: $0 | FA92: $0 | FB92: $0 | FC92: $0 | FD92: $0 | FE92: $0 | FF92: $0 | FG92: $0 | FH92: $0 | FI92: $0 | FJ92: $0 | FK92: $0 | FL92: $0 | FM92: $0 | FN92: $0 | FO92: $0 | FP92: $0 | FQ92: $0 | FU92: =IF(FU91="50% Rule",1,0) -> 0
DL93: Gross Operating Income | EF93: =EF91+EF92 -> $0 | EH93: =EF93*12 -> $0 | EK93: =EK91+EK92 -> $1,380 | EL93: =EL91+EL92 -> $16,560 | EM93: =IFERROR(EL93/EL89,"") -> 92% | EO93: =EO91+EO92 -> $16,726 | EP93: $16,893 | EQ93: $17,062 | ER93: $17,232 | ES93: $17,405 | ET93: $17,579 | EU93: $17,755 | EV93: $17,932 | EW93: $18,111 | EX93: $18,293 | EY93: $18,475 | EZ93: $18,660 | FA93: $18,847 | FB93: $19,035 | FC93: $19,226 | FD93: $19,418 | FE93: $19,612 | FF93: $19,808 | FG93: $20,006 | FH93: $20,206 | FI93: $20,408 | FJ93: $20,612 | FK93: $20,819 | FL93: $21,027 | FM93: $21,237 | FN93: $21,449 | FO93: $21,664 | FP93: $21,881 | FQ93: $22,099 | FU93: =IF(FU92=1,"50% Rule","") -> 
FU94: =IF(FU92=1,"Operating Expenses are being calculated at 50% of Rental Income","") -> 
DL95: Operating Expenses | DS95: =IF(RENTAL_EXPENSE_TYPE="50% Rule","","Annual Operating Expense Increase") ->  | EB95: ='RENTAL INFO SHEET'!BF82 -> 1.00% | EO95: =$EB$95 -> 1.00% | EP95: =$EB$95 -> 1.00% | EQ95: 1.00% | ER95: 1.00% | ES95: 1.00% | ET95: 1.00% | EU95: 1.00% | EV95: 1.00% | EW95: 1.00% | EX95: 1.00% | EY95: 1.00% | EZ95: 1.00% | FA95: 1.00% | FB95: 1.00% | FC95: 1.00% | FD95: 1.00% | FE95: 1.00% | FF95: 1.00% | FG95: 1.00% | FH95: 1.00% | FI95: 1.00% | FJ95: 1.00% | FK95: 1.00% | FL95: 1.00% | FM95: 1.00% | FN95: 1.00% | FO95: 1.00% | FP95: 1.00% | FQ95: 1.00%
DL96: Fixed Expenses: | DZ96: =SUM(DZ97:DZ110) -> $3,950
DL97: =T('RENTAL INFO SHEET'!X52:AE54) -> Property Taxes | DZ97: =IF(AB13="50% Rule",0,'RENTAL INFO SHEET'!AF52) -> $2,000 | EB97: =T('RENTAL INFO SHEET'!AP52:AV54) -> per year | EF97: =IF(EB97="per month",DZ97,IF(EB97="per year",(DZ97/12),IF(EB97="",DZ97))) -> $167 | EH97: =EF97*12 -> $2,000 | EK97: =EL97/12 -> $167 | EL97: =EH97 -> $2,000 | EM97: =IFERROR(EL97/$EL$89,"") -> 11% | EO97: =EL97*(1+EO$95) -> $2,020 | EP97: =EO97*(1+EP$95) -> $2,040 | EQ97: $2,061 | ER97: $2,081 | ES97: $2,102 | ET97: $2,123 | EU97: $2,144 | EV97: $2,166 | EW97: $2,187 | EX97: $2,209 | EY97: $2,231 | EZ97: $2,254 | FA97: $2,276 | FB97: $2,299 | FC97: $2,322 | FD97: $2,345 | FE97: $2,369 | FF97: =FE97*(1+FF$95) -> $2,392 | FG97: $2,416 | FH97: $2,440 | FI97: $2,465 | FJ97: $2,489 | FK97: $2,514 | FL97: $2,539 | FM97: $2,565 | FN97: $2,591 | FO97: $2,616 | FP97: $2,643 | FQ97: $2,669
DL98: =T('RENTAL INFO SHEET'!AY52:BF54) -> Property Insurance | DZ98: =IF(AB13="50% Rule",0,'RENTAL INFO SHEET'!BG52) -> $800 | EB98: =T('RENTAL INFO SHEET'!BQ52:BW54) -> per year | EF98: =IF(EB98="per month",DZ98,IF(EB98="per year",(DZ98/12),IF(EB98="",DZ98))) -> $67 | EH98: =EF98*12 -> $800 | EK98: =EL98/12 -> $67 | EL98: $800 | EM98: =IFERROR(EL98/$EL$89,"") -> 4% | EO98: $808 | EP98: $816 | EQ98: $824 | ER98: $832 | ES98: $841 | ET98: $849 | EU98: $858 | EV98: $866 | EW98: $875 | EX98: $884 | EY98: $893 | EZ98: $901 | FA98: $910 | FB98: $920 | FC98: $929 | FD98: $938 | FE98: $947 | FF98: $957 | FG98: $966 | FH98: $976 | FI98: $986 | FJ98: $996 | FK98: $1,006 | FL98: $1,016 | FM98: $1,026 | FN98: $1,036 | FO98: $1,047 | FP98: $1,057 | FQ98: $1,068
DL99: =T('RENTAL INFO SHEET'!X55:AE57) -> Cleaning and Maintenance: | DZ99: =IF(AB13="50% Rule",0,'RENTAL INFO SHEET'!AF55) -> $0 | EB99: =T('RENTAL INFO SHEET'!AP55:AV57) -> per month | EF99: $0 | EH99: $0 | EK99: $0 | EL99: $0 | EM99: 0% | EO99: $0 | EP99: $0 | EQ99: $0 | ER99: $0 | ES99: $0 | ET99: $0 | EU99: $0 | EV99: $0 | EW99: $0 | EX99: $0 | EY99: $0 | EZ99: $0 | FA99: $0 | FB99: $0 | FC99: $0 | FD99: $0 | FE99: $0 | FF99: $0 | FG99: $0 | FH99: $0 | FI99: $0 | FJ99: $0 | FK99: $0 | FL99: $0 | FM99: $0 | FN99: $0 | FO99: $0 | FP99: $0 | FQ99: $0
DL100: =T('RENTAL INFO SHEET'!AY55:BF57) -> HOA Dues: | DZ100: =IF(AB13="50% Rule",0,'RENTAL INFO SHEET'!BG55) -> $500 | EB100: =T('RENTAL INFO SHEET'!BQ55:BW57) -> per year | EF100: $42 | EH100: $500 | EK100: $42 | EL100: $500 | EM100: 3% | EO100: $505 | EP100: $510 | EQ100: $515 | ER100: $520 | ES100: $526 | ET100: $531 | EU100: $536 | EV100: $541 | EW100: $547 | EX100: $552 | EY100: $558 | EZ100: $563 | FA100: $569 | FB100: $575 | FC100: $580 | FD100: $586 | FE100: $592 | FF100: $598 | FG100: $604 | FH100: $610 | FI100: $616 | FJ100: $622 | FK100: $629 | FL100: $635 | FM100: $641 | FN100: $648 | FO100: $654 | FP100: $661 | FQ100: $667
DL101: =T('RENTAL INFO SHEET'!X58:AE60) -> Lawn and Groundskeeping: | DZ101: =IF(AB13="50% Rule",0,'RENTAL INFO SHEET'!AF58) -> $0 | EB101: =T('RENTAL INFO SHEET'!AP58:AV60) -> per month | EF101: $0 | EH101: $0 | EK101: $0 | EL101: $0 | EM101: 0% | EO101: $0 | EP101: $0 | EQ101: $0 | ER101: $0 | ES101: $0 | ET101: $0 | EU101: $0 | EV101: $0 | EW101: $0 | EX101: $0 | EY101: $0 | EZ101: $0 | FA101: $0 | FB101: $0 | FC101: $0 | FD101: $0 | FE101: $0 | FF101: $0 | FG101: $0 | FH101: $0 | FI101: $0 | FJ101: $0 | FK101: $0 | FL101: $0 | FM101: $0 | FN101: $0 | FO101: $0 | FP101: $0 | FQ101: $0
DL102: =T('RENTAL INFO SHEET'!AY58:BF60) -> Auto and Travel: | DZ102: =IF(AB13="50% Rule",0,'RENTAL INFO SHEET'!BG58) -> $0 | EB102: =T('RENTAL INFO SHEET'!BQ58:BW60) -> per month | EF102: $0 | EH102: $0 | EK102: $0 | EL102: $0 | EM102: 0% | EO102: $0 | EP102: $0 | EQ102: $0 | ER102: $0 | ES102: $0 | ET102: $0 | EU102: $0 | EV102: $0 | EW102: $0 | EX102: $0 | EY102: $0 | EZ102: $0 | FA102: $0 | FB102: $0 | FC102: $0 | FD102: $0 | FE102: $0 | FF102: $0 | FG102: $0 | FH102: $0 | FI102: $0 | FJ102: $0 | FK102: $0 | FL102: $0 | FM102: $0 | FN102: $0 | FO102: $0 | FP102: $0 | FQ102: $0
DL103: =T('RENTAL INFO SHEET'!X61:AE63) -> Electrical Utilities: | DZ103: =IF(AB13="50% Rule",0,'RENTAL INFO SHEET'!AF61) -> $0 | EB103: =T('RENTAL INFO SHEET'!AP61:AV63) -> per month | EF103: $0 | EH103: $0 | EK103: $0 | EL103: $0 | EM103: 0% | EO103: $0 | EP103: $0 | EQ103: $0 | ER103: $0 | ES103: $0 | ET103: $0 | EU103: $0 | EV103: $0 | EW103: $0 | EX103: $0 | EY103: $0 | EZ103: $0 | FA103: $0 | FB103: $0 | FC103: $0 | FD103: $0 | FE103: $0 | FF103: $0 | FG103: $0 | FH103: $0 | FI103: $0 | FJ103: $0 | FK103: $0 | FL103: $0 | FM103: $0 | FN103: $0 | FO103: $0 | FP103: $0 | FQ103: $0
DL104: =T('RENTAL INFO SHEET'!AY61:BF63) -> Water Utilities: | DZ104: =IF(AB13="50% Rule",0,'RENTAL INFO SHEET'!BG61) -> $0 | EB104: =T('RENTAL INFO SHEET'!BQ61:BW63) -> per month | EF104: $0 | EH104: $0 | EK104: $0 | EL104: $0 | EM104: 0% | EO104: $0 | EP104: $0 | EQ104: $0 | ER104: $0 | ES104: $0 | ET104: $0 | EU104: $0 | EV104: $0 | EW104: $0 | EX104: $0 | EY104: $0 | EZ104: $0 | FA104: $0 | FB104: $0 | FC104: $0 | FD104: $0 | FE104: $0 | FF104: $0 | FG104: $0 | FH104: $0 | FI104: $0 | FJ104: $0 | FK104: $0 | FL104: $0 | FM104: $0 | FN104: $0 | FO104: $0 | FP104: $0 | FQ104: $0
DL105: =T('RENTAL INFO SHEET'!X64:AE66) -> Gas Utilities: | DZ105: =IF(AB13="50% Rule",0,'RENTAL INFO SHEET'!AF64) -> $0 | EB105: =T('RENTAL INFO SHEET'!AP64:AV66) -> per month | EF105: $0 | EH105: $0 | EK105: $0 | EL105: $0 | EM105: 0% | EO105: $0 | EP105: $0 | EQ105: $0 | ER105: $0 | ES105: $0 | ET105: $0 | EU105: $0 | EV105: $0 | EW105: $0 | EX105: $0 | EY105: $0 | EZ105: $0 | FA105: $0 | FB105: $0 | FC105: $0 | FD105: $0 | FE105: $0 | FF105: $0 | FG105: $0 | FH105: $0 | FI105: $0 | FJ105: $0 | FK105: $0 | FL105: $0 | FM105: $0 | FN105: $0 | FO105: $0 | FP105: $0 | FQ105: $0
DL106: =T('RENTAL INFO SHEET'!AY64:BF66) -> Garbage: | DZ106: =IF(AB13="50% Rule",0,'RENTAL INFO SHEET'!BG64) -> $0 | EB106: =T('RENTAL INFO SHEET'!BQ64:BW66) -> per month | EF106: $0 | EH106: $0 | EK106: $0 | EL106: $0 | EM106: 0% | EO106: $0 | EP106: $0 | EQ106: $0 | ER106: $0 | ES106: $0 | ET106: $0 | EU106: $0 | EV106: $0 | EW106: $0 | EX106: $0 | EY106: $0 | EZ106: $0 | FA106: $0 | FB106: $0 | FC106: $0 | FD106: $0 | FE106: $0 | FF106: $0 | FG106: $0 | FH106: $0 | FI106: $0 | FJ106: $0 | FK106: $0 | FL106: $0 | FM106: $0 | FN106: $0 | FO106: $0 | FP106: $0 | FQ106: $0
DL107: =T('RENTAL INFO SHEET'!X67:AE69) -> Advertising: | DZ107: =IF(AB13="50% Rule",0,'RENTAL INFO SHEET'!AF67) -> $250 | EB107: =T('RENTAL INFO SHEET'!AP67:AV69) -> per year | EF107: $21 | EH107: $250 | EK107: $21 | EL107: $250 | EM107: 1% | EO107: $253 | EP107: $255 | EQ107: $258 | ER107: $260 | ES107: $263 | ET107: $265 | EU107: $268 | EV107: $271 | EW107: $273 | EX107: $276 | EY107: $279 | EZ107: $282 | FA107: $285 | FB107: $287 | FC107: $290 | FD107: $293 | FE107: $296 | FF107: $299 | FG107: $302 | FH107: $305 | FI107: $308 | FJ107: $311 | FK107: $314 | FL107: $317 | FM107: $321 | FN107: $324 | FO107: $327 | FP107: $330 | FQ107: $334
DL108: =T('RENTAL INFO SHEET'!AY67:BF69) -> Accounting & Legal: | DZ108: =IF(AB13="50% Rule",0,'RENTAL INFO SHEET'!BG67) -> $400 | EB108: =T('RENTAL INFO SHEET'!BQ67:BW69) -> per year | EF108: $33 | EH108: $400 | EK108: $33 | EL108: $400 | EM108: 2% | EO108: $404 | EP108: $408 | EQ108: $412 | ER108: $416 | ES108: $420 | ET108: $425 | EU108: $429 | EV108: $433 | EW108: $437 | EX108: $442 | EY108: $446 | EZ108: $451 | FA108: $455 | FB108: $460 | FC108: $464 | FD108: $469 | FE108: $474 | FF108: $478 | FG108: $483 | FH108: $488 | FI108: $493 | FJ108: $498 | FK108: $503 | FL108: $508 | FM108: $513 | FN108: $518 | FO108: $523 | FP108: $529 | FQ108: $534
DL109: =T('RENTAL INFO SHEET'!X70:AE72) -> Other 1: | DZ109: =IF(AB13="50% Rule",0,'RENTAL INFO SHEET'!AF70) -> $0 | EB109: =T('RENTAL INFO SHEET'!AP70:AV72) -> per year | EF109: $0 | EH109: $0 | EK109: $0 | EL109: $0 | EM109: 0% | EO109: $0 | EP109: $0 | EQ109: $0 | ER109: $0 | ES109: $0 | ET109: $0 | EU109: $0 | EV109: $0 | EW109: $0 | EX109: $0 | EY109: $0 | EZ109: $0 | FA109: $0 | FB109: $0 | FC109: $0 | FD109: $0 | FE109: $0 | FF109: $0 | FG109: $0 | FH109: $0 | FI109: $0 | FJ109: $0 | FK109: $0 | FL109: $0 | FM109: $0 | FN109: $0 | FO109: $0 | FP109: $0 | FQ109: $0
DL110: =T('RENTAL INFO SHEET'!AY70:BF72) -> Other 2: | DZ110: =IF(AB13="50% Rule",0,'RENTAL INFO SHEET'!BG70) -> $0 | EB110: =T('RENTAL INFO SHEET'!BQ70:BW72) -> per year | EF110: $0 | EH110: $0 | EK110: $0 | EL110: $0 | EM110: 0% | EO110: $0 | EP110: $0 | EQ110: $0 | ER110: $0 | ES110: $0 | ET110: $0 | EU110: $0 | EV110: $0 | EW110: $0 | EX110: $0 | EY110: $0 | EZ110: $0 | FA110: $0 | FB110: $0 | FC110: $0 | FD110: $0 | FE110: $0 | FF110: $0 | FG110: $0 | FH110: $0 | FI110: $0 | FJ110: $0 | FK110: $0 | FL110: $0 | FM110: $0 | FN110: $0 | FO110: $0 | FP110: $0 | FQ110: $0
DL111: Variable Expenses: | DZ111: =SUM(DZ112:DZ114) -> $0
DL112: Property Management (%): | DZ112: =IF(AB13="50% Rule",0,'RENTAL INFO SHEET'!AS75) -> 10.0% | EB112: % of Income | EF112: =DZ112*EF88 -> $150 | EH112: =EF112*12 -> $1,800 | EK112: =EL112/12 -> $150 | EL112: =EH112 -> $1,800 | EM112: =IFERROR(EL112/$EL$89,"") -> 10% | EO112: =EL112*(1+EO$95) -> $1,818 | EP112: =EO112*(1+EP$95) -> $1,836 | EQ112: $1,855 | ER112: $1,873 | ES112: $1,892 | ET112: $1,911 | EU112: $1,930 | EV112: $1,949 | EW112: $1,969 | EX112: $1,988 | EY112: $2,008 | EZ112: $2,028 | FA112: $2,049 | FB112: $2,069 | FC112: $2,090 | FD112: $2,111 | FE112: $2,132 | FF112: =FE112*(1+FF$95) -> $2,153 | FG112: $2,175 | FH112: $2,196 | FI112: $2,218 | FJ112: $2,240 | FK112: $2,263 | FL112: $2,286 | FM112: $2,308 | FN112: $2,331 | FO112: $2,355 | FP112: $2,378 | FQ112: $2,402
DL113: =T('RENTAL INFO SHEET'!AZ75:BE77) -> Repairs (%): | DZ113: =IF(AB13="50% Rule",0,'RENTAL INFO SHEET'!BF75) -> 2.0% | EB113: % of Income | EF113: =DZ113*EF88 -> $30 | EH113: $360 | EK113: $30 | EL113: $360 | EM113: 2% | EO113: =EL113*(1+EO$95) -> $364 | EP113: $367 | EQ113: $371 | ER113: $375 | ES113: $378 | ET113: $382 | EU113: $386 | EV113: $390 | EW113: $394 | EX113: $398 | EY113: $402 | EZ113: $406 | FA113: $410 | FB113: $414 | FC113: $418 | FD113: $422 | FE113: $426 | FF113: $431 | FG113: $435 | FH113: $439 | FI113: $444 | FJ113: $448 | FK113: $453 | FL113: $457 | FM113: $462 | FN113: $466 | FO113: $471 | FP113: $476 | FQ113: $480
DL114: =T('RENTAL INFO SHEET'!BM75:BR77) -> Cap Ex (%): | DZ114: =IF(AB13="50% Rule",0,'RENTAL INFO SHEET'!BS75) -> 5.0% | EB114: % of Income | EF114: =DZ114*EF88 -> $75 | EH114: $900 | EK114: $75 | EL114: $900 | EM114: 5% | EO114: =EL114*(1+EO$95) -> $909 | EP114: $918 | EQ114: $927 | ER114: $937 | ES114: $946 | ET114: $955 | EU114: $965 | EV114: $975 | EW114: $984 | EX114: $994 | EY114: $1,004 | EZ114: $1,014 | FA114: $1,024 | FB114: $1,035 | FC114: $1,045 | FD114: $1,055 | FE114: $1,066 | FF114: $1,077 | FG114: $1,087 | FH114: $1,098 | FI114: $1,109 | FJ114: $1,120 | FK114: $1,131 | FL114: $1,143 | FM114: $1,154 | FN114: $1,166 | FO114: $1,177 | FP114: $1,189 | FQ114: $1,201
DL115: Total Operating Expenses | EF115: =SUM(EF97:EF114) -> $584 | EH115: =SUM(EH97:EH114) -> $7,010 | EK115: =IF(AB13="50% Rule",EK93*0.5,SUM(EK97:EK114)) -> $584 | EL115: =IF(AB13="50% Rule",EL93*0.5,SUM(EL97:EL114)) -> $7,010 | EM115: =SUM(EM97:EM114) -> 39% | EO115: =IF($AB$13="50% Rule",EO93*0.5,SUM(EO97:EO114)) -> $7,080 | EP115: $7,151 | EQ115: $7,222 | ER115: $7,295 | ES115: $7,368 | ET115: $7,441 | EU115: $7,516 | EV115: $7,591 | EW115: $7,667 | EX115: $7,743 | EY115: $7,821 | EZ115: $7,899 | FA115: $7,978 | FB115: $8,058 | FC115: $8,138 | FD115: $8,220 | FE115: $8,302 | FF115: $8,385 | FG115: $8,469 | FH115: $8,554 | FI115: $8,639 | FJ115: $8,725 | FK115: $8,813 | FL115: $8,901 | FM115: $8,990 | FN115: $9,080 | FO115: $9,171 | FP115: $9,262 | FQ115: $9,355
DL117: Net Operating Income | EK117: =EK93-EK115 -> $796 | EL117: =EL93-EL115 -> $9,550 | EM117: =IFERROR(EL117/EL89,"") -> 53% | EO117: =EO93-EO115 -> $9,646 | EP117: $9,742 | EQ117: $9,839 | ER117: $9,938 | ES117: $10,037 | ET117: $10,138 | EU117: $10,239 | EV117: $10,341 | EW117: $10,445 | EX117: $10,549 | EY117: $10,655 | EZ117: $10,761 | FA117: $10,869 | FB117: $10,977 | FC117: $11,087 | FD117: $11,198 | FE117: $11,310 | FF117: $11,423 | FG117: $11,537 | FH117: $11,653 | FI117: $11,769 | FJ117: $11,887 | FK117: $12,006 | FL117: $12,126 | FM117: $12,247 | FN117: $12,370 | FO117: $12,493 | FP117: $12,618 | FQ117: $12,745
DO118: Mortgage Type | DS118: APR | DU118: Down Payment % | DZ118: Loan Amount
DL119: Financing | DO119: =IF(OR('RENTAL INFO SHEET'!BI87="All Cash",'RENTAL INFO SHEET'!BI87=""),"All Cash",CONCATENATE('RENTAL INFO SHEET'!BS91,"-","Year"," ","Fixed")) -> 30-Year Fixed | DS119: =IF('RENTAL INFO SHEET'!BI87="All Cash",0,'RENTAL INFO SHEET'!AE104) -> 5.5% | DV119: =IF('RENTAL INFO SHEET'!BI87="All Cash",0,'RENTAL INFO SHEET'!AT101) -> 20.0% | DZ119: =IF(OR('RENTAL INFO SHEET'!BI87="All Cash",'RENTAL INFO SHEET'!BI87=""),"All Cash",'RENTAL INFO SHEET'!AX125) -> $95,500
DL120: Mortgage Payment (Interest Amount) | EK120: =DZ220 -> $435 | EL120: =DZ219 -> $5,220 | EM120: =IFERROR(EL120/EL89,"") -> 29% | EO120: =DZ231 -> $5,148 | EP120: =DZ243 -> $5,071 | EQ120: =DZ255 -> $4,990 | ER120: =DZ267 -> $4,905 | ES120: =DZ279 -> $4,814 | ET120: =DZ291 -> $4,719 | EU120: =DZ303 -> $4,618 | EV120: =DZ315 -> $4,511 | EW120: =DZ327 -> $4,399 | EX120: =DZ339 -> $4,280 | EY120: =DZ351 -> $4,154 | EZ120: =DZ363 -> $4,022 | FA120: =DZ375 -> $3,881 | FB120: =DZ387 -> $3,733 | FC120: =DZ399 -> $3,577 | FD120: =DZ411 -> $3,412 | FE120: =DZ423 -> $3,237 | FF120: =DZ435 -> $3,052 | FG120: =DZ447 -> $2,858 | FH120: =DZ459 -> $2,652 | FI120: =DZ471 -> $2,434 | FJ120: =DZ483 -> $2,205 | FK120: =DZ495 -> $1,962 | FL120: =DZ507 -> $1,706 | FM120: =DZ519 -> $1,435 | FN120: =DZ531 -> $1,149 | FO120: =DZ543 -> $846 | FP120: =DZ555 -> $527 | FQ120: =DZ567 -> $190
DL121: Mortgage Payment (Principal Amount) | EK121: =EB220 -> $107 | EL121: =EB219 -> $1,286 | EM121: =IFERROR(EL121/EL89,"") -> 7% | EO121: =EB231 -> $1,359 | EP121: =EB243 -> $1,436 | EQ121: =EB255 -> $1,517 | ER121: =EB267 -> $1,602 | ES121: =EB279 -> $1,693 | ET121: =EB291 -> $1,788 | EU121: =EB303 -> $1,889 | EV121: =EB315 -> $1,996 | EW121: =EB327 -> $2,108 | EX121: =EB339 -> $2,227 | EY121: =EB351 -> $2,353 | EZ121: =EB363 -> $2,485 | FA121: =EB375 -> $2,625 | FB121: =EB387 -> $2,774 | FC121: =EB399 -> $2,930 | FD121: =EB411 -> $3,095 | FE121: =EB423 -> $3,270 | FF121: =EB435 -> $3,454 | FG121: =EB447 -> $3,649 | FH121: =EB459 -> $3,855 | FI121: =EB471 -> $4,073 | FJ121: =EB483 -> $4,302 | FK121: =EB495 -> $4,545 | FL121: =EB507 -> $4,801 | FM121: =EB519 -> $5,072 | FN121: =EB531 -> $5,358 | FO121: =EB543 -> $5,660 | FP121: =EB555 -> $5,980 | FQ121: =EB567 -> $6,317
DL122: Total Financing | EK122: =SUM(EK120:EK121) -> $542 | EL122: =SUM(EL120:EL121) -> $6,507 | EM122: =IFERROR(EL122/EL89,"") -> 36% | EO122: =SUM(EO120:EO121) -> $6,507 | EP122: =SUM(EP120:EP121) -> $6,507 | EQ122: $6,507 | ER122: $6,507 | ES122: $6,507 | ET122: $6,507 | EU122: $6,507 | EV122: $6,507 | EW122: $6,507 | EX122: $6,507 | EY122: $6,507 | EZ122: $6,507 | FA122: $6,507 | FB122: $6,507 | FC122: $6,507 | FD122: $6,507 | FE122: $6,507 | FF122: $6,507 | FG122: $6,507 | FH122: $6,507 | FI122: $6,507 | FJ122: $6,507 | FK122: $6,507 | FL122: $6,507 | FM122: $6,507 | FN122: $6,507 | FO122: $6,507 | FP122: $6,507 | FQ122: $6,507
DL124: Cash Flow
